Workbook

Sheet DATABASE
C1: COST | I1: COST | M1: COST | P1: COST
B3: DH01 91101:THAI CHK | C3: 3.29 | F3: DC01 1101:THAI CHK | I3: =+C3 -> 3.29 | L3: JK101 LLB Thai Chk Ric | M3: =+I3 -> 3.29 | O3: JM101 C.Chicken Sausag | P3: 0.39
B4: DH02 91102:MAMITE CHK | C4: 3.02 | F4: DC02 1102:MAMITE CHK | I4: =+C4 -> 3.02 | L4: JK102 Marmite Chk Rice | M4: =+I4 -> 3.02 | O4: JM102 Beef Ball | P4: 0.65
B5: DH03 91103:KO PO CHK | C5: 3.45 | F5: DC03 1103:KO PO CHK | I5: 3.45 | O5: JM103 Chicken Kidney | P5: 1
B6: DH04 91104:S&S CHK | C6: 3.45 | F6: DC04 1104:S&S CHK | I6: 3.45 | L6: JK104 S&S Chk Rice | M6: =+I6 -> 3.45 | O6: JM104 Chicken Liver | P6: 1
B7: DH05 91105:BUTTER CHK | C7: 3.32 | F7: DC05 1105:BUTTER CHK | I7: 3.32 | L7: JK105 B.Cream.Chk Rice | M7: 3.32 | O7: JM105 Cheese C.Sausage | P7: 0.8
B8: DH06 91106:HK F.RICE | C8: 3.16 | F8: DC06 1106:HK F.RICE | I8: 3.16 | L8: JK106 H.K Fried Rice | M8: 3.16 | O8: JM106 B.P C.Sausage | P8: 0.8
B9: DH07 91107:SBL F.RICE | C9: 2.41 | F9: DC07 1107:SBL F.RICE | I9: 2.41 | L9: JK107 LLBSambal F.Rice | M9: 2.41 | O9: JM107 S.Fill beef Ball | P9: 1.05
B10: DH08 91108:SBL F.MEE | C10: 2.8 | F10: DC08 1108:SBL F.MEE | I10: 2.8 | L10: JK108 LLB S.Fried MEE | M10: 2.8 | O10: JM108 Pandan Chicken | P10: 1.64
B11: DH09 91109:BP UDON | C11: 2.08 | F11: DC09 1109:BP UDON | I11: 2.08 | L11: JK109 LLB BP Udon Mee | M11: 2.08 | O11: JM109 S. Duck Breast | P11: 2.13
B12: DH10 91110:NISSIN | C12: 2.32 | F12: DC10 1110:NISSIN | I12: 2.32 | L12: JK110 LLB Nisin Noodle | M12: 2.32 | O12: JM110 Grill.B.Chk.Wing | P12: 2.8
B13: DH11 91111:VEG RICE | C13: 1.6 | F13: DC11 1111:VEG RICE | I13: 1.6 | L13: JK111 LLB S.M.Ver Rice | M13: =+I13 -> 1.6 | O13: JN211 Pork Meatball s | P13: 0.55
B14: DH12 91112:NASI LEMAK | C14: 3.56 | F14: DC12 1112:NASI LEMAK | I14: 3.56
B15: DH13 91113:KUEY TEOW | C15: 3.16 | F15: DC13 1113:KUEY TEOW | I15: 3.16 | O15: JN213 P. Sauage Slices | P15: 0.96
B16: DH14 91114:F.BALL MEE | C16: 2.59 | F16: DC14 1114:F.BALL MEE | I16: 2.59 | O16: JN214 Pork Dumplings | P16: 1.2
B17: DH15 91115:CHK NOODLE | C17: 4.71 | F17: DC15 1115:CHK NOODLE | I17: 4.71 | L17: JK115 LLB B.Noodle.Chk | M17: =+I17 -> 4.71 | O17: JN215 Pork Meatball B | P17: 0.78
B18: DH16 91116:MGL CHK | C18: 3.54 | F18: DC16 1116:MGL CHICKEN | I18: 3.54 | L18: JK116 LLB Mon.Chk Rice | M18: 3.54 | O18: JN216 Pork Liver | P18: 1.2
B19: DG01 91001:BP CHK CP | C19: 4.41 | F19: DB01 1001:BP CKN CP | I19: 4.41 | L19: JK001 LLB BP CHK CHOP | M19: 4.41 | O19: JN217 Taiwan Sausage | P19: 1.02
B20: DG02 91002:GVY CHK CP | C20: 4.43 | F20: DB02 1002:GVY CHK CP | I20: 4.43 | L20: JK002 LLB G.S C. CHOP | M20: 4.43 | O20: JN218 Bacon | P20: 0.95
B21: DG03 91003:MSR CHK CP | C21: 4.75 | F21: DB03 1003:MSR CKN CP | I21: 4.75 | L21: JK003 LLB MSR CHK CHOP | M21: 4.75 | O21: JN219 Pork Rinds | P21: 1.5
B22: DG04 91004:CKN MARY | C22: 5.98 | F22: DB04 1004:CKN MARY | I22: 5.98 | L22: JK004 LLB CHK MARRYLAN | M22: 5.98 | O22: JN220 Sauce Filll Ball | P22: 1.5
B23: DG05 91005:FISH&CHIP | C23: 4.32 | F23: DB05 1005:FISH&CHIP | I23: 4.32 | L23: JK005 LLB Fish & Chip | M23: 4.32
B24: DG06 91006:SPAGHETTI | C24: 2.1 | F24: DB06 1006:SPAGHETTI | I24: 2.1 | L24: JK006 LLB Spaghetti | M24: 2.1 | O24: JN222 Enoki Bacon Roll | P24: 1.5
B25: DG07 91007:CHK SALAD | C25: 4.94 | F25: DB07 1007:CHK SALAD | I25: 4.94 | L25: JK007 LLB CHK .C.SALAD | M25: 4.94 | O25: JO323 Fish Wanton | P25: 0.45
B26: DI01 91201:SFD STICK | C26: 2 | F26: DD01 1201:SFD STICK | I26: 2 | O26: JO324 M. Fried F. Cake | P26: 0.6
O27: JO325 Spicy Fish Cake | P27: 0.48
O28: JO326 Fresh Clam | P28: 1.5
B29: DI02 91202:FREN FRIES | C29: 1.76 | F29: DD02 1202:FREN FRIES | I29: =+C29 -> 1.76 | O29: JO327 Wu Xiang F.Ball | P29: 0.7
B30: DI03 91203:GOLD MROOM | C30: 2.15 | F30: DD03 1203:GOLD MROOM | I30: =+C30 -> 2.15 | O30: JO328 Xi Dao Fish Ball | P30: 0.65
B31: DI04 91204:FISHBALL | C31: 1.56 | F31: DD04 1204:FISHBALL | I31: 1.56 | O31: JO329 Fish Ball (S) | P31: 0.65
B32: DI05 91205:RAINBOW RL | C32: 2.5 | F32: DD05 1205:RAINBOW RL | I32: 2.5 | O32: JO330 Tofu Fish Ball | P32: 0.6
B33: DI06 91206:SPRING RL | C33: 2.67 | F33: DD06 1206:SPRING RL | I33: 2.67 | O33: JO331 Prawn Ball | P33: 0.39
B34: DI07 91207:SAUSAGE | C34: 1.24 | F34: DD07 1207:SAUSAGE | I34: 1.24 | O34: JO332 Abalone Slices | P34: 0.72
B35: DI08 91208:HOTDOG BUN | O35: JO333 Prawn C. sausage | P35: 0.57
B36: DI09 91209:SFD TOFU | O36: JO334 FISH BALL BIG | P36: 1
B37: DI10 91301:DUMPLING | C37: 4.5 | F37: DD10 1301:DUMPLING | I37: =+C37 -> 4.5 | O37: JO335 Tempura Prawn | P37: 0.9
B38: DI11 91302:NUGGET | C38: 2.43 | F38: DD11 1302:NUGGET | I38: =+C38 -> 2.43 | O38: JO336 Breaded CarbClaw | P38: 0.9
B39: DI12 91303:CHK WING | C39: 3.97 | F39: DD12 1303:CHK WING | I39: 3.97 | O39: JO337 C.Shrimp.F.Paste | P39: 0.73
B40: DI13 91304:IKAN BILIS | C40: 2.18 | F40: DD13 1304:IKAN BILIS | I40: 2.18 | O40: JO338 Otak Fish Paste | P40: 0.67
B41: DI14 91305:THAI RL | C41: 3.61 | F41: DD14 1305:THAI RL | I41: 3.61 | O41: JO339 Salmon Ball | P41: 0.9
B42: DI15 91306:SLVR FISH | F42: DD15 1306:SLVR FISH | I42: 0 | O42: JO340 Fuzhou Fish Ball | P42: 1.29
B43: DI16 91307:D/F C.WING | C43: 4.31 | F43: DD16 1307:D.F C/WING | I43: 4.31 | O43: JO341 Scallop Ball | P43: 1.02
B44: DI17 91308:C/CALAMARI | C44: 3.69 | F44: DD17 1308 C/CALAMARI | I44: 3.69 | O44: JO342 Taiwan C.F. Ball | P44: 1.17
B45: DI18 91309:Mc O.RINGS | C45: 1.72 | F45: DD18 1309 Mc C/O.RING | I45: 1.72 | O45: JO343 Cuttlefish Roll | P45: 1.06
B46: DI19 91310:McSPIRAL.F | C46: 1.72 | F46: DD19 1310:Mc SPIRAL/F | I46: 1.72 | O46: JO344 M.Seafood Ball | P46: 1.02
B47: DI20 91311Mc H/SMILES | C47: 1.34 | F47: DD20 1311:Mc H/SMILES | I47: 1.34 | O47: JO345 Cuttlefish | P47: 1.5
B48: DI21 91312:Mc HASH.B | C48: 0.59 | F48: DD21 1312:Mc HASH BRW | I48: 0.59 | O48: JO346 Shisamo | P48: 1.5
F49: ZAB01 1201:SFD STICK | I49: 2 | O49: JO347 Tiger Prawn | P49: 1.5
O50: JP448 Botton Mushroom | P50: 0.6
F51: ZAB02 1202:FRIES | I51: 1.76 | O51: JP449 Kang Kong | P51: 0.4
F52: ZAB03 1203:GOLD MROOM | I52: 2.15 | O52: JP450 Broccali | P52: 0.5
F53: ZAB04 1204:F.BALL | I53: 1.56 | O53: JP451 Long Bean | P53: 0.3
F54: ZAB06 1206:SPRING RL | I54: 2.5 | O54: JP452 Fried A.Mushroom | P54: 0.4
F55: ZAB07 1207:SAUSAGE | I55: 2.67 | O55: JP453 Shiitake Mushrom | P55: 0.7
F56: ZAC02 1302:NUGGET | I56: 1.24 | O56: JQ554 M.Fish Eggplant | P56: 0.52
F57: ZAC03 1303:CHK WING | I57: 3.97 | O57: JQ555 M.Fish Chilli | P57: 0.52
F58: ZAC04 1304:IKAN BILIS | I58: 2.18 | O58: JQ556 M.Fish Lady's F | P58: 0.52
F59: ZAC05 1305:THAI RL | I59: 3.61 | O59: JQ557 Chrisy Beabcurd | P59: 0.33
F60: ZAC07 1307:D/F C.WINGS | I60: 4.31 | O60: JQ558 Quail Eggs | P60: 0.56
F61: ZAC08 1308:C/CALAMARI | I61: 3.69 | O61: JQ559 Fried Wanton | P61: 0.9
F62: ZAC09 1309:Mc /O.RINGS | I62: 1.72 | O62: JQ560 L.G.Potato Samos | P62: 0.7
F63: ZAC10 1310:Mc SPIRAL/F | I63: 1.72 | O63: JQ561 F.Vege Ball | P63: 0.75
F64: ZAC11 1311:Mc H/SMILES | I64: 1.34 | O64: JQ562 Minced Fish Ball | P64: 1.02
F65: ZAC12 1312:Mc HASH/B | I65: 0.59 | O65: JQ563 Seafood Tofu | P65: 0.87
F66: DL01 3001:6'HAWAIIAN | I66: 3.25 | O66: JQ564 Spring Roll | P66: 1
F67: DL02 3002:6'SMOKE BBQ | I67: 4.59 | O67: JQ565 Quail Century Eg | P67: 0.81
F68: DL03 3003:6'SEAFOOD | I68: 5.13 | O68: JQ566 Thai Roll | P68: 1.2
F69: DL04 3004:6'SPICY BUF | I69: 2.99 | O69: JQ567 Cheese S.Tofu | P69: 1.02
F70: DL05 3005:6'VEGGIE | I70: 3.62 | O70: JQ568 Rice Skin Roll | P70: 1.2
F71: DL06 3001:9'HAWAIIAN | I71: 5.79 | O71: JR01 PACKAGE A | P71: 8.28
F72: DL07 3002:9'SMOKED | I72: 8.21 | O72: JR02 PACKAGE B | P72: 8.46
F73: DL08 3003:9'SEAFOOD | I73: 9.48
F74: DL09 3004:9'SPICY B | I74: 5.38
F75: DL10 3005:9'VEGGIE | I75: 6.96
F76: DM01 SNACK PLATTER(A) | I76: 4.6
F77: DM02 SNACK PLATTER(B) | I77: 4.6
F78: DM03 CNY platter(A) | I78: 9.81
F79: DM04 CNY platter (B) | I79: 9.81
F80: DF01 ADD RICE | I80: 0.5
F81: DF02 ADD F.EGG | I81: 0.34

Sheet Summary
C3: SUMMARY OF PRODUCT SALES IN MONTH
B6: OUTLET | C6: =MID(CELL("FILENAME",$A$1),FIND("[",CELL("FILENAME",$A$1))+1,3) -> CCS
B8: YEAR | C8: =MID(CELL("FILENAME",$A$1),FIND("[",CELL("FILENAME",$A$1))+4,4) -> 2013
B10: MONTH | C10: =INDEX($C$12:$C$23,MID(CELL("FILENAME",$A$1),FIND("[",CELL("FILENAME",$A$1))+8,2),1) -> SEPTEMBER
B12: MONTH | C12: JANUARY
C13: FEBRUARY
C14: MARCH
C15: APRIL
C16: MAY
C17: JUNE
C18: JULY
C19: AUGUST
C20: SEPTEMBER
C21: OCTOBER
C22: NOVEMBER
C23: DECEMBER
B26: PRODUCT | D26: CATEGORY | E26: QTY | F26: QUANTITIES SOLD IN MONTH
E27: PER | F27: TOTAL | G27: =DATE(C8,MID(CELL("FILENAME",$A$1),FIND("[",CELL("FILENAME",$A$1))+8,2),1) -> 2013-09-01 | H27: =IFERROR(IF(MONTH(G27+1)<=MONTH($G$27),G27+1,""),"") -> 2013-09-02 | I27: =IFERROR(IF(MONTH(H27+1)<=MONTH($G$27),H27+1,""),"") -> 2013-09-03 | J27: 2013-09-04 | K27: 2013-09-05 | L27: 2013-09-06 | M27: 2013-09-07 | N27: 2013-09-08 | O27: 2013-09-09 | P27: 2013-09-10 | Q27: 2013-09-11 | R27: 2013-09-12 | S27: 2013-09-13 | T27: 2013-09-14 | U27: 2013-09-15 | V27: 2013-09-16 | W27: 2013-09-17 | X27: 2013-09-18 | Y27: 2013-09-19 | Z27: 2013-09-20 | AA27: 2013-09-21 | AB27: 2013-09-22 | AC27: 2013-09-23 | AD27: 2013-09-24 | AE27: 2013-09-25 | AF27: 2013-09-26 | AG27: 2013-09-27 | AH27: 2013-09-28 | AI27: 2013-09-29 | AJ27: 2013-09-30
E28: ITEM
B30: BA01 K : 4BP | D30: BEER | E30: 12 | F30: =SUM($G30:$AK30) -> 0 | G30: =IFERROR($E30*SUMIF('[1]Daily Log'!$B$18:$B$1017,$B30,'[1]Daily Log'!$C$18:$C$1017),0) -> 0 | H30: =IFERROR($E30*SUMIF('[2]Daily Log'!$E$18:$E$1017,$B30,'[2]Daily Log'!$F$18:$F$1017),0) -> 0 | I30: =IFERROR($E30*SUMIF('[3]Daily Log'!$H$18:$H$1017,$B30,'[3]Daily Log'!$I$18:$I$1017),0) -> 0 | J30: =IFERROR($E30*SUMIF('[3]Daily Log'!$K$18:$K$1017,$B30,'[3]Daily Log'!$L$18:$L$1017),0) -> 0 | K30: =IFERROR($E30*SUMIF('[3]Daily Log'!$N$18:$N$1017,$B30,'[3]Daily Log'!$O$18:$O$1017),0) -> 0 | L30: =IFERROR($E30*SUMIF('[3]Daily Log'!$Q$18:$Q$1017,$B30,'[3]Daily Log'!$R$18:$R$1017),0) -> 0 | M30: =IFERROR($E30*SUMIF('[3]Daily Log'!$T$18:$T$1017,$B30,'[3]Daily Log'!$U$18:$U$1017),0) -> 0 | N30: =IFERROR($E30*SUMIF('[3]Daily Log'!$W$18:$W$1017,$B30,'[3]Daily Log'!$X$18:$X$1017),0) -> 0 | O30: =IFERROR($E30*SUMIF('[3]Daily Log'!$Z$18:$Z$1017,$B30,'[3]Daily Log'!$AA$18:$AA$1017),0) -> 0 | P30: =IFERROR($E30*SUMIF('[3]Daily Log'!$AC$18:$AC$1017,$B30,'[3]Daily Log'!$AD$18:$AD$1017),0) -> 0 | Q30: =IFERROR($E30*SUMIF('[3]Daily Log'!$AF$18:$AF$1017,$B30,'[3]Daily Log'!$AG$18:$AG$1017),0) -> 0 | R30: =IFERROR($E30*SUMIF('[3]Daily Log'!$AI$18:$AI$1017,$B30,'[3]Daily Log'!$AJ$18:$AJ$1017),0) -> 0 | S30: =IFERROR($E30*SUMIF('[3]Daily Log'!$AL$18:$AL$1017,$B30,'[3]Daily Log'!$AM$18:$AM$1017),0) -> 0 | T30: =IFERROR($E30*SUMIF('[3]Daily Log'!$AO$18:$AO$1017,$B30,'[3]Daily Log'!$AP$18:$AP$1017),0) -> 0 | U30: =IFERROR($E30*SUMIF('[3]Daily Log'!$AR$18:$AR$1017,$B30,'[3]Daily Log'!$AS$18:$AS$1017),0) -> 0 | V30: =IFERROR($E30*SUMIF('[3]Daily Log'!$AU$18:$AU$1017,$B30,'[3]Daily Log'!$AV$18:$AV$1017),0) -> 0 | W30: =IFERROR($E30*SUMIF('[3]Daily Log'!$AX$18:$AX$1017,$B30,'[3]Daily Log'!$AY$18:$AY$1017),0) -> 0 | X30: =IFERROR($E30*SUMIF('[3]Daily Log'!$BA$18:$BA$1017,$B30,'[3]Daily Log'!$BB$18:$BB$1017),0) -> 0 | Y30: =IFERROR($E30*SUMIF('[3]Daily Log'!$BD$18:$BD$1017,$B30,'[3]Daily Log'!$BE$18:$BE$1017),0) -> 0 | Z30: =IFERROR($E30*SUMIF('[3]Daily Log'!$BG$18:$BG$1017,$B30,'[3]Daily Log'!$BH$18:$BH$1017),0) -> 0 | AA30: =IFERROR($E30*SUMIF('[3]Daily Log'!$BJ$18:$BJ$1017,$B30,'[3]Daily Log'!$BK$18:$BK$1017),0) -> 0 | AB30: =IFERROR($E30*SUMIF('[3]Daily Log'!$BM$18:$BM$1017,$B30,'[3]Daily Log'!$BN$18:$BN$1017),0) -> 0 | AC30: =IFERROR($E30*SUMIF('[3]Daily Log'!$BP$18:$BP$1017,$B30,'[3]Daily Log'!$BQ$18:$BQ$1017),0) -> 0 | AD30: =IFERROR($E30*SUMIF('[3]Daily Log'!$BS$18:$BS$1017,$B30,'[3]Daily Log'!$BT$18:$BT$1017),0) -> 0 | AE30: =IFERROR($E30*SUMIF('[3]Daily Log'!$BV$18:$BV$1017,$B30,'[3]Daily Log'!$BW$18:$BW$1017),0) -> 0 | AF30: =IFERROR($E30*SUMIF('[3]Daily Log'!$BY$18:$BY$1017,$B30,'[3]Daily Log'!$BZ$18:$BZ$1017),0) -> 0 | AG30: =IFERROR($E30*SUMIF('[3]Daily Log'!$CB$18:$CB$1017,$B30,'[3]Daily Log'!$CC$18:$CC$1017),0) -> 0 | AH30: =IFERROR($E30*SUMIF('[3]Daily Log'!$CE$18:$CE$1017,$B30,'[3]Daily Log'!$CF$18:$CF$1017),0) -> 0 | AI30: =IFERROR($E30*SUMIF('[3]Daily Log'!$CH$18:$CH$1017,$B30,'[3]Daily Log'!$CI$18:$CI$1017),0) -> 0 | AJ30: =IFERROR($E30*SUMIF('Daily Log'!$CK$18:$CK$1017,$B30,'Daily Log'!$CL$18:$CL$1017),0) -> 0 | AK30: =IFERROR($E30*SUMIF('[3]Daily Log'!$CN$18:$CN$1017,$B30,'[3]Daily Log'!$CO$18:$CO$1017),0) -> 0
B31: BA02 H : 4BP | D31: BEER | E31: 12 | F31: =SUM($G31:$AK31) -> 132 | AJ31: =IFERROR($E31*SUMIF('Daily Log'!$CK$18:$CK$1017,$B31,'Daily Log'!$CL$18:$CL$1017),0) -> 132 | AK31: =IFERROR($E31*SUMIF('Daily Log'!$CN$18:$CN$1017,$B31,'Daily Log'!$CO$18:$CO$1017),0) -> 0
B32: BA03 H : 4BP MEMBER | D32: BEER | E32: 12 | F32: 0 | AJ32: =IFERROR($E32*SUMIF('Daily Log'!$CK$18:$CK$1017,$B32,'Daily Log'!$CL$18:$CL$1017),0) -> 0 | AK32: =IFERROR($E32*SUMIF('Daily Log'!$CN$18:$CN$1017,$B32,'Daily Log'!$CO$18:$CO$1017),0) -> 0
B33: BA04 N : 4BP | D33: BEER | E33: 12 | F33: 708 | AJ33: =IFERROR($E33*SUMIF('Daily Log'!$CK$18:$CK$1017,$B33,'Daily Log'!$CL$18:$CL$1017),0) -> 708 | AK33: =IFERROR($E33*SUMIF('Daily Log'!$CN$18:$CN$1017,$B33,'Daily Log'!$CO$18:$CO$1017),0) -> 0
B34: BA05 N : 4BP MEMBER | D34: BEER | E34: 12 | F34: 0 | AJ34: =IFERROR($E34*SUMIF('Daily Log'!$CK$18:$CK$1017,$B34,'Daily Log'!$CL$18:$CL$1017),0) -> 0 | AK34: =IFERROR($E34*SUMIF('Daily Log'!$CN$18:$CN$1017,$B34,'Daily Log'!$CO$18:$CO$1017),0) -> 0
B35: BA06 M : 4BP | D35: BEER | E35: 12 | F35: 144 | AJ35: =IFERROR($E35*SUMIF('Daily Log'!$CK$18:$CK$1017,$B35,'Daily Log'!$CL$18:$CL$1017),0) -> 144 | AK35: =IFERROR($E35*SUMIF('Daily Log'!$CN$18:$CN$1017,$B35,'Daily Log'!$CO$18:$CO$1017),0) -> 0
B36: BA07 M : 4BP MEMBER | D36: BEER | E36: 12 | F36: 0 | AJ36: =IFERROR($E36*SUMIF('Daily Log'!$CK$18:$CK$1017,$B36,'Daily Log'!$CL$18:$CL$1017),0) -> 0 | AK36: =IFERROR($E36*SUMIF('Daily Log'!$CN$18:$CN$1017,$B36,'Daily Log'!$CO$18:$CO$1017),0) -> 0
B37: BA08 GUINNESS BTL | D37: BEER | E37: 1 | F37: 10 | AJ37: =IFERROR($E37*SUMIF('Daily Log'!$CK$18:$CK$1017,$B37,'Daily Log'!$CL$18:$CL$1017),0) -> 10 | AK37: =IFERROR($E37*SUMIF('Daily Log'!$CN$18:$CN$1017,$B37,'Daily Log'!$CO$18:$CO$1017),0) -> 0
B38: BA09 GUINNESS BKT | D38: BEER | E38: 4 | F38: 48 | AJ38: =IFERROR($E38*SUMIF('Daily Log'!$CK$18:$CK$1017,$B38,'Daily Log'!$CL$18:$CL$1017),0) -> 48 | AK38: =IFERROR($E38*SUMIF('Daily Log'!$CN$18:$CN$1017,$B38,'Daily Log'!$CO$18:$CO$1017),0) -> 0
B39: BA10 GUINNESS RND | D39: BEER | E39: 12 | F39: 0 | AJ39: =IFERROR($E39*SUMIF('Daily Log'!$CK$18:$CK$1017,$B39,'Daily Log'!$CL$18:$CL$1017),0) -> 0 | AK39: =IFERROR($E39*SUMIF('Daily Log'!$CN$18:$CN$1017,$B39,'Daily Log'!$CO$18:$CO$1017),0) -> 0
B40: BA11 HEINEKEN BTL | D40: BEER | E40: 1 | F40: 10 | AJ40: =IFERROR($E40*SUMIF('Daily Log'!$CK$18:$CK$1017,$B40,'Daily Log'!$CL$18:$CL$1017),0) -> 10 | AK40: =IFERROR($E40*SUMIF('Daily Log'!$CN$18:$CN$1017,$B40,'Daily Log'!$CO$18:$CO$1017),0) -> 0
B41: BA12 HEINEKEN BKT | D41: BEER | E41: 4 | F41: 68 | AJ41: =IFERROR($E41*SUMIF('Daily Log'!$CK$18:$CK$1017,$B41,'Daily Log'!$CL$18:$CL$1017),0) -> 68 | AK41: =IFERROR($E41*SUMIF('Daily Log'!$CN$18:$CN$1017,$B41,'Daily Log'!$CO$18:$CO$1017),0) -> 0
B42: BA13 HEINEKEN RND | D42: BEER | E42: 12 | F42: 108 | AJ42: =IFERROR($E42*SUMIF('Daily Log'!$CK$18:$CK$1017,$B42,'Daily Log'!$CL$18:$CL$1017),0) -> 108 | AK42: =IFERROR($E42*SUMIF('Daily Log'!$CN$18:$CN$1017,$B42,'Daily Log'!$CO$18:$CO$1017),0) -> 0
B43: BA14 TIGER BTL | D43: BEER | E43: 1 | F43: 20 | AJ43: =IFERROR($E43*SUMIF('Daily Log'!$CK$18:$CK$1017,$B43,'Daily Log'!$CL$18:$CL$1017),0) -> 20 | AK43: =IFERROR($E43*SUMIF('Daily Log'!$CN$18:$CN$1017,$B43,'Daily Log'!$CO$18:$CO$1017),0) -> 0
B44: BA15 TIGER BKT | D44: BEER | E44: 4 | F44: 264 | AJ44: =IFERROR($E44*SUMIF('Daily Log'!$CK$18:$CK$1017,$B44,'Daily Log'!$CL$18:$CL$1017),0) -> 264 | AK44: =IFERROR($E44*SUMIF('Daily Log'!$CN$18:$CN$1017,$B44,'Daily Log'!$CO$18:$CO$1017),0) -> 0
B45: BA16 TIGER RND | D45: BEER | E45: 12 | F45: 588 | AJ45: =IFERROR($E45*SUMIF('Daily Log'!$CK$18:$CK$1017,$B45,'Daily Log'!$CL$18:$CL$1017),0) -> 588 | AK45: =IFERROR($E45*SUMIF('Daily Log'!$CN$18:$CN$1017,$B45,'Daily Log'!$CO$18:$CO$1017),0) -> 0
B46: BA17 TIGER 3+1 | D46: BEER | E46: 0 | F46: 0 | AJ46: =IFERROR($E46*SUMIF('Daily Log'!$CK$18:$CK$1017,$B46,'Daily Log'!$CL$18:$CL$1017),0) -> 0 | AK46: =IFERROR($E46*SUMIF('Daily Log'!$CN$18:$CN$1017,$B46,'Daily Log'!$CO$18:$CO$1017),0) -> 0
B47: BA19 Tiger 2+1 | D47: BEER | E47: 12 | F47: 108 | AJ47: =IFERROR($E47*SUMIF('Daily Log'!$CK$18:$CK$1017,$B47,'Daily Log'!$CL$18:$CL$1017),0) -> 108 | AK47: =IFERROR($E47*SUMIF('Daily Log'!$CN$18:$CN$1017,$B47,'Daily Log'!$CO$18:$CO$1017),0) -> 0
B48: BA20 Heineken 3+1 | D48: BEER | E48: 16 | F48: 48 | AJ48: =IFERROR($E48*SUMIF('Daily Log'!$CK$18:$CK$1017,$B48,'Daily Log'!$CL$18:$CL$1017),0) -> 48 | AK48: =IFERROR($E48*SUMIF('Daily Log'!$CN$18:$CN$1017,$B48,'Daily Log'!$CO$18:$CO$1017),0) -> 0
B49: CA01 GRAPE J | D49: SIDE ORDER-JUICE | E49: 1 | F49: 0 | AJ49: =IFERROR($E49*SUMIF('Daily Log'!$CK$18:$CK$1017,$B49,'Daily Log'!$CL$18:$CL$1017),0) -> 0 | AK49: =IFERROR($E49*SUMIF('Daily Log'!$CN$18:$CN$1017,$B49,'Daily Log'!$CO$18:$CO$1017),0) -> 0
B50: CA02 APPLE J | D50: SIDE ORDER-JUICE | E50: 1 | F50: 0 | AJ50: =IFERROR($E50*SUMIF('Daily Log'!$CK$18:$CK$1017,$B50,'Daily Log'!$CL$18:$CL$1017),0) -> 0 | AK50: =IFERROR($E50*SUMIF('Daily Log'!$CN$18:$CN$1017,$B50,'Daily Log'!$CO$18:$CO$1017),0) -> 0
B51: CA03 KIWI J | D51: SIDE ORDER-JUICE | E51: 1 | F51: 0 | AJ51: =IFERROR($E51*SUMIF('Daily Log'!$CK$18:$CK$1017,$B51,'Daily Log'!$CL$18:$CL$1017),0) -> 0 | AK51: =IFERROR($E51*SUMIF('Daily Log'!$CN$18:$CN$1017,$B51,'Daily Log'!$CO$18:$CO$1017),0) -> 0
B52: CA04 MANGO J | D52: SIDE ORDER-JUICE | E52: 1 | F52: 0 | AJ52: =IFERROR($E52*SUMIF('Daily Log'!$CK$18:$CK$1017,$B52,'Daily Log'!$CL$18:$CL$1017),0) -> 0 | AK52: =IFERROR($E52*SUMIF('Daily Log'!$CN$18:$CN$1017,$B52,'Daily Log'!$CO$18:$CO$1017),0) -> 0
B53: CA05 PASSION J | D53: SIDE ORDER-JUICE | E53: 1 | F53: 1 | AJ53: =IFERROR($E53*SUMIF('Daily Log'!$CK$18:$CK$1017,$B53,'Daily Log'!$CL$18:$CL$1017),0) -> 1 | AK53: =IFERROR($E53*SUMIF('Daily Log'!$CN$18:$CN$1017,$B53,'Daily Log'!$CO$18:$CO$1017),0) -> 0
B54: CA06 RIBENA J | D54: SIDE ORDER-JUICE | E54: 1 | F54: 2 | AJ54: =IFERROR($E54*SUMIF('Daily Log'!$CK$18:$CK$1017,$B54,'Daily Log'!$CL$18:$CL$1017),0) -> 2 | AK54: =IFERROR($E54*SUMIF('Daily Log'!$CN$18:$CN$1017,$B54,'Daily Log'!$CO$18:$CO$1017),0) -> 0
B55: CB01 GRAPE SO | D55: SIDE ORDER-SODA | E55: 1 | F55: 0 | AJ55: =IFERROR($E55*SUMIF('Daily Log'!$CK$18:$CK$1017,$B55,'Daily Log'!$CL$18:$CL$1017),0) -> 0 | AK55: =IFERROR($E55*SUMIF('Daily Log'!$CN$18:$CN$1017,$B55,'Daily Log'!$CO$18:$CO$1017),0) -> 0
B56: CB02 APPLE SO | D56: SIDE ORDER-SODA | E56: 1 | F56: 0 | AJ56: =IFERROR($E56*SUMIF('Daily Log'!$CK$18:$CK$1017,$B56,'Daily Log'!$CL$18:$CL$1017),0) -> 0 | AK56: =IFERROR($E56*SUMIF('Daily Log'!$CN$18:$CN$1017,$B56,'Daily Log'!$CO$18:$CO$1017),0) -> 0
B57: CB03 KIWI SO | D57: SIDE ORDER-SODA | E57: 1 | F57: 0 | AJ57: =IFERROR($E57*SUMIF('Daily Log'!$CK$18:$CK$1017,$B57,'Daily Log'!$CL$18:$CL$1017),0) -> 0 | AK57: =IFERROR($E57*SUMIF('Daily Log'!$CN$18:$CN$1017,$B57,'Daily Log'!$CO$18:$CO$1017),0) -> 0
B58: CB04 MANGO SO | D58: SIDE ORDER-SODA | E58: 1 | F58: 0 | AJ58: =IFERROR($E58*SUMIF('Daily Log'!$CK$18:$CK$1017,$B58,'Daily Log'!$CL$18:$CL$1017),0) -> 0 | AK58: =IFERROR($E58*SUMIF('Daily Log'!$CN$18:$CN$1017,$B58,'Daily Log'!$CO$18:$CO$1017),0) -> 0
B59: CB05 PASSION SO | D59: SIDE ORDER-SODA | E59: 1 | F59: 0 | AJ59: =IFERROR($E59*SUMIF('Daily Log'!$CK$18:$CK$1017,$B59,'Daily Log'!$CL$18:$CL$1017),0) -> 0 | AK59: =IFERROR($E59*SUMIF('Daily Log'!$CN$18:$CN$1017,$B59,'Daily Log'!$CO$18:$CO$1017),0) -> 0
B60: CB06 RIBENA SO | D60: SIDE ORDER-SODA | E60: 1 | F60: 0 | AJ60: =IFERROR($E60*SUMIF('Daily Log'!$CK$18:$CK$1017,$B60,'Daily Log'!$CL$18:$CL$1017),0) -> 0 | AK60: =IFERROR($E60*SUMIF('Daily Log'!$CN$18:$CN$1017,$B60,'Daily Log'!$CO$18:$CO$1017),0) -> 0
B61: CC01 GRAPE SM | D61: SIDE ORDER-SMOOTHIES | E61: 1 | F61: 0 | AJ61: =IFERROR($E61*SUMIF('Daily Log'!$CK$18:$CK$1017,$B61,'Daily Log'!$CL$18:$CL$1017),0) -> 0 | AK61: =IFERROR($E61*SUMIF('Daily Log'!$CN$18:$CN$1017,$B61,'Daily Log'!$CO$18:$CO$1017),0) -> 0
B62: CC02 APPLE SM | D62: SIDE ORDER-SMOOTHIES | E62: 1 | F62: 0 | AJ62: =IFERROR($E62*SUMIF('Daily Log'!$CK$18:$CK$1017,$B62,'Daily Log'!$CL$18:$CL$1017),0) -> 0 | AK62: =IFERROR($E62*SUMIF('Daily Log'!$CN$18:$CN$1017,$B62,'Daily Log'!$CO$18:$CO$1017),0) -> 0
B63: CC03 KIWI SM | D63: SIDE ORDER-SMOOTHIES | E63: 1 | F63: 0 | AJ63: =IFERROR($E63*SUMIF('Daily Log'!$CK$18:$CK$1017,$B63,'Daily Log'!$CL$18:$CL$1017),0) -> 0 | AK63: =IFERROR($E63*SUMIF('Daily Log'!$CN$18:$CN$1017,$B63,'Daily Log'!$CO$18:$CO$1017),0) -> 0
B64: CC04 MANGO SM | D64: SIDE ORDER-SMOOTHIES | E64: 1 | F64: 0 | AJ64: =IFERROR($E64*SUMIF('Daily Log'!$CK$18:$CK$1017,$B64,'Daily Log'!$CL$18:$CL$1017),0) -> 0 | AK64: =IFERROR($E64*SUMIF('Daily Log'!$CN$18:$CN$1017,$B64,'Daily Log'!$CO$18:$CO$1017),0) -> 0
B65: CC05 PASSION SM | D65: SIDE ORDER-SMOOTHIES | E65: 1 | F65: 0 | AJ65: =IFERROR($E65*SUMIF('Daily Log'!$CK$18:$CK$1017,$B65,'Daily Log'!$CL$18:$CL$1017),0) -> 0 | AK65: =IFERROR($E65*SUMIF('Daily Log'!$CN$18:$CN$1017,$B65,'Daily Log'!$CO$18:$CO$1017),0) -> 0
B66: CC06 RIBENA SM | D66: SIDE ORDER-SMOOTHIES | E66: 1 | F66: 0 | AJ66: =IFERROR($E66*SUMIF('Daily Log'!$CK$18:$CK$1017,$B66,'Daily Log'!$CL$18:$CL$1017),0) -> 0 | AK66: =IFERROR($E66*SUMIF('Daily Log'!$CN$18:$CN$1017,$B66,'Daily Log'!$CO$18:$CO$1017),0) -> 0
B67: CC07 CAPPUCINNO SM | D67: SIDE ORDER-SMOOTHIES | E67: 1 | F67: 0 | AJ67: =IFERROR($E67*SUMIF('Daily Log'!$CK$18:$CK$1017,$B67,'Daily Log'!$CL$18:$CL$1017),0) -> 0 | AK67: =IFERROR($E67*SUMIF('Daily Log'!$CN$18:$CN$1017,$B67,'Daily Log'!$CO$18:$CO$1017),0) -> 0
B68: CC08 CHOCOLATE SM | D68: SIDE ORDER-SMOOTHIES | E68: 1 | F68: 4 | AJ68: =IFERROR($E68*SUMIF('Daily Log'!$CK$18:$CK$1017,$B68,'Daily Log'!$CL$18:$CL$1017),0) -> 4 | AK68: =IFERROR($E68*SUMIF('Daily Log'!$CN$18:$CN$1017,$B68,'Daily Log'!$CO$18:$CO$1017),0) -> 0
B69: CC09 MOCHA SM | D69: SIDE ORDER-SMOOTHIES | E69: 1 | F69: 0 | AJ69: =IFERROR($E69*SUMIF('Daily Log'!$CK$18:$CK$1017,$B69,'Daily Log'!$CL$18:$CL$1017),0) -> 0 | AK69: =IFERROR($E69*SUMIF('Daily Log'!$CN$18:$CN$1017,$B69,'Daily Log'!$CO$18:$CO$1017),0) -> 0
B70: CD01 7 UP | D70: SIDE ORDER-SOFT DRINKS | E70: 1 | F70: 1 | AJ70: =IFERROR($E70*SUMIF('Daily Log'!$CK$18:$CK$1017,$B70,'Daily Log'!$CL$18:$CL$1017),0) -> 1 | AK70: =IFERROR($E70*SUMIF('Daily Log'!$CN$18:$CN$1017,$B70,'Daily Log'!$CO$18:$CO$1017),0) -> 0
B71: CD02 7 UP REVIVE | D71: SIDE ORDER-SOFT DRINKS | E71: 1 | F71: 0 | AJ71: =IFERROR($E71*SUMIF('Daily Log'!$CK$18:$CK$1017,$B71,'Daily Log'!$CL$18:$CL$1017),0) -> 0 | AK71: =IFERROR($E71*SUMIF('Daily Log'!$CN$18:$CN$1017,$B71,'Daily Log'!$CO$18:$CO$1017),0) -> 0
B72: CD03 PEPSI | D72: SIDE ORDER-SOFT DRINKS | E72: 1 | F72: 2 | AJ72: =IFERROR($E72*SUMIF('Daily Log'!$CK$18:$CK$1017,$B72,'Daily Log'!$CL$18:$CL$1017),0) -> 2 | AK72: =IFERROR($E72*SUMIF('Daily Log'!$CN$18:$CN$1017,$B72,'Daily Log'!$CO$18:$CO$1017),0) -> 0
B73: CE01 MILO (C) | D73: SIDE ORDER-COLD BEVERAGE | E73: 1 | F73: 2 | AJ73: =IFERROR($E73*SUMIF('Daily Log'!$CK$18:$CK$1017,$B73,'Daily Log'!$CL$18:$CL$1017),0) -> 2 | AK73: =IFERROR($E73*SUMIF('Daily Log'!$CN$18:$CN$1017,$B73,'Daily Log'!$CO$18:$CO$1017),0) -> 0
B74: CE02 NESCAFE (C) | D74: SIDE ORDER-COLD BEVERAGE | E74: 1 | F74: 0 | AJ74: =IFERROR($E74*SUMIF('Daily Log'!$CK$18:$CK$1017,$B74,'Daily Log'!$CL$18:$CL$1017),0) -> 0 | AK74: =IFERROR($E74*SUMIF('Daily Log'!$CN$18:$CN$1017,$B74,'Daily Log'!$CO$18:$CO$1017),0) -> 0
B75: CE03 TEA (C) | D75: SIDE ORDER-COLD BEVERAGE | E75: 1 | F75: 0 | AJ75: =IFERROR($E75*SUMIF('Daily Log'!$CK$18:$CK$1017,$B75,'Daily Log'!$CL$18:$CL$1017),0) -> 0 | AK75: =IFERROR($E75*SUMIF('Daily Log'!$CN$18:$CN$1017,$B75,'Daily Log'!$CO$18:$CO$1017),0) -> 0
B76: CE04 LEMON TEA (C) | D76: SIDE ORDER-COLD BEVERAGE | E76: 1 | F76: 1 | AJ76: =IFERROR($E76*SUMIF('Daily Log'!$CK$18:$CK$1017,$B76,'Daily Log'!$CL$18:$CL$1017),0) -> 1 | AK76: =IFERROR($E76*SUMIF('Daily Log'!$CN$18:$CN$1017,$B76,'Daily Log'!$CO$18:$CO$1017),0) -> 0
B77: CE05 GRN TEA (C) | D77: SIDE ORDER-COLD BEVERAGE | E77: 1 | F77: 3 | AJ77: =IFERROR($E77*SUMIF('Daily Log'!$CK$18:$CK$1017,$B77,'Daily Log'!$CL$18:$CL$1017),0) -> 3 | AK77: =IFERROR($E77*SUMIF('Daily Log'!$CN$18:$CN$1017,$B77,'Daily Log'!$CO$18:$CO$1017),0) -> 0
B78: CE06 HNY GRN TEA (C) | D78: SIDE ORDER-COLD BEVERAGE | E78: 1 | F78: 3 | AJ78: =IFERROR($E78*SUMIF('Daily Log'!$CK$18:$CK$1017,$B78,'Daily Log'!$CL$18:$CL$1017),0) -> 3 | AK78: =IFERROR($E78*SUMIF('Daily Log'!$CN$18:$CN$1017,$B78,'Daily Log'!$CO$18:$CO$1017),0) -> 0
B79: CE07 HONEY (C) | D79: SIDE ORDER-COLD BEVERAGE | E79: 1 | F79: 1 | AJ79: =IFERROR($E79*SUMIF('Daily Log'!$CK$18:$CK$1017,$B79,'Daily Log'!$CL$18:$CL$1017),0) -> 1 | AK79: =IFERROR($E79*SUMIF('Daily Log'!$CN$18:$CN$1017,$B79,'Daily Log'!$CO$18:$CO$1017),0) -> 0
B80: CE08 LEMON HONEY (C) | D80: SIDE ORDER-COLD BEVERAGE | E80: 1 | F80: 6 | AJ80: =IFERROR($E80*SUMIF('Daily Log'!$CK$18:$CK$1017,$B80,'Daily Log'!$CL$18:$CL$1017),0) -> 6 | AK80: =IFERROR($E80*SUMIF('Daily Log'!$CN$18:$CN$1017,$B80,'Daily Log'!$CO$18:$CO$1017),0) -> 0
B81: CF01 MILO (H) | D81: SIDE ORDER-HOT BEVERAGE | E81: 1 | F81: 1 | AJ81: =IFERROR($E81*SUMIF('Daily Log'!$CK$18:$CK$1017,$B81,'Daily Log'!$CL$18:$CL$1017),0) -> 1 | AK81: =IFERROR($E81*SUMIF('Daily Log'!$CN$18:$CN$1017,$B81,'Daily Log'!$CO$18:$CO$1017),0) -> 0
B82: CF02 NESCAFE (H) | D82: SIDE ORDER-HOT BEVERAGE | E82: 1 | F82: 1 | AJ82: =IFERROR($E82*SUMIF('Daily Log'!$CK$18:$CK$1017,$B82,'Daily Log'!$CL$18:$CL$1017),0) -> 1 | AK82: =IFERROR($E82*SUMIF('Daily Log'!$CN$18:$CN$1017,$B82,'Daily Log'!$CO$18:$CO$1017),0) -> 0
B83: CF03 TEA (H) | D83: SIDE ORDER-HOT BEVERAGE | E83: 1 | F83: 0 | AJ83: =IFERROR($E83*SUMIF('Daily Log'!$CK$18:$CK$1017,$B83,'Daily Log'!$CL$18:$CL$1017),0) -> 0 | AK83: =IFERROR($E83*SUMIF('Daily Log'!$CN$18:$CN$1017,$B83,'Daily Log'!$CO$18:$CO$1017),0) -> 0
B84: CF04 LEMON TEA (H) | D84: SIDE ORDER-HOT BEVERAGE | E84: 1 | F84: 0 | AJ84: =IFERROR($E84*SUMIF('Daily Log'!$CK$18:$CK$1017,$B84,'Daily Log'!$CL$18:$CL$1017),0) -> 0 | AK84: =IFERROR($E84*SUMIF('Daily Log'!$CN$18:$CN$1017,$B84,'Daily Log'!$CO$18:$CO$1017),0) -> 0
B85: CF05 GRN TEA (H) | D85: SIDE ORDER-HOT BEVERAGE | E85: 1 | F85: 0 | AJ85: =IFERROR($E85*SUMIF('Daily Log'!$CK$18:$CK$1017,$B85,'Daily Log'!$CL$18:$CL$1017),0) -> 0 | AK85: =IFERROR($E85*SUMIF('Daily Log'!$CN$18:$CN$1017,$B85,'Daily Log'!$CO$18:$CO$1017),0) -> 0
B86: CF06 HNY GRN TEA (H) | D86: SIDE ORDER-HOT BEVERAGE | E86: 1 | F86: 0 | AJ86: =IFERROR($E86*SUMIF('Daily Log'!$CK$18:$CK$1017,$B86,'Daily Log'!$CL$18:$CL$1017),0) -> 0 | AK86: =IFERROR($E86*SUMIF('Daily Log'!$CN$18:$CN$1017,$B86,'Daily Log'!$CO$18:$CO$1017),0) -> 0
B87: CF07 HONEY (H) | D87: SIDE ORDER-HOT BEVERAGE | E87: 1 | F87: 0 | AJ87: =IFERROR($E87*SUMIF('Daily Log'!$CK$18:$CK$1017,$B87,'Daily Log'!$CL$18:$CL$1017),0) -> 0 | AK87: =IFERROR($E87*SUMIF('Daily Log'!$CN$18:$CN$1017,$B87,'Daily Log'!$CO$18:$CO$1017),0) -> 0
B88: CF08 LEMON HONEY (H) | D88: SIDE ORDER-HOT BEVERAGE | E88: 1 | F88: 6 | AJ88: =IFERROR($E88*SUMIF('Daily Log'!$CK$18:$CK$1017,$B88,'Daily Log'!$CL$18:$CL$1017),0) -> 6 | AK88: =IFERROR($E88*SUMIF('Daily Log'!$CN$18:$CN$1017,$B88,'Daily Log'!$CO$18:$CO$1017),0) -> 0
B89: CF09 CAPPUCCINO (H) | D89: SIDE ORDER-HOT BEVERAGE | E89: 1 | F89: 0 | AJ89: =IFERROR($E89*SUMIF('Daily Log'!$CK$18:$CK$1017,$B89,'Daily Log'!$CL$18:$CL$1017),0) -> 0 | AK89: =IFERROR($E89*SUMIF('Daily Log'!$CN$18:$CN$1017,$B89,'Daily Log'!$CO$18:$CO$1017),0) -> 0
B90: CF10 CHOCOLATE (H) | D90: SIDE ORDER-HOT BEVERAGE | E90: 1 | F90: 1 | AJ90: =IFERROR($E90*SUMIF('Daily Log'!$CK$18:$CK$1017,$B90,'Daily Log'!$CL$18:$CL$1017),0) -> 1 | AK90: =IFERROR($E90*SUMIF('Daily Log'!$CN$18:$CN$1017,$B90,'Daily Log'!$CO$18:$CO$1017),0) -> 0
B91: CF11 MOCHA (H) | D91: SIDE ORDER-HOT BEVERAGE | E91: 1 | F91: 0 | AJ91: =IFERROR($E91*SUMIF('Daily Log'!$CK$18:$CK$1017,$B91,'Daily Log'!$CL$18:$CL$1017),0) -> 0 | AK91: =IFERROR($E91*SUMIF('Daily Log'!$CN$18:$CN$1017,$B91,'Daily Log'!$CO$18:$CO$1017),0) -> 0
B92: CF12 CHAMOMILE (H) | D92: SIDE ORDER-HOT BEVERAGE | E92: 1 | F92: 0 | AJ92: =IFERROR($E92*SUMIF('Daily Log'!$CK$18:$CK$1017,$B92,'Daily Log'!$CL$18:$CL$1017),0) -> 0 | AK92: =IFERROR($E92*SUMIF('Daily Log'!$CN$18:$CN$1017,$B92,'Daily Log'!$CO$18:$CO$1017),0) -> 0
B93: CF13 DARJEELING (H) | D93: SIDE ORDER-HOT BEVERAGE | E93: 1 | F93: 0 | AJ93: =IFERROR($E93*SUMIF('Daily Log'!$CK$18:$CK$1017,$B93,'Daily Log'!$CL$18:$CL$1017),0) -> 0 | AK93: =IFERROR($E93*SUMIF('Daily Log'!$CN$18:$CN$1017,$B93,'Daily Log'!$CO$18:$CO$1017),0) -> 0
B94: CF14 EARL GREY (H) | D94: SIDE ORDER-HOT BEVERAGE | E94: 1 | F94: =SUM($G94:$AK94) -> 0 | AJ94: =IFERROR($E94*SUMIF('Daily Log'!$CK$18:$CK$1017,$B94,'Daily Log'!$CL$18:$CL$1017),0) -> 0 | AK94: =IFERROR($E94*SUMIF('Daily Log'!$CN$18:$CN$1017,$B94,'Daily Log'!$CO$18:$CO$1017),0) -> 0
B95: CG01 MINERAL WATER | D95: MINERAL WATER | E95: 1 | F95: 7 | AJ95: =IFERROR($E95*SUMIF('Daily Log'!$CK$18:$CK$1017,$B95,'Daily Log'!$CL$18:$CL$1017),0) -> 7 | AK95: =IFERROR($E95*SUMIF('Daily Log'!$CN$18:$CN$1017,$B95,'Daily Log'!$CO$18:$CO$1017),0) -> 0
B96: CH01 7 UP JUG | D96: JUG | E96: 1 | F96: 0 | AJ96: =IFERROR($E96*SUMIF('Daily Log'!$CK$18:$CK$1017,$B96,'Daily Log'!$CL$18:$CL$1017),0) -> 0 | AK96: =IFERROR($E96*SUMIF('Daily Log'!$CN$18:$CN$1017,$B96,'Daily Log'!$CO$18:$CO$1017),0) -> 0
B97: CH02 GRN TEA JUG | D97: JUG | E97: 1 | F97: 0 | AJ97: =IFERROR($E97*SUMIF('Daily Log'!$CK$18:$CK$1017,$B97,'Daily Log'!$CL$18:$CL$1017),0) -> 0 | AK97: =IFERROR($E97*SUMIF('Daily Log'!$CN$18:$CN$1017,$B97,'Daily Log'!$CO$18:$CO$1017),0) -> 0
B98: CH03 PEPSI JUG | D98: JUG | E98: 1 | F98: 0 | AJ98: =IFERROR($E98*SUMIF('Daily Log'!$CK$18:$CK$1017,$B98,'Daily Log'!$CL$18:$CL$1017),0) -> 0 | AK98: =IFERROR($E98*SUMIF('Daily Log'!$CN$18:$CN$1017,$B98,'Daily Log'!$CO$18:$CO$1017),0) -> 0
B99: CH04 RIBENA JUG | D99: JUG | E99: 1 | F99: 0 | AJ99: =IFERROR($E99*SUMIF('Daily Log'!$CK$18:$CK$1017,$B99,'Daily Log'!$CL$18:$CL$1017),0) -> 0 | AK99: =IFERROR($E99*SUMIF('Daily Log'!$CN$18:$CN$1017,$B99,'Daily Log'!$CO$18:$CO$1017),0) -> 0
B100: CI01 GRAPE J | D100: FFD-JUICE | E100: 1 | F100: 336 | AJ100: =IFERROR($E100*SUMIF('Daily Log'!$CK$18:$CK$1017,$B100,'Daily Log'!$CL$18:$CL$1017),0) -> 336 | AK100: =IFERROR($E100*SUMIF('Daily Log'!$CN$18:$CN$1017,$B100,'Daily Log'!$CO$18:$CO$1017),0) -> 0
B101: CI02 APPLE J | D101: FFD-JUICE | E101: 1 | F101: 665 | AJ101: =IFERROR($E101*SUMIF('Daily Log'!$CK$18:$CK$1017,$B101,'Daily Log'!$CL$18:$CL$1017),0) -> 665 | AK101: =IFERROR($E101*SUMIF('Daily Log'!$CN$18:$CN$1017,$B101,'Daily Log'!$CO$18:$CO$1017),0) -> 0
B102: CI04 MANGO J | D102: FFD-JUICE | E102: 1 | F102: 442 | AJ102: =IFERROR($E102*SUMIF('Daily Log'!$CK$18:$CK$1017,$B102,'Daily Log'!$CL$18:$CL$1017),0) -> 442 | AK102: =IFERROR($E102*SUMIF('Daily Log'!$CN$18:$CN$1017,$B102,'Daily Log'!$CO$18:$CO$1017),0) -> 0
B103: CI05 PASSION J | D103: FFD-JUICE | E103: 1 | F103: 804 | AJ103: =IFERROR($E103*SUMIF('Daily Log'!$CK$18:$CK$1017,$B103,'Daily Log'!$CL$18:$CL$1017),0) -> 804 | AK103: =IFERROR($E103*SUMIF('Daily Log'!$CN$18:$CN$1017,$B103,'Daily Log'!$CO$18:$CO$1017),0) -> 0
B104: CI06 RIBENA J | D104: FFD-JUICE | E104: 1 | F104: 827 | AJ104: =IFERROR($E104*SUMIF('Daily Log'!$CK$18:$CK$1017,$B104,'Daily Log'!$CL$18:$CL$1017),0) -> 827 | AK104: =IFERROR($E104*SUMIF('Daily Log'!$CN$18:$CN$1017,$B104,'Daily Log'!$CO$18:$CO$1017),0) -> 0
B105: CJ01 GRAPE SO | D105: FFD-SODA | E105: 1 | F105: 52 | AJ105: =IFERROR($E105*SUMIF('Daily Log'!$CK$18:$CK$1017,$B105,'Daily Log'!$CL$18:$CL$1017),0) -> 52 | AK105: =IFERROR($E105*SUMIF('Daily Log'!$CN$18:$CN$1017,$B105,'Daily Log'!$CO$18:$CO$1017),0) -> 0
B106: CJ02 APPLE SO | D106: FFD-SODA | E106: 1 | F106: 85 | AJ106: =IFERROR($E106*SUMIF('Daily Log'!$CK$18:$CK$1017,$B106,'Daily Log'!$CL$18:$CL$1017),0) -> 85 | AK106: =IFERROR($E106*SUMIF('Daily Log'!$CN$18:$CN$1017,$B106,'Daily Log'!$CO$18:$CO$1017),0) -> 0
B107: CJ04 MANGO SO | D107: FFD-SODA | E107: 1 | F107: 46 | AJ107: =IFERROR($E107*SUMIF('Daily Log'!$CK$18:$CK$1017,$B107,'Daily Log'!$CL$18:$CL$1017),0) -> 46 | AK107: =IFERROR($E107*SUMIF('Daily Log'!$CN$18:$CN$1017,$B107,'Daily Log'!$CO$18:$CO$1017),0) -> 0
B108: CJ05 PASSION SO | D108: FFD-SODA | E108: 1 | F108: 93 | AJ108: =IFERROR($E108*SUMIF('Daily Log'!$CK$18:$CK$1017,$B108,'Daily Log'!$CL$18:$CL$1017),0) -> 93 | AK108: =IFERROR($E108*SUMIF('Daily Log'!$CN$18:$CN$1017,$B108,'Daily Log'!$CO$18:$CO$1017),0) -> 0
B109: CJ06 RIBENA SO | D109: FFD-SODA | E109: 1 | F109: 124 | AJ109: =IFERROR($E109*SUMIF('Daily Log'!$CK$18:$CK$1017,$B109,'Daily Log'!$CL$18:$CL$1017),0) -> 124 | AK109: =IFERROR($E109*SUMIF('Daily Log'!$CN$18:$CN$1017,$B109,'Daily Log'!$CO$18:$CO$1017),0) -> 0
B110: CL01 7 UP | D110: FFD-SOFT DRINKS | E110: 1 | F110: 376 | AJ110: =IFERROR($E110*SUMIF('Daily Log'!$CK$18:$CK$1017,$B110,'Daily Log'!$CL$18:$CL$1017),0) -> 376 | AK110: =IFERROR($E110*SUMIF('Daily Log'!$CN$18:$CN$1017,$B110,'Daily Log'!$CO$18:$CO$1017),0) -> 0
B111: CL02 7 UP REVIVE | D111: FFD-SOFT DRINKS | E111: 1 | F111: 74 | AJ111: =IFERROR($E111*SUMIF('Daily Log'!$CK$18:$CK$1017,$B111,'Daily Log'!$CL$18:$CL$1017),0) -> 74 | AK111: =IFERROR($E111*SUMIF('Daily Log'!$CN$18:$CN$1017,$B111,'Daily Log'!$CO$18:$CO$1017),0) -> 0
B112: CL03 PEPSI | D112: FFD-SOFT DRINKS | E112: 1 | F112: 946 | AJ112: =IFERROR($E112*SUMIF('Daily Log'!$CK$18:$CK$1017,$B112,'Daily Log'!$CL$18:$CL$1017),0) -> 946 | AK112: =IFERROR($E112*SUMIF('Daily Log'!$CN$18:$CN$1017,$B112,'Daily Log'!$CO$18:$CO$1017),0) -> 0
B113: CM01 MILO (C) | D113: FFD-COLD BEVERAGES | E113: 1 | F113: 964 | AJ113: =IFERROR($E113*SUMIF('Daily Log'!$CK$18:$CK$1017,$B113,'Daily Log'!$CL$18:$CL$1017),0) -> 964 | AK113: =IFERROR($E113*SUMIF('Daily Log'!$CN$18:$CN$1017,$B113,'Daily Log'!$CO$18:$CO$1017),0) -> 0
B114: CM02 NESCAFE (C) | D114: FFD-COLD BEVERAGES | E114: 1 | F114: 271 | AJ114: =IFERROR($E114*SUMIF('Daily Log'!$CK$18:$CK$1017,$B114,'Daily Log'!$CL$18:$CL$1017),0) -> 271 | AK114: =IFERROR($E114*SUMIF('Daily Log'!$CN$18:$CN$1017,$B114,'Daily Log'!$CO$18:$CO$1017),0) -> 0
B115: CM03 TEA (C) | D115: FFD-COLD BEVERAGES | E115: 1 | F115: 335 | AJ115: =IFERROR($E115*SUMIF('Daily Log'!$CK$18:$CK$1017,$B115,'Daily Log'!$CL$18:$CL$1017),0) -> 335 | AK115: =IFERROR($E115*SUMIF('Daily Log'!$CN$18:$CN$1017,$B115,'Daily Log'!$CO$18:$CO$1017),0) -> 0
B116: CM04 LEMON TEA (C) | D116: FFD-COLD BEVERAGES | E116: 1 | F116: 1288 | AJ116: =IFERROR($E116*SUMIF('Daily Log'!$CK$18:$CK$1017,$B116,'Daily Log'!$CL$18:$CL$1017),0) -> 1288 | AK116: =IFERROR($E116*SUMIF('Daily Log'!$CN$18:$CN$1017,$B116,'Daily Log'!$CO$18:$CO$1017),0) -> 0
B117: CM05 GRN TEA (C) | D117: FFD-COLD BEVERAGES | E117: 1 | F117: 1457 | AJ117: =IFERROR($E117*SUMIF('Daily Log'!$CK$18:$CK$1017,$B117,'Daily Log'!$CL$18:$CL$1017),0) -> 1457 | AK117: =IFERROR($E117*SUMIF('Daily Log'!$CN$18:$CN$1017,$B117,'Daily Log'!$CO$18:$CO$1017),0) -> 0
B118: CM06 HNY GRN TEA (C) | D118: FFD-COLD BEVERAGES | E118: 1 | F118: 2244 | AJ118: =IFERROR($E118*SUMIF('Daily Log'!$CK$18:$CK$1017,$B118,'Daily Log'!$CL$18:$CL$1017),0) -> 2244 | AK118: =IFERROR($E118*SUMIF('Daily Log'!$CN$18:$CN$1017,$B118,'Daily Log'!$CO$18:$CO$1017),0) -> 0
B119: CM07 HONEY (C) | D119: FFD-COLD BEVERAGES | E119: 1 | F119: 587 | AJ119: =IFERROR($E119*SUMIF('Daily Log'!$CK$18:$CK$1017,$B119,'Daily Log'!$CL$18:$CL$1017),0) -> 587 | AK119: =IFERROR($E119*SUMIF('Daily Log'!$CN$18:$CN$1017,$B119,'Daily Log'!$CO$18:$CO$1017),0) -> 0
B120: CM08 LEMON HONEY (C) | D120: FFD-COLD BEVERAGES | E120: 1 | F120: 2601 | AJ120: =IFERROR($E120*SUMIF('Daily Log'!$CK$18:$CK$1017,$B120,'Daily Log'!$CL$18:$CL$1017),0) -> 2601 | AK120: =IFERROR($E120*SUMIF('Daily Log'!$CN$18:$CN$1017,$B120,'Daily Log'!$CO$18:$CO$1017),0) -> 0
B121: CN01 MILO (H) | D121: FFD-HOT BEVERAGES | E121: 1 | F121: 788 | AJ121: =IFERROR($E121*SUMIF('Daily Log'!$CK$18:$CK$1017,$B121,'Daily Log'!$CL$18:$CL$1017),0) -> 788 | AK121: =IFERROR($E121*SUMIF('Daily Log'!$CN$18:$CN$1017,$B121,'Daily Log'!$CO$18:$CO$1017),0) -> 0
B122: CN02 NESCAFE (H) | D122: FFD-HOT BEVERAGES | E122: 1 | F122: 202 | AJ122: =IFERROR($E122*SUMIF('Daily Log'!$CK$18:$CK$1017,$B122,'Daily Log'!$CL$18:$CL$1017),0) -> 202 | AK122: =IFERROR($E122*SUMIF('Daily Log'!$CN$18:$CN$1017,$B122,'Daily Log'!$CO$18:$CO$1017),0) -> 0
B123: CN03 TEA (H) | D123: FFD-HOT BEVERAGES | E123: 1 | F123: 54 | AJ123: =IFERROR($E123*SUMIF('Daily Log'!$CK$18:$CK$1017,$B123,'Daily Log'!$CL$18:$CL$1017),0) -> 54 | AK123: =IFERROR($E123*SUMIF('Daily Log'!$CN$18:$CN$1017,$B123,'Daily Log'!$CO$18:$CO$1017),0) -> 0
B124: CN04 LEMON TEA (H) | D124: FFD-HOT BEVERAGES | E124: 1 | F124: 162 | AJ124: =IFERROR($E124*SUMIF('Daily Log'!$CK$18:$CK$1017,$B124,'Daily Log'!$CL$18:$CL$1017),0) -> 162 | AK124: =IFERROR($E124*SUMIF('Daily Log'!$CN$18:$CN$1017,$B124,'Daily Log'!$CO$18:$CO$1017),0) -> 0
B125: CN05 GRN TEA (H) | D125: FFD-HOT BEVERAGES | E125: 1 | F125: 402 | AJ125: =IFERROR($E125*SUMIF('Daily Log'!$CK$18:$CK$1017,$B125,'Daily Log'!$CL$18:$CL$1017),0) -> 402 | AK125: =IFERROR($E125*SUMIF('Daily Log'!$CN$18:$CN$1017,$B125,'Daily Log'!$CO$18:$CO$1017),0) -> 0
B126: CN06 HNY GRN TEA (H) | D126: FFD-HOT BEVERAGES | E126: 1 | F126: 670 | AJ126: =IFERROR($E126*SUMIF('Daily Log'!$CK$18:$CK$1017,$B126,'Daily Log'!$CL$18:$CL$1017),0) -> 670 | AK126: =IFERROR($E126*SUMIF('Daily Log'!$CN$18:$CN$1017,$B126,'Daily Log'!$CO$18:$CO$1017),0) -> 0
B127: CN07 HONEY (H) | D127: FFD-HOT BEVERAGES | E127: 1 | F127: 431 | AJ127: =IFERROR($E127*SUMIF('Daily Log'!$CK$18:$CK$1017,$B127,'Daily Log'!$CL$18:$CL$1017),0) -> 431 | AK127: =IFERROR($E127*SUMIF('Daily Log'!$CN$18:$CN$1017,$B127,'Daily Log'!$CO$18:$CO$1017),0) -> 0
B128: CN08 LEMON HONEY (H) | D128: FFD-HOT BEVERAGES | E128: 1 | F128: 1761 | AJ128: =IFERROR($E128*SUMIF('Daily Log'!$CK$18:$CK$1017,$B128,'Daily Log'!$CL$18:$CL$1017),0) -> 1761 | AK128: =IFERROR($E128*SUMIF('Daily Log'!$CN$18:$CN$1017,$B128,'Daily Log'!$CO$18:$CO$1017),0) -> 0
B129: CN12 CHAMOMILE (H) | D129: FFD-HOT BEVERAGES | E129: 1 | F129: 127 | AJ129: =IFERROR($E129*SUMIF('Daily Log'!$CK$18:$CK$1017,$B129,'Daily Log'!$CL$18:$CL$1017),0) -> 127 | AK129: =IFERROR($E129*SUMIF('Daily Log'!$CN$18:$CN$1017,$B129,'Daily Log'!$CO$18:$CO$1017),0) -> 0
B130: CN13 DARJEELING (H) | D130: FFD-HOT BEVERAGES | E130: 1 | F130: 20 | AJ130: =IFERROR($E130*SUMIF('Daily Log'!$CK$18:$CK$1017,$B130,'Daily Log'!$CL$18:$CL$1017),0) -> 20 | AK130: =IFERROR($E130*SUMIF('Daily Log'!$CN$18:$CN$1017,$B130,'Daily Log'!$CO$18:$CO$1017),0) -> 0
B131: CN14 EARL GREY (H) | D131: FFD-HOT BEVERAGES | E131: 1 | F131: 72 | AJ131: =IFERROR($E131*SUMIF('Daily Log'!$CK$18:$CK$1017,$B131,'Daily Log'!$CL$18:$CL$1017),0) -> 72 | AK131: =IFERROR($E131*SUMIF('Daily Log'!$CN$18:$CN$1017,$B131,'Daily Log'!$CO$18:$CO$1017),0) -> 0
B132: DB01 1001:BP CKN CP | D132: SIDE ORDER- WESTERN CRUISE | E132: 1 | F132: 93 | AJ132: =IFERROR($E132*SUMIF('Daily Log'!$CK$18:$CK$1017,$B132,'Daily Log'!$CL$18:$CL$1017),0) -> 93 | AK132: =IFERROR($E132*SUMIF('Daily Log'!$CN$18:$CN$1017,$B132,'Daily Log'!$CO$18:$CO$1017),0) -> 0
B133: DB02 1002:GVY CHK CP | D133: SIDE ORDER- WESTERN CRUISE | E133: 1 | F133: 23 | AJ133: =IFERROR($E133*SUMIF('Daily Log'!$CK$18:$CK$1017,$B133,'Daily Log'!$CL$18:$CL$1017),0) -> 23 | AK133: =IFERROR($E133*SUMIF('Daily Log'!$CN$18:$CN$1017,$B133,'Daily Log'!$CO$18:$CO$1017),0) -> 0
B134: DB03 1003:MSR CKN CP | D134: SIDE ORDER- WESTERN CRUISE | E134: 1 | F134: 115 | AJ134: =IFERROR($E134*SUMIF('Daily Log'!$CK$18:$CK$1017,$B134,'Daily Log'!$CL$18:$CL$1017),0) -> 115 | AK134: =IFERROR($E134*SUMIF('Daily Log'!$CN$18:$CN$1017,$B134,'Daily Log'!$CO$18:$CO$1017),0) -> 0
B135: DB04 1004:CKN MARY | D135: SIDE ORDER- WESTERN CRUISE | E135: 1 | F135: 27 | AJ135: =IFERROR($E135*SUMIF('Daily Log'!$CK$18:$CK$1017,$B135,'Daily Log'!$CL$18:$CL$1017),0) -> 27 | AK135: =IFERROR($E135*SUMIF('Daily Log'!$CN$18:$CN$1017,$B135,'Daily Log'!$CO$18:$CO$1017),0) -> 0
B136: DB05 1005:FISH&CHIP | D136: SIDE ORDER- WESTERN CRUISE | E136: 1 | F136: 40 | AJ136: =IFERROR($E136*SUMIF('Daily Log'!$CK$18:$CK$1017,$B136,'Daily Log'!$CL$18:$CL$1017),0) -> 40 | AK136: =IFERROR($E136*SUMIF('Daily Log'!$CN$18:$CN$1017,$B136,'Daily Log'!$CO$18:$CO$1017),0) -> 0
B137: DB06 1006:SPAGHETTI | D137: SIDE ORDER- WESTERN CRUISE | E137: 1 | F137: 46 | AJ137: =IFERROR($E137*SUMIF('Daily Log'!$CK$18:$CK$1017,$B137,'Daily Log'!$CL$18:$CL$1017),0) -> 46 | AK137: =IFERROR($E137*SUMIF('Daily Log'!$CN$18:$CN$1017,$B137,'Daily Log'!$CO$18:$CO$1017),0) -> 0
B138: DB07 1007:CHK SALAD | D138: SIDE ORDER- WESTERN CRUISE | E138: 1 | F138: 11 | AJ138: =IFERROR($E138*SUMIF('Daily Log'!$CK$18:$CK$1017,$B138,'Daily Log'!$CL$18:$CL$1017),0) -> 11 | AK138: =IFERROR($E138*SUMIF('Daily Log'!$CN$18:$CN$1017,$B138,'Daily Log'!$CO$18:$CO$1017),0) -> 0
B139: DC01 1101:THAI CHK | D139: SIDE ORDER- LOCAL DELIGHTS | E139: 1 | F139: 60 | AJ139: =IFERROR($E139*SUMIF('Daily Log'!$CK$18:$CK$1017,$B139,'Daily Log'!$CL$18:$CL$1017),0) -> 60 | AK139: =IFERROR($E139*SUMIF('Daily Log'!$CN$18:$CN$1017,$B139,'Daily Log'!$CO$18:$CO$1017),0) -> 0
B140: DC02 1102:MAMITE CHK | D140: SIDE ORDER- LOCAL DELIGHTS | E140: 1 | F140: 63 | AJ140: =IFERROR($E140*SUMIF('Daily Log'!$CK$18:$CK$1017,$B140,'Daily Log'!$CL$18:$CL$1017),0) -> 63 | AK140: =IFERROR($E140*SUMIF('Daily Log'!$CN$18:$CN$1017,$B140,'Daily Log'!$CO$18:$CO$1017),0) -> 0
B141: DC03 1103:KO PO CHK | D141: SIDE ORDER- LOCAL DELIGHTS | E141: 1 | F141: 0 | AJ141: =IFERROR($E141*SUMIF('Daily Log'!$CK$18:$CK$1017,$B141,'Daily Log'!$CL$18:$CL$1017),0) -> 0 | AK141: =IFERROR($E141*SUMIF('Daily Log'!$CN$18:$CN$1017,$B141,'Daily Log'!$CO$18:$CO$1017),0) -> 0
B142: DC04 1104:S&S CHK | D142: SIDE ORDER- LOCAL DELIGHTS | E142: 1 | F142: 31 | AJ142: =IFERROR($E142*SUMIF('Daily Log'!$CK$18:$CK$1017,$B142,'Daily Log'!$CL$18:$CL$1017),0) -> 31 | AK142: =IFERROR($E142*SUMIF('Daily Log'!$CN$18:$CN$1017,$B142,'Daily Log'!$CO$18:$CO$1017),0) -> 0
B143: DC05 1105:BUTTER CHK | D143: SIDE ORDER- LOCAL DELIGHTS | E143: 1 | F143: 130 | AJ143: =IFERROR($E143*SUMIF('Daily Log'!$CK$18:$CK$1017,$B143,'Daily Log'!$CL$18:$CL$1017),0) -> 130 | AK143: =IFERROR($E143*SUMIF('Daily Log'!$CN$18:$CN$1017,$B143,'Daily Log'!$CO$18:$CO$1017),0) -> 0
B144: DC06 1106:HK F.RICE | D144: SIDE ORDER- LOCAL DELIGHTS | E144: 1 | F144: 56 | AJ144: =IFERROR($E144*SUMIF('Daily Log'!$CK$18:$CK$1017,$B144,'Daily Log'!$CL$18:$CL$1017),0) -> 56 | AK144: =IFERROR($E144*SUMIF('Daily Log'!$CN$18:$CN$1017,$B144,'Daily Log'!$CO$18:$CO$1017),0) -> 0
B145: DC07 1107:SBL F.RICE | D145: SIDE ORDER- LOCAL DELIGHTS | E145: 1 | F145: 51 | AJ145: =IFERROR($E145*SUMIF('Daily Log'!$CK$18:$CK$1017,$B145,'Daily Log'!$CL$18:$CL$1017),0) -> 51 | AK145: =IFERROR($E145*SUMIF('Daily Log'!$CN$18:$CN$1017,$B145,'Daily Log'!$CO$18:$CO$1017),0) -> 0
B146: DC08 1108:SBL F.MEE | D146: SIDE ORDER- LOCAL DELIGHTS | E146: 1 | F146: 7 | AJ146: =IFERROR($E146*SUMIF('Daily Log'!$CK$18:$CK$1017,$B146,'Daily Log'!$CL$18:$CL$1017),0) -> 7 | AK146: =IFERROR($E146*SUMIF('Daily Log'!$CN$18:$CN$1017,$B146,'Daily Log'!$CO$18:$CO$1017),0) -> 0
B147: DC09 1109:BP UDON | D147: SIDE ORDER- LOCAL DELIGHTS | E147: 1 | F147: 27 | AJ147: =IFERROR($E147*SUMIF('Daily Log'!$CK$18:$CK$1017,$B147,'Daily Log'!$CL$18:$CL$1017),0) -> 27 | AK147: =IFERROR($E147*SUMIF('Daily Log'!$CN$18:$CN$1017,$B147,'Daily Log'!$CO$18:$CO$1017),0) -> 0
B148: DC10 1110:NISSIN | D148: SIDE ORDER- LOCAL DELIGHTS | E148: 1 | F148: 19 | AJ148: =IFERROR($E148*SUMIF('Daily Log'!$CK$18:$CK$1017,$B148,'Daily Log'!$CL$18:$CL$1017),0) -> 19 | AK148: =IFERROR($E148*SUMIF('Daily Log'!$CN$18:$CN$1017,$B148,'Daily Log'!$CO$18:$CO$1017),0) -> 0
B149: DC11 1111:VEG RICE | D149: SIDE ORDER- LOCAL DELIGHTS | E149: 1 | F149: 7 | AJ149: =IFERROR($E149*SUMIF('Daily Log'!$CK$18:$CK$1017,$B149,'Daily Log'!$CL$18:$CL$1017),0) -> 7 | AK149: =IFERROR($E149*SUMIF('Daily Log'!$CN$18:$CN$1017,$B149,'Daily Log'!$CO$18:$CO$1017),0) -> 0
B150: DC12 1112:NASI LEMAK | D150: SIDE ORDER- LOCAL DELIGHTS | E150: 1 | F150: 0 | AJ150: =IFERROR($E150*SUMIF('Daily Log'!$CK$18:$CK$1017,$B150,'Daily Log'!$CL$18:$CL$1017),0) -> 0 | AK150: =IFERROR($E150*SUMIF('Daily Log'!$CN$18:$CN$1017,$B150,'Daily Log'!$CO$18:$CO$1017),0) -> 0
B151: DC13 1113:KUEY TEOW | D151: SIDE ORDER- LOCAL DELIGHTS | E151: 1 | F151: 0 | AJ151: =IFERROR($E151*SUMIF('Daily Log'!$CK$18:$CK$1017,$B151,'Daily Log'!$CL$18:$CL$1017),0) -> 0 | AK151: =IFERROR($E151*SUMIF('Daily Log'!$CN$18:$CN$1017,$B151,'Daily Log'!$CO$18:$CO$1017),0) -> 0
B152: DC14 1114:F.BALL MEE | D152: SIDE ORDER- LOCAL DELIGHTS | E152: 1 | F152: 0 | AJ152: =IFERROR($E152*SUMIF('Daily Log'!$CK$18:$CK$1017,$B152,'Daily Log'!$CL$18:$CL$1017),0) -> 0 | AK152: =IFERROR($E152*SUMIF('Daily Log'!$CN$18:$CN$1017,$B152,'Daily Log'!$CO$18:$CO$1017),0) -> 0
B153: DC15 1115:CHK NOODLE | D153: SIDE ORDER- LOCAL DELIGHTS | E153: 1 | F153: 22 | AJ153: =IFERROR($E153*SUMIF('Daily Log'!$CK$18:$CK$1017,$B153,'Daily Log'!$CL$18:$CL$1017),0) -> 22 | AK153: =IFERROR($E153*SUMIF('Daily Log'!$CN$18:$CN$1017,$B153,'Daily Log'!$CO$18:$CO$1017),0) -> 0
B154: DC16 1116:MGL CHICKEN | D154: SIDE ORDER- LOCAL DELIGHTS | E154: 1 | F154: 22 | AJ154: =IFERROR($E154*SUMIF('Daily Log'!$CK$18:$CK$1017,$B154,'Daily Log'!$CL$18:$CL$1017),0) -> 22 | AK154: =IFERROR($E154*SUMIF('Daily Log'!$CN$18:$CN$1017,$B154,'Daily Log'!$CO$18:$CO$1017),0) -> 0
B155: DD01 1201:SFD STICK | D155: SIDE ORDER- APPETIZER | E155: 1 | F155: 0 | AJ155: =IFERROR($E155*SUMIF('Daily Log'!$CK$18:$CK$1017,$B155,'Daily Log'!$CL$18:$CL$1017),0) -> 0 | AK155: =IFERROR($E155*SUMIF('Daily Log'!$CN$18:$CN$1017,$B155,'Daily Log'!$CO$18:$CO$1017),0) -> 0
B156: DD02 1202:FREN FRIES | D156: SIDE ORDER- APPETIZER | E156: 1 | F156: 80 | AJ156: =IFERROR($E156*SUMIF('Daily Log'!$CK$18:$CK$1017,$B156,'Daily Log'!$CL$18:$CL$1017),0) -> 80 | AK156: =IFERROR($E156*SUMIF('Daily Log'!$CN$18:$CN$1017,$B156,'Daily Log'!$CO$18:$CO$1017),0) -> 0
B157: DD03 1203:GOLD MROOM | D157: SIDE ORDER- APPETIZER | E157: 1 | F157: 11 | AJ157: =IFERROR($E157*SUMIF('Daily Log'!$CK$18:$CK$1017,$B157,'Daily Log'!$CL$18:$CL$1017),0) -> 11 | AK157: =IFERROR($E157*SUMIF('Daily Log'!$CN$18:$CN$1017,$B157,'Daily Log'!$CO$18:$CO$1017),0) -> 0
B158: DD04 1204:FISHBALL | D158: SIDE ORDER- APPETIZER | E158: 1 | F158: 14 | AJ158: =IFERROR($E158*SUMIF('Daily Log'!$CK$18:$CK$1017,$B158,'Daily Log'!$CL$18:$CL$1017),0) -> 14 | AK158: =IFERROR($E158*SUMIF('Daily Log'!$CN$18:$CN$1017,$B158,'Daily Log'!$CO$18:$CO$1017),0) -> 0
B159: DD05 1205:RAINBOW RL | D159: SIDE ORDER- APPETIZER | E159: 1 | F159: 0 | AJ159: =IFERROR($E159*SUMIF('Daily Log'!$CK$18:$CK$1017,$B159,'Daily Log'!$CL$18:$CL$1017),0) -> 0 | AK159: =IFERROR($E159*SUMIF('Daily Log'!$CN$18:$CN$1017,$B159,'Daily Log'!$CO$18:$CO$1017),0) -> 0
B160: DD06 1206:SPRING RL | D160: SIDE ORDER- APPETIZER | E160: 1 | F160: 17 | AJ160: =IFERROR($E160*SUMIF('Daily Log'!$CK$18:$CK$1017,$B160,'Daily Log'!$CL$18:$CL$1017),0) -> 17 | AK160: =IFERROR($E160*SUMIF('Daily Log'!$CN$18:$CN$1017,$B160,'Daily Log'!$CO$18:$CO$1017),0) -> 0
B161: DD07 1207:SAUSAGE | D161: SIDE ORDER- APPETIZER | E161: 1 | F161: =SUM($G161:$AK161) -> 17 | AJ161: =IFERROR($E161*SUMIF('Daily Log'!$CK$18:$CK$1017,$B161,'Daily Log'!$CL$18:$CL$1017),0) -> 17 | AK161: =IFERROR($E161*SUMIF('Daily Log'!$CN$18:$CN$1017,$B161,'Daily Log'!$CO$18:$CO$1017),0) -> 0
B162: DD08 1208:HOTDOG BUN | D162: SIDE ORDER- APPETIZER | E162: 1 | F162: 0 | AJ162: =IFERROR($E162*SUMIF('Daily Log'!$CK$18:$CK$1017,$B162,'Daily Log'!$CL$18:$CL$1017),0) -> 0 | AK162: =IFERROR($E162*SUMIF('Daily Log'!$CN$18:$CN$1017,$B162,'Daily Log'!$CO$18:$CO$1017),0) -> 0
B163: DD09 1209:SFD TOFU | D163: SIDE ORDER- APPETIZER | E163: 1 | F163: 0 | AJ163: =IFERROR($E163*SUMIF('Daily Log'!$CK$18:$CK$1017,$B163,'Daily Log'!$CL$18:$CL$1017),0) -> 0 | AK163: =IFERROR($E163*SUMIF('Daily Log'!$CN$18:$CN$1017,$B163,'Daily Log'!$CO$18:$CO$1017),0) -> 0
B164: DD10 1301:DUMPLING | D164: SIDE ORDER- APPETIZER | E164: 1 | F164: 0 | AJ164: =IFERROR($E164*SUMIF('Daily Log'!$CK$18:$CK$1017,$B164,'Daily Log'!$CL$18:$CL$1017),0) -> 0 | AK164: =IFERROR($E164*SUMIF('Daily Log'!$CN$18:$CN$1017,$B164,'Daily Log'!$CO$18:$CO$1017),0) -> 0
B165: DD11 1302:NUGGET | D165: SIDE ORDER- APPETIZER | E165: 1 | F165: 39 | AJ165: =IFERROR($E165*SUMIF('Daily Log'!$CK$18:$CK$1017,$B165,'Daily Log'!$CL$18:$CL$1017),0) -> 39 | AK165: =IFERROR($E165*SUMIF('Daily Log'!$CN$18:$CN$1017,$B165,'Daily Log'!$CO$18:$CO$1017),0) -> 0
B166: DD12 1303:CHK WING | D166: SIDE ORDER- APPETIZER | E166: 1 | F166: 31 | AJ166: =IFERROR($E166*SUMIF('Daily Log'!$CK$18:$CK$1017,$B166,'Daily Log'!$CL$18:$CL$1017),0) -> 31 | AK166: =IFERROR($E166*SUMIF('Daily Log'!$CN$18:$CN$1017,$B166,'Daily Log'!$CO$18:$CO$1017),0) -> 0
B167: DD13 1304:IKAN BILIS | D167: SIDE ORDER- APPETIZER | E167: 1 | F167: 9 | AJ167: =IFERROR($E167*SUMIF('Daily Log'!$CK$18:$CK$1017,$B167,'Daily Log'!$CL$18:$CL$1017),0) -> 9 | AK167: =IFERROR($E167*SUMIF('Daily Log'!$CN$18:$CN$1017,$B167,'Daily Log'!$CO$18:$CO$1017),0) -> 0
B168: DD14 1305:THAI RL | D168: SIDE ORDER- APPETIZER | E168: 1 | F168: 5 | AJ168: =IFERROR($E168*SUMIF('Daily Log'!$CK$18:$CK$1017,$B168,'Daily Log'!$CL$18:$CL$1017),0) -> 5 | AK168: =IFERROR($E168*SUMIF('Daily Log'!$CN$18:$CN$1017,$B168,'Daily Log'!$CO$18:$CO$1017),0) -> 0
B169: DD15 1306:SLVR FISH | D169: SIDE ORDER- APPETIZER | E169: 1 | F169: 0 | AJ169: =IFERROR($E169*SUMIF('Daily Log'!$CK$18:$CK$1017,$B169,'Daily Log'!$CL$18:$CL$1017),0) -> 0 | AK169: =IFERROR($E169*SUMIF('Daily Log'!$CN$18:$CN$1017,$B169,'Daily Log'!$CO$18:$CO$1017),0) -> 0
B170: DD16 1307:D.F C/WING | D170: SIDE ORDER- APPETIZER | E170: 1 | F170: 13 | AJ170: =IFERROR($E170*SUMIF('Daily Log'!$CK$18:$CK$1017,$B170,'Daily Log'!$CL$18:$CL$1017),0) -> 13 | AK170: =IFERROR($E170*SUMIF('Daily Log'!$CN$18:$CN$1017,$B170,'Daily Log'!$CO$18:$CO$1017),0) -> 0
B171: DD17 1308 C/CALAMARI | D171: SIDE ORDER- APPETIZER | E171: 1 | F171: 11 | AJ171: =IFERROR($E171*SUMIF('Daily Log'!$CK$18:$CK$1017,$B171,'Daily Log'!$CL$18:$CL$1017),0) -> 11 | AK171: =IFERROR($E171*SUMIF('Daily Log'!$CN$18:$CN$1017,$B171,'Daily Log'!$CO$18:$CO$1017),0) -> 0
B172: DD18 1309 Mc C/O.RING | D172: SIDE ORDER- APPETIZER | E172: 1 | F172: 6 | AJ172: =IFERROR($E172*SUMIF('Daily Log'!$CK$18:$CK$1017,$B172,'Daily Log'!$CL$18:$CL$1017),0) -> 6 | AK172: =IFERROR($E172*SUMIF('Daily Log'!$CN$18:$CN$1017,$B172,'Daily Log'!$CO$18:$CO$1017),0) -> 0
B173: DD19 1310:Mc SPIRAL/F | D173: SIDE ORDER- APPETIZER | E173: 1 | F173: 7 | AJ173: =IFERROR($E173*SUMIF('Daily Log'!$CK$18:$CK$1017,$B173,'Daily Log'!$CL$18:$CL$1017),0) -> 7 | AK173: =IFERROR($E173*SUMIF('Daily Log'!$CN$18:$CN$1017,$B173,'Daily Log'!$CO$18:$CO$1017),0) -> 0
B174: DD20 1311:Mc H/SMILES | D174: SIDE ORDER- APPETIZER | E174: 1 | F174: 0 | AJ174: =IFERROR($E174*SUMIF('Daily Log'!$CK$18:$CK$1017,$B174,'Daily Log'!$CL$18:$CL$1017),0) -> 0 | AK174: =IFERROR($E174*SUMIF('Daily Log'!$CN$18:$CN$1017,$B174,'Daily Log'!$CO$18:$CO$1017),0) -> 0
B175: DD21 1312:Mc HASH BRW | D175: SIDE ORDER- APPETIZER | E175: 1 | F175: 8 | AJ175: =IFERROR($E175*SUMIF('Daily Log'!$CK$18:$CK$1017,$B175,'Daily Log'!$CL$18:$CL$1017),0) -> 8 | AK175: =IFERROR($E175*SUMIF('Daily Log'!$CN$18:$CN$1017,$B175,'Daily Log'!$CO$18:$CO$1017),0) -> 0
B176: DF01 ADD RICE | D176: SIDE ORDER-OTHERS | E176: 1 | F176: 15 | AJ176: =IFERROR($E176*SUMIF('Daily Log'!$CK$18:$CK$1017,$B176,'Daily Log'!$CL$18:$CL$1017),0) -> 15 | AK176: =IFERROR($E176*SUMIF('Daily Log'!$CN$18:$CN$1017,$B176,'Daily Log'!$CO$18:$CO$1017),0) -> 0
B177: DF02 ADD F.EGG | D177: SIDE ORDER-OTHERS | E177: 1 | F177: 9 | AJ177: =IFERROR($E177*SUMIF('Daily Log'!$CK$18:$CK$1017,$B177,'Daily Log'!$CL$18:$CL$1017),0) -> 9 | AK177: =IFERROR($E177*SUMIF('Daily Log'!$CN$18:$CN$1017,$B177,'Daily Log'!$CO$18:$CO$1017),0) -> 0
B178: DF03 ADD SAUCE 1000 | D178: SAUCE | E178: 1 | F178: 15 | AJ178: =IFERROR($E178*SUMIF('Daily Log'!$CK$18:$CK$1017,$B178,'Daily Log'!$CL$18:$CL$1017),0) -> 15 | AK178: =IFERROR($E178*SUMIF('Daily Log'!$CN$18:$CN$1017,$B178,'Daily Log'!$CO$18:$CO$1017),0) -> 0
B179: DF04 ADD SAUCE BOLO | D179: SAUCE | E179: 1 | F179: 2 | AJ179: =IFERROR($E179*SUMIF('Daily Log'!$CK$18:$CK$1017,$B179,'Daily Log'!$CL$18:$CL$1017),0) -> 2 | AK179: =IFERROR($E179*SUMIF('Daily Log'!$CN$18:$CN$1017,$B179,'Daily Log'!$CO$18:$CO$1017),0) -> 0
B180: DF05 ADD SAUCE BP | D180: SAUCE | E180: 1 | F180: 5 | AJ180: =IFERROR($E180*SUMIF('Daily Log'!$CK$18:$CK$1017,$B180,'Daily Log'!$CL$18:$CL$1017),0) -> 5 | AK180: =IFERROR($E180*SUMIF('Daily Log'!$CN$18:$CN$1017,$B180,'Daily Log'!$CO$18:$CO$1017),0) -> 0
B181: DF06 ADD SAUCE BUTTER | D181: SAUCE | E181: 1 | F181: 0 | AJ181: =IFERROR($E181*SUMIF('Daily Log'!$CK$18:$CK$1017,$B181,'Daily Log'!$CL$18:$CL$1017),0) -> 0 | AK181: =IFERROR($E181*SUMIF('Daily Log'!$CN$18:$CN$1017,$B181,'Daily Log'!$CO$18:$CO$1017),0) -> 0
B182: DF07 ADD SAUCE C.PADI | D182: SAUCE | E182: 1 | F182: 39 | AJ182: =IFERROR($E182*SUMIF('Daily Log'!$CK$18:$CK$1017,$B182,'Daily Log'!$CL$18:$CL$1017),0) -> 39 | AK182: =IFERROR($E182*SUMIF('Daily Log'!$CN$18:$CN$1017,$B182,'Daily Log'!$CO$18:$CO$1017),0) -> 0
B183: DF08 ADD SAUCE GS | D183: SAUCE | E183: 1 | F183: 1 | AJ183: =IFERROR($E183*SUMIF('Daily Log'!$CK$18:$CK$1017,$B183,'Daily Log'!$CL$18:$CL$1017),0) -> 1 | AK183: =IFERROR($E183*SUMIF('Daily Log'!$CN$18:$CN$1017,$B183,'Daily Log'!$CO$18:$CO$1017),0) -> 0
B184: DF09 ADD SAUCE MAYO | D184: SAUCE | E184: 1 | F184: 87 | AJ184: =IFERROR($E184*SUMIF('Daily Log'!$CK$18:$CK$1017,$B184,'Daily Log'!$CL$18:$CL$1017),0) -> 87 | AK184: =IFERROR($E184*SUMIF('Daily Log'!$CN$18:$CN$1017,$B184,'Daily Log'!$CO$18:$CO$1017),0) -> 0
B185: DF10 ADD SAUCE MMITE | D185: SAUCE | E185: 1 | F185: 0 | AJ185: =IFERROR($E185*SUMIF('Daily Log'!$CK$18:$CK$1017,$B185,'Daily Log'!$CL$18:$CL$1017),0) -> 0 | AK185: =IFERROR($E185*SUMIF('Daily Log'!$CN$18:$CN$1017,$B185,'Daily Log'!$CO$18:$CO$1017),0) -> 0
B186: DF11 ADD SAUCE MR | D186: SAUCE | E186: 1 | F186: 5 | AJ186: =IFERROR($E186*SUMIF('Daily Log'!$CK$18:$CK$1017,$B186,'Daily Log'!$CL$18:$CL$1017),0) -> 5 | AK186: =IFERROR($E186*SUMIF('Daily Log'!$CN$18:$CN$1017,$B186,'Daily Log'!$CO$18:$CO$1017),0) -> 0
B187: DF12 ADD SAUCE SAMBAL | D187: SAUCE | E187: 1 | F187: 2 | AJ187: =IFERROR($E187*SUMIF('Daily Log'!$CK$18:$CK$1017,$B187,'Daily Log'!$CL$18:$CL$1017),0) -> 2 | AK187: =IFERROR($E187*SUMIF('Daily Log'!$CN$18:$CN$1017,$B187,'Daily Log'!$CO$18:$CO$1017),0) -> 0
B188: DF13 ADD SAUCE THAI | D188: SAUCE | E188: 1 | F188: 3 | AJ188: =IFERROR($E188*SUMIF('Daily Log'!$CK$18:$CK$1017,$B188,'Daily Log'!$CL$18:$CL$1017),0) -> 3 | AK188: =IFERROR($E188*SUMIF('Daily Log'!$CN$18:$CN$1017,$B188,'Daily Log'!$CO$18:$CO$1017),0) -> 0
B189: DF14 ADD SAUCE TOMATO | D189: SAUCE | E189: 1 | F189: 95 | AJ189: =IFERROR($E189*SUMIF('Daily Log'!$CK$18:$CK$1017,$B189,'Daily Log'!$CL$18:$CL$1017),0) -> 95 | AK189: =IFERROR($E189*SUMIF('Daily Log'!$CN$18:$CN$1017,$B189,'Daily Log'!$CO$18:$CO$1017),0) -> 0
B190: DF15 ADD TATA SAUCE | D190: SAUCE | E190: 1 | F190: 17 | AJ190: =IFERROR($E190*SUMIF('Daily Log'!$CK$18:$CK$1017,$B190,'Daily Log'!$CL$18:$CL$1017),0) -> 17 | AK190: =IFERROR($E190*SUMIF('Daily Log'!$CN$18:$CN$1017,$B190,'Daily Log'!$CO$18:$CO$1017),0) -> 0
B191: DF16 ADD SAUCE CHEES | D191: SAUCE | E191: 1 | F191: 0 | AJ191: =IFERROR($E191*SUMIF('Daily Log'!$CK$18:$CK$1017,$B191,'Daily Log'!$CL$18:$CL$1017),0) -> 0 | AK191: =IFERROR($E191*SUMIF('Daily Log'!$CN$18:$CN$1017,$B191,'Daily Log'!$CO$18:$CO$1017),0) -> 0
B192: DG01 91001:BP CHK CP | D192: KLKD-WESTERN CRUISE | E192: 1 | F192: 368 | AJ192: =IFERROR($E192*SUMIF('Daily Log'!$CK$18:$CK$1017,$B192,'Daily Log'!$CL$18:$CL$1017),0) -> 368 | AK192: =IFERROR($E192*SUMIF('Daily Log'!$CN$18:$CN$1017,$B192,'Daily Log'!$CO$18:$CO$1017),0) -> 0
B193: DG02 91002:GVY CHK CP | D193: KLKD-WESTERN CRUISE | E193: 1 | F193: 117 | AJ193: =IFERROR($E193*SUMIF('Daily Log'!$CK$18:$CK$1017,$B193,'Daily Log'!$CL$18:$CL$1017),0) -> 117 | AK193: =IFERROR($E193*SUMIF('Daily Log'!$CN$18:$CN$1017,$B193,'Daily Log'!$CO$18:$CO$1017),0) -> 0
B194: DG03 91003:MSR CHK CP | D194: KLKD-WESTERN CRUISE | E194: 1 | F194: 436 | AJ194: =IFERROR($E194*SUMIF('Daily Log'!$CK$18:$CK$1017,$B194,'Daily Log'!$CL$18:$CL$1017),0) -> 436 | AK194: =IFERROR($E194*SUMIF('Daily Log'!$CN$18:$CN$1017,$B194,'Daily Log'!$CO$18:$CO$1017),0) -> 0
B195: DG04 91004:CKN MARY | D195: KLKD-WESTERN CRUISE | E195: 1 | F195: 203 | AJ195: =IFERROR($E195*SUMIF('Daily Log'!$CK$18:$CK$1017,$B195,'Daily Log'!$CL$18:$CL$1017),0) -> 203 | AK195: =IFERROR($E195*SUMIF('Daily Log'!$CN$18:$CN$1017,$B195,'Daily Log'!$CO$18:$CO$1017),0) -> 0
B196: DG05 91005:FISH&CHIP | D196: KLKD-WESTERN CRUISE | E196: 1 | F196: 246 | AJ196: =IFERROR($E196*SUMIF('Daily Log'!$CK$18:$CK$1017,$B196,'Daily Log'!$CL$18:$CL$1017),0) -> 246 | AK196: =IFERROR($E196*SUMIF('Daily Log'!$CN$18:$CN$1017,$B196,'Daily Log'!$CO$18:$CO$1017),0) -> 0
B197: DG06 91006:SPAGHETTI | D197: KLKD-WESTERN CRUISE | E197: 1 | F197: 160 | AJ197: =IFERROR($E197*SUMIF('Daily Log'!$CK$18:$CK$1017,$B197,'Daily Log'!$CL$18:$CL$1017),0) -> 160 | AK197: =IFERROR($E197*SUMIF('Daily Log'!$CN$18:$CN$1017,$B197,'Daily Log'!$CO$18:$CO$1017),0) -> 0
B198: DG07 91007:CHK SALAD | D198: KLKD-WESTERN CRUISE | E198: 1 | F198: 71 | AJ198: =IFERROR($E198*SUMIF('Daily Log'!$CK$18:$CK$1017,$B198,'Daily Log'!$CL$18:$CL$1017),0) -> 71 | AK198: =IFERROR($E198*SUMIF('Daily Log'!$CN$18:$CN$1017,$B198,'Daily Log'!$CO$18:$CO$1017),0) -> 0
B199: DH01 91101:THAI CHK | D199: KLKD-LOCAL DELIGHTS | E199: 1 | F199: 64 | AJ199: =IFERROR($E199*SUMIF('Daily Log'!$CK$18:$CK$1017,$B199,'Daily Log'!$CL$18:$CL$1017),0) -> 64 | AK199: =IFERROR($E199*SUMIF('Daily Log'!$CN$18:$CN$1017,$B199,'Daily Log'!$CO$18:$CO$1017),0) -> 0
B200: DH02 91102:MAMITE CHK | D200: KLKD-LOCAL DELIGHTS | E200: 1 | F200: 114 | AJ200: =IFERROR($E200*SUMIF('Daily Log'!$CK$18:$CK$1017,$B200,'Daily Log'!$CL$18:$CL$1017),0) -> 114 | AK200: =IFERROR($E200*SUMIF('Daily Log'!$CN$18:$CN$1017,$B200,'Daily Log'!$CO$18:$CO$1017),0) -> 0
B201: DH03 91103:KO PO CHK | D201: KLKD-LOCAL DELIGHTS | E201: 1 | F201: 0 | AJ201: =IFERROR($E201*SUMIF('Daily Log'!$CK$18:$CK$1017,$B201,'Daily Log'!$CL$18:$CL$1017),0) -> 0 | AK201: =IFERROR($E201*SUMIF('Daily Log'!$CN$18:$CN$1017,$B201,'Daily Log'!$CO$18:$CO$1017),0) -> 0
B202: DH04 91104:S&S CHK | D202: KLKD-LOCAL DELIGHTS | E202: 1 | F202: 47 | AJ202: =IFERROR($E202*SUMIF('Daily Log'!$CK$18:$CK$1017,$B202,'Daily Log'!$CL$18:$CL$1017),0) -> 47 | AK202: =IFERROR($E202*SUMIF('Daily Log'!$CN$18:$CN$1017,$B202,'Daily Log'!$CO$18:$CO$1017),0) -> 0
B203: DH05 91105:BUTTER CHK | D203: KLKD-LOCAL DELIGHTS | E203: 1 | F203: 140 | AJ203: =IFERROR($E203*SUMIF('Daily Log'!$CK$18:$CK$1017,$B203,'Daily Log'!$CL$18:$CL$1017),0) -> 140 | AK203: =IFERROR($E203*SUMIF('Daily Log'!$CN$18:$CN$1017,$B203,'Daily Log'!$CO$18:$CO$1017),0) -> 0
B204: DH06 91106:HK F.RICE | D204: KLKD-LOCAL DELIGHTS | E204: 1 | F204: 105 | AJ204: =IFERROR($E204*SUMIF('Daily Log'!$CK$18:$CK$1017,$B204,'Daily Log'!$CL$18:$CL$1017),0) -> 105 | AK204: =IFERROR($E204*SUMIF('Daily Log'!$CN$18:$CN$1017,$B204,'Daily Log'!$CO$18:$CO$1017),0) -> 0
B205: DH07 91107:SBL F.RICE | D205: KLKD-LOCAL DELIGHTS | E205: 1 | F205: 52 | AJ205: =IFERROR($E205*SUMIF('Daily Log'!$CK$18:$CK$1017,$B205,'Daily Log'!$CL$18:$CL$1017),0) -> 52 | AK205: =IFERROR($E205*SUMIF('Daily Log'!$CN$18:$CN$1017,$B205,'Daily Log'!$CO$18:$CO$1017),0) -> 0
B206: DH08 91108:SBL F.MEE | D206: KLKD-LOCAL DELIGHTS | E206: 1 | F206: 11 | AJ206: =IFERROR($E206*SUMIF('Daily Log'!$CK$18:$CK$1017,$B206,'Daily Log'!$CL$18:$CL$1017),0) -> 11 | AK206: =IFERROR($E206*SUMIF('Daily Log'!$CN$18:$CN$1017,$B206,'Daily Log'!$CO$18:$CO$1017),0) -> 0
B207: DH09 91109:BP UDON | D207: KLKD-LOCAL DELIGHTS | E207: 1 | F207: 49 | AJ207: =IFERROR($E207*SUMIF('Daily Log'!$CK$18:$CK$1017,$B207,'Daily Log'!$CL$18:$CL$1017),0) -> 49 | AK207: =IFERROR($E207*SUMIF('Daily Log'!$CN$18:$CN$1017,$B207,'Daily Log'!$CO$18:$CO$1017),0) -> 0
B208: DH10 91110:NISSIN | D208: KLKD-LOCAL DELIGHTS | E208: 1 | F208: 34 | AJ208: =IFERROR($E208*SUMIF('Daily Log'!$CK$18:$CK$1017,$B208,'Daily Log'!$CL$18:$CL$1017),0) -> 34 | AK208: =IFERROR($E208*SUMIF('Daily Log'!$CN$18:$CN$1017,$B208,'Daily Log'!$CO$18:$CO$1017),0) -> 0
B209: DH11 91111:VEG RICE | D209: KLKD-LOCAL DELIGHTS | E209: 1 | F209: 21 | AJ209: =IFERROR($E209*SUMIF('Daily Log'!$CK$18:$CK$1017,$B209,'Daily Log'!$CL$18:$CL$1017),0) -> 21 | AK209: =IFERROR($E209*SUMIF('Daily Log'!$CN$18:$CN$1017,$B209,'Daily Log'!$CO$18:$CO$1017),0) -> 0
B210: DH12 91112:NASI LEMAK | D210: KLKD-LOCAL DELIGHTS | E210: 1 | F210: 0 | AJ210: =IFERROR($E210*SUMIF('Daily Log'!$CK$18:$CK$1017,$B210,'Daily Log'!$CL$18:$CL$1017),0) -> 0 | AK210: =IFERROR($E210*SUMIF('Daily Log'!$CN$18:$CN$1017,$B210,'Daily Log'!$CO$18:$CO$1017),0) -> 0
... 231 more rows

Sheet Daily Log
C3: DAILY LOG OF PRODUCT SALES
B6: OUTLET | C6: =Summary!C6 -> CCS
B8: YEAR | C8: =Summary!C8 -> 2013
B10: MONTH | C10: =Summary!C10 -> SEPTEMBER
A14: =IFERROR(INDEX($CR$18:$CR$48,MAX($B$17:$CO$17),1),"") -> 0 | B14: ="DATE "&TEXT(Summary!G27,"DD / MM / YYYY") -> DATE 01 / 09 / 2013 | E14: ="DATE "&TEXT(Summary!H27,"DD / MM / YYYY") -> DATE 02 / 09 / 2013 | H14: ="DATE "&TEXT(Summary!I27,"DD / MM / YYYY") -> DATE 03 / 09 / 2013 | K14: ="DATE "&TEXT(Summary!J27,"DD / MM / YYYY") -> DATE 04 / 09 / 2013 | N14: ="DATE "&TEXT(Summary!K27,"DD / MM / YYYY") -> DATE 05 / 09 / 2013 | Q14: ="DATE "&TEXT(Summary!L27,"DD / MM / YYYY") -> DATE 06 / 09 / 2013 | T14: ="DATE "&TEXT(Summary!M27,"DD / MM / YYYY") -> DATE 07 / 09 / 2013 | W14: ="DATE "&TEXT(Summary!N27,"DD / MM / YYYY") -> DATE 08 / 09 / 2013 | Z14: ="DATE "&TEXT(Summary!O27,"DD / MM / YYYY") -> DATE 09 / 09 / 2013 | AC14: ="DATE "&TEXT(Summary!P27,"DD / MM / YYYY") -> DATE 10 / 09 / 2013 | AF14: ="DATE "&TEXT(Summary!Q27,"DD / MM / YYYY") -> DATE 11 / 09 / 2013 | AI14: ="DATE "&TEXT(Summary!R27,"DD / MM / YYYY") -> DATE 12 / 09 / 2013 | AL14: ="DATE "&TEXT(Summary!S27,"DD / MM / YYYY") -> DATE 13 / 09 / 2013 | AO14: ="DATE "&TEXT(Summary!T27,"DD / MM / YYYY") -> DATE 14 / 09 / 2013 | AR14: ="DATE "&TEXT(Summary!U27,"DD / MM / YYYY") -> DATE 15 / 09 / 2013 | AU14: ="DATE "&TEXT(Summary!V27,"DD / MM / YYYY") -> DATE 16 / 09 / 2013 | AX14: ="DATE "&TEXT(Summary!W27,"DD / MM / YYYY") -> DATE 17 / 09 / 2013 | BA14: ="DATE "&TEXT(Summary!X27,"DD / MM / YYYY") -> DATE 18 / 09 / 2013 | BD14: ="DATE "&TEXT(Summary!Y27,"DD / MM / YYYY") -> DATE 19 / 09 / 2013 | BG14: ="DATE "&TEXT(Summary!Z27,"DD / MM / YYYY") -> DATE 20 / 09 / 2013 | BJ14: ="DATE "&TEXT(Summary!AA27,"DD / MM / YYYY") -> DATE 21 / 09 / 2013 | BM14: ="DATE "&TEXT(Summary!AB27,"DD / MM / YYYY") -> DATE 22 / 09 / 2013 | BP14: ="DATE "&TEXT(Summary!AC27,"DD / MM / YYYY") -> DATE 23 / 09 / 2013 | BS14: ="DATE "&TEXT(Summary!AD27,"DD / MM / YYYY") -> DATE 24 / 09 / 2013 | BV14: ="DATE "&TEXT(Summary!AE27,"DD / MM / YYYY") -> DATE 25 / 09 / 2013 | BY14: ="DATE "&TEXT(Summary!AF27,"DD / MM / YYYY") -> DATE 26 / 09 / 2013 | CB14: ="DATE "&TEXT(Summary!AG27,"DD / MM / YYYY") -> DATE 27 / 09 / 2013 | CE14: ="DATE "&TEXT(Summary!AH27,"DD / MM / YYYY") -> DATE 28 / 09 / 2013 | CH14: ="DATE "&TEXT(Summary!AI27,"DD / MM / YYYY") -> DATE 29 / 09 / 2013 | CK14: ="DATE "&TEXT(Summary!AJ27,"DD / MM / YYYY") -> DATE 30 / 09 / 2013 | CN14: ="DATE "&TEXT(Summary!AK27,"DD / MM / YYYY") -> DATE | CQ14: COLUMN
B16: PRODUCT | C16: QUANTITY | E16: PRODUCT | F16: QUANTITY | H16: PRODUCT | I16: QUANTITY | K16: PRODUCT | L16: QUANTITY | N16: PRODUCT | O16: QUANTITY | Q16: PRODUCT | R16: QUANTITY | T16: PRODUCT | U16: QUANTITY | W16: PRODUCT | X16: QUANTITY | Z16: PRODUCT | AA16: QUANTITY | AC16: PRODUCT | AD16: QUANTITY | AF16: PRODUCT | AG16: QUANTITY | AI16: PRODUCT | AJ16: QUANTITY | AL16: PRODUCT | AM16: QUANTITY | AO16: PRODUCT | AP16: QUANTITY | AR16: PRODUCT | AS16: QUANTITY | AU16: PRODUCT | AV16: QUANTITY | AX16: PRODUCT | AY16: QUANTITY | BA16: PRODUCT | BB16: QUANTITY | BD16: PRODUCT | BE16: QUANTITY | BG16: PRODUCT | BH16: QUANTITY | BJ16: PRODUCT | BK16: QUANTITY | BM16: PRODUCT | BN16: QUANTITY | BP16: PRODUCT | BQ16: QUANTITY | BS16: PRODUCT | BT16: QUANTITY | BV16: PRODUCT | BW16: QUANTITY | BY16: PRODUCT | BZ16: QUANTITY | CB16: PRODUCT | CC16: QUANTITY | CE16: PRODUCT | CF16: QUANTITY | CH16: PRODUCT | CI16: QUANTITY | CK16: PRODUCT | CL16: QUANTITY | CN16: PRODUCT | CO16: QUANTITY | CQ16: MONTH | CR16: COLUMN
B17: =IF(B18<>"",1,0) -> 0 | E17: =IF(E18<>"",2,0) -> 0 | H17: =IF(H18<>"",3,0) -> 0 | K17: =IF(K18<>"",4,0) -> 0 | N17: =IF(N18<>"",5,0) -> 0 | Q17: =IF(Q18<>"",6,0) -> 0 | T17: =IF(T18<>"",7,0) -> 0 | W17: =IF(W18<>"",8,0) -> 0 | Z17: =IF(Z18<>"",9,0) -> 0 | AC17: =IF(AC18<>"",10,0) -> 0 | AF17: =IF(AF18<>"",11,0) -> 0 | AI17: =IF(AI18<>"",12,0) -> 0 | AL17: =IF(AL18<>"",13,0) -> 0 | AO17: =IF(AO18<>"",14,0) -> 0 | AR17: =IF(AR18<>"",15,0) -> 0 | AU17: =IF(AU18<>"",16,0) -> 0 | AX17: =IF(AX18<>"",17,0) -> 0 | BA17: =IF(BA18<>"",23,0) -> 0 | BD17: =IF(BD18<>"",23,0) -> 0 | BG17: =IF(BG18<>"",23,0) -> 0 | BJ17: =IF(BJ18<>"",23,0) -> 0 | BM17: =IF(BM18<>"",23,0) -> 0 | BP17: =IF(BP18<>"",23,0) -> 0 | BS17: =IF(BS18<>"",24,0) -> 0 | BV17: =IF(BV18<>"",25,0) -> 0 | BY17: =IF(BY18<>"",26,0) -> 0 | CB17: =IF(CB18<>"",27,0) -> 0 | CE17: =IF(CE18<>"",28,0) -> 0 | CH17: =IF(CH18<>"",29,0) -> 0 | CK17: =IF(CK18<>"",30,0) -> 30 | CN17: =IF(CN18<>"",23,0) -> 0
A18: =IFERROR(IF(INDIRECT($A$14&ROW())<>"",COUNTIF(Summary!$B$30:$B$1105,INDIRECT($A$14&ROW())),""),"") ->  | CK18: AA01 K : REGULAR | CL18: 37
A19: =IFERROR(IF(INDIRECT($A$14&ROW())<>"",COUNTIF(Summary!$B$30:$B$1105,INDIRECT($A$14&ROW())),""),"") ->  | CK19: AA02 K : MEMBER | CL19: 11
A20: =IFERROR(IF(INDIRECT($A$14&ROW())<>"",COUNTIF(Summary!$B$30:$B$1105,INDIRECT($A$14&ROW())),""),"") ->  | CK20: AA04 K-LUNCH | CL20: 1405
A21: =IFERROR(IF(INDIRECT($A$14&ROW())<>"",COUNTIF(Summary!$B$30:$B$1105,INDIRECT($A$14&ROW())),""),"") ->  | CK21: AA05 K : CHILDREN | CL21: 54
A22: =IFERROR(IF(INDIRECT($A$14&ROW())<>"",COUNTIF(Summary!$B$30:$B$1105,INDIRECT($A$14&ROW())),""),"") ->  | CK22: AA06 K : MEMBER B'DAY | CL22: 5
A23: =IFERROR(IF(INDIRECT($A$14&ROW())<>"",COUNTIF(Summary!$B$30:$B$1105,INDIRECT($A$14&ROW())),""),"") ->  | CK23: AA11 K : FREEHEAD (R) | CL23: 1
A24: =IFERROR(IF(INDIRECT($A$14&ROW())<>"",COUNTIF(Summary!$B$30:$B$1105,INDIRECT($A$14&ROW())),""),"") ->  | CK24: AB01 H : REGULAR | CL24: 816
A25: =IFERROR(IF(INDIRECT($A$14&ROW())<>"",COUNTIF(Summary!$B$30:$B$1105,INDIRECT($A$14&ROW())),""),"") ->  | CK25: AB02 H : MEMBER | CL25: 271
A26: =IFERROR(IF(INDIRECT($A$14&ROW())<>"",COUNTIF(Summary!$B$30:$B$1105,INDIRECT($A$14&ROW())),""),"") ->  | CK26: AB03 H : MEMBER 30% | CL26: 28
A27: =IFERROR(IF(INDIRECT($A$14&ROW())<>"",COUNTIF(Summary!$B$30:$B$1105,INDIRECT($A$14&ROW())),""),"") ->  | CK27: AB05 H : STUDENT | CL27: 419
A28: =IFERROR(IF(INDIRECT($A$14&ROW())<>"",COUNTIF(Summary!$B$30:$B$1105,INDIRECT($A$14&ROW())),""),"") ->  | CK28: AB06 H : SENIOR | CL28: 3
A29: =IFERROR(IF(INDIRECT($A$14&ROW())<>"",COUNTIF(Summary!$B$30:$B$1105,INDIRECT($A$14&ROW())),""),"") ->  | CK29: AB07 H : CHILDREN | CL29: 52
A30: =IFERROR(IF(INDIRECT($A$14&ROW())<>"",COUNTIF(Summary!$B$30:$B$1105,INDIRECT($A$14&ROW())),""),"") ->  | CK30: AB08 H : MEMBER B'DAY | CL30: 7
A31: =IFERROR(IF(INDIRECT($A$14&ROW())<>"",COUNTIF(Summary!$B$30:$B$1105,INDIRECT($A$14&ROW())),""),"") ->  | CK31: AB13 H : FREEHEAD (R) | CL31: 15
A32: =IFERROR(IF(INDIRECT($A$14&ROW())<>"",COUNTIF(Summary!$B$30:$B$1105,INDIRECT($A$14&ROW())),""),"") ->  | CK32: AB14 H : Buy 3 Free 1 | CL32: 3
A33: =IFERROR(IF(INDIRECT($A$14&ROW())<>"",COUNTIF(Summary!$B$30:$B$1105,INDIRECT($A$14&ROW())),""),"") ->  | CK33: AB17 H : XTD S ROOM | CL33: 2
A34: =IFERROR(IF(INDIRECT($A$14&ROW())<>"",COUNTIF(Summary!$B$30:$B$1105,INDIRECT($A$14&ROW())),""),"") ->  | CK34: AB19 H : XTD B ROOM | CL34: 2
A35: =IFERROR(IF(INDIRECT($A$14&ROW())<>"",COUNTIF(Summary!$B$30:$B$1105,INDIRECT($A$14&ROW())),""),"") ->  | CK35: AB22 H: FB LIKED 50% | CL35: 444
A36: =IFERROR(IF(INDIRECT($A$14&ROW())<>"",COUNTIF(Summary!$B$30:$B$1105,INDIRECT($A$14&ROW())),""),"") ->  | CK36: AB50 H:Student Mem | CL36: 12
A37: =IFERROR(IF(INDIRECT($A$14&ROW())<>"",COUNTIF(Summary!$B$30:$B$1105,INDIRECT($A$14&ROW())),""),"") ->  | CK37: AC01 N : REGULAR | CL37: 1810
A38: =IFERROR(IF(INDIRECT($A$14&ROW())<>"",COUNTIF(Summary!$B$30:$B$1105,INDIRECT($A$14&ROW())),""),"") ->  | CK38: AC02 N : MEMBER | CL38: 894
A39: =IFERROR(IF(INDIRECT($A$14&ROW())<>"",COUNTIF(Summary!$B$30:$B$1105,INDIRECT($A$14&ROW())),""),"") ->  | CK39: AC03 N : MEMBER 30% | CL39: 246
A40: =IFERROR(IF(INDIRECT($A$14&ROW())<>"",COUNTIF(Summary!$B$30:$B$1105,INDIRECT($A$14&ROW())),""),"") ->  | CK40: AC05 K-DINNER | CL40: 1144
A41: =IFERROR(IF(INDIRECT($A$14&ROW())<>"",COUNTIF(Summary!$B$30:$B$1105,INDIRECT($A$14&ROW())),""),"") ->  | CK41: AC06 N : CHILDREN | CL41: 96
A42: =IFERROR(IF(INDIRECT($A$14&ROW())<>"",COUNTIF(Summary!$B$30:$B$1105,INDIRECT($A$14&ROW())),""),"") ->  | CK42: AC07 N : MEMBER B'DAY | CL42: 41
A43: =IFERROR(IF(INDIRECT($A$14&ROW())<>"",COUNTIF(Summary!$B$30:$B$1105,INDIRECT($A$14&ROW())),""),"") ->  | CK43: AC12 N : FREEHEAD (R) | CL43: 45
A44: =IFERROR(IF(INDIRECT($A$14&ROW())<>"",COUNTIF(Summary!$B$30:$B$1105,INDIRECT($A$14&ROW())),""),"") ->  | CK44: AC13 N : Buy 3 Free 1 | CL44: 3
A45: =IFERROR(IF(INDIRECT($A$14&ROW())<>"",COUNTIF(Summary!$B$30:$B$1105,INDIRECT($A$14&ROW())),""),"") ->  | CK45: AC16 N : EVENT | CL45: 1
A46: =IFERROR(IF(INDIRECT($A$14&ROW())<>"",COUNTIF(Summary!$B$30:$B$1105,INDIRECT($A$14&ROW())),""),"") ->  | CK46: AC17 N : XTD S ROOM | CL46: 6
A47: =IFERROR(IF(INDIRECT($A$14&ROW())<>"",COUNTIF(Summary!$B$30:$B$1105,INDIRECT($A$14&ROW())),""),"") ->  | CK47: AC18 N : XTD M ROOM | CL47: 11
A48: =IFERROR(IF(INDIRECT($A$14&ROW())<>"",COUNTIF(Summary!$B$30:$B$1105,INDIRECT($A$14&ROW())),""),"") ->  | CK48: AC19 N : XTD B ROOM | CL48: 11
A49: =IFERROR(IF(INDIRECT($A$14&ROW())<>"",COUNTIF(Summary!$B$30:$B$1105,INDIRECT($A$14&ROW())),""),"") ->  | CK49: AC29 N:9.0 Ver | CL49: 424
A50: =IFERROR(IF(INDIRECT($A$14&ROW())<>"",COUNTIF(Summary!$B$30:$B$1105,INDIRECT($A$14&ROW())),""),"") ->  | CK50: AC30 N:9.0 ver Aeon | CL50: 309
A51: =IFERROR(IF(INDIRECT($A$14&ROW())<>"",COUNTIF(Summary!$B$30:$B$1105,INDIRECT($A$14&ROW())),""),"") ->  | CK51: AC33 N : XTD VIP ROOM | CL51: 5
A52: =IFERROR(IF(INDIRECT($A$14&ROW())<>"",COUNTIF(Summary!$B$30:$B$1105,INDIRECT($A$14&ROW())),""),"") ->  | CK52: AD01 M : REGULAR | CL52: 507
A53: =IFERROR(IF(INDIRECT($A$14&ROW())<>"",COUNTIF(Summary!$B$30:$B$1105,INDIRECT($A$14&ROW())),""),"") ->  | CK53: AD02 M : MEMBER | CL53: 201
A54: =IFERROR(IF(INDIRECT($A$14&ROW())<>"",COUNTIF(Summary!$B$30:$B$1105,INDIRECT($A$14&ROW())),""),"") ->  | CK54: AD03 M : MEMBER 30% | CL54: 19
A55: =IFERROR(IF(INDIRECT($A$14&ROW())<>"",COUNTIF(Summary!$B$30:$B$1105,INDIRECT($A$14&ROW())),""),"") ->  | CK55: AD05 M : LADIES | CL55: 349
A56: =IFERROR(IF(INDIRECT($A$14&ROW())<>"",COUNTIF(Summary!$B$30:$B$1105,INDIRECT($A$14&ROW())),""),"") ->  | CK56: AD06 M : CHILDREN | CL56: 13
A57: =IFERROR(IF(INDIRECT($A$14&ROW())<>"",COUNTIF(Summary!$B$30:$B$1105,INDIRECT($A$14&ROW())),""),"") ->  | CK57: AD07 M : MEMBER B'DAY | CL57: 7
A58: =IFERROR(IF(INDIRECT($A$14&ROW())<>"",COUNTIF(Summary!$B$30:$B$1105,INDIRECT($A$14&ROW())),""),"") ->  | CK58: AD11 M : FREEHEAD (R)
A59: =IFERROR(IF(INDIRECT($A$14&ROW())<>"",COUNTIF(Summary!$B$30:$B$1105,INDIRECT($A$14&ROW())),""),"") ->  | CK59: AD15 M : XTD S ROOM | CL59: 7
A60: =IFERROR(IF(INDIRECT($A$14&ROW())<>"",COUNTIF(Summary!$B$30:$B$1105,INDIRECT($A$14&ROW())),""),"") ->  | CK60: AD16 M : XTD M ROOM | CL60: 4
A61: =IFERROR(IF(INDIRECT($A$14&ROW())<>"",COUNTIF(Summary!$B$30:$B$1105,INDIRECT($A$14&ROW())),""),"") ->  | CK61: AD17 M : XTD B ROOM | CL61: 2
A62: =IFERROR(IF(INDIRECT($A$14&ROW())<>"",COUNTIF(Summary!$B$30:$B$1105,INDIRECT($A$14&ROW())),""),"") ->  | CK62: AD28 M : XTD VIP ROOM | CL62: 1
A63: =IFERROR(IF(INDIRECT($A$14&ROW())<>"",COUNTIF(Summary!$B$30:$B$1105,INDIRECT($A$14&ROW())),""),"") ->  | CK63: AD29 M :WEDDING 30% | CL63: 13
A64: =IFERROR(IF(INDIRECT($A$14&ROW())<>"",COUNTIF(Summary!$B$30:$B$1105,INDIRECT($A$14&ROW())),""),"") ->  | CK64: BA02 H : 4BP | CL64: 11
A65: =IFERROR(IF(INDIRECT($A$14&ROW())<>"",COUNTIF(Summary!$B$30:$B$1105,INDIRECT($A$14&ROW())),""),"") ->  | CK65: BA04 N : 4BP | CL65: 59
A66: =IFERROR(IF(INDIRECT($A$14&ROW())<>"",COUNTIF(Summary!$B$30:$B$1105,INDIRECT($A$14&ROW())),""),"") ->  | CK66: BA06 M : 4BP | CL66: 12
A67: =IFERROR(IF(INDIRECT($A$14&ROW())<>"",COUNTIF(Summary!$B$30:$B$1105,INDIRECT($A$14&ROW())),""),"") ->  | CK67: BA08 GUINNESS BTL | CL67: 10
A68: =IFERROR(IF(INDIRECT($A$14&ROW())<>"",COUNTIF(Summary!$B$30:$B$1105,INDIRECT($A$14&ROW())),""),"") ->  | CK68: BA09 GUINNESS BKT | CL68: 12
A69: =IFERROR(IF(INDIRECT($A$14&ROW())<>"",COUNTIF(Summary!$B$30:$B$1105,INDIRECT($A$14&ROW())),""),"") ->  | CK69: BA11 HEINEKEN BTL | CL69: 10
A70: =IFERROR(IF(INDIRECT($A$14&ROW())<>"",COUNTIF(Summary!$B$30:$B$1105,INDIRECT($A$14&ROW())),""),"") ->  | CK70: BA12 HEINEKEN BKT | CL70: 17
A71: =IFERROR(IF(INDIRECT($A$14&ROW())<>"",COUNTIF(Summary!$B$30:$B$1105,INDIRECT($A$14&ROW())),""),"") ->  | CK71: BA13 HEINEKEN RND | CL71: 9
A72: =IFERROR(IF(INDIRECT($A$14&ROW())<>"",COUNTIF(Summary!$B$30:$B$1105,INDIRECT($A$14&ROW())),""),"") ->  | CK72: BA14 TIGER BTL | CL72: 20
A73: =IFERROR(IF(INDIRECT($A$14&ROW())<>"",COUNTIF(Summary!$B$30:$B$1105,INDIRECT($A$14&ROW())),""),"") ->  | CK73: BA15 TIGER BKT | CL73: 66
A74: =IFERROR(IF(INDIRECT($A$14&ROW())<>"",COUNTIF(Summary!$B$30:$B$1105,INDIRECT($A$14&ROW())),""),"") ->  | CK74: BA16 TIGER RND | CL74: 49
A75: =IFERROR(IF(INDIRECT($A$14&ROW())<>"",COUNTIF(Summary!$B$30:$B$1105,INDIRECT($A$14&ROW())),""),"") ->  | CK75: BA19 Tiger 2+1 | CL75: 9
A76: =IFERROR(IF(INDIRECT($A$14&ROW())<>"",COUNTIF(Summary!$B$30:$B$1105,INDIRECT($A$14&ROW())),""),"") ->  | CK76: BA20 Heineken 3+1 | CL76: 3
A77: =IFERROR(IF(INDIRECT($A$14&ROW())<>"",COUNTIF(Summary!$B$30:$B$1105,INDIRECT($A$14&ROW())),""),"") ->  | CK77: BA23 SOMERSBY BTL | CL77: 6
A78: =IFERROR(IF(INDIRECT($A$14&ROW())<>"",COUNTIF(Summary!$B$30:$B$1105,INDIRECT($A$14&ROW())),""),"") ->  | CK78: BA24 SOMERSBY BKT | CL78: 2
A79: =IFERROR(IF(INDIRECT($A$14&ROW())<>"",COUNTIF(Summary!$B$30:$B$1105,INDIRECT($A$14&ROW())),""),"") ->  | CK79: BA26 STRONGBOW BKT | CL79: 1
A80: =IFERROR(IF(INDIRECT($A$14&ROW())<>"",COUNTIF(Summary!$B$30:$B$1105,INDIRECT($A$14&ROW())),""),"") ->  | CK80: BA28 HOEGAARDEN BKT | CL80: 2
A81: =IFERROR(IF(INDIRECT($A$14&ROW())<>"",COUNTIF(Summary!$B$30:$B$1105,INDIRECT($A$14&ROW())),""),"") ->  | CK81: BD03 H : 4BP PROMO | CL81: 5
A82: =IFERROR(IF(INDIRECT($A$14&ROW())<>"",COUNTIF(Summary!$B$30:$B$1105,INDIRECT($A$14&ROW())),""),"") ->  | CK82: BD04 H : 4BP MEMBER | CL82: 1
A83: =IFERROR(IF(INDIRECT($A$14&ROW())<>"",COUNTIF(Summary!$B$30:$B$1105,INDIRECT($A$14&ROW())),""),"") ->  | CK83: BD05 N : 4BP PROMO | CL83: 38
A84: =IFERROR(IF(INDIRECT($A$14&ROW())<>"",COUNTIF(Summary!$B$30:$B$1105,INDIRECT($A$14&ROW())),""),"") ->  | CK84: BD06 N : 4BP MEMBER | CL84: 39
A85: =IFERROR(IF(INDIRECT($A$14&ROW())<>"",COUNTIF(Summary!$B$30:$B$1105,INDIRECT($A$14&ROW())),""),"") ->  | CK85: BD07 M : 4BP PROMO | CL85: 14
A86: =IFERROR(IF(INDIRECT($A$14&ROW())<>"",COUNTIF(Summary!$B$30:$B$1105,INDIRECT($A$14&ROW())),""),"") ->  | CK86: BD08 M : 4BP MEMBER | CL86: 5
A87: =IFERROR(IF(INDIRECT($A$14&ROW())<>"",COUNTIF(Summary!$B$30:$B$1105,INDIRECT($A$14&ROW())),""),"") ->  | CK87: BD09 GUI 2 x BKT | CL87: 8
A88: =IFERROR(IF(INDIRECT($A$14&ROW())<>"",COUNTIF(Summary!$B$30:$B$1105,INDIRECT($A$14&ROW())),""),"") ->  | CK88: BD10 GUI 2 x BKT MEM | CL88: 5
A89: =IFERROR(IF(INDIRECT($A$14&ROW())<>"",COUNTIF(Summary!$B$30:$B$1105,INDIRECT($A$14&ROW())),""),"") ->  | CK89: BD11 HEI 2 x BKT | CL89: 11
A90: =IFERROR(IF(INDIRECT($A$14&ROW())<>"",COUNTIF(Summary!$B$30:$B$1105,INDIRECT($A$14&ROW())),""),"") ->  | CK90: BD12 HEI 2 x BKT MEME | CL90: 20
A91: =IFERROR(IF(INDIRECT($A$14&ROW())<>"",COUNTIF(Summary!$B$30:$B$1105,INDIRECT($A$14&ROW())),""),"") ->  | CK91: BD13 TIGER 2 x BKT | CL91: 40
A92: =IFERROR(IF(INDIRECT($A$14&ROW())<>"",COUNTIF(Summary!$B$30:$B$1105,INDIRECT($A$14&ROW())),""),"") ->  | CK92: BD14 TIGER 2x BKT MEM | CL92: 81
A93: =IFERROR(IF(INDIRECT($A$14&ROW())<>"",COUNTIF(Summary!$B$30:$B$1105,INDIRECT($A$14&ROW())),""),"") ->  | CK93: CA05 PASSION J | CL93: 1
A94: =IFERROR(IF(INDIRECT($A$14&ROW())<>"",COUNTIF(Summary!$B$30:$B$1105,INDIRECT($A$14&ROW())),""),"") ->  | CK94: CA06 RIBENA J | CL94: 2
A95: =IFERROR(IF(INDIRECT($A$14&ROW())<>"",COUNTIF(Summary!$B$30:$B$1105,INDIRECT($A$14&ROW())),""),"") ->  | CK95: CC08 CHOCOLATE SM | CL95: 4
A96: =IFERROR(IF(INDIRECT($A$14&ROW())<>"",COUNTIF(Summary!$B$30:$B$1105,INDIRECT($A$14&ROW())),""),"") ->  | CK96: CD01 7 UP | CL96: 1
A97: =IFERROR(IF(INDIRECT($A$14&ROW())<>"",COUNTIF(Summary!$B$30:$B$1105,INDIRECT($A$14&ROW())),""),"") ->  | CK97: CD03 PEPSI | CL97: 2
A98: =IFERROR(IF(INDIRECT($A$14&ROW())<>"",COUNTIF(Summary!$B$30:$B$1105,INDIRECT($A$14&ROW())),""),"") ->  | CK98: CE01 MILO (C) | CL98: 2
A99: =IFERROR(IF(INDIRECT($A$14&ROW())<>"",COUNTIF(Summary!$B$30:$B$1105,INDIRECT($A$14&ROW())),""),"") ->  | CK99: CE04 LEMON TEA (C) | CL99: 1
A100: =IFERROR(IF(INDIRECT($A$14&ROW())<>"",COUNTIF(Summary!$B$30:$B$1105,INDIRECT($A$14&ROW())),""),"") ->  | CK100: CE05 GRN TEA (C) | CL100: 3
A101: =IFERROR(IF(INDIRECT($A$14&ROW())<>"",COUNTIF(Summary!$B$30:$B$1105,INDIRECT($A$14&ROW())),""),"") ->  | CK101: CE06 HNY GRN TEA (C) | CL101: 3
A102: =IFERROR(IF(INDIRECT($A$14&ROW())<>"",COUNTIF(Summary!$B$30:$B$1105,INDIRECT($A$14&ROW())),""),"") ->  | CK102: CE07 HONEY (C) | CL102: 1
A103: =IFERROR(IF(INDIRECT($A$14&ROW())<>"",COUNTIF(Summary!$B$30:$B$1105,INDIRECT($A$14&ROW())),""),"") ->  | CK103: CE08 LEMON HONEY (C) | CL103: 6
A104: =IFERROR(IF(INDIRECT($A$14&ROW())<>"",COUNTIF(Summary!$B$30:$B$1105,INDIRECT($A$14&ROW())),""),"") ->  | CK104: CF01 MILO (H) | CL104: 1
A105: =IFERROR(IF(INDIRECT($A$14&ROW())<>"",COUNTIF(Summary!$B$30:$B$1105,INDIRECT($A$14&ROW())),""),"") ->  | CK105: CF02 NESCAFE (H) | CL105: 1
A106: =IFERROR(IF(INDIRECT($A$14&ROW())<>"",COUNTIF(Summary!$B$30:$B$1105,INDIRECT($A$14&ROW())),""),"") ->  | CK106: CF08 LEMON HONEY (H) | CL106: 6
A107: =IFERROR(IF(INDIRECT($A$14&ROW())<>"",COUNTIF(Summary!$B$30:$B$1105,INDIRECT($A$14&ROW())),""),"") ->  | CK107: CF10 CHOCOLATE (H) | CL107: 1
A108: =IFERROR(IF(INDIRECT($A$14&ROW())<>"",COUNTIF(Summary!$B$30:$B$1105,INDIRECT($A$14&ROW())),""),"") ->  | CK108: CG01 MINERAL WATER | CL108: 7
A109: =IFERROR(IF(INDIRECT($A$14&ROW())<>"",COUNTIF(Summary!$B$30:$B$1105,INDIRECT($A$14&ROW())),""),"") ->  | CK109: CH06 WATER JUG | CL109: 8
A110: =IFERROR(IF(INDIRECT($A$14&ROW())<>"",COUNTIF(Summary!$B$30:$B$1105,INDIRECT($A$14&ROW())),""),"") ->  | CK110: CI01 GRAPE J | CL110: 336
A111: =IFERROR(IF(INDIRECT($A$14&ROW())<>"",COUNTIF(Summary!$B$30:$B$1105,INDIRECT($A$14&ROW())),""),"") ->  | CK111: CI02 APPLE J | CL111: 665
A112: =IFERROR(IF(INDIRECT($A$14&ROW())<>"",COUNTIF(Summary!$B$30:$B$1105,INDIRECT($A$14&ROW())),""),"") ->  | CK112: CI04 MANGO J | CL112: 442
A113: =IFERROR(IF(INDIRECT($A$14&ROW())<>"",COUNTIF(Summary!$B$30:$B$1105,INDIRECT($A$14&ROW())),""),"") ->  | CK113: CI05 PASSION J | CL113: 804
A114: =IFERROR(IF(INDIRECT($A$14&ROW())<>"",COUNTIF(Summary!$B$30:$B$1105,INDIRECT($A$14&ROW())),""),"") ->  | CK114: CI06 RIBENA J | CL114: 827
A115: =IFERROR(IF(INDIRECT($A$14&ROW())<>"",COUNTIF(Summary!$B$30:$B$1105,INDIRECT($A$14&ROW())),""),"") ->  | CK115: CJ01 GRAPE SO | CL115: 52
A116: =IFERROR(IF(INDIRECT($A$14&ROW())<>"",COUNTIF(Summary!$B$30:$B$1105,INDIRECT($A$14&ROW())),""),"") ->  | CK116: CJ02 APPLE SO | CL116: 85
A117: =IFERROR(IF(INDIRECT($A$14&ROW())<>"",COUNTIF(Summary!$B$30:$B$1105,INDIRECT($A$14&ROW())),""),"") ->  | CK117: CJ04 MANGO SO | CL117: 46
A118: =IFERROR(IF(INDIRECT($A$14&ROW())<>"",COUNTIF(Summary!$B$30:$B$1105,INDIRECT($A$14&ROW())),""),"") ->  | CK118: CJ05 PASSION SO | CL118: 93
A119: =IFERROR(IF(INDIRECT($A$14&ROW())<>"",COUNTIF(Summary!$B$30:$B$1105,INDIRECT($A$14&ROW())),""),"") ->  | CK119: CJ06 RIBENA SO | CL119: 124
A120: =IFERROR(IF(INDIRECT($A$14&ROW())<>"",COUNTIF(Summary!$B$30:$B$1105,INDIRECT($A$14&ROW())),""),"") ->  | CK120: CL01 7 UP | CL120: 376
A121: =IFERROR(IF(INDIRECT($A$14&ROW())<>"",COUNTIF(Summary!$B$30:$B$1105,INDIRECT($A$14&ROW())),""),"") ->  | CK121: CL02 7 UP REVIVE | CL121: 74
A122: =IFERROR(IF(INDIRECT($A$14&ROW())<>"",COUNTIF(Summary!$B$30:$B$1105,INDIRECT($A$14&ROW())),""),"") ->  | CK122: CL03 PEPSI | CL122: 946
A123: =IFERROR(IF(INDIRECT($A$14&ROW())<>"",COUNTIF(Summary!$B$30:$B$1105,INDIRECT($A$14&ROW())),""),"") ->  | CK123: CM01 MILO (C) | CL123: 964
A124: =IFERROR(IF(INDIRECT($A$14&ROW())<>"",COUNTIF(Summary!$B$30:$B$1105,INDIRECT($A$14&ROW())),""),"") ->  | CK124: CM02 NESCAFE (C) | CL124: 271
A125: =IFERROR(IF(INDIRECT($A$14&ROW())<>"",COUNTIF(Summary!$B$30:$B$1105,INDIRECT($A$14&ROW())),""),"") ->  | CK125: CM03 TEA (C) | CL125: 335
A126: =IFERROR(IF(INDIRECT($A$14&ROW())<>"",COUNTIF(Summary!$B$30:$B$1105,INDIRECT($A$14&ROW())),""),"") ->  | CK126: CM04 LEMON TEA (C) | CL126: 1288
A127: =IFERROR(IF(INDIRECT($A$14&ROW())<>"",COUNTIF(Summary!$B$30:$B$1105,INDIRECT($A$14&ROW())),""),"") ->  | CK127: CM05 GRN TEA (C) | CL127: 1457
A128: =IFERROR(IF(INDIRECT($A$14&ROW())<>"",COUNTIF(Summary!$B$30:$B$1105,INDIRECT($A$14&ROW())),""),"") ->  | CK128: CM06 HNY GRN TEA (C) | CL128: 2244
A129: =IFERROR(IF(INDIRECT($A$14&ROW())<>"",COUNTIF(Summary!$B$30:$B$1105,INDIRECT($A$14&ROW())),""),"") ->  | CK129: CM07 HONEY (C) | CL129: 587
A130: =IFERROR(IF(INDIRECT($A$14&ROW())<>"",COUNTIF(Summary!$B$30:$B$1105,INDIRECT($A$14&ROW())),""),"") ->  | CK130: CM08 LEMON HONEY (C) | CL130: 2601
A131: =IFERROR(IF(INDIRECT($A$14&ROW())<>"",COUNTIF(Summary!$B$30:$B$1105,INDIRECT($A$14&ROW())),""),"") ->  | CK131: CN01 MILO (H) | CL131: 788
A132: =IFERROR(IF(INDIRECT($A$14&ROW())<>"",COUNTIF(Summary!$B$30:$B$1105,INDIRECT($A$14&ROW())),""),"") ->  | CK132: CN02 NESCAFE (H) | CL132: 202
A133: =IFERROR(IF(INDIRECT($A$14&ROW())<>"",COUNTIF(Summary!$B$30:$B$1105,INDIRECT($A$14&ROW())),""),"") ->  | CK133: CN03 TEA (H) | CL133: 54
A134: =IFERROR(IF(INDIRECT($A$14&ROW())<>"",COUNTIF(Summary!$B$30:$B$1105,INDIRECT($A$14&ROW())),""),"") ->  | CK134: CN04 LEMON TEA (H) | CL134: 162
A135: =IFERROR(IF(INDIRECT($A$14&ROW())<>"",COUNTIF(Summary!$B$30:$B$1105,INDIRECT($A$14&ROW())),""),"") ->  | CK135: CN05 GRN TEA (H) | CL135: 402
A136: =IFERROR(IF(INDIRECT($A$14&ROW())<>"",COUNTIF(Summary!$B$30:$B$1105,INDIRECT($A$14&ROW())),""),"") ->  | CK136: CN06 HNY GRN TEA (H) | CL136: 670
A137: =IFERROR(IF(INDIRECT($A$14&ROW())<>"",COUNTIF(Summary!$B$30:$B$1105,INDIRECT($A$14&ROW())),""),"") ->  | CK137: CN07 HONEY (H) | CL137: 431
A138: =IFERROR(IF(INDIRECT($A$14&ROW())<>"",COUNTIF(Summary!$B$30:$B$1105,INDIRECT($A$14&ROW())),""),"") ->  | CK138: CN08 LEMON HONEY (H) | CL138: 1761
A139: =IFERROR(IF(INDIRECT($A$14&ROW())<>"",COUNTIF(Summary!$B$30:$B$1105,INDIRECT($A$14&ROW())),""),"") ->  | CK139: CN12 CHAMOMILE (H) | CL139: 127
A140: =IFERROR(IF(INDIRECT($A$14&ROW())<>"",COUNTIF(Summary!$B$30:$B$1105,INDIRECT($A$14&ROW())),""),"") ->  | CK140: CN13 DARJEELING (H) | CL140: 20
A141: =IFERROR(IF(INDIRECT($A$14&ROW())<>"",COUNTIF(Summary!$B$30:$B$1105,INDIRECT($A$14&ROW())),""),"") ->  | CK141: CN14 EARL GREY (H) | CL141: 72
A142: =IFERROR(IF(INDIRECT($A$14&ROW())<>"",COUNTIF(Summary!$B$30:$B$1105,INDIRECT($A$14&ROW())),""),"") ->  | CK142: CO02 PLAIN WATER | CL142: 878
A143: =IFERROR(IF(INDIRECT($A$14&ROW())<>"",COUNTIF(Summary!$B$30:$B$1105,INDIRECT($A$14&ROW())),""),"") ->  | CK143: DB01 1001:BP CKN CP | CL143: 93
A144: =IFERROR(IF(INDIRECT($A$14&ROW())<>"",COUNTIF(Summary!$B$30:$B$1105,INDIRECT($A$14&ROW())),""),"") ->  | CK144: DB02 1002:GVY CHK CP | CL144: 23
A145: =IFERROR(IF(INDIRECT($A$14&ROW())<>"",COUNTIF(Summary!$B$30:$B$1105,INDIRECT($A$14&ROW())),""),"") ->  | CK145: DB03 1003:MSR CKN CP | CL145: 115
A146: =IFERROR(IF(INDIRECT($A$14&ROW())<>"",COUNTIF(Summary!$B$30:$B$1105,INDIRECT($A$14&ROW())),""),"") ->  | CK146: DB04 1004:CKN MARY | CL146: 27
A147: =IFERROR(IF(INDIRECT($A$14&ROW())<>"",COUNTIF(Summary!$B$30:$B$1105,INDIRECT($A$14&ROW())),""),"") ->  | CK147: DB05 1005:FISH&CHIP | CL147: 40
A148: =IFERROR(IF(INDIRECT($A$14&ROW())<>"",COUNTIF(Summary!$B$30:$B$1105,INDIRECT($A$14&ROW())),""),"") ->  | CK148: DB06 1006:SPAGHETTI | CL148: 46
A149: =IFERROR(IF(INDIRECT($A$14&ROW())<>"",COUNTIF(Summary!$B$30:$B$1105,INDIRECT($A$14&ROW())),""),"") ->  | CK149: DB07 1007:CHK SALAD | CL149: 11
A150: =IFERROR(IF(INDIRECT($A$14&ROW())<>"",COUNTIF(Summary!$B$30:$B$1105,INDIRECT($A$14&ROW())),""),"") ->  | CK150: DC01 1101:THAI CHK | CL150: 60
A151: =IFERROR(IF(INDIRECT($A$14&ROW())<>"",COUNTIF(Summary!$B$30:$B$1105,INDIRECT($A$14&ROW())),""),"") ->  | CK151: DC02 1102:MAMITE CHK | CL151: 63
A152: =IFERROR(IF(INDIRECT($A$14&ROW())<>"",COUNTIF(Summary!$B$30:$B$1105,INDIRECT($A$14&ROW())),""),"") ->  | CK152: DC04 1104:S&S CHK | CL152: 31
A153: =IFERROR(IF(INDIRECT($A$14&ROW())<>"",COUNTIF(Summary!$B$30:$B$1105,INDIRECT($A$14&ROW())),""),"") ->  | CK153: DC05 1105:BUTTER CHK | CL153: 130
A154: =IFERROR(IF(INDIRECT($A$14&ROW())<>"",COUNTIF(Summary!$B$30:$B$1105,INDIRECT($A$14&ROW())),""),"") ->  | CK154: DC06 1106:HK F.RICE | CL154: 56
A155: =IFERROR(IF(INDIRECT($A$14&ROW())<>"",COUNTIF(Summary!$B$30:$B$1105,INDIRECT($A$14&ROW())),""),"") ->  | CK155: DC07 1107:SBL F.RICE | CL155: 51
A156: =IFERROR(IF(INDIRECT($A$14&ROW())<>"",COUNTIF(Summary!$B$30:$B$1105,INDIRECT($A$14&ROW())),""),"") ->  | CK156: DC08 1108:SBL F.MEE | CL156: 7
A157: =IFERROR(IF(INDIRECT($A$14&ROW())<>"",COUNTIF(Summary!$B$30:$B$1105,INDIRECT($A$14&ROW())),""),"") ->  | CK157: DC09 1109:BP UDON | CL157: 27
A158: =IFERROR(IF(INDIRECT($A$14&ROW())<>"",COUNTIF(Summary!$B$30:$B$1105,INDIRECT($A$14&ROW())),""),"") ->  | CK158: DC10 1110:NISSIN | CL158: 19
A159: =IFERROR(IF(INDIRECT($A$14&ROW())<>"",COUNTIF(Summary!$B$30:$B$1105,INDIRECT($A$14&ROW())),""),"") ->  | CK159: DC11 1111:VEG RICE | CL159: 7
A160: =IFERROR(IF(INDIRECT($A$14&ROW())<>"",COUNTIF(Summary!$B$30:$B$1105,INDIRECT($A$14&ROW())),""),"") ->  | CK160: DC15 1115:CHK NOODLE | CL160: 22
A161: =IFERROR(IF(INDIRECT($A$14&ROW())<>"",COUNTIF(Summary!$B$30:$B$1105,INDIRECT($A$14&ROW())),""),"") ->  | CK161: DC16 1116:MGL CHICKEN | CL161: 22
A162: =IFERROR(IF(INDIRECT($A$14&ROW())<>"",COUNTIF(Summary!$B$30:$B$1105,INDIRECT($A$14&ROW())),""),"") ->  | CK162: DD02 1202:FREN FRIES | CL162: 80
A163: =IFERROR(IF(INDIRECT($A$14&ROW())<>"",COUNTIF(Summary!$B$30:$B$1105,INDIRECT($A$14&ROW())),""),"") ->  | Q163: ZAC08 1308:C/CALAMARI | R163: 2 | BD163: ZZZZZ UPGRADE TO HEI | BG163: ZAD37 ICE BUCKET | BH163: 12 | BJ163: ZAD21 TAKE AWAY | BK163: 3 | BY163: ZAD36 BEER GLASS | BZ163: 22 | CB163: ZAD17 WITHOUT SUGAR | CC163: 3 | CK163: DD03 1203:GOLD MROOM | CL163: 11
A164: =IFERROR(IF(INDIRECT($A$14&ROW())<>"",COUNTIF(Summary!$B$30:$B$1105,INDIRECT($A$14&ROW())),""),"") ->  | Q164: ZAC10 1310:Mc SPIRAL/F | R164: 5 | BG164: ZZZZZ APPLY MEM | BJ164: ZAD36 BEER GLASS | BK164: 26 | BY164: ZAD37 ICE BUCKET | BZ164: 10 | CB164: ZAD20 JUG | CC164: 8 | CK164: DD04 1204:FISHBALL | CL164: 14
A165: =IFERROR(IF(INDIRECT($A$14&ROW())<>"",COUNTIF(Summary!$B$30:$B$1105,INDIRECT($A$14&ROW())),""),"") ->  | Q165: ZAC11 1311:Mc H/SMILES | R165: 1 | BJ165: ZAD37 ICE BUCKET | BK165: 8 | BY165: ZZZZZ PRICE NOT CHANGE | CB165: ZAD36 BEER GLASS | CC165: 46 | CK165: DD06 1206:SPRING RL | CL165: 17
A166: =IFERROR(IF(INDIRECT($A$14&ROW())<>"",COUNTIF(Summary!$B$30:$B$1105,INDIRECT($A$14&ROW())),""),"") ->  | Q166: ZAC12 1312:Mc HASH/B | R166: 1 | BJ166: ZZZZZ SOLD OUT | CB166: ZAD37 ICE BUCKET | CC166: 14 | CK166: DD07 1207:SAUSAGE | CL166: 17
A167: =IFERROR(IF(INDIRECT($A$14&ROW())<>"",COUNTIF(Summary!$B$30:$B$1105,INDIRECT($A$14&ROW())),""),"") ->  | Q167: ZAD01 COLD | R167: 7 | CB167: ZZZZZ CHANGE REGULAR | CK167: DD11 1302:NUGGET | CL167: 39
A168: =IFERROR(IF(INDIRECT($A$14&ROW())<>"",COUNTIF(Summary!$B$30:$B$1105,INDIRECT($A$14&ROW())),""),"") ->  | Q168: ZAD02 HOT | R168: 7 | CK168: DD12 1303:CHK WING | CL168: 31
A169: =IFERROR(IF(INDIRECT($A$14&ROW())<>"",COUNTIF(Summary!$B$30:$B$1105,INDIRECT($A$14&ROW())),""),"") ->  | Q169: ZAD03 WARM | R169: 25 | CK169: DD13 1304:IKAN BILIS | CL169: 9
A170: =IFERROR(IF(INDIRECT($A$14&ROW())<>"",COUNTIF(Summary!$B$30:$B$1105,INDIRECT($A$14&ROW())),""),"") ->  | Q170: ZAD04 LESS ICE | R170: 58 | CK170: DD14 1305:THAI RL | CL170: 5
A171: =IFERROR(IF(INDIRECT($A$14&ROW())<>"",COUNTIF(Summary!$B$30:$B$1105,INDIRECT($A$14&ROW())),""),"") ->  | Q171: ZAD06 NO ICE | R171: 25 | CK171: DD16 1307:D.F C/WING | CL171: 13
A172: =IFERROR(IF(INDIRECT($A$14&ROW())<>"",COUNTIF(Summary!$B$30:$B$1105,INDIRECT($A$14&ROW())),""),"") ->  | Q172: ZAD07 LESS SWEET | R172: 6 | CK172: DD17 1308 C/CALAMARI | CL172: 11
A173: =IFERROR(IF(INDIRECT($A$14&ROW())<>"",COUNTIF(Summary!$B$30:$B$1105,INDIRECT($A$14&ROW())),""),"") ->  | Q173: ZAD13 ADD LEMON | R173: 2 | CK173: DD18 1309 Mc C/O.RING | CL173: 6
A174: =IFERROR(IF(INDIRECT($A$14&ROW())<>"",COUNTIF(Summary!$B$30:$B$1105,INDIRECT($A$14&ROW())),""),"") ->  | Q174: ZAD20 JUG | R174: 4 | CK174: DD19 1310:Mc SPIRAL/F | CL174: 7
A175: =IFERROR(IF(INDIRECT($A$14&ROW())<>"",COUNTIF(Summary!$B$30:$B$1105,INDIRECT($A$14&ROW())),""),"") ->  | Q175: ZAD21 TAKE AWAY | R175: 4 | CK175: DD21 1312:Mc HASH BRW | CL175: 8
A176: =IFERROR(IF(INDIRECT($A$14&ROW())<>"",COUNTIF(Summary!$B$30:$B$1105,INDIRECT($A$14&ROW())),""),"") ->  | Q176: ZAD36 BEER GLASS | R176: 28 | CK176: DE01 SET 990 | CL176: 178
A177: =IFERROR(IF(INDIRECT($A$14&ROW())<>"",COUNTIF(Summary!$B$30:$B$1105,INDIRECT($A$14&ROW())),""),"") ->  | Q177: ZAD37 ICE BUCKET | R177: 11 | CK177: DE02 SET 1390 | CL177: 134
A178: =IFERROR(IF(INDIRECT($A$14&ROW())<>"",COUNTIF(Summary!$B$30:$B$1105,INDIRECT($A$14&ROW())),""),"") ->  | Q178: ZZZZZ WRONG KEY | CK178: DF01 ADD RICE | CL178: 15
A179: =IFERROR(IF(INDIRECT($A$14&ROW())<>"",COUNTIF(Summary!$B$30:$B$1105,INDIRECT($A$14&ROW())),""),"") ->  | CK179: DF02 ADD F.EGG | CL179: 9
A180: =IFERROR(IF(INDIRECT($A$14&ROW())<>"",COUNTIF(Summary!$B$30:$B$1105,INDIRECT($A$14&ROW())),""),"") ->  | CK180: DF03 ADD SAUCE 1000 | CL180: 15
A181: =IFERROR(IF(INDIRECT($A$14&ROW())<>"",COUNTIF(Summary!$B$30:$B$1105,INDIRECT($A$14&ROW())),""),"") ->  | CK181: DF04 ADD SAUCE BOLO | CL181: 2
A182: =IFERROR(IF(INDIRECT($A$14&ROW())<>"",COUNTIF(Summary!$B$30:$B$1105,INDIRECT($A$14&ROW())),""),"") ->  | CK182: DF05 ADD SAUCE BP | CL182: 5
A183: =IFERROR(IF(INDIRECT($A$14&ROW())<>"",COUNTIF(Summary!$B$30:$B$1105,INDIRECT($A$14&ROW())),""),"") ->  | CK183: DF07 ADD SAUCE C.PADI | CL183: 39
A184: =IFERROR(IF(INDIRECT($A$14&ROW())<>"",COUNTIF(Summary!$B$30:$B$1105,INDIRECT($A$14&ROW())),""),"") ->  | CK184: DF08 ADD SAUCE GS | CL184: 1
A185: =IFERROR(IF(INDIRECT($A$14&ROW())<>"",COUNTIF(Summary!$B$30:$B$1105,INDIRECT($A$14&ROW())),""),"") ->  | CK185: DF09 ADD SAUCE MAYO | CL185: 87
A186: =IFERROR(IF(INDIRECT($A$14&ROW())<>"",COUNTIF(Summary!$B$30:$B$1105,INDIRECT($A$14&ROW())),""),"") ->  | CK186: DF11 ADD SAUCE MR | CL186: 5
A187: =IFERROR(IF(INDIRECT($A$14&ROW())<>"",COUNTIF(Summary!$B$30:$B$1105,INDIRECT($A$14&ROW())),""),"") ->  | CK187: DF12 ADD SAUCE SAMBAL | CL187: 2
A188: =IFERROR(IF(INDIRECT($A$14&ROW())<>"",COUNTIF(Summary!$B$30:$B$1105,INDIRECT($A$14&ROW())),""),"") ->  | CK188: DF13 ADD SAUCE THAI | CL188: 3
A189: =IFERROR(IF(INDIRECT($A$14&ROW())<>"",COUNTIF(Summary!$B$30:$B$1105,INDIRECT($A$14&ROW())),""),"") ->  | CK189: DF14 ADD SAUCE TOMATO | CL189: 95
A190: =IFERROR(IF(INDIRECT($A$14&ROW())<>"",COUNTIF(Summary!$B$30:$B$1105,INDIRECT($A$14&ROW())),""),"") ->  | CK190: DF15 ADD TATA SAUCE | CL190: 17
A191: =IFERROR(IF(INDIRECT($A$14&ROW())<>"",COUNTIF(Summary!$B$30:$B$1105,INDIRECT($A$14&ROW())),""),"") ->  | CK191: DG01 91001:BP CHK CP | CL191: 368
A192: =IFERROR(IF(INDIRECT($A$14&ROW())<>"",COUNTIF(Summary!$B$30:$B$1105,INDIRECT($A$14&ROW())),""),"") ->  | CK192: DG02 91002:GVY CHK CP | CL192: 117
A193: =IFERROR(IF(INDIRECT($A$14&ROW())<>"",COUNTIF(Summary!$B$30:$B$1105,INDIRECT($A$14&ROW())),""),"") ->  | CK193: DG03 91003:MSR CHK CP | CL193: 436
A194: =IFERROR(IF(INDIRECT($A$14&ROW())<>"",COUNTIF(Summary!$B$30:$B$1105,INDIRECT($A$14&ROW())),""),"") ->  | CK194: DG04 91004:CKN MARY | CL194: 203
A195: =IFERROR(IF(INDIRECT($A$14&ROW())<>"",COUNTIF(Summary!$B$30:$B$1105,INDIRECT($A$14&ROW())),""),"") ->  | CK195: DG05 91005:FISH&CHIP | CL195: 246
A196: =IFERROR(IF(INDIRECT($A$14&ROW())<>"",COUNTIF(Summary!$B$30:$B$1105,INDIRECT($A$14&ROW())),""),"") ->  | CK196: DG06 91006:SPAGHETTI | CL196: 160
A197: =IFERROR(IF(INDIRECT($A$14&ROW())<>"",COUNTIF(Summary!$B$30:$B$1105,INDIRECT($A$14&ROW())),""),"") ->  | CK197: DG07 91007:CHK SALAD | CL197: 71
A198: =IFERROR(IF(INDIRECT($A$14&ROW())<>"",COUNTIF(Summary!$B$30:$B$1105,INDIRECT($A$14&ROW())),""),"") ->  | CK198: DH01 91101:THAI CHK | CL198: 64
A199: =IFERROR(IF(INDIRECT($A$14&ROW())<>"",COUNTIF(Summary!$B$30:$B$1105,INDIRECT($A$14&ROW())),""),"") ->  | CK199: DH02 91102:MAMITE CHK | CL199: 114
A200: =IFERROR(IF(INDIRECT($A$14&ROW())<>"",COUNTIF(Summary!$B$30:$B$1105,INDIRECT($A$14&ROW())),""),"") ->  | CK200: DH04 91104:S&S CHK | CL200: 47
A201: =IFERROR(IF(INDIRECT($A$14&ROW())<>"",COUNTIF(Summary!$B$30:$B$1105,INDIRECT($A$14&ROW())),""),"") ->  | CK201: DH05 91105:BUTTER CHK | CL201: 140
A202: =IFERROR(IF(INDIRECT($A$14&ROW())<>"",COUNTIF(Summary!$B$30:$B$1105,INDIRECT($A$14&ROW())),""),"") ->  | CK202: DH06 91106:HK F.RICE | CL202: 105
A203: =IFERROR(IF(INDIRECT($A$14&ROW())<>"",COUNTIF(Summary!$B$30:$B$1105,INDIRECT($A$14&ROW())),""),"") ->  | CK203: DH07 91107:SBL F.RICE | CL203: 52
A204: =IFERROR(IF(INDIRECT($A$14&ROW())<>"",COUNTIF(Summary!$B$30:$B$1105,INDIRECT($A$14&ROW())),""),"") ->  | CK204: DH08 91108:SBL F.MEE | CL204: 11
A205: =IFERROR(IF(INDIRECT($A$14&ROW())<>"",COUNTIF(Summary!$B$30:$B$1105,INDIRECT($A$14&ROW())),""),"") ->  | CK205: DH09 91109:BP UDON | CL205: 49
A206: =IFERROR(IF(INDIRECT($A$14&ROW())<>"",COUNTIF(Summary!$B$30:$B$1105,INDIRECT($A$14&ROW())),""),"") ->  | CK206: DH10 91110:NISSIN | CL206: 34
A207: =IFERROR(IF(INDIRECT($A$14&ROW())<>"",COUNTIF(Summary!$B$30:$B$1105,INDIRECT($A$14&ROW())),""),"") ->  | CK207: DH11 91111:VEG RICE | CL207: 21
A208: =IFERROR(IF(INDIRECT($A$14&ROW())<>"",COUNTIF(Summary!$B$30:$B$1105,INDIRECT($A$14&ROW())),""),"") ->  | CK208: DH15 91115:CHK NOODLE | CL208: 33
A209: =IFERROR(IF(INDIRECT($A$14&ROW())<>"",COUNTIF(Summary!$B$30:$B$1105,INDIRECT($A$14&ROW())),""),"") ->  | CK209: DH16 91116:MGL CHK | CL209: 50
A210: =IFERROR(IF(INDIRECT($A$14&ROW())<>"",COUNTIF(Summary!$B$30:$B$1105,INDIRECT($A$14&ROW())),""),"") ->  | CK210: DI01 91201:SFD STICK | CL210: 3
... 836 more rows

Sheet STOCK ANALYSIS
C3: MONTHLY KITCHEN STOCK SUMMARY
C4: 每月厨房货物总结表
C7: OUTLET KITCHEN | D7: CCS
C8: 分行厨房
C10: YEAR / MONTH | D10: SEPTEMBER 2013
C11: 年/月
B15: ITEM | C15: PRODUCT DESCRIPTION | D15: PRICE | E15: UOM | F15: FOR CCS KITCHEN
B16: 项目 | C16: 食材产品 | D16: 价格 | E16: 单位 | F16: A | G16: B | H16: C | I16: D | J16: E | K16: F | L16: G | M16: H | N16: I | O16: J | P16: K | Q16: L | R16: M | S16: M | T16: N
N17: =C+D+E+F+G | O17: =A+B-H | Q17: =K-J | R17: =L / J | S17: =UP*L | T17: =L / I
F18: OPENING | G18: PURCHASE | H18: USAGE | I18: USAGE | J18: USAGE | K18: CUSTOMER REQUEST / | L18: DISPOSED | M18: USAGE | N18: TOTAL | O18: BOOKING | P18: STOCK | Q18: DIFF. | R18: DIFF. | S18: LOSS/GAIN | T18: STOCK DIFF OVER USAGE
F19: STOCK | H19: IN K LUNCH & K DINNER | I19: IN SIDE ORDER | J19: IN LOK LOK | K19: STAFF MEAL | L19: STOCK | M19: IN LOK LOK | N19: USAGE | O19: INVENTORY | P19: TAKE
F20: 上月存货 | G20: 购买数量 | H20: K LUNCH / DINNER 用量 | I20: 附加菜 用量 | J20: 渌渌 用量 | K20: 顾客请求/员工餐 | L20: 本月抛弃 | M20: 渌渌用量 | N20: 总用量 | O20: 账面存货 | P20: 本月点货 | Q20: 差异 | R20: %差异 | S20: 盈亏 (RM)
A22: MAIN SAUCE 主要酱料
B23: 1 | C23: BLACK PEPPER SAUCE | D23: 3.88 | E23: KG | F23: 3.2 | G23: 38.3 | H23: =SUMIF('SAUCE USAGE'!$J$26:$J$66,C23,'SAUCE USAGE'!$L$26:$L$66)/1000 -> 33.12 | I23: =SUMIF('SAUCE USAGE'!$J$69:$J$109,C23,'SAUCE USAGE'!$L$69:$L$109)/1000 -> 8.37 | J23: =SUMIF('SAUCE USAGE'!$J$110:$J$128,'STOCK ANALYSIS'!C23,'SAUCE USAGE'!$L$110:$L$128)/1000 -> 0.99 | K23: =SUMIF('SAUCE USAGE'!$J$11:$J$24,C23,'SAUCE USAGE'!$L$11:$L$24)/1000 -> 0.4 | N23: =SUM(H23:M23) -> 42.88 | O23: =+F23+G23-N23 -> -1.38 | P23: =SUMIF('CLOSING STOCK'!$B$108:$B$119,'STOCK ANALYSIS'!C23,'CLOSING STOCK'!$L$108:$L$119) -> 3.3 | Q23: =+P23-O23 -> 4.68 | R23: =IF(O23=0,"",Q23/O23) -> -3.391304348 | S23: =+Q23*D23 -> 18.1584 | T23: =+Q23/N23 -> 0.109141791
B24: 2 | C24: BLACK PEPPER SAUCE (UDON) | D24: 3.88 | E24: KG | F24: 1.9 | G24: 4.3 | H24: =SUMIF('SAUCE USAGE'!$J$26:$J$66,C24,'SAUCE USAGE'!$L$26:$L$66)/1000 -> 3.43 | I24: =SUMIF('SAUCE USAGE'!$J$69:$J$109,C24,'SAUCE USAGE'!$L$69:$L$109)/1000 -> 1.89 | J24: =SUMIF('SAUCE USAGE'!$J$110:$J$128,'STOCK ANALYSIS'!C24,'SAUCE USAGE'!$L$110:$L$128)/1000 -> 0.35 | K24: =SUMIF('SAUCE USAGE'!$J$11:$J$24,C24,'SAUCE USAGE'!$L$11:$L$24)/1000 -> 0 | N24: =SUM(H24:M24) -> 5.67 | O24: 0.53 | P24: =SUMIF('CLOSING STOCK'!$B$108:$B$119,'STOCK ANALYSIS'!C24,'CLOSING STOCK'!$L$108:$L$119) -> 1.7 | Q24: =+P24-O24 -> 1.17 | R24: 2.20754717 | S24: =+Q24*D24 -> 4.5396 | T24: =+Q24/N24 -> 0.2063492063
B25: =+B24+1 -> 3 | C25: BOLOGNESE SAUCE | D25: 11.35 | E25: KG | F25: 7.9 | G25: 12 | H25: =SUMIF('SAUCE USAGE'!$J$26:$J$66,C25,'SAUCE USAGE'!$L$26:$L$66)/1000 -> 24 | I25: =SUMIF('SAUCE USAGE'!$J$69:$J$109,C25,'SAUCE USAGE'!$L$69:$L$109)/1000 -> 6.9 | J25: =SUMIF('SAUCE USAGE'!$J$110:$J$128,'STOCK ANALYSIS'!C25,'SAUCE USAGE'!$L$110:$L$128)/1000 -> 0.6 | K25: =SUMIF('SAUCE USAGE'!$J$11:$J$24,C25,'SAUCE USAGE'!$L$11:$L$24)/1000 -> 0.28 | N25: 31.78 | O25: -11.88 | P25: =SUMIF('CLOSING STOCK'!$B$108:$B$119,'STOCK ANALYSIS'!C25,'CLOSING STOCK'!$L$108:$L$119) -> 6.5 | Q25: 18.38 | R25: -1.547138047 | S25: 208.613 | T25: 0.5783511643
B26: =+B25+1 -> 4 | C26: BUTTER CREAM SAUCE | D26: 5.9 | E26: KG | F26: 0.5 | G26: 16.812 | H26: =SUMIF('SAUCE USAGE'!$J$26:$J$66,C26,'SAUCE USAGE'!$L$26:$L$66)/1000 -> 10.5 | I26: =SUMIF('SAUCE USAGE'!$J$69:$J$109,C26,'SAUCE USAGE'!$L$69:$L$109)/1000 -> 9.75 | J26: =SUMIF('SAUCE USAGE'!$J$110:$J$128,'STOCK ANALYSIS'!C26,'SAUCE USAGE'!$L$110:$L$128)/1000 -> 0.45 | K26: =SUMIF('SAUCE USAGE'!$J$11:$J$24,C26,'SAUCE USAGE'!$L$11:$L$24)/1000 -> 0 | N26: 20.7 | O26: -3.388 | P26: =SUMIF('CLOSING STOCK'!$B$108:$B$119,'STOCK ANALYSIS'!C26,'CLOSING STOCK'!$L$108:$L$119) -> 0.2 | Q26: =+P26-O26 -> 3.588 | R26: =IF(O26=0,"",Q26/O26) -> -1.059031877 | S26: 21.1692 | T26: =+Q26/N26 -> 0.1733333333
B27: 5 | C27: GRAVY SAUCE | D27: 3.3 | E27: KG | F27: 1.8 | G27: 12.6 | H27: =SUMIF('SAUCE USAGE'!$J$26:$J$66,C27,'SAUCE USAGE'!$L$26:$L$66)/1000 -> 10.53 | I27: =SUMIF('SAUCE USAGE'!$J$69:$J$109,C27,'SAUCE USAGE'!$L$69:$L$109)/1000 -> 2.07 | J27: =SUMIF('SAUCE USAGE'!$J$110:$J$128,'STOCK ANALYSIS'!C27,'SAUCE USAGE'!$L$110:$L$128)/1000 -> 0.99 | K27: =SUMIF('SAUCE USAGE'!$J$11:$J$24,C27,'SAUCE USAGE'!$L$11:$L$24)/1000 -> 0.08 | N27: 13.67 | O27: 0.73 | P27: =SUMIF('CLOSING STOCK'!$B$108:$B$119,'STOCK ANALYSIS'!C27,'CLOSING STOCK'!$L$108:$L$119) -> 2.5 | Q27: 1.77 | R27: 2.424657534 | S27: 5.841 | T27: 0.1294806145
B28: 6 | C28: MARMITE SAUCE | D28: 2 | E28: KG | F28: 4.5 | G28: 16.2 | H28: =SUMIF('SAUCE USAGE'!$J$26:$J$66,C28,'SAUCE USAGE'!$L$26:$L$66)/1000 -> 9.12 | I28: =SUMIF('SAUCE USAGE'!$J$69:$J$109,C28,'SAUCE USAGE'!$L$69:$L$109)/1000 -> 5.04 | J28: =SUMIF('SAUCE USAGE'!$J$110:$J$128,'STOCK ANALYSIS'!C28,'SAUCE USAGE'!$L$110:$L$128)/1000 -> 0.32 | K28: =SUMIF('SAUCE USAGE'!$J$11:$J$24,C28,'SAUCE USAGE'!$L$11:$L$24)/1000 -> 0 | N28: 14.48 | O28: 6.22 | P28: =SUMIF('CLOSING STOCK'!$B$108:$B$119,'STOCK ANALYSIS'!C28,'CLOSING STOCK'!$L$108:$L$119) -> 4.4 | Q28: -1.82 | R28: -0.2926045016 | S28: -3.64 | T28: -0.1256906077
B29: 7 | C29: MUSHROOM SAUCE | D29: 6.78 | E29: KG | F29: 3.4 | G29: 43.8 | H29: =SUMIF('SAUCE USAGE'!$J$26:$J$66,C29,'SAUCE USAGE'!$L$26:$L$66)/1000 -> 39.24 | I29: =SUMIF('SAUCE USAGE'!$J$69:$J$109,C29,'SAUCE USAGE'!$L$69:$L$109)/1000 -> 10.35 | J29: =SUMIF('SAUCE USAGE'!$J$110:$J$128,'STOCK ANALYSIS'!C29,'SAUCE USAGE'!$L$110:$L$128)/1000 -> 0.27 | K29: =SUMIF('SAUCE USAGE'!$J$11:$J$24,C29,'SAUCE USAGE'!$L$11:$L$24)/1000 -> 0.4 | N29: 50.26 | O29: -3.06 | P29: =SUMIF('CLOSING STOCK'!$B$108:$B$119,'STOCK ANALYSIS'!C29,'CLOSING STOCK'!$L$108:$L$119) -> 3.3 | Q29: 6.36 | R29: -2.078431373 | S29: 43.1208 | T29: 0.1265419817
B30: 8 | C30: SAMBAL (FRIED)SAUCE | D30: 9.07 | E30: KG | F30: 9.2 | G30: 7.9 | H30: =SUMIF('SAUCE USAGE'!$J$26:$J$66,C30,'SAUCE USAGE'!$L$26:$L$66)/1000 -> 3.66 | I30: =SUMIF('SAUCE USAGE'!$J$69:$J$109,C30,'SAUCE USAGE'!$L$69:$L$109)/1000 -> 3.51 | J30: =SUMIF('SAUCE USAGE'!$J$110:$J$128,'STOCK ANALYSIS'!C30,'SAUCE USAGE'!$L$110:$L$128)/1000 -> 0 | K30: =SUMIF('SAUCE USAGE'!$J$11:$J$24,C30,'SAUCE USAGE'!$L$11:$L$24)/1000 -> 0 | N30: 7.17 | O30: 9.93 | P30: =SUMIF('CLOSING STOCK'!$B$108:$B$119,'STOCK ANALYSIS'!C30,'CLOSING STOCK'!$L$108:$L$119) -> 0 | Q30: -9.93 | R30: -1 | S30: -90.0651 | T30: -1.384937238
B31: =+B30+1 -> 9 | C31: SWEET & SOUR SAUCE | D31: 1.88 | E31: KG | F31: 5.2 | G31: 12.6 | H31: =SUMIF('SAUCE USAGE'!$J$26:$J$66,C31,'SAUCE USAGE'!$L$26:$L$66)/1000 -> 9.4 | I31: =SUMIF('SAUCE USAGE'!$J$69:$J$109,C31,'SAUCE USAGE'!$L$69:$L$109)/1000 -> 6.2 | J31: =SUMIF('SAUCE USAGE'!$J$110:$J$128,'STOCK ANALYSIS'!C31,'SAUCE USAGE'!$L$110:$L$128)/1000 -> 2.6 | K31: =SUMIF('SAUCE USAGE'!$J$11:$J$24,C31,'SAUCE USAGE'!$L$11:$L$24)/1000 -> 0 | N31: 18.2 | O31: -0.4 | P31: =SUMIF('CLOSING STOCK'!$B$108:$B$119,'STOCK ANALYSIS'!C31,'CLOSING STOCK'!$L$108:$L$119) -> 2.2 | Q31: 2.6 | R31: -6.5 | S31: 4.888 | T31: 0.1428571429
B32: GRAND TOTAL | S32: =SUM(S23:S31) -> 212.6249
A34: MAIN COURSE MATERIAL 主餐食材
B35: 1 | C35: CHICKEN CHOP (MARINATED) | D35: 3.34 | E35: PCS | F35: 374 | G35: 2051 | H35: =SUMIF('K-LUNCH & K DINNER'!$H$10:$H$55,C35,'K-LUNCH & K DINNER'!$J$10:$J$55) -> 1501.9 | I35: =SUMIF('SIDE ORDER & FOC'!$Q$11:$Q$204,C35,'SIDE ORDER & FOC'!$S$11:$S$204) -> 492.96 | J35: =SUMIF('LOK LOK '!$R$11:$R$30,C35,'LOK LOK '!$T$11:$T$30) -> 52.76 | K35: 15 | N35: =SUM(H35:M35) -> 2062.62 | O35: =+F35+G35-N35 -> 362.38 | P35: =SUMIF('CLOSING STOCK'!$B$12:$B$18,'STOCK ANALYSIS'!C35,'CLOSING STOCK'!$L$12:$L$19) -> 357 | Q35: =+P35-O35 -> -5.38 | R35: =IF(O35=0,"",Q35/O35) -> -0.01484629395 | S35: =+Q35*D35 -> -17.9692 | T35: -0.002608333091
B37: 2 | C37: CHICKEN WING (MARINATED) | D37: 1.17 | E37: PCS | F37: 33 | G37: 419 | H37: =SUMIF('K-LUNCH & K DINNER'!$H$10:$H$55,C37,'K-LUNCH & K DINNER'!$J$10:$J$55) -> 252 | I37: =SUMIF('SIDE ORDER & FOC'!$Q$11:$Q$204,C37,'SIDE ORDER & FOC'!$S$11:$S$204) -> 450 | J37: =SUMIF('LOK LOK '!$R$12:$R$128,C37,'LOK LOK '!$T$11:$T$128) -> 0 | N37: =SUM(H37:M37) -> 702 | O37: =+F37+G37-N37 -> -250 | P37: =SUMIF('CLOSING STOCK'!$B$12:$B$18,'STOCK ANALYSIS'!C37,'CLOSING STOCK'!$L$12:$L$19) -> 9 | Q37: =+P37-O37 -> 259 | R37: -1.036
B38: 3 | C38: CHICKEN WINGS (NON -MARINATED) | D38: 1.17 | E38: PCS | F38: 26 | G38: 311 | H38: =SUMIF('K-LUNCH & K DINNER'!$H$10:$H$55,C38,'K-LUNCH & K DINNER'!$J$10:$J$55) -> 0 | I38: =SUMIF('SIDE ORDER & FOC'!$Q$11:$Q$204,C38,'SIDE ORDER & FOC'!$S$11:$S$204) -> 0 | J38: =SUMIF('LOK LOK '!$R$12:$R$128,C38,'LOK LOK '!$T$11:$T$128) -> 0 | L38: 3 | N38: =SUM(H38:M38) -> 3 | O38: =+F38+G38-N38 -> 334 | P38: =SUMIF('CLOSING STOCK'!$B$12:$B$18,'STOCK ANALYSIS'!C38,'CLOSING STOCK'!$L$12:$L$19) -> 24 | Q38: -310 | R38: -0.9281437126
C39: CHICKEN WINGS -TOTAL | D39: 1.17 | E39: PCS | F39: =SUM(F37:F38) -> 59 | G39: =SUM(G37:G38) -> 730 | H39: =SUM(H37:H38) -> 252 | I39: =SUM(I37:I38) -> 450 | J39: =SUM(J37:J38) -> 0 | K39: 0 | L39: =SUM(L37:L38) -> 3 | N39: =SUM(N37:N38) -> 705 | O39: 84 | P39: 33 | Q39: -51 | R39: -1.964143713 | S39: =+Q39*D39 -> -59.67 | T39: -0.07234042553
B41: 4 | C41: DORY FISH FILLET | D41: 2.49 | E41: PCS | F41: 18 | G41: 359 | H41: =SUMIF('K-LUNCH & K DINNER'!$H$10:$H$55,C41,'K-LUNCH & K DINNER'!$J$10:$J$55) -> 246 | I41: =SUMIF('SIDE ORDER & FOC'!$Q$11:$Q$204,C41,'SIDE ORDER & FOC'!$S$11:$S$204) -> 40 | J41: =SUMIF('LOK LOK '!$R$12:$R$128,C41,'LOK LOK '!$T$11:$T$128) -> 3 | K41: 16 | N41: =SUM(H41:M41) -> 305 | O41: =+F41+G41-N41 -> 72 | P41: =SUMIF('CLOSING STOCK'!$B$12:$B$20,'STOCK ANALYSIS'!C41,'CLOSING STOCK'!$L$12:$L$20) -> 55 | Q41: =+P41-O41 -> -17 | R41: -0.2361111111 | S41: -42.33 | T41: -0.05573770492
B43: GRAND TOTAL | S43: =SUM(S35:S42) -> -119.9692
A45: SNACKS MATERIAL 小吃食材
B46: 5 | C46: MCCAIN ONION RING | D46: 0.17 | E46: PCS | F46: 565 | G46: 480 | H46: =SUMIF('K-LUNCH & K DINNER'!$H$10:$H$55,C46,'K-LUNCH & K DINNER'!$J$10:$J$55) -> 80 | I46: =SUMIF('SIDE ORDER & FOC'!$Q$11:$Q$204,C46,'SIDE ORDER & FOC'!$S$11:$S$204) -> 240 | N46: =SUM(H46:M46) -> 320 | O46: =+F46+G46-N46 -> 725 | P46: =SUMIF('CLOSING STOCK'!$B$12:$B$49,'STOCK ANALYSIS'!C46,'CLOSING STOCK'!$L$12:$L$49) -> 761 | Q46: 36 | R46: =IF(O46=0,"",Q46/O46) -> 0.04965517241 | S46: =+Q46*D46 -> 6.12 | T46: 0.1125
B47: 6 | C47: MCCAIN SMILES | D47: 0.12 | E47: PCS | F47: 603 | G47: 630 | H47: =SUMIF('K-LUNCH & K DINNER'!$H$10:$H$55,C47,'K-LUNCH & K DINNER'!$J$10:$J$55) -> 24 | I47: =SUMIF('SIDE ORDER & FOC'!$Q$11:$Q$204,C47,'SIDE ORDER & FOC'!$S$11:$S$204) -> 118 | N47: 142 | O47: =+F47+G47-N47 -> 1091 | P47: =SUMIF('CLOSING STOCK'!$B$12:$B$49,'STOCK ANALYSIS'!C47,'CLOSING STOCK'!$L$12:$L$49) -> 972 | Q47: -119 | R47: -0.1090742438 | S47: =+Q47*D47 -> -14.28 | T47: -0.838028169
B48: 7 | C48: MCCAIN VERSITOT | D48: 0.06 | E48: PCS | F48: 565 | G48: 1320 | H48: =SUMIF('K-LUNCH & K DINNER'!$H$10:$H$55,C48,'K-LUNCH & K DINNER'!$J$10:$J$55) -> 150 | I48: =SUMIF('SIDE ORDER & FOC'!$Q$11:$Q$204,C48,'SIDE ORDER & FOC'!$S$11:$S$204) -> 554 | N48: 704 | O48: =+F48+G48-N48 -> 1181 | P48: =SUMIF('CLOSING STOCK'!$B$12:$B$49,'STOCK ANALYSIS'!C48,'CLOSING STOCK'!$L$12:$L$49) -> 1178 | Q48: -3 | R48: -0.002540220152 | S48: -0.18 | T48: -0.004261363636
B49: =+B48+1 -> 8 | C49: MCCAIN SPIRAL FRIES | D49: 7.87 | E49: KG | F49: 5.6 | G49: 10.8 | H49: =SUMIF('K-LUNCH & K DINNER'!$H$10:$H$55,C49,'K-LUNCH & K DINNER'!$J$10:$J$55) -> 1.1 | I49: =SUMIF('SIDE ORDER & FOC'!$Q$11:$Q$204,C49,'SIDE ORDER & FOC'!$S$11:$S$204) -> 7.18 | N49: 8.28 | O49: -1.56 | P49: =SUMIF('CLOSING STOCK'!$B$12:$B$49,'STOCK ANALYSIS'!C49,'CLOSING STOCK'!$L$12:$L$49) -> 6.24 | Q49: 7.8 | R49: -5 | S49: 61.386 | T49: 0.9420289855
B50: =+B49+1 -> 9 | C50: CALAMARI RING | D50: 0.47 | E50: PCS | F50: 72 | G50: 375 | H50: =SUMIF('K-LUNCH & K DINNER'!$H$10:$H$55,C50,'K-LUNCH & K DINNER'!$J$10:$J$55) -> 84 | I50: =SUMIF('SIDE ORDER & FOC'!$Q$11:$Q$204,C50,'SIDE ORDER & FOC'!$S$11:$S$204) -> 231 | N50: 315 | O50: =+F50+G50-N50 -> 132 | P50: =SUMIF('CLOSING STOCK'!$B$12:$B$49,'STOCK ANALYSIS'!C50,'CLOSING STOCK'!$L$12:$L$49) -> 67 | Q50: =+P50-O50 -> -65 | R50: =IF(O50=0,"",Q50/O50) -> -0.4924242424 | S50: -30.55 | T50: -0.2063492063
B51: 10 | C51: CHICKEN NUGGET | D51: 0.26 | E51: PCS | F51: 384 | G51: 936 | H51: =SUMIF('K-LUNCH & K DINNER'!$H$10:$H$55,C51,'K-LUNCH & K DINNER'!$J$10:$J$55) -> 248 | I51: =SUMIF('SIDE ORDER & FOC'!$Q$11:$Q$204,C51,'SIDE ORDER & FOC'!$S$11:$S$204) -> 856 | N51: 1104 | O51: 216 | P51: =SUMIF('CLOSING STOCK'!$B$12:$B$49,'STOCK ANALYSIS'!C51,'CLOSING STOCK'!$L$12:$L$49) -> 223 | Q51: 7 | R51: 0.03240740741 | S51: 1.82 | T51: 0.00634057971
B52: 11 | C52: CHICKEN SAUSAGE | D52: 0.23 | E52: PCS | F52: 229 | G52: 600 | H52: =SUMIF('K-LUNCH & K DINNER'!$H$10:$H$55,C52,'K-LUNCH & K DINNER'!$J$10:$J$55) -> 111 | I52: =SUMIF('SIDE ORDER & FOC'!$Q$11:$Q$204,C52,'SIDE ORDER & FOC'!$S$11:$S$204) -> 412.5 | K52: 24 | N52: =SUM(H52:M52) -> 547.5 | O52: 281.5 | P52: =SUMIF('CLOSING STOCK'!$B$12:$B$49,'STOCK ANALYSIS'!C52,'CLOSING STOCK'!$L$12:$L$49) -> 244 | Q52: -37.5 | R52: -0.1332149201 | S52: -8.625 | T52: -0.06849315068
B53: 12 | C53: FISH BALL (BIG) | D53: 0.24 | E53: PCS | F53: 100 | G53: 240 | H53: =SUMIF('K-LUNCH & K DINNER'!$H$10:$H$55,C53,'K-LUNCH & K DINNER'!$J$10:$J$55) -> 36 | I53: =SUMIF('SIDE ORDER & FOC'!$Q$11:$Q$204,C53,'SIDE ORDER & FOC'!$S$11:$S$204) -> 222 | J53: =44*3 -> 132 | N53: =SUM(H53:M53) -> 390 | O53: -50 | P53: =SUMIF('CLOSING STOCK'!$B$12:$B$49,'STOCK ANALYSIS'!C53,'CLOSING STOCK'!$L$12:$L$49) -> 43 | Q53: 93 | R53: -1.86 | S53: 22.32 | T53: 0.2384615385
B54: 13 | C54: SALMON BALL | D54: 0.27 | E54: PCS | F54: 41 | G54: 90 | H54: =SUMIF('K-LUNCH & K DINNER'!$H$10:$H$55,C54,'K-LUNCH & K DINNER'!$J$10:$J$55) -> 6 | I54: =SUMIF('SIDE ORDER & FOC'!$Q$11:$Q$204,C54,'SIDE ORDER & FOC'!$S$11:$S$204) -> 22 | J54: =31*3 -> 93 | N54: =SUM(H54:M54) -> 121 | O54: 10 | P54: =SUMIF('CLOSING STOCK'!$B$12:$B$49,'STOCK ANALYSIS'!C54,'CLOSING STOCK'!$L$12:$L$49) -> 66 | Q54: 56 | R54: 5.6 | S54: 15.12 | T54: 0.4628099174
B55: 14 | C55: SEAFOOD TOFU | D55: 0.33 | E55: PCS | F55: 41 | G55: 165 | H55: =SUMIF('K-LUNCH & K DINNER'!$H$10:$H$55,C55,'K-LUNCH & K DINNER'!$J$10:$J$55) -> 6 | I55: =SUMIF('SIDE ORDER & FOC'!$Q$11:$Q$204,C55,'SIDE ORDER & FOC'!$S$11:$S$204) -> 22 | J55: =56*3 -> 168 | N55: 196 | O55: 10 | P55: 69 | Q55: 59 | R55: 5.9 | S55: 19.47 | T55: 0.3010204082
B56: 15 | C56: SOTONG BALL | D56: 0.17 | E56: PCS | F56: 102 | G56: 0 | H56: =SUMIF('K-LUNCH & K DINNER'!$H$10:$H$55,C56,'K-LUNCH & K DINNER'!$J$10:$J$55) -> 6 | I56: =SUMIF('SIDE ORDER & FOC'!$Q$11:$Q$204,C56,'SIDE ORDER & FOC'!$S$11:$S$204) -> 22 | N56: 28 | O56: 74 | P56: =SUMIF('CLOSING STOCK'!$B$12:$B$49,'STOCK ANALYSIS'!C56,'CLOSING STOCK'!$L$12:$L$49) -> 48 | Q56: -26 | R56: -0.3513513514 | S56: -4.42 | T56: -0.9285714286
B57: 16 | C57: SPRING ROLL | D57: 0.27 | E57: PCS | F57: 177 | G57: 520 | H57: =SUMIF('K-LUNCH & K DINNER'!$H$10:$H$55,C57,'K-LUNCH & K DINNER'!$J$10:$J$55) -> 24 | I57: =SUMIF('SIDE ORDER & FOC'!$Q$11:$Q$204,C57,'SIDE ORDER & FOC'!$S$11:$S$204) -> 504 | J57: =49*2 -> 98 | N57: 626 | O57: 71 | P57: =SUMIF('CLOSING STOCK'!$B$12:$B$49,'STOCK ANALYSIS'!C57,'CLOSING STOCK'!$L$12:$L$49) -> 92 | Q57: 21 | R57: 0.2957746479 | S57: 5.67 | T57: 0.03354632588
B58: 17 | C58: THAI ROLL | D58: 0.45 | E58: PCS | F58: 197 | G58: 105 | H58: =SUMIF('K-LUNCH & K DINNER'!$H$10:$H$55,C58,'K-LUNCH & K DINNER'!$J$10:$J$55) -> 21 | I58: =SUMIF('SIDE ORDER & FOC'!$Q$11:$Q$204,C58,'SIDE ORDER & FOC'!$S$11:$S$204) -> 84 | J58: =31*2 -> 62 | N58: 167 | O58: 135 | P58: =SUMIF('CLOSING STOCK'!$B$12:$B$49,'STOCK ANALYSIS'!C58,'CLOSING STOCK'!$L$12:$L$49) -> 173 | Q58: 38 | R58: 0.2814814815 | S58: 17.1 | T58: 0.2275449102
B59: 18 | C59: 6" PIZZA BASE | D59: 1.25 | E59: PCS | F59: 0 | G59: 0 | H59: =SUMIF('K-LUNCH & K DINNER'!$H$10:$H$55,C59,'K-LUNCH & K DINNER'!$J$10:$J$55) -> 0 | I59: =SUMIF('SIDE ORDER & FOC'!$Q$11:$Q$204,C59,'SIDE ORDER & FOC'!$S$11:$S$204) -> 0 | N59: 0 | O59: 0 | P59: =SUMIF('CLOSING STOCK'!$B$30:$B$32,'STOCK ANALYSIS'!C59,'CLOSING STOCK'!$L$30:$L$31) -> 0 | Q59: =+P59-O59 -> 0 | S59: 0 | T59: 0
B60: 19 | C60: 9" PIZZA BASE | D60: 2.3 | E60: PCS | F60: 0 | G60: 0 | H60: =SUMIF('K-LUNCH & K DINNER'!$H$10:$H$55,C60,'K-LUNCH & K DINNER'!$J$10:$J$55) -> 0 | I60: =SUMIF('SIDE ORDER & FOC'!$Q$11:$Q$204,C60,'SIDE ORDER & FOC'!$S$11:$S$204) -> 0 | N60: 0 | O60: 0 | P60: =SUMIF('CLOSING STOCK'!$B$30:$B$32,'STOCK ANALYSIS'!C60,'CLOSING STOCK'!$L$30:$L$31) -> 0 | Q60: 0 | S60: 0 | T60: 0
B62: GRAND TOTAL | S62: =SUM(S46:S61) -> 90.951
C64: ** CLOSING STOCK FOR SNACK FOOD ( NO.12.13.14.16 AND 17 ) EXCLUDE STOCK WHICH KEPT AT LOK LOK BAR
C65: ** THE PURCHASE QUANTITY OF SNACK FOOD ( NO .12.13.14.16. AND 17 ) HAVE INCLUDED LOK LOK , THEREFORE , WE SHOULD DEDUCT THE QUANTITY WHICH IS TRANSFERRED FOR LOK LOK PRODUCTION
B72: COMPARISON OF TOTAL LOSSES | J72: COMPARISON OF ACTUAL USAGE
B73: NO | C73: CATEGORIES | F73: AUG | G73: SEPT | H73: DIFF | J73: NO | P73: AUG | Q73: SEPT | R73: DIFF
F74: PCS | G74: PCS | H74: % | P74: PCS | Q74: PCS | R74: %
B75: 1 | C75: MAIN SAUCE 主要酱料 | F75: 517.2708 | G75: =+S32 -> 212.6249 | H75: =(+G75-F75)/F75 -> -0.5889485739 | J75: 1 | K75: =+C35 -> CHICKEN CHOP (MARINATED) | P75: 2492.2 | Q75: =+N35 -> 2062.62 | R75: =(+Q75-P75)/P75 -> -0.1723697938
B76: 2 | C76: MAIN COURSE MATERIAL 主餐食材 | F76: -99.372 | G76: =+S43 -> -119.9692 | H76: 0.2072736787 | J76: 2 | K76: =+C39 -> CHICKEN WINGS -TOTAL | P76: 722 | Q76: =+N39 -> 705 | R76: =(+Q76-P76)/P76 -> -0.02354570637
B77: 3 | C77: SNACKS MATERIAL 小吃食材 | F77: 7.8692 | G77: =+S62 -> 90.951 | H77: 10.55784578 | J77: 3 | K77: =+C41 -> DORY FISH FILLET | P77: 336 | Q77: =+N41 -> 305 | R77: -0.09226190476
J78: 4 | K78: =+C46 -> MCCAIN ONION RING | P78: 536 | Q78: =+N46 -> 320 | R78: -0.4029850746
B79: GRAND TOTAL | F79: =SUM(F75:F78) -> 425.768 | G79: =SUM(G75:G78) -> 183.6067 | J79: 5 | K79: =+C47 -> MCCAIN SMILES | P79: 336 | Q79: 142 | R79: -0.5773809524
J80: 6 | K80: MCCAIN VERSITOT | P80: 903 | Q80: 704 | R80: -0.2203765227
J81: 7 | K81: MCCAIN SPIRAL FRIES | P81: 1.56 | Q81: 8.28 | R81: 4.307692308
B82: COMPARISON OF ACTUAL USAGE (SAUCE) | J82: 8 | K82: CALAMARI RING | P82: 364 | Q82: 315 | R82: -0.1346153846
J83: 9 | K83: CHICKEN NUGGET | P83: 1120 | Q83: 1104 | R83: -0.01428571429
B84: NO | C84: CATEGORIES | F84: AUG | G84: SEPT | H84: DIFF | J84: 10 | K84: CHICKEN SAUSAGE | P84: 680 | Q84: 547.5 | R84: -0.1948529412
F85: KG | G85: KG | H85: % | J85: 11 | K85: FISH BALL (BIG) | P85: 348 | Q85: 390 | R85: 0.1206896552
B86: 1 | C86: =+C23 -> BLACK PEPPER SAUCE | F86: 54.89 | G86: =+N23 -> 42.88 | H86: =(+G86-F86)/F86 -> -0.2188012388 | J86: =+J85+1 -> 12 | K86: =+C54 -> SALMON BALL | P86: 56 | Q86: 121 | R86: 1.160714286
B87: 2 | C87: =+C24 -> BLACK PEPPER SAUCE (UDON) | F87: 6.51 | G87: =+N24 -> 5.67 | H87: -0.1290322581 | J87: =+J86+1 -> 13 | K87: =+C55 -> SEAFOOD TOFU | P87: 56 | Q87: 196 | R87: 2.5
B88: 3 | C88: =+C25 -> BOLOGNESE SAUCE | F88: 43.49 | G88: =+N25 -> 31.78 | H88: -0.2692573005 | J88: 14 | K88: SOTONG BALL | P88: 56 | Q88: 28 | R88: -0.5
B89: =+B88+1 -> 4 | C89: =+C27 -> GRAVY SAUCE | F89: 13.5 | G89: =+N27 -> 13.67 | H89: =(+G89-F89)/F89 -> 0.01259259259 | J89: 15 | K89: SPRING ROLL | P89: 512 | Q89: 626 | R89: 0.22265625
B90: =+B89+1 -> 5 | C90: MARMITE SAUCE | F90: 18.15 | G90: 14.48 | H90: -0.2022038567 | J90: 16 | K90: THAI ROLL | P90: 189 | Q90: 167 | R90: -0.1164021164
B91: 6 | C91: MUSHROOM SAUCE | F91: 57.83 | G91: 50.26 | H91: -0.1309009165 | J91: 17 | K91: 6" PIZZA BASE | P91: 18 | Q91: 0 | R91: 0
B92: 7 | C92: SAMBAL (FRIED)SAUCE | F92: 7.47 | G92: 7.17 | H92: -0.04016064257 | J92: 18 | K92: 9" PIZZA BASE | P92: 0 | Q92: 0 | R92: 0
B93: 8 | C93: SWEET & SOUR SAUCE | F93: 17.2 | G93: 18.2 | H93: 0.05813953488

Sheet CLOSING STOCK
B1: LOUDSPEAKER KARAOKE
B2: MONTHLY KITCHEN STOCK TAKE
B4: OUTLET : CCS KITCHEN
B5: DATE : 01.10.2013 (CLOSING STOCK VALUE FOR SEPT)
A7: Price Changed
B9: ITEMS 物品 | C9: 中文 | D9: Packing 包装 | E9: U/P | F9: (WHOLE PACK.) | H9: CONVERT | J9: (PARTIAL PACK) | L9: TOTAL | N9: TOTAL | O9: 完整包装 | Q9: 部分包装
E10: RM | F10: Qty | G10: UOM | H10: =+F10 -> Qty | I10: =+G10 -> UOM | J10: QTY | K10: UOM | L10: QTY | M10: UOM | N10: RM | O10: Qty | P10: UOM | Q10: Qty | R10: UOM
A11: FROZEN FOOD 冷冻食品
A12: (A ) MEAT 肉类 | B12: CHICKEN CHOP (MARINATED) | C12: 鸡扒 | D12: 1 PKT * 10 PCS | E12: 3.34 | G12: PKT | H12: 10 | I12: PCS | J12: 357 | K12: PCS | L12: =+J12+(H12*F12) -> 357 | M12: PCS | N12: =+L12*E12 -> 1192.38 | P12: 包 | R12: 片
B13: CHICKEN CHOP ( ORIGINAL) | C13: 鸡扒(未加工） | D13: 1 PKT * 1 KG | E13: 11.8 | G13: PKT | H13: 1 | I13: KG | J13: 50 | K13: KG | L13: 50 | M13: KG | N13: 590 | P13: 包 | R13: 片
B14: WHOLE CHICKEN | C14: 全鸡 | D14: 1 PKT * 1 KG | E14: 8.4 | G14: KG | H14: 1 | I14: KG | J14: 12.3 | K14: KG | L14: 12.3 | M14: KG | N14: 103.32 | P14: 公斤 | R14: 公斤
B15: CHICKEN WING (MARINATED) | C15: 腌制鸡翅膀 | D15: 1PKT*21 PCS | E15: 1.17 | G15: PKT | H15: 21 | I15: PCS | J15: 9 | K15: PCS | L15: 9 | M15: PCS | N15: 10.53 | P15: 包 | R15: 片
B16: CHICKEN WINGS (NON -MARINATED) | C16: 未腌制鸡翅膀 | D16: PER PCS | E16: 1.17 | G16: PKT | H16: 1 | I16: KG | J16: 24 | K16: PCS | L16: =+J16+(H16*F16) -> 24 | M16: PCS | N16: =+L16*E16 -> 28.08
B17: CHICKEN WING | C17: 未腌制鸡翅膀 | D17: PER KG | E17: 9.7 | G17: KG | H17: 1 | I17: KG | K17: KG | L17: 0 | M17: KG | N17: 0 | P17: 公斤
B18: MINCED CHICKEN | C18: 鸡肉碎 | D18: 1PKT * 1 KG | E18: 12.5 | G18: PKT | H18: 1 | I18: =+G18 -> PKT | K18: PKT | L18: 0 | M18: PKT | N18: 0 | P18: 包
A20: (B ) SEAFOOD 海鲜类 | B20: DORY FISH FILLET | C20: 多利鱼 | D20: 1 PKT*16PCS | E20: 2.49 | G20: PKT | H20: 16 | I20: PCS | J20: 55 | K20: PCS | L20: =+J20+(H20*F20) -> 55 | M20: =+K20 -> PCS | N20: =+L20*E20 -> 136.95 | P20: 包 | R20: 片
B21: DORRY FISH FILLET | C21: 多利鱼 | D21: 1CTN *6PCS | E21: 56 | F21: 4 | G21: CTN | H21: 1 | I21: CTN | K21: KG | L21: =+J21+(H21*F21) -> 4 | M21: CTN | N21: =+L21*E21 -> 224 | P21: 箱 | R21: 片
B22: TAIL PRAWN 41/50 | C22: 有尾虾 | D22: 1PKT*1KG*45PCS | E22: =24.5/45 -> 0.5444444444 | F22: 4 | G22: PKT | H22: 45 | I22: PCS | J22: 17 | K22: PCS | L22: =+J22+(H22*F22) -> 197 | M22: =+K22 -> PCS | N22: =+L22*E22 -> 107.2555556 | P22: 包 | R22: 只
A24: (C ) MC Cain 产品 | B24: MCCAIN ONION RING | C24: 洋葱圈 | D24: 1CTN*8PKT*60 PCS * 907 GM | E24: 0.17 | F24: 12 | G24: PKT | H24: 60 | I24: PCS | J24: 41 | K24: PCS | L24: =+J24+(H24*F24) -> 761 | M24: PCS | N24: =+L24*E24 -> 129.37 | P24: 包 | R24: 粒
B25: MCCAIN SMILES | C25: 笑脸 | D25: 1CTN*6PKT*105 PCS * 1.8 KG | E25: 0.13 | F25: 8 | G25: PKT | H25: 105 | I25: PCS | J25: 132 | K25: PCS | L25: =+J25+(H25*F25) -> 972 | M25: =+I25 -> PCS | N25: =+L25*E25 -> 126.36 | P25: 包 | R25: 粒
B26: MCCAIN VERSITOT | C26: 粒粒 | D26: 1CTN*6PKT*220 PCS * 2.27 KG | E26: 0.06363636364 | F26: 5 | G26: PKT | H26: 220 | I26: PCS | J26: 78 | K26: PCS | L26: 1178 | M26: =+I26 -> PCS | N26: =+L26*E26 -> 74.96363636 | P26: 包 | R26: 粒
B27: MC CAIN SPICY WEDGES POTATO | C27: 薯仔角 | D27: 1PKT * 2.2KG*250 PCS | E27: =14.17/250 -> 0.05668 | G27: PKT | H27: 250 | I27: PCS | K27: PCS | L27: 0 | M27: =+I27 -> PCS | N27: =+L27*E27 -> 0 | P27: 包 | R27: 粒
B28: MCCAIN SPIRAL FRIES | C28: 卷曲薯条 | D28: 1CTN*6PKT*1.8 KG | E28: =14.17/1.8 -> 7.872222222 | F28: 3 | G28: PKT | H28: 1.8 | I28: KG | J28: 0.84 | K28: KG | L28: 6.24 | M28: =+I28 -> KG | N28: =+L28*E28 -> 49.12266667 | P28: 包 | R28: 公斤
A30: (D ) PIZZA BASE | B30: 6" PIZZA BASE | C30: 披萨皮6寸 | D30: 1ctn * 160pcs | E30: 1.25 | G30: CTN | H30: 160 | I30: PCS | K30: PCS | L30: 0 | M30: PCS | N30: =+L30*E30 -> 0 | P30: 箱 | R30: 片
B31: 9" PIZZA BASE | C31: 披萨皮9寸 | D31: 1ctn * 30pcs | E31: 2.3 | G31: CTN | H31: 30 | I31: PCS | K31: PCS | L31: 0 | M31: PCS | N31: =+L31*E31 -> 0 | P31: 箱 | R31: 片
A34: (E ) FISH /SALMON/SOTONG | B34: SALMON BALL | C34: 三文鱼丸 | D34: 1CTN * 20PKTS *30PCS * 500G | E34: 0.27 | F34: 1 | G34: PKT | H34: 30 | I34: PCS | J34: 36 | K34: PCS | L34: =+J34+(H34*F34) -> 66 | M34: =+K34 -> PCS | N34: =+L34*E34 -> 17.82 | P34: 包 | R34: 粒
A35: BALL | B35: SOTONG BALL | C35: 苏东丸 | D35: 1CTN * 20PKTS*50PCS * 1KG | E35: =8.5/50 -> 0.17 | G35: PKT | H35: 50 | I35: PCS | J35: 48 | K35: PCS | L35: =+J35+(H35*F35) -> 48 | M35: =+K35 -> PCS | N35: =+L35*E35 -> 8.16 | P35: 包 | R35: 粒
B36: FISH BALL (BIG) | C36: 大白鱼丸 | D36: 1CTN * 10PKTS*40PCS * 1KG | E36: 0.24 | F36: 1 | G36: PKT | H36: 40 | I36: PCS | J36: 3 | K36: PCS | L36: =+J36+(H36*F36) -> 43 | M36: =+K36 -> PCS | N36: =+L36*E36 -> 10.32 | P36: 包 | R36: 粒
B37: WHITE FISH BALL - SMALL (CHILLED) | C37: 小白鱼丸 | D37: 1CTN * 20PKTS*100PCS * 1KG | E37: 0.095 | G37: PKT | H37: 100 | I37: PCS | K37: PCS | L37: =+J37+(H37*F37) -> 0 | M37: =+K37 -> PCS | N37: =+L37*E37 -> 0 | P37: 包 | R37: 粒
A39: (F ) OTHERS 其他
B40: CALAMARI RING | C40: 苏东圈 | D40: 1PKT*300G * 15PCS | E40: 0.4666666667 | F40: 4 | G40: PKT | H40: 15 | I40: PCS | J40: 7 | K40: PCS | L40: =+J40+(H40*F40) -> 67 | M40: PCS | N40: =+L40*E40 -> 31.26666667 | P40: 包 | R40: 粒
B41: CHICKEN HAM | C41: 鸡肉火腿 | D41: 1CTN * 50PKT*500G*10PCS | E41: 0.55 | F41: 2 | G41: PKT | H41: 10 | I41: PCS | J41: 9 | K41: PCS | L41: 29 | M41: =+K41 -> PCS | N41: 15.95 | P41: 包 | R41: 条
B42: CHICKEN SAUSAGE | C42: 鸡肉香肠 | D42: 1CTN *32PKTS * 10PCS | E42: 0.23 | F42: 24 | G42: PKT | H42: 10 | I42: PCS | J42: 4 | K42: PCS | L42: 244 | M42: PCS | N42: 56.12 | P42: 包 | R42: 条
B43: SPRING ROLL | C43: 春卷 | D43: 1CTN * 50PKTS *20PCS | E43: 0.265 | F43: 3 | G43: PKT | H43: 20 | I43: PCS | J43: 32 | K43: PCS | L43: 92 | M43: PCS | N43: 24.38 | P43: 包 | R43: 条
B44: CRAB STICK (FILAMENT STICK) | C44: 蟹柳 | D44: 1CTN * 20PKT*30PCS*1KG | E44: 0.29 | F44: 4 | G44: PKT | H44: 30 | I44: PCS | J44: 11 | K44: PCS | L44: 131 | M44: PCS | N44: 37.99 | P44: 包 | R44: 条
B45: THAI ROLL | C45: 泰式卷 | D45: 1CTN *50PKTS* 15PCS | E45: 0.45 | F45: 11 | G45: PKT | H45: 15 | I45: PCS | J45: 8 | K45: PCS | L45: 173 | M45: PCS | N45: 77.85 | P45: 包 | R45: 个
B46: FISH CAKE -DODO (BIG) | C46: 鱼饼 | D46: 1PKT *1KG*10PCS | E46: 0.98 | F46: 3 | G46: PKT | H46: 10 | I46: PCS | J46: 7 | K46: PCS | L46: 37 | M46: PCS | N46: 36.26 | P46: 包 | R46: 公斤
B47: FRENCH FRIES CRINCLE CUT | C47: 薯条有牙 | D47: 1CTN * 10 PKT * 1KG | E47: 4.8 | F47: 3 | G47: PKT | H47: 1 | I47: KG | J47: 0.2 | K47: =+I47 -> KG | L47: 3.2 | M47: KG | N47: 15.36 | P47: 包 | R47: 个
B48: SEAFOOD TOFU | C48: 海鲜豆腐 | D48: 1 PKT * 33 PCS | E48: 0.33 | F48: 1 | G48: PKT | H48: 33 | I48: PCS | J48: 36 | K48: PCS | L48: 69 | M48: =+K48 -> PCS | N48: 22.77 | P48: 包 | R48: 个
B49: CHICKEN NUGGET | C49: 天妇罗鸡肉块 | D49: 1PKT * 36 PCS | E49: 0.26 | F49: 6 | G49: PKT | H49: 36 | I49: PCS | J49: 7 | K49: PCS | L49: 223 | M49: =+K49 -> PCS | N49: 57.98
A51: CHEESE PRODUCTS 芝士产品
B52: CHEESE MOZZARELLA SHREDDED | C52: 芝士碎 | D52: 1PKT * 1 KG | E52: 39 | F52: 9 | G52: PKT | H52: 1 | I52: PKT | L52: =+J52+(H52*F52) -> 9 | M52: =+G52 -> PKT | N52: =+L52*E52 -> 351 | P52: 包
B53: PAMECAN CHEESE | C53: 芝士粉 | D53: 1PKT * 1 KG | E53: 23 | F53: 0.5 | G53: PKT | H53: 1 | I53: =+G53 -> PKT | L53: =+J53+(H53*F53) -> 0.5 | M53: =+G53 -> PKT | N53: =+L53*E53 -> 11.5 | P53: 包
B54: SHREDDED MILD CHEDDAR CHEESE | C54: 瑞士乳酪 | D54: 1PKT*2KG | E54: 11.5 | F54: 2 | G54: PKT | H54: 1 | I54: =+G54 -> PKT | L54: =+J54+(H54*F54) -> 2 | M54: =+G54 -> PKT | N54: =+L54*E54 -> 23 | P54: 包
B55: TROPIC CHOICE NACHOS CHEESE DIP | C55: 玉米片奶酪 | D55: 1TUB*3KG | E55: 48 | G55: TUB | H55: 1 | I55: =+G55 -> TUB | L55: =+J55+(H55*F55) -> 0 | M55: =+G55 -> TUB | N55: =+L55*E55 -> 0 | P55: 包
A57: NOODLES 面类
B58: KUEY TEOH | C58: 粿条 | D58: 1PKT * 1KG | E58: 1.5 | F58: 2 | G58: PKT | H58: 1 | I58: PKT | L58: =+J58+(+H58*F58) -> 2 | M58: PKT | N58: =+L58*E58 -> 3 | P58: 包
B59: MEE KUNING | C59: 黄面 | D59: 1PKT * 1KG | E59: 1.7 | F59: 2 | G59: PKT | H59: 1 | I59: PKT | L59: 2 | M59: PKT | N59: 3.4 | P59: 包
B60: NDL SESAME OIL NISSIN | C60: 出前一丁面 | D60: 1CTN*12 PKT * 100 GM | E60: 6.666666667 | F60: 41 | G60: PKT | H60: 1 | I60: PKT | L60: 41 | M60: =+G60 -> PKT | N60: 273.3333333 | P60: 包
B61: RAMEN | C61: 日式拉面 | D61: 1CTN * 12PKT *12PCS | E61: 0.9 | F61: 5 | G61: PKT | H61: 12 | I61: PCS | J61: 8 | K61: =+M61 -> PCS | L61: 68 | M61: PCS | N61: 61.2 | P61: 包
B62: SPAGHETTI | C62: 意大利面 | D62: 1 PKT* 500 GM | E62: 2.5 | F62: 31 | G62: PKT | H62: 1 | I62: PKT | L62: 31 | M62: =+G62 -> PKT | N62: 77.5 | P62: 包
B63: UDON NOODLES | C63: 乌东面 | D63: 1 PKT*200 GM | E63: 1.1 | F63: 32 | G63: PKT | H63: 1 | I63: PKT | L63: 32 | M63: =+G63 -> PKT | N63: 35.2 | P63: 包
A65: RICE 米
B66: WANGI IMP.THAI - PEARL | C66: 泰国香米 | D66: 1PKT * 10 KG | E66: 42.95 | F66: 12 | G66: PKT | H66: 1 | I66: =+I67 -> PKT | L66: =+J66+(+H66*F66) -> 12 | M66: =+G66 -> PKT | N66: =+L66*E66 -> 515.4 | P66: 包
B67: RICE ( RAMBUTAN) | C67: 红毛丹米 | D67: 1PKT * 10 KG | E67: 27.5 | F67: 3 | G67: PKT | H67: 1 | I67: PKT | L67: =+J67+(+H67*F67) -> 3 | M67: PKT | N67: =+L67*E67 -> 82.5 | P67: 包
A69: CONDIMENT 调味料
A70: (A ) Soy sauce | B70: MCM SAUCE OYSTER | C70: (美中美)蚝油 | D70: 1 TUB * 5 KG | E70: 10 | G70: TUB | H70: 1 | I70: TUB | L70: =+J70+(+H70*F70) -> 0 | M70: =+G70 -> TUB | N70: =+L70*E70 -> 0 | P70: 瓶
B71: MCM SAUCE SOY DARK (2) | C71: (美中美)加晒 | D71: 1 TUB * 5 KG | E71: 19.5 | F71: 1 | G71: TUB | H71: 1 | I71: TUB | L71: 1 | M71: TUB | N71: 19.5 | P71: 瓶
B72: MCM SAUCE SOY LIGHT( 4KG) | C72: (美中美)生抽 | D72: 1 TUB * 4 KG | E72: 7.5 | F72: 1 | G72: TUB | H72: 1 | I72: TUB | L72: 1 | M72: TUB | N72: 7.5 | P72: 瓶
B73: BENTONG SAUCE SOY LIGHT | C73: 文东生抽 | D73: 1TUB* 1.6 KG | E73: 10 | G73: TUB | H73: 1 | I73: TUB | L73: 0 | M73: TUB | N73: 0 | P73: 瓶
B74: BENTONG SAUCE SOY LIGHT | C74: 文东生抽 | D74: 1TUB* 1.3 KG | E74: 9 | F74: 1 | G74: TUB | H74: 1 | I74: TUB | L74: 1 | M74: TUB | N74: 9 | P74: 瓶
B75: STH OYSTER SAUCE (TONG) | C75: 新泰兴蚝油（桶） | D75: 1TONG*5KG | E75: 10.5 | F75: 1 | G75: TONG | H75: 1 | I75: TONG | L75: 1 | M75: =+G75 -> TONG | N75: 10.5
A77: (B) Chilli / Tomato | B77: KIMBALL CHILI SAUCE(PKT) | C77: (KIMBALL)辣椒酱 | D77: 1CNT*12PKT*1kg | E77: 3.54 | F77: 17 | G77: PKT | H77: 1 | I77: =+G77 -> PKT | L77: =+J77+(+H77*F77) -> 17 | M77: =+G77 -> PKT | N77: =+L77*E77 -> 60.18 | P77: 包
B78: KIMBALL TOMATO SAUCE(PKT) | C78: (KIMBALL)蕃茄酱 | D78: 1CNT*12PKT*1kg | E78: 3.7 | F78: 23 | G78: PKT | H78: 1 | I78: =+G78 -> PKT | L78: =+J78+(+H78*F78) -> 23 | M78: =+G78 -> PKT | N78: =+L78*E78 -> 85.1 | P78: 包
B79: KN PRONTO ITALIAN TOMATO SAUCE | C79: (家乐)番茄肉粒酱 | D79: 1TIN * 2KG | E79: 24 | G79: TUB | H79: 1 | I79: =+G79 -> TUB | L79: =+J79+(+H79*F79) -> 0 | M79: =+G79 -> TUB | N79: =+L79*E79 -> 0 | P79: 罐
B80: KIMBALL TOMATO PUREE | C80: (KIMBALL)番茄膏 | D80: 1CTN *24CAN *430G | E80: 3.8 | F80: 2 | G80: CAN | H80: 1 | I80: =+G80 -> CAN | L80: =+J80+(+H80*F80) -> 2 | M80: =+G80 -> CAN | N80: =+L80*E80 -> 7.6 | P80: 罐
A82: (C ) Salad Sauce 沙拉酱 | B82: LC COLESLAW DRESSING | C82: 沙拉酱 | D82: 1 CTN*4 TUB *3 LIT | E82: 27.9 | G82: TUB | H82: 1 | I82: =+G82 -> TUB | L82: =+J82+(+H82*F82) -> 0 | M82: =+G82 -> TUB | N82: =+L82*E82 -> 0 | P82: 桶
B83: LC MAYO MAGIC (PKT) | C83: 蛋黄酱 ( 包） | D83: 1 CTN*4 PKT *3 LIT | E83: 18.9 | G83: PKT | H83: 1 | I83: =+G83 -> PKT | L83: =+J83+(+H83*F83) -> 0 | M83: =+G83 -> PKT | N83: =+L83*E83 -> 0 | P83: 桶
B84: LC TARTAR SAUCE | C84: 鞑靼酱 | D84: 1 CTN*6 TUB *3 LIT | E84: 31.5 | F84: 2 | G84: TUB | H84: 1 | I84: =+G84 -> TUB | L84: =+J84+(+H84*F84) -> 2 | M84: =+G84 -> TUB | N84: =+L84*E84 -> 63 | P84: 桶
B85: LC THOUSAND ISLAND DRESSING | C85: 千岛酱 | D85: 1 CTN*6 TUB *2.4 LIT | E85: 25.5 | F85: 3 | G85: TUB | H85: 1 | I85: =+G85 -> TUB | L85: =+J85+(+H85*F85) -> 3 | M85: =+G85 -> TUB | N85: =+L85*E85 -> 76.5 | P85: 桶
A87: (D) MCM Product | B87: MCM VINEGAR WHITE | C87: (美中美)白醋 | D87: 1 TUB * 4000G | E87: 6.5 | F87: 1 | G87: TUB | H87: 1 | I87: TUB | L87: =+J87+(+H87*F87) -> 1 | M87: =+G87 -> TUB | N87: =+L87*E87 -> 6.5 | P87: 桶
B88: MCM SAUCE SOURPLUM | C88: (美中美)酸梅酱 | D88: 1 TUB * 3KG | E88: 16.5 | F88: 1 | G88: TUB | H88: 1 | I88: TUB | L88: =+J88+(+H88*F88) -> 1 | M88: =+G88 -> TUB | N88: =+L88*E88 -> 16.5 | P88: 桶
B89: MCM TAUCU PASTE | C89: (美中美)蘑豆酱 | D89: 1 TUB * 3KG | E89: 11.5 | F89: 1 | G89: TUB | H89: 1 | I89: TUB | L89: =+J89+(+H89*F89) -> 1 | M89: =+G89 -> TUB | N89: =+L89*E89 -> 11.5 | P89: 桶
A91: (E ) OTHERS 其他 | B91: A1 Sauce | C91: A1 汁 | D91: 1BTL * 630ML | E91: 7 | G91: BTL | H91: 1 | I91: =+G91 -> BTL | L91: =+J91+(+H91*F91) -> 0 | M91: BTL | N91: =+L91*E91 -> 0 | P91: 瓶
B92: DIPPING FOR CHIKEN (TONG) | C92: 泰国-点鸡汁 | D92: 1CTN*3TUB*5KG | E92: 37 | F92: 2 | G92: TUB | H92: 1 | I92: TUB | L92: 2 | M92: TUB | N92: 74 | P92: 桶
B93: FISH SAUCE | C93: 鱼露 | D93: 1 BTL * 750 ML | E93: 2.2 | G93: BTL | H93: 1 | I93: BTL | L93: 0 | M93: BTL | N93: 0 | P93: 瓶
B94: H.P SAUCE | C94: Hp酱 | D94: 1BTL *220GM | E94: 5.5 | G94: BTL | H94: 1 | I94: BTL | L94: 0 | M94: BTL | N94: 0 | P94: 瓶
B95: KN BARBEQUE SAUCE | C95: 烧烤酱 | D95: 1TUB * 900G | E95: 25 | F95: 1 | G95: TUB | H95: 1 | I95: TUB | L95: 1 | M95: =+I95 -> TUB | N95: 25 | P95: 瓶
B96: LKK CHU HOU PASTE | C96: (李)柱侯酱 | D96: 1 CAN *2.2KG | E96: 25.5 | G96: CAN | H96: 1 | I96: CAN | L96: 0 | M96: CAN | N96: 0 | P96: 桶
B97: MAGGI SEASONING | C97: (美极)调味料 | D97: 1CTN*6BTL*790ML | E97: 17.5 | F97: 2 | G97: BTL | H97: 1 | I97: BTL | L97: 2 | M97: BTL | N97: 35 | P97: 罐
B98: PASTE PRAWN (HK) SALTED | C98: 咸虾酱 | D98: 1CAN * 227 G | E98: 4.9 | F98: 4 | G98: CAN | H98: 1 | I98: CAN | L98: 4 | M98: CAN | N98: 19.6 | P98: 罐
B99: RICE WINE (HAI-O) | C99: 白米酒(兴兴发） | D99: 1 BTL * 640ML | E99: 4.95 | F99: 2 | G99: BTL | H99: 1 | I99: BTL | L99: 2 | M99: BTL | N99: 9.9 | P99: 瓶
B100: SATAY SAUCE | C100: 沙爹酱 | D100: 1PKT * 1KG | E100: 21.5 | F100: 4 | G100: PKT | H100: 1 | I100: PKT | L100: 4 | M100: PKT | N100: 86 | P100: 包
B101: SAUCE LEA & PERRIN (LP) | C101: LP调味汁 | D101: 1 BTL *290ML | E101: 7.7 | F101: 1 | G101: BTL | H101: 1 | I101: BTL | L101: 1 | M101: BTL | N101: 7.7 | P101: 瓶
B102: SAUCE TABASCO | C102: 辣酱油 | D102: 1BTL * 60ml | E102: 6.5 | F102: 1 | G102: BTL | H102: 1 | I102: BTL | L102: 1 | M102: =+I102 -> BTL | N102: 6.5 | P102: 瓶
B103: VINEGAR (RED) -ELISEN | C103: 大红浙醋 | D103: 1BTL*640ML | E103: 5.2 | F103: 1 | G103: BTL | H103: 1 | I103: BTL | L103: 1 | M103: =+I103 -> BTL | N103: 5.2 | P103: 瓶
B104: VINEGER GREATWALL | C104: 长城淅醋 | D104: 1BTL * 667ML | E104: 3.3 | F104: 1 | G104: BTL | H104: 1 | I104: BTL | L104: 1 | M104: =+I104 -> BTL | N104: 3.3 | P104: 瓶
B105: WINE HUA TIAO CHEW (A) | C105: 花雕酒(尖塔) | D105: 1 BTL * 640ML | E105: 4.95 | F105: 1 | G105: BTL | H105: 1 | I105: =+G105 -> BTL | L105: 1 | M105: =+I105 -> BTL | N105: 4.95 | P105: 瓶
A107: PREPARED SAUCE 自制酱料
B108: BLACK PEPPER SAUCE | C108: 黑椒酱 | D108: TUB*3.7KG | E108: 3.02 | G108: TUB | H108: 3.7 | I108: =+K108 -> KG | J108: 3.3 | K108: KG | L108: =+J108+(+H108*F108) -> 3.3 | M108: =+K108 -> KG | N108: =+L108*E108 -> 9.966 | P108: 桶 | R108: 公斤
B109: BLACK PEPPER SAUCE (UDON) | C109: 黑椒酱 (乌冬面） | D109: TUB*4 KG | E109: 3.88 | G109: TUB | H109: 4 | I109: =+I108 -> KG | J109: 1.7 | K109: KG | L109: 1.7 | M109: =+K109 -> KG | N109: 6.596 | P109: 桶 | R109: 公斤
B110: BOLOGNESE SAUCE | C110: 肉酱意粉酱 | D110: 1 PKT*2KG | E110: 11.35 | G110: PKT | H110: 2 | I110: =+I109 -> KG | J110: 6.5 | K110: KG | L110: 6.5 | M110: KG | N110: 73.775
B111: GRAVY SAUCE | C111: 鸡汁 | D111: TUB*1.6 KG | E111: 3.3 | G111: TUB | H111: 1.6 | I111: KG | J111: 2.5 | K111: KG | L111: 2.5 | M111: KG | N111: 8.25
B112: MARMITE SAUCE | C112: 妈蜜汁 | D112: TUB*4.50KG | E112: 2 | G112: TUB | H112: 4.5 | I112: KG | J112: 4.4 | K112: KG | L112: 4.4 | M112: KG | N112: 8.8
B113: MUSHROOM SAUCE | C113: 蘑菇酱 | D113: TUB*3.7 KG | E113: 6.78 | G113: TUB | H113: 3.7 | I113: KG | J113: 3.3 | K113: KG | L113: 3.3 | M113: KG | N113: 22.374 | P113: 包 | R113: 公斤
B114: SAMBAL (NASI LEMAK ) | C114: 叁巴酱 | D114: TUB*6KG | E114: 7.39 | G114: TUB | H114: 6 | I114: KG | J114: 8.75 | K114: KG | L114: =+J114+(+H114*F114) -> 8.75 | M114: =+K114 -> KG | N114: =+L114*E114 -> 64.6625 | P114: 桶 | R114: 公斤
B115: SWEET & SOUR SAUCE | C115: 糖醋酱 | D115: TUB*4KG | E115: 1.88 | G115: TUB | H115: 4 | I115: KG | J115: 2.2 | K115: KG | L115: 2.2 | M115: KG | N115: 4.136 | P115: 桶 | R115: 公斤
B116: THAI SAUCE | C116: 泰式酱 | D116: 1TUB*7.1 KG | E116: 7.1 | G116: TUB | H116: 7.1 | I116: KG | J116: 3.2 | K116: KG | L116: =+J116+(+H116*F116) -> 3.2 | M116: =+K116 -> KG | N116: =+L116*E116 -> 22.72 | P116: 桶 | R116: 公斤
B117: BUTTER CREAM SAUCE | C117: 奶油酱 | D117: 1TUB*1.2KG | E117: 6.36 | G117: TUB | H117: 1.2 | I117: KG | J117: 0.2 | K117: KG | L117: =+J117+(+H117*F117) -> 0.2 | M117: =+K117 -> KG | N117: =+L117*E117 -> 1.272
B118: SAUCE DRY NOODLE | C118: 干捞面酱 | D118: 1TUB*3.6KG | E118: 8.96 | G118: TUB | H118: 3.6 | I118: KG | J118: 0.8 | K118: KG | L118: =+J118+(+H118*F118) -> 0.8 | M118: =+K118 -> KG | N118: =+L118*E118 -> 7.168
B119: MIX SEASONING | C119: 厨房总味 | D119: 1TUB*940GM | E119: 9.87 | G119: TUB | H119: 0.94 | I119: KG | J119: 0.75 | K119: KG | L119: =+J119+(+H119*F119) -> 0.75 | M119: =+K119 -> KG | N119: =+L119*E119 -> 7.4025
A121: OIL 油
B122: COOKING OIL | C122: 食油 | D122: 1CTN *17PKT * 1KG | E122: 2.7 | F122: 4 | G122: CTN | H122: 17 | I122: PKT | J122: 3 | K122: PKT | L122: =+J122+(+H122*F122) -> 71 | M122: PKT | N122: =+L122*E122 -> 191.7 | P122: 箱 | R122: 包
B123: OIL CORN DAISY | C123: 包蜀油 | D123: 1TUB *3KG | E123: 29.5 | F123: 1 | G123: TUB | H123: 1 | I123: =+G123 -> TUB | L123: =+J123+(+H123*F123) -> 1 | M123: =+G123 -> TUB | N123: =+L123*E123 -> 29.5 | P123: 桶
B124: OIL SESAME CY | C124: 麻油(胡泉益)鹿牌 | D124: 1 TIN * 6KG | E124: 43 | G124: TIN | H124: 1 | I124: =+G124 -> TIN | L124: =+J124+(+H124*F124) -> 0 | M124: =+G124 -> TIN | N124: =+L124*E124 -> 0 | P124: 桶
B125: OLIVE OIL | C125: 橄榄油 | D125: 1 BTL * 1 LIT | E125: 20.5 | G125: BTL | H125: 1 | I125: KG | L125: =+J125+(+H125*F125) -> 0 | M125: =+G125 -> BTL | N125: =+L125*E125 -> 0 | P125: 瓶
A128: POWDER 粉类
A129: (A ) KNORR BRAND | B129: KN CHICKEN STOCK | C129: (家乐)鸡精粉 | D129: 1ctn*6pkt*1.2kg | E129: 17.9 | F129: 2 | G129: PKT | H129: 1 | I129: PKT | L129: =+J129+(+H129*F129) -> 2 | M129: =+G129 -> PKT | N129: =+L129*E129 -> 35.8 | P129: 包
B130: KN DEMI-GLACE BROWN SAUCE MIX | C130: (家乐)黄揭汁粉 | D130: 1ctn*6pkt*1kg | E130: 20.9 | F130: 4 | G130: PKT | H130: 1 | I130: PKT | L130: =+J130+(+H130*F130) -> 4 | M130: =+G130 -> PKT | N130: =+L130*E130 -> 83.6 | P130: 包
B131: KN INSTANT CHICKEN GRAVY MIX | C131: (家乐)即溶鸡肉汁 | D131: 1ctn*6pkt*1kg | E131: 23.9 | G131: PKT | H131: 1 | I131: PKT | L131: =+J131+(+H131*F131) -> 0 | M131: =+G131 -> PKT | N131: =+L131*E131 -> 0 | P131: 包
B132: KN TENDERIZER | C132: （家乐）松肉粉 | D132: 1btl*453.6gm | E132: 6.9 | F132: 1 | G132: BTL | H132: 1 | I132: =+G132 -> BTL | L132: =+J132+(+H132*F132) -> 1 | M132: =+G132 -> BTL | N132: =+L132*E132 -> 6.9 | P132: 罐
B133: KN TEPUNG GORENG AYAM | C133: (家乐)酥炸脆鸡粉 | D133: 1ctn*12pkt*1kg | E133: 12 | F133: 2 | G133: PKT | H133: 1 | I133: PKT | L133: =+J133+(+H133*F133) -> 2 | M133: =+G133 -> PKT | N133: =+L133*E133 -> 24 | P133: 包
A135: (B ) FLOUR | B135: FLOUR SUPERIOR (WINDMILL) | C135: 风车粉 | D135: 1pkt*1kg | E135: 6.5 | F135: 1.2 | G135: KG | H135: 1 | I135: KG | L135: =+J135+(+H135*F135) -> 1.2 | M135: =+G135 -> KG | N135: =+L135*E135 -> 7.8 | P135: 包
B136: FLOUR TAPIOCA | C136: 薯粉 | D136: 1pkt*1kg | E136: 2.9 | F136: 9 | G136: PKT | H136: 1 | I136: KG | L136: =+J136+(+H136*F136) -> 9 | M136: =+G136 -> PKT | N136: =+L136*E136 -> 26.1 | P136: 包
B137: FLOUR WHEAT (ANCHOR) | C137: 面粉 | D137: 1pkt*1kg | E137: 2.7 | F137: 2 | G137: PKT | H137: 1 | I137: KG | L137: =+J137+(+H137*F137) -> 2 | M137: =+G137 -> PKT | N137: =+L137*E137 -> 5.4 | P137: 包
B138: FLOUR RICE | C138: 粘米粉 | D138: 1PKT * 500G | E138: 1.9 | G138: PKT | H138: 1 | I138: KG | L138: =+J138+(+H138*F138) -> 0 | M138: =+G138 -> PKT | N138: =+L138*E138 -> 0 | P138: 包
A140: (C ) OTHERS | B140: AJINOMOTO | C140: 味精粉 | D140: 1CTN*20PKT*1KG | E140: 9.5 | G140: PKT | H140: 1 | I140: PKT | L140: =+J140+(+H140*F140) -> 0 | M140: PKT | N140: =+L140*E140 -> 0 | P140: 包
B141: CUMIN (JINTAN PUTIH) | C141: 小茴粉 | D141: 1ctn*40pkt*70g | E141: 4.5 | G141: PKT | H141: 1 | I141: =+G141 -> PKT | L141: 0 | M141: =+G141 -> PKT | N141: 0 | P141: 包
B142: DRIED CHILI POWDER | C142: 辣椒干粉 | D142: 1ctn*40pkt*250g | E142: 6 | F142: 0.65 | G142: GM | H142: 1 | I142: GM | L142: 0.65 | M142: GM | N142: 3.9 | P142: 包
B143: DRIED CHILI POWDER | C143: 辣椒干粉 | D143: 1CTN *40PKT *250G | E143: 28 | F143: 1.2 | G143: KG | H143: 1 | I143: KG | L143: 1.2 | M143: KG | N143: 33.6
B144: PARPIKA | C144: 灯笼椒粉 | D144: 1pkt*100gm | E144: =+[5]Mar!E224 -> 5.9 | F144: 1 | G144: PKT | H144: 1 | I144: PKT | L144: 1 | M144: PKT | N144: 5.9 | P144: 包
B145: PEPPER BLACK (CORN WHOLE) | C145: 黑胡椒粒 | D145: PER KG | E145: 4.8 | G145: PKT | H145: 1 | I145: PKT | L145: 0 | M145: PKT | N145: 0 | P145: 包
B146: POWDER CURRY (BABA) | C146: (BABA)加厘粉 | D146: 1pkt*250g | E146: 8 | F146: 14 | G146: KG | H146: 1 | I146: KG | L146: 14 | M146: KG | N146: 112 | P146: 包
B147: POWDER CURRY WATCH BRAND (ENGLAND) | C147: 英式咖哩粉 | D147: 1ctn*36btl*115g | P147: 罐
B148: POWDER CUSTARD | C148: 鸡仔粉 | D148: 1pkt*300gm | P148: 包
B149: POWDER FIVE SPICE | C149: 五香粉(博安堂) | D149: 1pkt*300gm | E149: 0.06 | G149: PKT | H149: 1 | I149: GM | K149: =+I149 -> GM | L149: =+J149+(+H149*F149) -> 0 | M149: =+K149 -> GM | N149: =+L149*E149 -> 0 | P149: 包
B150: POWDER MUSTARD | C150: 黄芥辣粉 | D150: 1tub*454gm | E150: 0.055 | G150: PKT | H150: 1 | I150: GM | J150: 430 | K150: GM | L150: 430 | M150: GM | N150: 23.65 | P150: 包
B151: POWDER WHITE PEPPER | C151: 白胡椒粉(平) | D151: 1pkt*500gm | E151: 0.066 | G151: PKT | H151: 1 | I151: GM | J151: 160 | K151: GM | L151: 160 | M151: GM | N151: 10.56 | P151: 包
B152: TURMERIC (KUNYIT) | C152: 黄姜粉 | D152: 1pkt*250g | E152: 0.014 | G152: PKT | H152: 1 | I152: GM | J152: 300 | K152: GM | L152: 300 | M152: GM | N152: 4.2 | P152: 包
B153: TURMERIC (KUNYIT) | C153: 黄姜粉 | D153: 1PKT * 250G | E153: 0.07 | G153: PKT | H153: 1 | I153: GM | J153: 93 | K153: GM | L153: 93 | M153: GM | N153: 6.51
B154: WHITE BREADCRUMB | C154: 面包粉 | D154: 1pkt*1Kkg | E154: 0.045 | G154: PKT | H154: 1 | I154: GM | J154: 110 | K154: GM | L154: 110 | M154: GM | N154: 4.95 | P154: 包
E155: 15 | G155: PKT | H155: 1 | I155: KG | J155: 0.3 | K155: KG | L155: 0.3 | M155: KG | N155: 4.5
A156: HERBS & SPICES 香料类
B157: BASIL WHOLE | C157: 九层塔香草 | D157: GRAM | E157: 2.9 | F157: 7 | G157: CAN | H157: 1 | I157: =+G157 -> CAN | L157: =+J157+(+H157*F157) -> 7 | M157: =+G157 -> CAN | N157: =+L157*E157 -> 20.3 | P157: 公斤
B158: BAY LEAVES WHOLE | C158: 月桂叶 | D158: GRAM | E158: 3.8 | G158: PKT | H158: 1 | I158: =+G158 -> PKT | L158: 0 | M158: =+G158 -> PKT | N158: 0 | P158: 公斤
B159: DING XIANG(CENGKIH) | C159: 丁香 | D159: GRAM | E159: 2.75 | F159: 5 | G159: CAN | H159: 1 | I159: =+G159 -> CAN | L159: 5 | M159: CAN | N159: 13.75 | P159: 公斤
B160: FUNGUS BLACK | C160: 木耳 | D160: GRAM | E160: 12.5 | G160: PKT | H160: 1 | I160: PKT | L160: 0 | M160: PKT | N160: 0 | P160: 公斤
B161: OREGANO WHOLE | C161: 区里卡诺香草 | D161: GRAM | E161: 8.5 | F161: 1 | G161: BTL | H161: 1 | I161: BTL | L161: 1 | M161: BTL | N161: 8.5 | P161: 公斤
B162: ROSEMARY WHOLE | C162: 迷迭香 | D162: GRAM | E162: 8.5 | G162: BTL | H162: 1 | I162: BTL | L162: 0 | M162: BTL | N162: 0 | P162: 公斤
E163: 8.8 | G163: PKT | H163: 1 | I163: PKT | L163: 0 | M163: PKT | N163: =+L163*E163 -> 0
A164: CREAM / MILK / JUICE 忌廉/牛奶/汁 | E164: 4.25 | G164: BTL | H164: 1 | I164: BTL | L164: 0 | M164: BTL | N164: 0
B165: CARNATION MILK | C165: 三花生奶 | D165: 1CTN *48 CAN *400G | P165: 罐
B166: GREENFIELD FULL CREAM MILK （INDONESIA） | C166: 全脂牛奶 | D166: 1 PKT * 1 LIT | P166: 包
B167: MILK TEA POT | C167: 茶壶牛奶 | D167: 1CTN *48 CAN *505G | E167: 0.37 | F167: 209 | G167: PCS | H167: 1 | I167: =+G167 -> PCS | L167: =+J167+(+H167*F167) -> 209 | M167: =+G167 -> PCS | N167: =+L167*E167 -> 77.33 | P167: 罐
B168: GREENFIELD UHT WHIPPING CREAM | C168: 液体奶油 | D168: 1PKT * 1 LIT | P168: 包
B169: LEMON JUICE | C169: 柠檬汁 | D169: 1BTL * 2LIT | P169: =+P125 -> 瓶
B170: LIME JUICE | C170: 酸柑汁 | D170: 1BTL * 2LIT | E170: 2.7 | F170: 3 | G170: PKT | H170: 1 | I170: =+G170 -> PKT | L170: =+J170+(+H170*F170) -> 3 | M170: =+G170 -> PKT | N170: =+L170*E170 -> 8.1 | P170: 瓶
B171: MILK COCONUT (RASAKU) | C171: 椰汁 | D171: 1PKT * 1 LIT | E171: 0.58 | F171: 8 | G171: PKT | H171: 1 | I171: =+G171 -> PKT | L171: =+J171+(+H171*F171) -> 8 | M171: PKT | N171: =+L171*E171 -> 4.64 | P171: 包
B172: ORANGE JUICE | C172: 橙汁 | D172: 1BTL * 2LIT | P172: 瓶
A174: EGG 鸡蛋 | E174: 20 | F174: 1 | G174: KG | H174: 1 | I174: =+G174 -> KG | L174: =+J174+(+H174*F174) -> 1 | M174: =+G174 -> KG | N174: =+L174*E174 -> 20
B175: EGG | C175: 鸡蛋 | D175: NOS | E175: 1.8 | F175: 2 | G175: CAN | H175: 1 | I175: =+G175 -> CAN | L175: =+J175+(+H175*F175) -> 2 | M175: =+G175 -> CAN | N175: =+L175*E175 -> 3.6 | P175: 粒
E176: 2 | F176: 4 | G176: CAN | H176: 1 | I176: CAN | L176: 4 | M176: CAN | N176: 8
A177: SUGAR / SALT 糖与盐 | E177: 2 | F177: 4 | G177: CAN | H177: 1 | I177: CAN | L177: 4 | M177: CAN | N177: 8
B178: SUGER WHITE FINE | C178: 幼白糖 | D178: 1CTN*24PKT*1KG | E178: 3.9 | F178: 1 | G178: CAN | H178: 1 | I178: CAN | L178: 1 | M178: CAN | N178: 3.9 | P178: 包
B179: SALT FINE (PKT) | C179: 幼盐(包) | D179: 1CTN*12PKT*450GM | E179: 2.2 | F179: 1 | G179: CAN | H179: 1 | I179: CAN | L179: 1 | M179: CAN | N179: 2.2 | P179: 包
E180: 24.9 | F180: 1 | G180: CAN | H180: 1 | I180: CAN | L180: 1 | M180: CAN | N180: 24.9
A181: GROCERIES 杂货 | E181: 34 | G181: TIN | H181: 1 | I181: TIN | L181: 0 | M181: TIN | N181: 0
B182: IKAN BILIS (B) | C182: 金钱鱼肉 | D182: PER KG | E182: 2.4 | F182: 3 | G182: CAN | H182: 1 | I182: CAN | L182: 3 | M182: CAN | N182: 7.2 | P182: 罐
B183: BAKED BEAN | C183: 茄汁豆 | D183: 1CTN*24CAN *425G | E183: 2.35 | F183: 6 | G183: CAN | H183: 1 | I183: CAN | L183: 6 | M183: CAN | N183: 14.1 | P183: 公斤
B184: BEANCURD RED PRESERVED | C184: 南乳(罐) | D184: 1 CTN *36BTL *250G | E184: 14 | G184: KG | H184: 1 | I184: KG | L184: 0 | M184: KG | N184: 0 | P184: 罐
B185: BEANCURD WHITE PRESERVED | C185: 大石付乳 | D185: 1 CTN *36BTL *350G | E185: 0 | G185: KG | H185: 1 | I185: KG | L185: 0 | M185: KG | N185: 0 | P185: 罐
B186: DOU CHU LI | C186: 豆豉粒 | D186: 1 CAN *500G | E186: 0 | G186: CTN | H186: 1 | I186: CTN | L186: 0 | M186: CTN | N186: 0 | P186: 罐
B187: MALTOSE | C187: 麦芽糖 | D187: 1CAN* 350G | E187: 2.9 | F187: 2 | G187: CAN | H187: 1 | I187: CAN | L187: 2 | M187: CAN | N187: 5.8 | P187: 罐
B188: MARMITE | C188: 妈蜜汁 | D188: 1CAN* 470G | E188: 45 | F188: 2 | G188: TUB | H188: 1 | I188: TUB | L188: 2 | M188: TUB | N188: 90 | P188: 罐
B189: MASHED POTATO POWDER | C189: 薯泥粉 | D189: 1TIN* 2.2KG | E189: 6.5 | G189: PKT | H189: 1 | I189: PKT | L189: 0 | M189: PKT | N189: 0 | P189: 包
B190: MUSHROOM BUTTON | C190: 蘑菇 | D190: 1CTN*24CAN *425G | E190: 2.5 | F190: 6 | G190: CAN | H190: 1 | I190: CAN | L190: 6 | M190: CAN | N190: 15 | P190: 罐
B191: MUSHROOM STRAW | C191: 草菇 | D191: 1CTN*24CAN *425G | E191: 3.5 | G191: CAN | H191: 1 | I191: CAN | L191: 0 | M191: CAN | N191: 0 | P191: 罐
B192: NUT CANDLENUT (BUAH KERAS) | C192: 石古仔 | D192: 1 PKT * 1KG | E192: 9.5 | G192: PKT | H192: 1 | I192: PKT | L192: 0 | M192: PKT | N192: 0 | P192: 包
B193: NUT GROUND | C193: 花生米 | D193: 1 PKT * 1KG | E193: 24 | F193: 1.3 | G193: KG | H193: 1 | I193: =+G193 -> KG | L193: =+J193+(+H193*F193) -> 1.3 | M193: KG | N193: =+L193*E193 -> 31.2 | P193: 包
B194: PICKLED LETTUCE | C194: 罐头菜心 | D194: 1CTN*48CAN*170G | P194: 罐
B195: PINEAPPLE (SLICE) | C195: 黄梨片 | D195: 1TIN * 565G | N195: =SUM(N12:N194) -> 6496.333859 | P195: 罐
B196: PLANTA CHEF | C196: 白兰她 | D196: 1TUB*4.8KG | P196: 桶
B197: PRESERVED VEGETABLE | C197: 包装菜蒲碎 | D197: 1PKT *120G | P197: 包
B198: SARDINE | C198: 沙丁鱼 | D198: 1CTN*24CAN *425G | E198: 13.5 | G198: DRUM | H198: 1 | I198: =+G198 -> DRUM | L198: =+J198+(+H198*F198) -> 0 | M198: =+I198 -> DRUM | N198: =+L198*E198 -> 0 | P198: 罐
B199: SESAME SEED WHITE | C199: 白芝麻 | D199: 1 PKT * 1KG | E199: 0.4 | F199: 191 | G199: PCS | H199: 1 | I199: =+G199 -> PCS | L199: =+J199+(+H199*F199) -> 191 | M199: PKT | N199: =+L199*E199 -> 76.4 | P199: 包
B200: SILVER FISH | C200: 白饭银鱼 | D200: 1PKT*50GM | E200: 3.5 | F200: 40 | G200: PKT | H200: 1 | I200: =+G200 -> PKT | L200: =+J200+(+H200*F200) -> 40 | M200: PKT | N200: =+L200*E200 -> 140 | P200: 包
B201: VE-TSIN POWDER-SMALL | C201: 佛手味精 | D201: 1BTL*94.5G | P201: 罐
B202: VG DRIED CHILI | C202: 辣椒干 | D202: 1 PKT * 1KG | N202: =+N200+N199+N198+N195 -> 6712.733859 | P202: 包
B203: Dried Prawn | C203: 虾米 | D203: 1 PKT * 1KG
A205: G.TOTAL FOR FOOD MATERIAL
A207: OTHERS 其他
B208: DISHWASHING | C208: 洗碗精 | D208: 1DRUM*10 LIT | P208: 桶
B209: LUNCH BOX SET | C209: 打包饭盒 | D209: PCS
B210: OIL ABSORBING PAPER | C210: 吸油纸 | D210: 1CTN*20PKT
A212: G.TOTAL ( FOOD MATERIAL + OTHERS)

Sheet K-LUNCH & K DINNER
A1: MONTHLY SALES FOOD RECORD ( K LUNCH & K DINNER)
A3: Outlet : | B3: CCS OUTLET
A4: Month : | B4: 2013-09-01
D6: K-LUNCH & K DINNER | E6: TOTAL COST | I6: USAGE
A7: NO | B7: MENU ITEM | C7: Cost | D7: Sales | H7: MATERIAL USED | I7: PORTION | J7: TOTAL
C8: RM | D8: Q | E8: RM | H8: Q | I8: Q | J8: Q
A10: 1 | B10: DH01 91101:THAI CHK | C10: =SUMIF(DATABASE!$B$3:$B$73,'K-LUNCH & K DINNER'!B10,DATABASE!$C$3:$C$73) -> 3.29 | D10: =VLOOKUP(B10,Summary!$B$30:$AK$475,5,FALSE) -> 64 | E10: =+D10*C10 -> 210.56 | H10: CHICKEN CHOP (MARINATED) | I10: 0.66 | J10: =+I10*D10 -> 42.24
A11: =+A10+1 -> 2 | B11: DH02 91102:MAMITE CHK | C11: =SUMIF(DATABASE!$B$3:$B$73,'K-LUNCH & K DINNER'!B11,DATABASE!$C$3:$C$73) -> 3.02 | D11: =VLOOKUP(B11,Summary!$B$30:$AK$475,5,FALSE) -> 114 | E11: =+D11*C11 -> 344.28 | H11: CHICKEN CHOP (MARINATED) | I11: 0.66 | J11: 75.24
A12: =+A11+1 -> 3 | B12: DH03 91103:KO PO CHK | C12: =SUMIF(DATABASE!$B$3:$B$73,'K-LUNCH & K DINNER'!B12,DATABASE!$C$3:$C$73) -> 3.45 | D12: =VLOOKUP(B12,Summary!$B$30:$AK$475,5,FALSE) -> 0 | E12: 0 | H12: CHICKEN CHOP (MARINATED) | I12: 0.66 | J12: 0
A13: 4 | B13: DH04 91104:S&S CHK | C13: =SUMIF(DATABASE!$B$3:$B$73,'K-LUNCH & K DINNER'!B13,DATABASE!$C$3:$C$73) -> 3.45 | D13: =VLOOKUP(B13,Summary!$B$30:$AK$475,5,FALSE) -> 47 | E13: 162.15 | H13: CHICKEN CHOP (MARINATED) | I13: 0.66 | J13: 31.02
A14: 5 | B14: DH05 91105:BUTTER CHK | C14: =SUMIF(DATABASE!$B$3:$B$73,'K-LUNCH & K DINNER'!B14,DATABASE!$C$3:$C$73) -> 3.32 | D14: =VLOOKUP(B14,Summary!$B$30:$AK$475,5,FALSE) -> 140 | E14: 464.8 | H14: CHICKEN CHOP (MARINATED) | I14: 0.66 | J14: 92.4
A15: 6 | B15: DH06 91106:HK F.RICE | C15: =SUMIF(DATABASE!$B$3:$B$73,'K-LUNCH & K DINNER'!B15,DATABASE!$C$3:$C$73) -> 3.16 | D15: =VLOOKUP(B15,Summary!$B$30:$AK$475,5,FALSE) -> 105 | E15: 331.8 | J15: 0
A16: 7 | B16: DH07 91107:SBL F.RICE | C16: =SUMIF(DATABASE!$B$3:$B$73,'K-LUNCH & K DINNER'!B16,DATABASE!$C$3:$C$73) -> 2.41 | D16: =+Summary!F148 -> 19 | E16: 45.79 | J16: 0
A17: 8 | B17: DH08 91108:SBL F.MEE | C17: =SUMIF(DATABASE!$B$3:$B$73,'K-LUNCH & K DINNER'!B17,DATABASE!$C$3:$C$73) -> 2.8 | D17: =VLOOKUP(B17,Summary!$B$30:$AK$475,5,FALSE) -> 11 | E17: 30.8 | J17: 0
A18: 9 | B18: DH09 91109:BP UDON | C18: =SUMIF(DATABASE!$B$3:$B$73,'K-LUNCH & K DINNER'!B18,DATABASE!$C$3:$C$73) -> 2.08 | D18: =VLOOKUP(B18,Summary!$B$30:$AK$475,5,FALSE) -> 49 | E18: 101.92 | J18: 0
A19: 10 | B19: DH10 91110:NISSIN | C19: =SUMIF(DATABASE!$B$3:$B$73,'K-LUNCH & K DINNER'!B19,DATABASE!$C$3:$C$73) -> 2.32 | D19: =VLOOKUP(B19,Summary!$B$30:$AK$475,5,FALSE) -> 34 | E19: 78.88 | H19: CHICKEN SAUSAGE | I19: 1.5 | J19: 51
A20: 11 | B20: DH11 91111:VEG RICE | C20: =SUMIF(DATABASE!$B$3:$B$73,'K-LUNCH & K DINNER'!B20,DATABASE!$C$3:$C$73) -> 1.6 | D20: =VLOOKUP(B20,Summary!$B$30:$AK$475,5,FALSE) -> 21 | E20: 33.6 | J20: 0
A21: 12 | B21: DH12 91112:NASI LEMAK | C21: =SUMIF(DATABASE!$B$3:$B$73,'K-LUNCH & K DINNER'!B21,DATABASE!$C$3:$C$73) -> 3.56 | D21: =VLOOKUP(B21,Summary!$B$30:$AK$475,5,FALSE) -> 0 | E21: 0 | H21: CHICKEN WINGS (NON -MARINATED) | I21: 1 | J21: 0
A22: 13 | B22: DH13 91113:KUEY TEOW | C22: =SUMIF(DATABASE!$B$3:$B$73,'K-LUNCH & K DINNER'!B22,DATABASE!$C$3:$C$73) -> 3.16 | D22: =VLOOKUP(B22,Summary!$B$30:$AK$475,5,FALSE) -> 0 | E22: 0 | J22: 0
A23: 14 | B23: DH14 91114:F.BALL MEE | C23: =SUMIF(DATABASE!$B$3:$B$73,'K-LUNCH & K DINNER'!B23,DATABASE!$C$3:$C$73) -> 2.59 | D23: =VLOOKUP(B23,Summary!$B$30:$AK$475,5,FALSE) -> 0 | E23: 0 | H23: FISH BALL (SMALL) | I23: 5 | J23: 0
A24: 15 | B24: DH15 91115:CHK NOODLE | C24: =SUMIF(DATABASE!$B$3:$B$73,'K-LUNCH & K DINNER'!B24,DATABASE!$C$3:$C$73) -> 4.71 | D24: =VLOOKUP(B24,Summary!$B$30:$AK$475,5,FALSE) -> 33 | E24: 155.43 | H24: CHICKEN CHOP (MARINATED) | I24: 1 | J24: 33
A25: 16 | B25: DH16 91116:MGL CHK | C25: =SUMIF(DATABASE!$B$3:$B$73,'K-LUNCH & K DINNER'!B25,DATABASE!$C$3:$C$73) -> 3.54 | D25: =VLOOKUP(B25,Summary!$B$30:$AK$475,5,FALSE) -> 50 | E25: 177 | H25: CHICKEN CHOP (MARINATED) | I25: 0.66 | J25: =+I25*D25 -> 33
A26: =+A25+1 -> 17 | B26: DG01 91001:BP CHK CP | C26: =SUMIF(DATABASE!$B$3:$B$73,'K-LUNCH & K DINNER'!B26,DATABASE!$C$3:$C$73) -> 4.41 | D26: =VLOOKUP(B26,Summary!$B$30:$AK$475,5,FALSE) -> 368 | E26: =+D26*C26 -> 1622.88 | H26: CHICKEN CHOP (MARINATED) | I26: 1 | J26: 368
A27: =+A26+1 -> 18 | B27: DG02 91002:GVY CHK CP | C27: =SUMIF(DATABASE!$B$3:$B$73,'K-LUNCH & K DINNER'!B27,DATABASE!$C$3:$C$73) -> 4.43 | D27: =VLOOKUP(B27,Summary!$B$30:$AK$475,5,FALSE) -> 117 | E27: 518.31 | H27: CHICKEN CHOP (MARINATED) | I27: 1 | J27: 117
A28: 19 | B28: DG03 91003:MSR CHK CP | C28: =SUMIF(DATABASE!$B$3:$B$73,'K-LUNCH & K DINNER'!B28,DATABASE!$C$3:$C$73) -> 4.75 | D28: =VLOOKUP(B28,Summary!$B$30:$AK$475,5,FALSE) -> 436 | E28: 2071 | H28: CHICKEN CHOP (MARINATED) | I28: 1 | J28: 436
A29: 20 | B29: DG04 91004:CKN MARY | C29: =SUMIF(DATABASE!$B$3:$B$73,'K-LUNCH & K DINNER'!B29,DATABASE!$C$3:$C$73) -> 5.98 | D29: =VLOOKUP(B29,Summary!$B$30:$AK$475,5,FALSE) -> 203 | E29: 1213.94 | H29: CHICKEN CHOP (MARINATED) | I29: 1 | J29: 203
A30: 21 | B30: DG05 91005:FISH&CHIP | C30: =SUMIF(DATABASE!$B$3:$B$73,'K-LUNCH & K DINNER'!B30,DATABASE!$C$3:$C$73) -> 4.32 | D30: =VLOOKUP(B30,Summary!$B$30:$AK$475,5,FALSE) -> 246 | E30: 1062.72 | H30: DORY FISH FILLET | I30: 1 | J30: 246
A31: 22 | B31: DG06 91006:SPAGHETTI | C31: =SUMIF(DATABASE!$B$3:$B$73,'K-LUNCH & K DINNER'!B31,DATABASE!$C$3:$C$73) -> 2.1 | D31: =VLOOKUP(B31,Summary!$B$30:$AK$475,5,FALSE) -> 160 | E31: 336
A32: 23 | B32: DG07 91007:CHK SALAD | C32: =SUMIF(DATABASE!$B$3:$B$73,'K-LUNCH & K DINNER'!B32,DATABASE!$C$3:$C$73) -> 4.94 | D32: =VLOOKUP(B32,Summary!$B$30:$AK$475,5,FALSE) -> 71 | E32: 350.74 | H32: CHICKEN CHOP (MARINATED) | I32: 1 | J32: =+I32*D32 -> 71
A33: 24 | B33: DI01 91201:SFD STICK | C33: =SUMIF(DATABASE!$B$3:$B$73,'K-LUNCH & K DINNER'!B33,DATABASE!$C$3:$C$73) -> 2 | D33: =VLOOKUP(B33,Summary!$B$30:$AK$475,5,FALSE) -> 3 | E33: 6 | H33: SOTONG BALL | I33: 2 | J33: =+I33*$D$33 -> 6
H34: SALMON BALL | I34: 2 | J34: =+I34*$D$33 -> 6
H35: SEAFOOD TOFU | I35: 2 | J35: =+I35*$D$33 -> 6
A36: 25 | B36: DI02 91202:FREN FRIES | C36: =SUMIF(DATABASE!$B$3:$B$73,'K-LUNCH & K DINNER'!B36,DATABASE!$C$3:$C$73) -> 1.76 | D36: =VLOOKUP(B36,Summary!$B$30:$AK$475,5,FALSE) -> 28 | E36: 49.28 | J36: =+I36*D36 -> 0
A37: 26 | B37: DI03 91203:GOLD MROOM | C37: =SUMIF(DATABASE!$B$3:$B$73,'K-LUNCH & K DINNER'!B37,DATABASE!$C$3:$C$73) -> 2.15 | D37: =VLOOKUP(B37,Summary!$B$30:$AK$475,5,FALSE) -> 5 | E37: 10.75 | J37: 0
A38: 27 | B38: DI04 91204:FISHBALL | C38: =SUMIF(DATABASE!$B$3:$B$73,'K-LUNCH & K DINNER'!B38,DATABASE!$C$3:$C$73) -> 1.56 | D38: =VLOOKUP(B38,Summary!$B$30:$AK$475,5,FALSE) -> 6 | E38: 9.36 | H38: FISH BALL (BIG) | I38: 6 | J38: =+I38*D38 -> 36
A39: 28 | B39: DI05 91205:RAINBOW RL | C39: =SUMIF(DATABASE!$B$3:$B$73,'K-LUNCH & K DINNER'!B39,DATABASE!$C$3:$C$73) -> 2.5 | D39: =VLOOKUP(B39,Summary!$B$30:$AK$475,5,FALSE) -> 0 | E39: 0 | H39: RAINBOW ROLL | I39: 1 | J39: =+I39*D39 -> 0
A40: 29 | B40: DI06 91206:SPRING RL | C40: =SUMIF(DATABASE!$B$3:$B$73,'K-LUNCH & K DINNER'!B40,DATABASE!$C$3:$C$73) -> 2.67 | D40: =VLOOKUP(B40,Summary!$B$30:$AK$475,5,FALSE) -> 3 | E40: 8.01 | H40: SPRING ROLL | I40: 8 | J40: 24
A41: 30 | B41: DI07 91207:SAUSAGE | C41: =SUMIF(DATABASE!$B$3:$B$73,'K-LUNCH & K DINNER'!B41,DATABASE!$C$3:$C$73) -> 1.24 | D41: =VLOOKUP(B41,Summary!$B$30:$AK$475,5,FALSE) -> 15 | E41: 18.6 | H41: CHICKEN SAUSAGE | I41: 4 | J41: =+I41*D41 -> 60
A42: 31 | B42: DI08 91208:HOTDOG BUN | C42: =SUMIF(DATABASE!$B$3:$B$73,'K-LUNCH & K DINNER'!B42,DATABASE!$C$3:$C$73) -> 0 | D42: =VLOOKUP(B42,Summary!$B$30:$AK$475,5,FALSE) -> 0 | E42: 0 | H42: HOTDOG | J42: 0
A43: 32 | B43: DI09 91209:SFD TOFU | C43: =SUMIF(DATABASE!$B$3:$B$73,'K-LUNCH & K DINNER'!B43,DATABASE!$C$3:$C$73) -> 0 | D43: =VLOOKUP(B43,Summary!$B$30:$AK$475,5,FALSE) -> 0 | E43: 0 | H43: SEAFOOD TOFU | J43: 0
A44: 24 | B44: DI10 91301:DUMPLING | C44: =SUMIF(DATABASE!$B$3:$B$73,'K-LUNCH & K DINNER'!B44,DATABASE!$C$3:$C$73) -> 4.5 | D44: =VLOOKUP(B44,Summary!$B$30:$AK$475,5,FALSE) -> 0 | E44: 0 | H44: DUMPLING | I44: 6 | J44: 0
A45: 25 | B45: DI11 91302:NUGGET | C45: =SUMIF(DATABASE!$B$3:$B$73,'K-LUNCH & K DINNER'!B45,DATABASE!$C$3:$C$73) -> 2.43 | D45: =VLOOKUP(B45,Summary!$B$30:$AK$475,5,FALSE) -> 31 | E45: 75.33 | H45: CHICKEN NUGGET | I45: 8 | J45: =+I45*D45 -> 248
A46: 26 | B46: DI12 91303:CHK WING | C46: =SUMIF(DATABASE!$B$3:$B$73,'K-LUNCH & K DINNER'!B46,DATABASE!$C$3:$C$73) -> 3.97 | D46: =VLOOKUP(B46,Summary!$B$30:$AK$475,5,FALSE) -> 54 | E46: 214.38 | H46: CHICKEN WING (MARINATED) | I46: 3 | J46: 162
A47: 27 | B47: DI13 91304:IKAN BILIS | C47: =SUMIF(DATABASE!$B$3:$B$73,'K-LUNCH & K DINNER'!B47,DATABASE!$C$3:$C$73) -> 2.18 | D47: =VLOOKUP(B47,Summary!$B$30:$AK$475,5,FALSE) -> 2 | E47: 4.36 | J47: 0
A48: 28 | B48: DI14 91305:THAI RL | C48: =SUMIF(DATABASE!$B$3:$B$73,'K-LUNCH & K DINNER'!B48,DATABASE!$C$3:$C$73) -> 3.61 | D48: =VLOOKUP(B48,Summary!$B$30:$AK$475,5,FALSE) -> 3 | E48: 10.83 | H48: THAI ROLL | I48: 7 | J48: 21
A49: 29 | B49: DI15 91306:SLVR FISH | C49: =SUMIF(DATABASE!$B$3:$B$73,'K-LUNCH & K DINNER'!B49,DATABASE!$C$3:$C$73) -> 0 | D49: =VLOOKUP(B49,Summary!$B$30:$AK$475,5,FALSE) -> 0 | E49: 0 | J49: 0
A50: 30 | B50: DI16 91307:D/F C.WING | C50: =SUMIF(DATABASE!$B$3:$B$73,'K-LUNCH & K DINNER'!B50,DATABASE!$C$3:$C$73) -> 4.31 | D50: =VLOOKUP(B50,Summary!$B$30:$AK$475,5,FALSE) -> 30 | E50: 129.3 | H50: CHICKEN WING (MARINATED) | I50: 3 | J50: 90
A51: 31 | B51: DI17 91308:C/CALAMARI | C51: =SUMIF(DATABASE!$B$3:$B$73,'K-LUNCH & K DINNER'!B51,DATABASE!$C$3:$C$73) -> 3.69 | D51: =VLOOKUP(B51,Summary!$B$30:$AK$475,5,FALSE) -> 12 | E51: 44.28 | H51: CALAMARI RING | I51: 7 | J51: 84
A52: 32 | B52: DI18 91309:Mc O.RINGS | C52: =SUMIF(DATABASE!$B$3:$B$73,'K-LUNCH & K DINNER'!B52,DATABASE!$C$3:$C$73) -> 1.72 | D52: =VLOOKUP(B52,Summary!$B$30:$AK$475,5,FALSE) -> 10 | E52: 17.2 | H52: MCCAIN ONION RING | I52: 8 | J52: =+I52*D52 -> 80
A53: 33 | B53: DI19 91310:McSPIRAL.F | C53: =SUMIF(DATABASE!$B$3:$B$73,'K-LUNCH & K DINNER'!B53,DATABASE!$C$3:$C$73) -> 1.72 | D53: =VLOOKUP(B53,Summary!$B$30:$AK$475,5,FALSE) -> 5 | E53: 8.6 | H53: MCCAIN SPIRAL FRIES | I53: 0.22 | J53: =+I53*D53 -> 1.1
A54: 34 | B54: DI20 91311Mc H/SMILES | C54: =SUMIF(DATABASE!$B$3:$B$73,'K-LUNCH & K DINNER'!B54,DATABASE!$C$3:$C$73) -> 1.34 | D54: =VLOOKUP(B54,Summary!$B$30:$AK$475,5,FALSE) -> 3 | E54: 4.02 | H54: MCCAIN SMILES | I54: 8 | J54: =+I54*D54 -> 24
A55: 35 | B55: DI21 91312:Mc HASH.B | C55: =SUMIF(DATABASE!$B$3:$B$73,'K-LUNCH & K DINNER'!B55,DATABASE!$C$3:$C$73) -> 0.59 | D55: =VLOOKUP(B55,Summary!$B$30:$AK$475,5,FALSE) -> 10 | E55: 5.9 | H55: MCCAIN VERSITOT | I55: 15 | J55: =+I55*D55 -> 150
A56: Total Sales / COST | D56: =SUM(D10:D55) -> 2508 | E56: =SUM(E10:E55) -> 9928.8

Sheet LOK LOK
B1: MONTHLY SALES FOOD RECORD ( LOK LOK BAR COUNTER )
B3: =+'K-LUNCH & K DINNER'!A3 -> Outlet : | C3: =+'K-LUNCH & K DINNER'!B3 -> CCS OUTLET
B4: =+'K-LUNCH & K DINNER'!A4 -> Month : | C4: =+'K-LUNCH & K DINNER'!B4 -> 2013-09-01
B6: CCS LOK LOK BAR SALES
E7: (A) | H7: (B) | J7: (A) - (B)
E8: SIDE ORDER (INCLUDING FOC) | H8: FOC | J8: SIDE ORDER (NETT SALES) | M8: SIDE ORDER (NETT COST) | O8: FOC (COST) | R8: USAGE
B9: NO | C9: MENU ITEM | D9: S/P | E9: Sales | F9: TOTAL | H9: Sales | I9: TOTAL | J9: Sales | K9: TOTAL | M9: COST | N9: TOTAL | O9: COST | P9: TOTAL | R9: MATERIAL | S9: RECIPE | T9: TOTAL
D10: RM | E10: Q | F10: RM | H10: Q | I10: RM | J10: Q | K10: RM | M10: RM | N10: RM | O10: RM | P10: RM | R10: Q | S10: Q | T10: Q
C11: MAIN COURSE
A12: Grilled Chicken Chop (Black Pepper Sauce) | B12: 1 | C12: JK001 LLB BP CHK CHOP | D12: 12.9 | E12: =VLOOKUP(C12,Summary!$B$30:$AK$475,5,FALSE) -> 11 | F12: =E12*D12 -> 141.9 | J12: =+E12-H12 -> 11 | K12: =+J12*D12 -> 141.9 | M12: =SUMIF(DATABASE!$L$3:$L$26,'LOK LOK '!C12,DATABASE!$M$3:$M$26) -> 4.41 | N12: =+M12*J12 -> 48.51 | O12: =+M12 -> 4.41 | P12: =+O12*H12 -> 0 | R12: CHICKEN CHOP (MARINATED) | S12: 1 | T12: =+S12*E12 -> 11
A13: Grilled Chicken Chop (Gravy Sauce) | B13: =+B12+1 -> 2 | C13: JK002 LLB G.S C. CHOP | D13: 12.9 | E13: =VLOOKUP(C13,Summary!$B$30:$AK$475,5,FALSE) -> 2 | F13: =E13*D13 -> 25.8 | J13: =+E13-H13 -> 2 | K13: =+J13*D13 -> 25.8 | M13: =SUMIF(DATABASE!$L$3:$L$26,'LOK LOK '!C13,DATABASE!$M$3:$M$26) -> 4.43 | N13: =+M13*J13 -> 8.86 | O13: =+M13 -> 4.43 | P13: =+O13*H13 -> 0 | R13: CHICKEN CHOP (MARINATED) | S13: 1 | T13: =+S13*E13 -> 2
A14: Grilled Chicken Chop (Black Pepper Sauce) | B14: 3 | C14: JK003 LLB MSR CHK CHOP | D14: 12.9 | E14: =VLOOKUP(C14,Summary!$B$30:$AK$475,5,FALSE) -> 11 | F14: 141.9 | J14: 11 | K14: 141.9 | M14: =SUMIF(DATABASE!$L$3:$L$26,'LOK LOK '!C14,DATABASE!$M$3:$M$26) -> 4.75 | N14: 52.25 | O14: 4.75 | P14: 0 | R14: CHICKEN CHOP (MARINATED) | S14: 1 | T14: 11
A15: Grilled Chicken Chop (Mushroom Sauce) | B15: 4 | C15: JK004 LLB CHK MARRYLAN | D15: 12.9 | E15: =VLOOKUP(C15,Summary!$B$30:$AK$475,5,FALSE) -> 3 | F15: 38.7 | J15: 3 | K15: 38.7 | M15: =SUMIF(DATABASE!$L$3:$L$26,'LOK LOK '!C15,DATABASE!$M$3:$M$26) -> 5.98 | N15: 17.94 | O15: 5.98 | P15: 0 | R15: CHICKEN CHOP (MARINATED) | S15: 1 | T15: 3
A16: Fish & Chip | B16: 5 | C16: JK005 LLB Fish & Chip | D16: 12.9 | E16: =VLOOKUP(C16,Summary!$B$30:$AK$475,5,FALSE) -> 2 | F16: 25.8 | J16: 2 | K16: 25.8 | M16: =SUMIF(DATABASE!$L$3:$L$26,'LOK LOK '!C16,DATABASE!$M$3:$M$26) -> 4.32 | N16: 8.64 | O16: 4.32 | P16: 0 | R16: DORY FISH FILLET | S16: 1 | T16: 2
A17: Spaghetti Bolognese (Chicken) | B17: 6 | C17: JK006 LLB Spaghetti | D17: 12.9 | E17: =VLOOKUP(C17,Summary!$B$30:$AK$475,5,FALSE) -> 4 | F17: 51.6 | J17: 4 | K17: 51.6 | M17: =SUMIF(DATABASE!$L$3:$L$26,'LOK LOK '!C17,DATABASE!$M$3:$M$26) -> 2.1 | N17: 8.4 | O17: 2.1 | P17: 0
A18: Chicken Chop Salad | B18: 7 | C18: JK007 LLB CHK .C.SALAD | D18: 12.9 | E18: =VLOOKUP(C18,Summary!$B$30:$AK$475,5,FALSE) -> 2 | F18: 25.8 | J18: 2 | K18: 25.8 | M18: =SUMIF(DATABASE!$L$3:$L$26,'LOK LOK '!C18,DATABASE!$M$3:$M$26) -> 4.94 | N18: 9.88 | O18: 4.94 | P18: 0 | R18: CHICKEN CHOP (MARINATED) | S18: 1 | T18: 2
A19: Thai Style Chicken Chop With Rice | B19: 8 | C19: JK101 LLB Thai Chk Ric | D19: 9.9 | E19: =VLOOKUP(C19,Summary!$B$30:$AK$475,5,FALSE) -> 8 | F19: 79.2 | J19: 8 | K19: 79.2 | M19: =SUMIF(DATABASE!$L$3:$L$26,'LOK LOK '!C19,DATABASE!$M$3:$M$26) -> 3.29 | N19: 26.32 | O19: 3.29 | P19: 0 | R19: CHICKEN CHOP (MARINATED) | S19: 0.66 | T19: 5.28
A20: Marmite Style Chicken Chop With Rice | B20: 9 | C20: JK102 Marmite Chk Rice | D20: 9.9 | E20: =VLOOKUP(C20,Summary!$B$30:$AK$475,5,FALSE) -> 4 | F20: 39.6 | J20: 4 | K20: 39.6 | M20: =SUMIF(DATABASE!$L$3:$L$26,'LOK LOK '!C20,DATABASE!$M$3:$M$26) -> 3.02 | N20: 12.08 | O20: 3.02 | P20: 0 | R20: CHICKEN CHOP (MARINATED) | S20: 0.66 | T20: 2.64
A21: Sweet & Sour Chicken Chop With Rice | B21: 10 | C21: JK104 S&S Chk Rice | D21: 9.9 | E21: =VLOOKUP(C21,Summary!$B$30:$AK$475,5,FALSE) -> 3 | F21: 29.7 | J21: 3 | K21: 29.7 | M21: =SUMIF(DATABASE!$L$3:$L$26,'LOK LOK '!C21,DATABASE!$M$3:$M$26) -> 3.45 | N21: 10.35 | O21: 3.45 | P21: 0 | R21: CHICKEN CHOP (MARINATED) | S21: 0.66 | T21: 1.98
A22: Butter Cream Chicken Chop With Rice | B22: 11 | C22: JK105 B.Cream.Chk Rice | D22: 9.9 | E22: =VLOOKUP(C22,Summary!$B$30:$AK$475,5,FALSE) -> 13 | F22: 128.7 | J22: 13 | K22: 128.7 | M22: =SUMIF(DATABASE!$L$3:$L$26,'LOK LOK '!C22,DATABASE!$M$3:$M$26) -> 3.32 | N22: 43.16 | O22: 3.32 | P22: 0 | R22: CHICKEN CHOP (MARINATED) | S22: 0.66 | T22: =+S22*E22 -> 8.58
A23: Hong Kong Style Fried Rice | B23: 12 | C23: JK106 H.K Fried Rice | D23: 9.9 | E23: =VLOOKUP(C23,Summary!$B$30:$AK$475,5,FALSE) -> 6 | F23: 59.4 | J23: 6 | K23: 59.4 | M23: =SUMIF(DATABASE!$L$3:$L$26,'LOK LOK '!C23,DATABASE!$M$3:$M$26) -> 3.16 | N23: 18.96 | O23: 3.16 | P23: 0
A24: Sambal Fried Rice | B24: 13 | C24: JK107 LLBSambal F.Rice | D24: 9.9 | E24: =VLOOKUP(C24,Summary!$B$30:$AK$475,5,FALSE) -> 6 | F24: 59.4 | J24: 6 | K24: 59.4 | M24: =SUMIF(DATABASE!$L$3:$L$26,'LOK LOK '!C24,DATABASE!$M$3:$M$26) -> 2.41 | N24: 14.46 | O24: 2.41 | P24: 0
A25: Sambal Fried MEE | B25: 14 | C25: JK108 LLB S.Fried MEE | D25: 9.9 | E25: =VLOOKUP(C25,Summary!$B$30:$AK$475,5,FALSE) -> 1 | F25: 9.9 | J25: 1 | K25: 9.9 | M25: =SUMIF(DATABASE!$L$3:$L$26,'LOK LOK '!C25,DATABASE!$M$3:$M$26) -> 2.8 | N25: 2.8 | O25: 2.8 | P25: 0
A26: Black Pepper Udon Mee | B26: 15 | C26: JK109 LLB BP Udon Mee | D26: 9.9 | E26: =VLOOKUP(C26,Summary!$B$30:$AK$475,5,FALSE) -> 5 | F26: 49.5 | J26: 5 | K26: 49.5 | M26: =SUMIF(DATABASE!$L$3:$L$26,'LOK LOK '!C26,DATABASE!$M$3:$M$26) -> 2.08 | N26: 10.4 | O26: 2.08 | P26: 0
A27: Nissin Noodle | B27: 16 | C27: JK110 LLB Nisin Noodle | D27: 9.9 | E27: =VLOOKUP(C27,Summary!$B$30:$AK$475,5,FALSE) -> 1 | F27: 9.9 | J27: 1 | K27: 9.9 | M27: =SUMIF(DATABASE!$L$3:$L$26,'LOK LOK '!C27,DATABASE!$M$3:$M$26) -> 2.32 | N27: 2.32 | O27: 2.32 | P27: 0 | R27: CHICKEN SAUSAGE | S27: 1.5 | T27: =+S27*E27 -> 1.5
A28: Stir Fried Mixed Vegetabes With Rice | B28: 17 | C28: JK111 LLB S.M.Ver Rice | D28: 9.9 | E28: =VLOOKUP(C28,Summary!$B$30:$AK$475,5,FALSE) -> 1 | F28: 9.9 | J28: 1 | K28: 9.9 | M28: =SUMIF(DATABASE!$L$3:$L$26,'LOK LOK '!C28,DATABASE!$M$3:$M$26) -> 1.6 | N28: 1.6 | O28: 1.6 | P28: 0
A29: Braised Noodle With Chicken Chop | B29: 18 | C29: JK115 LLB B.Noodle.Chk | D29: 9.9 | E29: =VLOOKUP(C29,Summary!$B$30:$AK$475,5,FALSE) -> 4 | F29: 39.6 | J29: 4 | K29: 39.6 | M29: =SUMIF(DATABASE!$L$3:$L$26,'LOK LOK '!C29,DATABASE!$M$3:$M$26) -> 4.71 | N29: 18.84 | O29: 4.71 | P29: 0
A30: Mongolian Chicken Chop With Rice | B30: 19 | C30: JK116 LLB Mon.Chk Rice | D30: 9.9 | E30: =VLOOKUP(C30,Summary!$B$30:$AK$475,5,FALSE) -> 8 | F30: 79.2 | J30: 8 | K30: 79.2 | M30: =SUMIF(DATABASE!$L$3:$L$26,'LOK LOK '!C30,DATABASE!$M$3:$M$26) -> 3.54 | N30: 28.32 | O30: 3.54 | P30: 0 | R30: CHICKEN CHOP (MARINATED) | S30: 0.66 | T30: =+S30*E30 -> 5.28
C32: PIZZA
B33: 1
B34: =+B33+1 -> 2
B35: 3
B36: 4
B37: 5
B38: 6
B39: 7
B40: =+B39+1 -> 8
B41: 9
B42: 10
B44: Total Sales / COST | E44: =SUM(E11:E43) -> 95 | F44: =SUM(F11:F42) -> 1045.5 | H44: =SUM(H11:H43) -> 0 | I44: =SUM(I11:I42) -> 0 | J44: =SUM(J11:J43) -> 95 | K44: =SUM(K11:K42) -> 1045.5 | M44: =SUM(M11:M43) -> 66.63 | N44: =SUM(N11:N42) -> 344.09 | O44: =SUM(O11:O43) -> 66.63 | P44: =SUM(P11:P42) -> 0
C46: LOK LOK
A47: Cocktail Chicken Sausage | B47: 1 | C47: JM101 C.Chicken Sausag | D47: 1.5 | E47: =VLOOKUP(C47,Summary!$B$30:$AK$475,5,FALSE) -> 44 | F47: =E47*D47 -> 66 | I47: =H47*D47 -> 0 | J47: =+E47-H47 -> 44 | K47: =+J47*D47 -> 66 | M47: =SUMIF(DATABASE!$O$3:$O$78,'LOK LOK '!C47,DATABASE!$P$3:$P$77) -> 0.39 | N47: =+M47*J47 -> 17.16 | O47: =+M47 -> 0.39 | P47: =+O47*H47 -> 0 | R47: CHICKEN SAUSAGE | S47: 3 | T47: =+S47*E47 -> 132
A48: Beef Ball | B48: =+B47+1 -> 2 | C48: JM102 Beef Ball | D48: 2 | E48: =VLOOKUP(C48,Summary!$B$30:$AK$475,5,FALSE) -> 18 | F48: =E48*D48 -> 36 | I48: 0 | J48: 18 | K48: 36 | M48: =SUMIF(DATABASE!$O$3:$O$78,'LOK LOK '!C48,DATABASE!$P$3:$P$77) -> 0.65 | N48: =+M48*J48 -> 11.7 | O48: =+M48 -> 0.65 | P48: 0 | R48: BEEF BALL | S48: 3 | T48: =+S48*E48 -> 54
A49: Chicken Kidney | B49: =+B48+1 -> 3 | C49: JM103 Chicken Kidney | D49: 2.5 | E49: =VLOOKUP(C49,Summary!$B$30:$AK$475,5,FALSE) -> 9 | F49: 22.5 | I49: 0 | J49: 9 | K49: 22.5 | M49: =SUMIF(DATABASE!$O$3:$O$78,'LOK LOK '!C49,DATABASE!$P$3:$P$77) -> 1 | N49: 9 | O49: 1 | P49: 0 | R49: CHICKEN KIDNEY | S49: 3 | T49: 27
A50: Chicken Liver | B50: 4 | C50: JM104 Chicken Liver | D50: 2.5 | E50: =VLOOKUP(C50,Summary!$B$30:$AK$475,5,FALSE) -> 4 | F50: 10 | I50: 0 | J50: 4 | K50: 10 | M50: =SUMIF(DATABASE!$O$3:$O$78,'LOK LOK '!C50,DATABASE!$P$3:$P$77) -> 1 | N50: 4 | O50: 1 | P50: 0 | R50: CHICKEN LIVER | S50: 3 | T50: 12
A51: Cheese Chicken Sausage | B51: 5 | C51: JM105 Cheese C.Sausage | D51: 2.5 | E51: =VLOOKUP(C51,Summary!$B$30:$AK$475,5,FALSE) -> 71 | F51: 177.5 | I51: 0 | J51: 0 | K51: 0 | M51: =SUMIF(DATABASE!$O$3:$O$78,'LOK LOK '!C51,DATABASE!$P$3:$P$77) -> 0.8 | N51: 0 | O51: 0.8 | P51: 0 | R51: CHESS C.SAUSAGE | S51: 1 | T51: 71
A52: Black Pepper Chicken Sausage | B52: 6 | C52: JM106 B.P C.Sausage | D52: 2.5 | E52: =VLOOKUP(C52,Summary!$B$30:$AK$475,5,FALSE) -> 47 | F52: 117.5 | I52: 0 | J52: 47 | K52: 117.5 | M52: =SUMIF(DATABASE!$O$3:$O$78,'LOK LOK '!C52,DATABASE!$P$3:$P$77) -> 0.8 | N52: 37.6 | O52: 0.8 | P52: 0 | S52: 1 | T52: 47
A53: Sauce-Filled Beef Ball | B53: 7 | C53: JM107 S.Fill beef Ball | D53: 3 | E53: =VLOOKUP(C53,Summary!$B$30:$AK$475,5,FALSE) -> 27 | F53: 81 | I53: 0 | J53: 27 | K53: 81 | M53: =SUMIF(DATABASE!$O$3:$O$78,'LOK LOK '!C53,DATABASE!$P$3:$P$77) -> 1.05 | N53: 28.35 | O53: 1.05 | P53: 0 | R53: BEEF BALL | S53: 3 | T53: 81
A54: Pandan Chicken | B54: 8 | C54: JM108 Pandan Chicken | D54: 4 | E54: =VLOOKUP(C54,Summary!$B$30:$AK$475,5,FALSE) -> 15 | F54: 60 | I54: 0 | J54: 15 | K54: 60 | M54: =SUMIF(DATABASE!$O$3:$O$78,'LOK LOK '!C54,DATABASE!$P$3:$P$77) -> 1.64 | N54: 24.6 | O54: 1.64 | P54: 0 | R54: PANDAN CHICKEN | S54: 2 | T54: 30
A55: Smoked Duck Breast | B55: 9 | C55: JM109 S. Duck Breast | D55: 4 | E55: =VLOOKUP(C55,Summary!$B$30:$AK$475,5,FALSE) -> 18 | F55: 72 | I55: 0 | J55: 18 | K55: 72 | M55: =SUMIF(DATABASE!$O$3:$O$78,'LOK LOK '!C55,DATABASE!$P$3:$P$77) -> 2.13 | N55: 38.34 | O55: 2.13 | P55: 0 | R55: DUCK BREAST | S55: 2 | T55: 36
A56: Grilled Boneless Chicken Wing | B56: 10 | C56: JM110 Grill.B.Chk.Wing | D56: 4 | E56: =VLOOKUP(C56,Summary!$B$30:$AK$475,5,FALSE) -> 34 | F56: 136 | I56: 0 | J56: 0 | K56: 0 | M56: =SUMIF(DATABASE!$O$3:$O$78,'LOK LOK '!C56,DATABASE!$P$3:$P$77) -> 2.8 | N56: 0 | O56: 2.8 | P56: 0 | S56: 1 | T56: 34
A57: Pork Meatball (Small) | B57: 11 | C57: JN211 Pork Meatball s | D57: 2 | E57: =VLOOKUP(C57,Summary!$B$30:$AK$475,5,FALSE) -> 79 | F57: 158 | I57: 0 | J57: 0 | K57: 0 | M57: =SUMIF(DATABASE!$O$3:$O$78,'LOK LOK '!C57,DATABASE!$P$3:$P$77) -> 0.55 | N57: 0 | O57: 0.55 | P57: 0 | R57: PORK MEATBALL (S) | S57: 5 | T57: 395
A58: Wu Xiang Roll (Small) | B58: =+B57+1 -> 12 | M58: =SUMIF(DATABASE!$O$3:$O$78,'LOK LOK '!C58,DATABASE!$P$3:$P$77) -> 0 | O58: 0 | T58: 0
A59: Pork Sausage Slices | B59: =+B58+1 -> 13 | C59: JN213 P. Sauage Slices | D59: 2.5 | E59: =VLOOKUP(C59,Summary!$B$30:$AK$475,5,FALSE) -> 31 | F59: 77.5 | I59: 0 | J59: 31 | K59: 77.5 | M59: =SUMIF(DATABASE!$O$3:$O$78,'LOK LOK '!C59,DATABASE!$P$3:$P$77) -> 0.96 | N59: 29.76 | O59: 0.96 | P59: 0 | T59: 0
A60: Pork Dumplings | B60: 14 | C60: JN214 Pork Dumplings | D60: 2.5 | E60: =VLOOKUP(C60,Summary!$B$30:$AK$475,5,FALSE) -> 31 | F60: 77.5 | I60: 0 | J60: 0 | K60: 0 | M60: =SUMIF(DATABASE!$O$3:$O$78,'LOK LOK '!C60,DATABASE!$P$3:$P$77) -> 1.2 | N60: 0 | O60: 1.2 | P60: 0 | R60: PORK DUMPLINGS | S60: 3 | T60: 93
A61: Pork Meatball (Big) | B61: 15 | C61: JN215 Pork Meatball B | D61: 2.5 | E61: =VLOOKUP(C61,Summary!$B$30:$AK$475,5,FALSE) -> 93 | F61: 232.5 | I61: 0 | J61: 0 | K61: 0 | M61: =SUMIF(DATABASE!$O$3:$O$78,'LOK LOK '!C61,DATABASE!$P$3:$P$77) -> 0.78 | N61: 0 | O61: 0.78 | P61: 0 | R61: PORK MEATBALL (B) | T61: 0
A62: Pork Liver | B62: 16 | C62: JN216 Pork Liver | D62: 3 | E62: =VLOOKUP(C62,Summary!$B$30:$AK$475,5,FALSE) -> 6 | F62: 18 | I62: 0 | J62: 6 | K62: 18 | M62: =SUMIF(DATABASE!$O$3:$O$78,'LOK LOK '!C62,DATABASE!$P$3:$P$77) -> 1.2 | N62: 7.2 | O62: 1.2 | P62: 0 | R62: PORK LIVER | S62: 3 | T62: 18
A63: Taiwan Sausage | B63: 17 | C63: JN217 Taiwan Sausage | D63: 3 | E63: =VLOOKUP(C63,Summary!$B$30:$AK$475,5,FALSE) -> 119 | F63: 357 | I63: 0 | J63: 119 | K63: 357 | M63: =SUMIF(DATABASE!$O$3:$O$78,'LOK LOK '!C63,DATABASE!$P$3:$P$77) -> 1.02 | N63: 121.38 | O63: 1.02 | P63: 0 | R63: TAIWAN SAUSAGE | S63: 3 | T63: 357
A64: Bacon | B64: 18 | C64: JN218 Bacon | D64: 3 | E64: =VLOOKUP(C64,Summary!$B$30:$AK$475,5,FALSE) -> 40 | F64: 120 | I64: 0 | J64: 40 | K64: 120 | M64: =SUMIF(DATABASE!$O$3:$O$78,'LOK LOK '!C64,DATABASE!$P$3:$P$77) -> 0.95 | N64: 38 | O64: 0.95 | P64: 0 | R64: BACON | S64: 1 | T64: 40
A65: Pork Rinds | B65: 19 | C65: JN219 Pork Rinds | D65: 4 | E65: =VLOOKUP(C65,Summary!$B$30:$AK$475,5,FALSE) -> 10 | F65: 40 | I65: 0 | J65: 10 | K65: 40 | M65: =SUMIF(DATABASE!$O$3:$O$78,'LOK LOK '!C65,DATABASE!$P$3:$P$77) -> 1.5 | N65: 15 | O65: 1.5 | P65: 0 | R65: PORK RINDS | S65: 2 | T65: 20
A66: Sauce-Filled Pork Meatball | B66: 20 | C66: JN220 Sauce Filll Ball | D66: 4 | E66: =VLOOKUP(C66,Summary!$B$30:$AK$475,5,FALSE) -> 67 | F66: 268 | I66: 0 | J66: 67 | K66: 268 | M66: =SUMIF(DATABASE!$O$3:$O$78,'LOK LOK '!C66,DATABASE!$P$3:$P$77) -> 1.5 | N66: 100.5 | O66: 1.5 | P66: 0 | T66: 0
A67: Roasted Pork | B67: 21 | M67: =SUMIF(DATABASE!$O$3:$O$78,'LOK LOK '!C67,DATABASE!$P$3:$P$77) -> 0 | O67: 0 | T67: 0
A68: Enoki with Bacon Roll | B68: 22 | C68: JN222 Enoki Bacon Roll | D68: 4 | E68: =VLOOKUP(C68,Summary!$B$30:$AK$475,5,FALSE) -> 45 | F68: 180 | I68: 0 | J68: 45 | K68: 180 | M68: =SUMIF(DATABASE!$O$3:$O$78,'LOK LOK '!C68,DATABASE!$P$3:$P$77) -> 1.5 | N68: 67.5 | O68: 1.5 | P68: 0 | R68: ENOKI BACON | S68: 3 | T68: 135
A69: Fish Wanton | B69: 23 | C69: JO323 Fish Wanton | D69: 1.5 | E69: =VLOOKUP(C69,Summary!$B$30:$AK$475,5,FALSE) -> 35 | F69: 52.5 | I69: 0 | J69: 35 | K69: 52.5 | M69: =SUMIF(DATABASE!$O$3:$O$78,'LOK LOK '!C69,DATABASE!$P$3:$P$77) -> 0.45 | N69: 15.75 | O69: 0.45 | P69: 0 | R69: FISH WANTON | S69: 3 | T69: 105
A70: Mini Fried Fish Cake | B70: 24 | C70: JO324 M. Fried F. Cake | D70: 1.5 | E70: =VLOOKUP(C70,Summary!$B$30:$AK$475,5,FALSE) -> 41 | F70: 61.5 | I70: 0 | J70: 41 | K70: 61.5 | M70: =SUMIF(DATABASE!$O$3:$O$78,'LOK LOK '!C70,DATABASE!$P$3:$P$77) -> 0.6 | N70: 24.6 | O70: 0.6 | P70: 0 | T70: 0
A71: Spicy Fish Cake | B71: 25 | C71: JO325 Spicy Fish Cake | D71: 1.5 | E71: =VLOOKUP(C71,Summary!$B$30:$AK$475,5,FALSE) -> 15 | F71: 22.5 | I71: 0 | J71: 15 | K71: 22.5 | M71: =SUMIF(DATABASE!$O$3:$O$78,'LOK LOK '!C71,DATABASE!$P$3:$P$77) -> 0.48 | N71: 7.2 | O71: 0.48 | P71: 0 | T71: 0
A72: Clam | B72: 26 | C72: JO326 Fresh Clam | D72: 1.5 | E72: =VLOOKUP(C72,Summary!$B$30:$AK$475,5,FALSE) -> 24 | F72: 36 | I72: 0 | J72: 24 | K72: 36 | M72: =SUMIF(DATABASE!$O$3:$O$78,'LOK LOK '!C72,DATABASE!$P$3:$P$77) -> 1.5 | N72: 36 | O72: 1.5 | P72: 0 | T72: 0
A73: Wu Xiang Fish Ball | B73: 27 | C73: JO327 Wu Xiang F.Ball | D73: 2 | E73: =VLOOKUP(C73,Summary!$B$30:$AK$475,5,FALSE) -> 21 | F73: 42 | I73: 0 | J73: 21 | K73: 42 | M73: =SUMIF(DATABASE!$O$3:$O$78,'LOK LOK '!C73,DATABASE!$P$3:$P$77) -> 0.7 | N73: 14.7 | O73: 0.7 | P73: 0 | T73: 0
A74: Xi Dao Fish Ball | B74: 28 | C74: JO328 Xi Dao Fish Ball | D74: 2 | E74: =VLOOKUP(C74,Summary!$B$30:$AK$475,5,FALSE) -> 51 | F74: =E74*D74 -> 102 | I74: 0 | J74: 0 | K74: =+J74*D74 -> 0 | M74: =SUMIF(DATABASE!$O$3:$O$78,'LOK LOK '!C74,DATABASE!$P$3:$P$77) -> 0.65 | N74: 0 | O74: 0.65 | P74: 0 | R74: FISH BALL | S74: 5 | T74: 255
A75: Fish Ball (Small) | B75: 29 | C75: JO329 Fish Ball (S) | D75: 2 | E75: =VLOOKUP(C75,Summary!$B$30:$AK$475,5,FALSE) -> 30 | F75: =E75*D75 -> 60 | I75: =H75*D75 -> 0 | J75: 0 | K75: =+J75*D75 -> 0 | M75: =SUMIF(DATABASE!$O$3:$O$78,'LOK LOK '!C75,DATABASE!$P$3:$P$77) -> 0.65 | N75: 0 | O75: 0.65 | P75: 0 | R75: FISH BALL (S ) | S75: 5 | T75: 150
A76: Tofu Fish Ball | B76: 30 | C76: JO330 Tofu Fish Ball | D76: 2 | E76: =VLOOKUP(C76,Summary!$B$30:$AK$475,5,FALSE) -> 27 | F76: 54 | I76: 0 | J76: 0 | K76: 0 | M76: =SUMIF(DATABASE!$O$3:$O$78,'LOK LOK '!C76,DATABASE!$P$3:$P$77) -> 0.6 | N76: 0 | O76: 0.6 | P76: 0 | R76: TOFU FISH BALL | S76: 3 | T76: 81
A77: Prawn Ball | B77: 31 | C77: JO331 Prawn Ball | D77: 2 | E77: =VLOOKUP(C77,Summary!$B$30:$AK$475,5,FALSE) -> 16 | F77: =E77*D77 -> 32 | I77: =H77*D77 -> 0 | J77: =+E77-H77 -> 16 | K77: =+J77*D77 -> 32 | M77: =SUMIF(DATABASE!$O$3:$O$78,'LOK LOK '!C77,DATABASE!$P$3:$P$77) -> 0.39 | N77: 6.24 | O77: 0.39 | P77: 0 | R77: PRAWN BALL | S77: 3 | T77: 48
A78: Abalone Slices | B78: 32 | C78: JO332 Abalone Slices | D78: 2 | E78: =VLOOKUP(C78,Summary!$B$30:$AK$475,5,FALSE) -> 47 | F78: 94 | I78: 0 | J78: 47 | K78: =+J78*D78 -> 94 | M78: =SUMIF(DATABASE!$O$3:$O$78,'LOK LOK '!C78,DATABASE!$P$3:$P$77) -> 0.72 | N78: 33.84 | O78: 0.72 | P78: 0 | R78: ABALONE SLICES | S78: 3 | T78: 141
A79: Prawn Cocktail Sausage | B79: 33 | C79: JO333 Prawn C. sausage | D79: 2 | E79: =VLOOKUP(C79,Summary!$B$30:$AK$475,5,FALSE) -> 14 | F79: 28 | I79: 0 | J79: 14 | K79: 28 | M79: =SUMIF(DATABASE!$O$3:$O$78,'LOK LOK '!C79,DATABASE!$P$3:$P$77) -> 0.57 | N79: 7.98 | O79: 0.57 | P79: 0 | R79: PRAWN. C.SAUSAGE | S79: 3 | T79: 42
A80: Fish Ball (Big) | B80: 34 | C80: JO334 FISH BALL BIG | D80: 2.5 | E80: =VLOOKUP(C80,Summary!$B$30:$AK$475,5,FALSE) -> 35 | F80: 87.5 | I80: 0 | J80: 0 | K80: 0 | M80: =SUMIF(DATABASE!$O$3:$O$78,'LOK LOK '!C80,DATABASE!$P$3:$P$77) -> 1 | N80: 0 | O80: 1 | P80: 0 | R80: FISH BALL (B) | S80: 3 | T80: 105
A81: Tempura Prawn | B81: 35 | C81: JO335 Tempura Prawn | D81: 2.5 | E81: =VLOOKUP(C81,Summary!$B$30:$AK$475,5,FALSE) -> 8 | F81: 20 | I81: =H81*D81 -> 0 | J81: 8 | K81: =+J81*D81 -> 20 | M81: =SUMIF(DATABASE!$O$3:$O$78,'LOK LOK '!C81,DATABASE!$P$3:$P$77) -> 0.9 | N81: 7.2 | O81: 0.9 | P81: 0 | R81: TEMPURA PRAWN | S81: 1 | T81: 8
A82: Breaded Crab Claw | B82: 36 | C82: JO336 Breaded CarbClaw | D82: 2.5 | E82: =VLOOKUP(C82,Summary!$B$30:$AK$475,5,FALSE) -> 29 | F82: 72.5 | I82: 0 | J82: 29 | K82: 72.5 | M82: =SUMIF(DATABASE!$O$3:$O$78,'LOK LOK '!C82,DATABASE!$P$3:$P$77) -> 0.9 | N82: 26.1 | O82: 0.9 | P82: 0 | T82: 0
A83: Cheese Shrimp with Fish Paste | B83: 37 | C83: JO337 C.Shrimp.F.Paste | D83: 2.5 | E83: =VLOOKUP(C83,Summary!$B$30:$AK$475,5,FALSE) -> 27 | F83: 67.5 | I83: 0 | J83: 0 | K83: 0 | M83: =SUMIF(DATABASE!$O$3:$O$78,'LOK LOK '!C83,DATABASE!$P$3:$P$77) -> 0.73 | N83: 0 | O83: 0.73 | P83: 0 | T83: 0
A84: Otak Fish Paste | B84: 38 | C84: JO338 Otak Fish Paste | D84: 2.5 | E84: =VLOOKUP(C84,Summary!$B$30:$AK$475,5,FALSE) -> 28 | F84: 70 | I84: 0 | J84: 28 | K84: 70 | M84: =SUMIF(DATABASE!$O$3:$O$78,'LOK LOK '!C84,DATABASE!$P$3:$P$77) -> 0.67 | N84: 18.76 | O84: 0.67 | P84: 0 | T84: 0
A85: Salmon Ball | B85: 39 | C85: JO339 Salmon Ball | D85: 2.5 | E85: =VLOOKUP(C85,Summary!$B$30:$AK$475,5,FALSE) -> 18 | F85: =E85*D85 -> 45 | I85: =H85*D85 -> 0 | J85: =+E85-H85 -> 18 | K85: =+J85*D85 -> 45 | M85: =SUMIF(DATABASE!$O$3:$O$78,'LOK LOK '!C85,DATABASE!$P$3:$P$77) -> 0.9 | N85: =+M85*J85 -> 16.2 | O85: =+M85 -> 0.9 | P85: =+O85*H85 -> 0 | R85: SALMON BALL | S85: 3 | T85: 54
A86: Fuzhou Fish Ball | B86: 40 | C86: JO340 Fuzhou Fish Ball | D86: 3 | E86: =VLOOKUP(C86,Summary!$B$30:$AK$475,5,FALSE) -> 10 | F86: 30 | I86: 0 | J86: 10 | K86: 30 | M86: =SUMIF(DATABASE!$O$3:$O$78,'LOK LOK '!C86,DATABASE!$P$3:$P$77) -> 1.29 | N86: 12.9 | O86: 1.29 | P86: 0 | T86: 0
A87: Scallop Ball | B87: 41 | C87: JO341 Scallop Ball | D87: 3 | E87: =VLOOKUP(C87,Summary!$B$30:$AK$475,5,FALSE) -> 7 | F87: 21 | I87: 0 | J87: 7 | K87: 21 | M87: =SUMIF(DATABASE!$O$3:$O$78,'LOK LOK '!C87,DATABASE!$P$3:$P$77) -> 1.02 | N87: 7.14 | O87: 1.02 | P87: 0 | R87: SCALLOP BALL | S87: 3 | T87: 21
A88: Taiwan Cuttlefish Ball | B88: 42 | C88: JO342 Taiwan C.F. Ball | D88: 3 | E88: =VLOOKUP(C88,Summary!$B$30:$AK$475,5,FALSE) -> 29 | F88: =E88*D88 -> 87 | I88: =H88*D88 -> 0 | J88: =+E88-H88 -> 29 | K88: =+J88*D88 -> 87 | M88: =SUMIF(DATABASE!$O$3:$O$78,'LOK LOK '!C88,DATABASE!$P$3:$P$77) -> 1.17 | N88: =+M88*J88 -> 33.93 | O88: =+M88 -> 1.17 | P88: =+O88*H88 -> 0 | R88: TAIWAN C.F. BALL | S88: 3 | T88: 87
A89: Cuttlefish Roll | B89: 43 | C89: JO343 Cuttlefish Roll | D89: 3 | E89: =VLOOKUP(C89,Summary!$B$30:$AK$475,5,FALSE) -> 30 | F89: 90 | I89: 0 | J89: 30 | K89: 90 | M89: =SUMIF(DATABASE!$O$3:$O$78,'LOK LOK '!C89,DATABASE!$P$3:$P$77) -> 1.06 | N89: 31.8 | O89: 1.06 | P89: 0 | T89: 0
A90: Mushroom Seafood Ball | B90: 44 | C90: JO344 M.Seafood Ball | D90: 3 | E90: =VLOOKUP(C90,Summary!$B$30:$AK$475,5,FALSE) -> 29 | F90: 87 | I90: 0 | J90: 29 | K90: 87 | M90: =SUMIF(DATABASE!$O$3:$O$78,'LOK LOK '!C90,DATABASE!$P$3:$P$77) -> 1.02 | N90: 29.58 | O90: 1.02 | P90: 0 | T90: 0
A91: Cuttlefish | B91: 45 | C91: JO345 Cuttlefish | D91: 3 | E91: =VLOOKUP(C91,Summary!$B$30:$AK$475,5,FALSE) -> 20 | F91: 60 | I91: 0 | J91: 20 | K91: 60 | M91: =SUMIF(DATABASE!$O$3:$O$78,'LOK LOK '!C91,DATABASE!$P$3:$P$77) -> 1.5 | N91: 30 | O91: 1.5 | P91: 0 | T91: 0
A92: Shisamo | B92: 46 | C92: JO346 Shisamo | D92: 4 | E92: =VLOOKUP(C92,Summary!$B$30:$AK$475,5,FALSE) -> 7 | F92: 28 | I92: 0 | J92: 7 | K92: 28 | M92: =SUMIF(DATABASE!$O$3:$O$78,'LOK LOK '!C92,DATABASE!$P$3:$P$77) -> 1.5 | N92: 10.5 | O92: 1.5 | P92: 0 | T92: 0
A93: Tiger Prawn | B93: 47 | C93: JO347 Tiger Prawn | D93: 4 | E93: =VLOOKUP(C93,Summary!$B$30:$AK$475,5,FALSE) -> 11 | F93: 44 | I93: 0 | J93: 11 | K93: 44 | M93: =SUMIF(DATABASE!$O$3:$O$78,'LOK LOK '!C93,DATABASE!$P$3:$P$77) -> 1.5 | N93: 16.5 | O93: 1.5 | P93: 0 | R93: TIGER PRAWN | S93: 3 | T93: 33
A94: Bottom Mushroom | B94: 48 | C94: JP448 Botton Mushroom | D94: 1.5 | E94: =VLOOKUP(C94,Summary!$B$30:$AK$475,5,FALSE) -> 29 | F94: 43.5 | I94: 0 | J94: 29 | K94: 43.5 | M94: =SUMIF(DATABASE!$O$3:$O$78,'LOK LOK '!C94,DATABASE!$P$3:$P$77) -> 0.6 | N94: 17.4 | O94: 0.6 | P94: 0 | T94: 0
A95: Kang Kong | B95: 49 | C95: JP449 Kang Kong | D95: 1.5 | E95: =VLOOKUP(C95,Summary!$B$30:$AK$475,5,FALSE) -> 43 | F95: 64.5 | I95: 0 | J95: 43 | K95: 64.5 | M95: =SUMIF(DATABASE!$O$3:$O$78,'LOK LOK '!C95,DATABASE!$P$3:$P$77) -> 0.4 | N95: 17.2 | O95: 0.4 | P95: 0 | T95: 0
A96: Broccoli | B96: 50 | C96: JP450 Broccali | D96: 1.5 | E96: =VLOOKUP(C96,Summary!$B$30:$AK$475,5,FALSE) -> 47 | F96: 70.5 | I96: 0 | J96: 47 | K96: 70.5 | M96: =SUMIF(DATABASE!$O$3:$O$78,'LOK LOK '!C96,DATABASE!$P$3:$P$77) -> 0.5 | N96: 23.5 | O96: 0.5 | P96: 0 | T96: 0
A97: Long Bean | B97: 51 | C97: JP451 Long Bean | D97: 1.5 | E97: =VLOOKUP(C97,Summary!$B$30:$AK$475,5,FALSE) -> 11 | F97: 16.5 | I97: 0 | J97: 11 | K97: 16.5 | M97: =SUMIF(DATABASE!$O$3:$O$78,'LOK LOK '!C97,DATABASE!$P$3:$P$77) -> 0.3 | N97: 3.3 | O97: 0.3 | P97: 0 | T97: 0
A98: Fried Abalone Mushroom | B98: 52 | C98: JP452 Fried A.Mushroom | D98: 2 | E98: =VLOOKUP(C98,Summary!$B$30:$AK$475,5,FALSE) -> 30 | F98: 60 | I98: 0 | J98: 30 | K98: 60 | M98: =SUMIF(DATABASE!$O$3:$O$78,'LOK LOK '!C98,DATABASE!$P$3:$P$77) -> 0.4 | N98: 12 | O98: 0.4 | P98: 0 | T98: 0
A99: Shiitake Mushroom | B99: 53 | C99: JP453 Shiitake Mushrom | D99: 2 | E99: =VLOOKUP(C99,Summary!$B$30:$AK$475,5,FALSE) -> 29 | F99: 58 | I99: 0 | J99: 29 | K99: 58 | M99: =SUMIF(DATABASE!$O$3:$O$78,'LOK LOK '!C99,DATABASE!$P$3:$P$77) -> 0.7 | N99: 20.3 | O99: 0.7 | P99: 0 | T99: 0
A100: Minced Fish Eggplant | B100: 54 | C100: JQ554 M.Fish Eggplant | D100: 1.5 | E100: =VLOOKUP(C100,Summary!$B$30:$AK$475,5,FALSE) -> 6 | F100: 9 | I100: 0 | J100: 6 | K100: 9 | M100: =SUMIF(DATABASE!$O$3:$O$78,'LOK LOK '!C100,DATABASE!$P$3:$P$77) -> 0.52 | N100: 3.12 | O100: 0.52 | P100: 0 | T100: 0
A101: Minced Fish Chili | B101: 55 | C101: JQ555 M.Fish Chilli | D101: 1.5 | E101: =VLOOKUP(C101,Summary!$B$30:$AK$475,5,FALSE) -> 5 | F101: 7.5 | I101: 0 | J101: 5 | K101: 7.5 | M101: =SUMIF(DATABASE!$O$3:$O$78,'LOK LOK '!C101,DATABASE!$P$3:$P$77) -> 0.52 | N101: 2.6 | O101: 0.52 | P101: 0 | T101: 0
A102: Minced Fish Lady's Finger | B102: 56 | C102: JQ556 M.Fish Lady's F | D102: 1.5 | E102: =VLOOKUP(C102,Summary!$B$30:$AK$475,5,FALSE) -> 12 | F102: 18 | I102: 0 | J102: 12 | K102: 18 | M102: =SUMIF(DATABASE!$O$3:$O$78,'LOK LOK '!C102,DATABASE!$P$3:$P$77) -> 0.52 | N102: 6.24 | O102: 0.52 | P102: 0 | T102: 0
A103: Crispy Mini Beancurd | B103: 57 | C103: JQ557 Chrisy Beabcurd | D103: 1.5 | E103: =VLOOKUP(C103,Summary!$B$30:$AK$475,5,FALSE) -> 64 | F103: 96 | I103: 0 | J103: 64 | K103: 96 | M103: =SUMIF(DATABASE!$O$3:$O$78,'LOK LOK '!C103,DATABASE!$P$3:$P$77) -> 0.33 | N103: 21.12 | O103: 0.33 | P103: 0 | T103: 0
A104: Quail Eggs | B104: 58 | C104: JQ558 Quail Eggs | D104: 1.5 | E104: =VLOOKUP(C104,Summary!$B$30:$AK$475,5,FALSE) -> 75 | F104: 112.5 | I104: 0 | J104: 75 | K104: 112.5 | M104: =SUMIF(DATABASE!$O$3:$O$78,'LOK LOK '!C104,DATABASE!$P$3:$P$77) -> 0.56 | N104: 42 | O104: 0.56 | P104: 0 | R104: QUAIL EGGS | S104: 4 | T104: 300
A105: Fried Wanton | B105: 59 | C105: JQ559 Fried Wanton | D105: 2 | E105: =VLOOKUP(C105,Summary!$B$30:$AK$475,5,FALSE) -> 26 | F105: 52 | I105: 0 | J105: 26 | K105: 52 | M105: =SUMIF(DATABASE!$O$3:$O$78,'LOK LOK '!C105,DATABASE!$P$3:$P$77) -> 0.9 | N105: 23.4 | O105: 0.9 | P105: 0 | R105: FRIED WANTON | S105: 3 | T105: 78
A106: Lemon Grass Potato Samosa | B106: 60 | C106: JQ560 L.G.Potato Samos | D106: 2 | E106: =VLOOKUP(C106,Summary!$B$30:$AK$475,5,FALSE) -> 13 | F106: 26 | I106: 0 | J106: 13 | K106: 26 | M106: =SUMIF(DATABASE!$O$3:$O$78,'LOK LOK '!C106,DATABASE!$P$3:$P$77) -> 0.7 | N106: 9.1 | O106: 0.7 | P106: 0 | T106: 0
A107: Flavored Vege Ball | B107: 61 | C107: JQ561 F.Vege Ball | D107: 2 | E107: =VLOOKUP(C107,Summary!$B$30:$AK$475,5,FALSE) -> 16 | F107: 32 | I107: 0 | J107: 16 | K107: 32 | M107: =SUMIF(DATABASE!$O$3:$O$78,'LOK LOK '!C107,DATABASE!$P$3:$P$77) -> 0.75 | N107: 12 | O107: 0.75 | P107: 0 | R107: VEGE BALL | S107: 3 | T107: 48
A108: Minded Fish Ball | B108: 62 | C108: JQ562 Minced Fish Ball | D108: 2.5 | E108: =VLOOKUP(C108,Summary!$B$30:$AK$475,5,FALSE) -> 11 | F108: 27.5 | I108: 0 | J108: 11 | K108: 27.5 | M108: =SUMIF(DATABASE!$O$3:$O$78,'LOK LOK '!C108,DATABASE!$P$3:$P$77) -> 1.02 | N108: 11.22 | O108: 1.02 | P108: 0 | R108: SEAFOOD TOFU | S108: 3 | T108: 33
A109: Seafood Tofu | B109: 63 | C109: JQ563 Seafood Tofu | D109: 2.5 | E109: =VLOOKUP(C109,Summary!$B$30:$AK$475,5,FALSE) -> 61 | F109: 152.5 | I109: 0 | J109: 61 | K109: 152.5 | M109: =SUMIF(DATABASE!$O$3:$O$78,'LOK LOK '!C109,DATABASE!$P$3:$P$77) -> 0.87 | N109: 53.07 | O109: 0.87 | P109: 0 | R109: SPRING ROLL | S109: 2 | T109: 122
A110: Spring Roll | B110: 64 | C110: JQ564 Spring Roll | D110: 2.5 | E110: =VLOOKUP(C110,Summary!$B$30:$AK$475,5,FALSE) -> 10 | F110: 25 | I110: 0 | J110: 10 | K110: 25 | M110: =SUMIF(DATABASE!$O$3:$O$78,'LOK LOK '!C110,DATABASE!$P$3:$P$77) -> 1 | N110: 10 | O110: 1 | P110: 0 | T110: 0
A111: Quail Century Egg | B111: 65 | C111: JQ565 Quail Century Eg | D111: 2.5 | E111: =VLOOKUP(C111,Summary!$B$30:$AK$475,5,FALSE) -> 58 | F111: 145 | I111: 0 | J111: 58 | K111: 145 | M111: =SUMIF(DATABASE!$O$3:$O$78,'LOK LOK '!C111,DATABASE!$P$3:$P$77) -> 0.81 | N111: 46.98 | O111: 0.81 | P111: 0 | R111: QUAIL CENTURY EGG | S111: 3 | T111: 174
A112: Thai Roll | B112: 66 | C112: JQ566 Thai Roll | D112: 3 | E112: =VLOOKUP(C112,Summary!$B$30:$AK$475,5,FALSE) -> 14 | F112: 42 | I112: 0 | J112: 14 | K112: 42 | M112: =SUMIF(DATABASE!$O$3:$O$78,'LOK LOK '!C112,DATABASE!$P$3:$P$77) -> 1.2 | N112: 16.8 | O112: 1.2 | P112: 0 | R112: THAI ROLL | S112: 2 | T112: =+S112*E112 -> 28
A113: Cheese Seafood Tofu | B113: 67 | C113: JQ567 Cheese S.Tofu | D113: 3 | E113: =VLOOKUP(C113,Summary!$B$30:$AK$475,5,FALSE) -> 62 | F113: 186 | I113: 0 | J113: 62 | K113: 186 | M113: =SUMIF(DATABASE!$O$3:$O$78,'LOK LOK '!C113,DATABASE!$P$3:$P$77) -> 1.02 | N113: 63.24 | O113: 1.02 | P113: 0 | T113: 0
A114: Rice Skin Roll | B114: 68 | C114: JQ568 Rice Skin Roll | D114: 3 | E114: =VLOOKUP(C114,Summary!$B$30:$AK$475,5,FALSE) -> 12 | F114: 36 | I114: 0 | J114: 12 | K114: 36 | M114: =SUMIF(DATABASE!$O$3:$O$78,'LOK LOK '!C114,DATABASE!$P$3:$P$77) -> 1.2 | N114: 14.4 | O114: 1.2 | P114: 0 | T114: 0
B115: 69 | C115: JR01 PACKAGE A | D115: 18.8 | E115: =VLOOKUP(C115,Summary!$B$30:$AK$475,5,FALSE) -> 11 | F115: =E115*D115 -> 206.8 | I115: =H115*D115 -> 0 | J115: =+E115-H115 -> 11 | K115: =+J115*D115 -> 206.8 | M115: =SUMIF(DATABASE!$O$3:$O$78,'LOK LOK '!C115,DATABASE!$P$3:$P$77) -> 8.28 | N115: =+M115*J115 -> 91.08 | O115: =+M115 -> 8.28 | P115: =+O115*H115 -> 0 | T115: 0
T116: 0
T117: 0
T118: 0
T119: 0
B125: 70 | C125: JR02 PACKAGE B | D125: 18.8 | E125: =VLOOKUP(C125,Summary!$B$30:$AK$475,5,FALSE) -> 19 | F125: 357.2 | I125: 0 | J125: 19 | K125: 357.2 | M125: =SUMIF(DATABASE!$O$3:$O$78,'LOK LOK '!C125,DATABASE!$P$3:$P$77) -> 8.46 | N125: 160.74 | O125: 8.46 | P125: 0
B128: Total Sales / COST | E128: =SUM(E47:E127) -> 2081 | F128: =SUM(F47:F127) -> 5545 | H128: =SUM(H26:H126) -> 0 | I128: =SUM(I11:I127) -> 0 | J128: =SUM(J47:J127) -> 1603 | K128: =SUM(K47:K127) -> 4392.5 | N128: =SUM(N47:N127) -> 1617.82 | P128: =SUM(P47:P127) -> 0
C130: NEW ADDED CODE 69 AND 70

Sheet SIDE ORDER & FOC
A1: MONTHLY SALES FOOD RECORD ( SIDE ORDER & FOC )
A3: =+'K-LUNCH & K DINNER'!A3 -> Outlet : | B3: =+'K-LUNCH & K DINNER'!B3 -> CCS OUTLET
A4: =+'K-LUNCH & K DINNER'!A4 -> Month : | B4: =+'K-LUNCH & K DINNER'!B4 -> 2013-09-01
A6: LOCAL DELIGHTS / WESTERN CRUISE / APPETIZER
D7: (A) | G7: (B) | I7: (A) - (B)
D8: SIDE ORDER (INCLUDING FOC) | G8: FOC | I8: SIDE ORDER (NETT SALES) | L8: SIDE ORDER (NETT COST) | N8: FOC (COST) | Q8: USAGE
A9: NO | B9: MENU ITEM | C9: S/P | D9: Sales | E9: TOTAL | G9: Sales | H9: TOTAL | I9: Sales | J9: TOTAL | L9: COST | M9: TOTAL | N9: COST | O9: TOTAL | Q9: MATERIAL | R9: RECIPE | S9: TOTAL
C10: RM | D10: Q | E10: RM | G10: Q | H10: RM | I10: Q | J10: RM | L10: RM | M10: RM | N10: RM | O10: RM | Q10: Q | R10: Q | S10: Q
A11: 1 | B11: DF01 ADD RICE | C11: 1 | D11: =VLOOKUP(B11,Summary!$B$30:$AK$475,5,FALSE) -> 15 | E11: =D11*C11 -> 15 | G11: =SUMIF('DAILY FOC'!$A$9:$A$62,'SIDE ORDER & FOC'!B11,'DAILY FOC'!$BN$9:$BN$63) -> 0 | H11: =G11*C11 -> 0 | I11: =+D11-G11 -> 15 | J11: =+I11*C11 -> 15 | L11: =SUMIF(DATABASE!$F$3:$F$89,B11,DATABASE!$I$3:$I$81) -> 0.5 | M11: =+L11*I11 -> 7.5 | N11: =+L11 -> 0.5 | O11: =+N11*G11 -> 0
A12: =+A11+1 -> 2 | B12: DF02 ADD F.EGG | C12: 1.5 | D12: =VLOOKUP(B12,Summary!$B$30:$AK$475,5,FALSE) -> 9 | E12: 13.5 | G12: =SUMIF('DAILY FOC'!$A$9:$A$62,'SIDE ORDER & FOC'!B12,'DAILY FOC'!$BN$9:$BN$63) -> 0 | H12: 0 | I12: =+D12-G12 -> 9 | J12: 13.5 | L12: =SUMIF(DATABASE!$F$3:$F$89,B12,DATABASE!$I$3:$I$81) -> 0.34 | M12: 3.06 | N12: 0.34 | O12: 0
A13: 3 | B13: DC01 1101:THAI CHK | C13: 9.9 | D13: =VLOOKUP(B13,Summary!$B$30:$AK$475,5,FALSE) -> 60 | E13: 594 | G13: =SUMIF('DAILY FOC'!$A$9:$A$62,'SIDE ORDER & FOC'!B13,'DAILY FOC'!$BN$9:$BN$63) -> 0 | H13: 0 | I13: 60 | J13: 594 | L13: =SUMIF(DATABASE!$F$3:$F$89,B13,DATABASE!$I$3:$I$81) -> 3.29 | M13: 197.4 | N13: 3.29 | O13: 0 | Q13: CHICKEN CHOP (MARINATED) | R13: 0.66 | S13: =+R13*D13 -> 39.6
A14: 4 | B14: DC02 1102:MAMITE CHK | C14: 9.9 | D14: =VLOOKUP(B14,Summary!$B$30:$AK$475,5,FALSE) -> 63 | E14: 623.7 | G14: =SUMIF('DAILY FOC'!$A$9:$A$62,'SIDE ORDER & FOC'!B14,'DAILY FOC'!$BN$9:$BN$63) -> 0 | H14: 0 | I14: 63 | J14: 623.7 | L14: =SUMIF(DATABASE!$F$3:$F$89,B14,DATABASE!$I$3:$I$81) -> 3.02 | M14: 190.26 | N14: 3.02 | O14: 0 | Q14: CHICKEN CHOP (MARINATED) | R14: 0.66 | S14: =+R14*D14 -> 41.58
A15: 5 | B15: DC03 1103:KO PO CHK | C15: 9.9 | D15: =VLOOKUP(B15,Summary!$B$30:$AK$475,5,FALSE) -> 0 | E15: 0 | G15: =SUMIF('DAILY FOC'!$A$9:$A$62,'SIDE ORDER & FOC'!B15,'DAILY FOC'!$BN$9:$BN$63) -> 0 | H15: 0 | I15: 0 | J15: 0 | L15: =SUMIF(DATABASE!$F$3:$F$89,B15,DATABASE!$I$3:$I$81) -> 3.45 | M15: 0 | N15: 3.45 | O15: 0 | Q15: CHICKEN CHOP (MARINATED) | R15: 0.66 | S15: =+R15*D15 -> 0
A16: 6 | B16: DC04 1104:S&S CHK | C16: 9.9 | D16: =VLOOKUP(B16,Summary!$B$30:$AK$475,5,FALSE) -> 31 | E16: 306.9 | G16: =SUMIF('DAILY FOC'!$A$9:$A$62,'SIDE ORDER & FOC'!B16,'DAILY FOC'!$BN$9:$BN$63) -> 0 | H16: 0 | I16: 31 | J16: 306.9 | L16: =SUMIF(DATABASE!$F$3:$F$89,B16,DATABASE!$I$3:$I$81) -> 3.45 | M16: 106.95 | N16: 3.45 | O16: 0 | Q16: CHICKEN CHOP (MARINATED) | R16: 0.66 | S16: =+R16*D16 -> 20.46
A17: 7 | B17: DC05 1105:BUTTER CHK | C17: 9.9 | D17: =VLOOKUP(B17,Summary!$B$30:$AK$475,5,FALSE) -> 130 | E17: 1287 | G17: =SUMIF('DAILY FOC'!$A$9:$A$62,'SIDE ORDER & FOC'!B17,'DAILY FOC'!$BN$9:$BN$63) -> 1 | H17: 9.9 | I17: 129 | J17: 1277.1 | L17: =SUMIF(DATABASE!$F$3:$F$89,B17,DATABASE!$I$3:$I$81) -> 3.32 | M17: 428.28 | N17: 3.32 | O17: 3.32 | Q17: CHICKEN CHOP (MARINATED) | R17: 0.66 | S17: =+R17*D17 -> 85.8
A18: 8 | B18: DC06 1106:HK F.RICE | C18: 9.9 | D18: =VLOOKUP(B18,Summary!$B$30:$AK$475,5,FALSE) -> 56 | E18: 554.4 | G18: =SUMIF('DAILY FOC'!$A$9:$A$62,'SIDE ORDER & FOC'!B18,'DAILY FOC'!$BN$9:$BN$63) -> 0 | H18: 0 | I18: 56 | J18: 554.4 | L18: =SUMIF(DATABASE!$F$3:$F$89,B18,DATABASE!$I$3:$I$81) -> 3.16 | M18: 176.96 | N18: 3.16 | O18: 0
A19: 9 | B19: DC07 1107:SBL F.RICE | C19: 9.9 | D19: =VLOOKUP(B19,Summary!$B$30:$AK$475,5,FALSE) -> 51 | E19: 504.9 | G19: =SUMIF('DAILY FOC'!$A$9:$A$62,'SIDE ORDER & FOC'!B19,'DAILY FOC'!$BN$9:$BN$63) -> 0 | H19: 0 | I19: 51 | J19: 504.9 | L19: =SUMIF(DATABASE!$F$3:$F$89,B19,DATABASE!$I$3:$I$81) -> 2.41 | M19: 122.91 | N19: 2.41 | O19: 0
A20: 10 | B20: DC08 1108:SBL F.MEE | C20: 9.9 | D20: =VLOOKUP(B20,Summary!$B$30:$AK$475,5,FALSE) -> 7 | E20: 69.3 | G20: =SUMIF('DAILY FOC'!$A$9:$A$62,'SIDE ORDER & FOC'!B20,'DAILY FOC'!$BN$9:$BN$63) -> 0 | H20: 0 | I20: 7 | J20: 69.3 | L20: =SUMIF(DATABASE!$F$3:$F$89,B20,DATABASE!$I$3:$I$81) -> 2.8 | M20: 19.6 | N20: 2.8 | O20: 0
A21: 11 | B21: DC09 1109:BP UDON | C21: 9.9 | D21: =VLOOKUP(B21,Summary!$B$30:$AK$475,5,FALSE) -> 27 | E21: 267.3 | G21: =SUMIF('DAILY FOC'!$A$9:$A$62,'SIDE ORDER & FOC'!B21,'DAILY FOC'!$BN$9:$BN$63) -> 0 | H21: 0 | I21: 27 | J21: 267.3 | L21: =SUMIF(DATABASE!$F$3:$F$89,B21,DATABASE!$I$3:$I$81) -> 2.08 | M21: 56.16 | N21: 2.08 | O21: 0
A22: 12 | B22: DC10 1110:NISSIN | C22: 9.9 | D22: =VLOOKUP(B22,Summary!$B$30:$AK$475,5,FALSE) -> 19 | E22: 188.1 | G22: =SUMIF('DAILY FOC'!$A$9:$A$62,'SIDE ORDER & FOC'!B22,'DAILY FOC'!$BN$9:$BN$63) -> 0 | H22: 0 | I22: 19 | J22: 188.1 | L22: =SUMIF(DATABASE!$F$3:$F$89,B22,DATABASE!$I$3:$I$81) -> 2.32 | M22: 44.08 | N22: 2.32 | O22: 0 | Q22: CHICKEN SAUSAGE | R22: 1.5 | S22: =+R22*D22 -> 28.5
A23: 13 | B23: DC11 1111:VEG RICE | C23: 9.9 | D23: =VLOOKUP(B23,Summary!$B$30:$AK$475,5,FALSE) -> 7 | E23: 69.3 | G23: =SUMIF('DAILY FOC'!$A$9:$A$62,'SIDE ORDER & FOC'!B23,'DAILY FOC'!$BN$9:$BN$63) -> 0 | H23: 0 | I23: 7 | J23: 69.3 | L23: =SUMIF(DATABASE!$F$3:$F$89,B23,DATABASE!$I$3:$I$81) -> 1.6 | M23: 11.2 | N23: 1.6 | O23: 0
A24: 14 | B24: DC12 1112:NASI LEMAK | C24: 9.9 | D24: =VLOOKUP(B24,Summary!$B$30:$AK$475,5,FALSE) -> 0 | E24: 0 | G24: =SUMIF('DAILY FOC'!$A$9:$A$62,'SIDE ORDER & FOC'!B24,'DAILY FOC'!$BN$9:$BN$63) -> 0 | H24: 0 | I24: 0 | J24: 0 | L24: =SUMIF(DATABASE!$F$3:$F$89,B24,DATABASE!$I$3:$I$81) -> 3.56 | M24: 0 | N24: 3.56 | O24: 0 | Q24: CHICKEN WINGS (NON -MARINATED) | R24: 1 | S24: =+R24*D24 -> 0
A25: 15 | B25: DC13 1113:KUEY TEOW | C25: 9.9 | D25: =VLOOKUP(B25,Summary!$B$30:$AK$475,5,FALSE) -> 0 | E25: 0 | G25: =SUMIF('DAILY FOC'!$A$9:$A$62,'SIDE ORDER & FOC'!B25,'DAILY FOC'!$BN$9:$BN$63) -> 0 | H25: 0 | I25: 0 | J25: 0 | L25: =SUMIF(DATABASE!$F$3:$F$89,B25,DATABASE!$I$3:$I$81) -> 3.16 | M25: 0 | N25: 3.16 | O25: 0
A26: 16 | B26: DC14 1114:F.BALL MEE | C26: 9.9 | D26: =VLOOKUP(B26,Summary!$B$30:$AK$475,5,FALSE) -> 0 | E26: 0 | G26: =SUMIF('DAILY FOC'!$A$9:$A$62,'SIDE ORDER & FOC'!B26,'DAILY FOC'!$BN$9:$BN$63) -> 0 | H26: 0 | I26: 0 | J26: 0 | L26: =SUMIF(DATABASE!$F$3:$F$89,B26,DATABASE!$I$3:$I$81) -> 2.59 | M26: 0 | N26: 2.59 | O26: 0 | Q26: FISH BALL (SMALL) | R26: 5 | S26: =+R26*D26 -> 0
A27: 17 | B27: DC15 1115:CHK NOODLE | C27: 9.9 | D27: =VLOOKUP(B27,Summary!$B$30:$AK$475,5,FALSE) -> 22 | E27: 217.8 | G27: =SUMIF('DAILY FOC'!$A$9:$A$62,'SIDE ORDER & FOC'!B27,'DAILY FOC'!$BN$9:$BN$63) -> 0 | H27: 0 | I27: 22 | J27: 217.8 | L27: =SUMIF(DATABASE!$F$3:$F$89,B27,DATABASE!$I$3:$I$81) -> 4.71 | M27: 103.62 | N27: 4.71 | O27: 0 | Q27: CHICKEN CHOP (MARINATED) | R27: 1 | S27: 22
A28: 18 | B28: DC16 1116:MGL CHICKEN | C28: 9.9 | D28: =VLOOKUP(B28,Summary!$B$30:$AK$475,5,FALSE) -> 22 | E28: 217.8 | G28: =SUMIF('DAILY FOC'!$A$9:$A$62,'SIDE ORDER & FOC'!B28,'DAILY FOC'!$BN$9:$BN$63) -> 0 | H28: 0 | I28: 22 | J28: 217.8 | L28: =SUMIF(DATABASE!$F$3:$F$89,B28,DATABASE!$I$3:$I$81) -> 3.54 | M28: 77.88 | N28: 3.54 | O28: 0 | Q28: CHICKEN CHOP (MARINATED) | R28: 0.66 | S28: 14.52
A29: 19 | B29: DB01 1001:BP CKN CP | C29: 12.9 | D29: =VLOOKUP(B29,Summary!$B$30:$AK$475,5,FALSE) -> 93 | E29: 1199.7 | G29: =SUMIF('DAILY FOC'!$A$9:$A$62,'SIDE ORDER & FOC'!B29,'DAILY FOC'!$BN$9:$BN$63) -> 1 | H29: 12.9 | I29: 92 | J29: 1186.8 | L29: =SUMIF(DATABASE!$F$3:$F$89,B29,DATABASE!$I$3:$I$81) -> 4.41 | M29: 405.72 | N29: 4.41 | O29: 4.41 | Q29: CHICKEN CHOP (MARINATED) | R29: 1 | S29: 93
A30: 20 | B30: DB02 1002:GVY CHK CP | C30: 12.9 | D30: =VLOOKUP(B30,Summary!$B$30:$AK$475,5,FALSE) -> 23 | E30: 296.7 | G30: =SUMIF('DAILY FOC'!$A$9:$A$62,'SIDE ORDER & FOC'!B30,'DAILY FOC'!$BN$9:$BN$63) -> 0 | H30: 0 | I30: 23 | J30: 296.7 | L30: =SUMIF(DATABASE!$F$3:$F$89,B30,DATABASE!$I$3:$I$81) -> 4.43 | M30: 101.89 | N30: 4.43 | O30: 0 | Q30: CHICKEN CHOP (MARINATED) | R30: 1 | S30: 23
A31: 21 | B31: DB03 1003:MSR CKN CP | C31: 12.9 | D31: =VLOOKUP(B31,Summary!$B$30:$AK$475,5,FALSE) -> 115 | E31: 1483.5 | G31: =SUMIF('DAILY FOC'!$A$9:$A$62,'SIDE ORDER & FOC'!B31,'DAILY FOC'!$BN$9:$BN$63) -> 0 | H31: 0 | I31: 115 | J31: 1483.5 | L31: =SUMIF(DATABASE!$F$3:$F$89,B31,DATABASE!$I$3:$I$81) -> 4.75 | M31: 546.25 | N31: 4.75 | O31: 0 | Q31: CHICKEN CHOP (MARINATED) | R31: 1 | S31: 115
A32: 22 | B32: DB04 1004:CKN MARY | C32: 12.9 | D32: =VLOOKUP(B32,Summary!$B$30:$AK$475,5,FALSE) -> 27 | E32: 348.3 | G32: =SUMIF('DAILY FOC'!$A$9:$A$62,'SIDE ORDER & FOC'!B32,'DAILY FOC'!$BN$9:$BN$63) -> 0 | H32: 0 | I32: 27 | J32: 348.3 | L32: =SUMIF(DATABASE!$F$3:$F$89,B32,DATABASE!$I$3:$I$81) -> 5.98 | M32: 161.46 | N32: 5.98 | O32: 0 | Q32: CHICKEN CHOP (MARINATED) | R32: 1 | S32: 27
A33: 23 | B33: DB05 1005:FISH&CHIP | C33: 12.9 | D33: =VLOOKUP(B33,Summary!$B$30:$AK$475,5,FALSE) -> 40 | E33: 516 | G33: =SUMIF('DAILY FOC'!$A$9:$A$62,'SIDE ORDER & FOC'!B33,'DAILY FOC'!$BN$9:$BN$63) -> 0 | H33: 0 | I33: 40 | J33: 516 | L33: =SUMIF(DATABASE!$F$3:$F$89,B33,DATABASE!$I$3:$I$81) -> 4.32 | M33: 172.8 | N33: 4.32 | O33: 0 | Q33: DORY FISH FILLET | R33: 1 | S33: 40
A34: 24 | B34: DB06 1006:SPAGHETTI | C34: 12.9 | D34: =VLOOKUP(B34,Summary!$B$30:$AK$475,5,FALSE) -> 46 | E34: 593.4 | G34: =SUMIF('DAILY FOC'!$A$9:$A$62,'SIDE ORDER & FOC'!B34,'DAILY FOC'!$BN$9:$BN$63) -> 0 | H34: 0 | I34: 46 | J34: 593.4 | L34: =SUMIF(DATABASE!$F$3:$F$89,B34,DATABASE!$I$3:$I$81) -> 2.1 | M34: 96.6 | N34: 2.1 | O34: 0
A35: 25 | B35: DB07 1007:CHK SALAD | C35: 12.9 | D35: =VLOOKUP(B35,Summary!$B$30:$AK$475,5,FALSE) -> 11 | E35: 141.9 | G35: =SUMIF('DAILY FOC'!$A$9:$A$62,'SIDE ORDER & FOC'!B35,'DAILY FOC'!$BN$9:$BN$63) -> 2 | H35: 25.8 | I35: 9 | J35: 116.1 | L35: =SUMIF(DATABASE!$F$3:$F$89,B35,DATABASE!$I$3:$I$81) -> 4.94 | M35: 44.46 | N35: 4.94 | O35: 9.88 | Q35: CHICKEN CHOP (MARINATED) | R35: 1 | S35: =+R35*D35 -> 11
A36: 26 | B36: DD01 1201:SFD STICK | C36: 5.9 | D36: =VLOOKUP(B36,Summary!$B$30:$AK$475,5,FALSE) -> 0 | E36: 0 | G36: =SUMIF('DAILY FOC'!$A$9:$A$62,'SIDE ORDER & FOC'!B36,'DAILY FOC'!$BN$9:$BN$63) -> 0 | H36: 0 | I36: 0 | J36: 0 | L36: =SUMIF(DATABASE!$F$3:$F$89,B36,DATABASE!$I$3:$I$81) -> 2 | M36: 0 | N36: 2 | O36: 0 | Q36: SOTONG BALL | R36: 2 | S36: =+R36*$D$36 -> 0
Q37: SALMON BALL | R37: 2 | S37: =+R37*$D$36 -> 0
Q38: SEAFOOD TOFU | R38: 2 | S38: =+R38*$D$36 -> 0
A39: =+A36+1 -> 27 | B39: DD02 1202:FREN FRIES | C39: 5.9 | D39: =VLOOKUP(B39,Summary!$B$30:$AK$475,5,FALSE) -> 80 | E39: =D39*C39 -> 472 | G39: =SUMIF('DAILY FOC'!$A$9:$A$62,'SIDE ORDER & FOC'!B39,'DAILY FOC'!$BN$9:$BN$63) -> 0 | H39: =G39*C39 -> 0 | I39: =+D39-G39 -> 80 | J39: =+I39*C39 -> 472 | L39: =SUMIF(DATABASE!$F$3:$F$89,B39,DATABASE!$I$3:$I$81) -> 1.76 | M39: =+L39*I39 -> 140.8 | N39: =+L39 -> 1.76 | O39: =+N39*G39 -> 0
A40: =+A39+1 -> 28 | B40: DD03 1203:GOLD MROOM | C40: 5.9 | D40: =VLOOKUP(B40,Summary!$B$30:$AK$475,5,FALSE) -> 11 | E40: 64.9 | G40: =SUMIF('DAILY FOC'!$A$9:$A$62,'SIDE ORDER & FOC'!B40,'DAILY FOC'!$BN$9:$BN$63) -> 0 | H40: 0 | I40: 11 | J40: 64.9 | L40: =SUMIF(DATABASE!$F$3:$F$89,B40,DATABASE!$I$3:$I$81) -> 2.15 | M40: 23.65 | N40: 2.15 | O40: 0
A41: 29 | B41: DD04 1204:FISHBALL | C41: 5.9 | D41: =VLOOKUP(B41,Summary!$B$30:$AK$475,5,FALSE) -> 14 | E41: 82.6 | G41: =SUMIF('DAILY FOC'!$A$9:$A$62,'SIDE ORDER & FOC'!B41,'DAILY FOC'!$BN$9:$BN$63) -> 0 | H41: 0 | I41: 14 | J41: 82.6 | L41: =SUMIF(DATABASE!$F$3:$F$89,B41,DATABASE!$I$3:$I$81) -> 1.56 | M41: 21.84 | N41: 1.56 | O41: 0 | Q41: FISH BALL (BIG) | R41: 6 | S41: =+R41*D41 -> 84
A42: 30 | B42: DD05 1205:RAINBOW RL | C42: 5.9 | D42: =VLOOKUP(B42,Summary!$B$30:$AK$475,5,FALSE) -> 0 | E42: 0 | G42: =SUMIF('DAILY FOC'!$A$9:$A$62,'SIDE ORDER & FOC'!B42,'DAILY FOC'!$BN$9:$BN$63) -> 0 | H42: 0 | I42: 0 | J42: 0 | L42: =SUMIF(DATABASE!$F$3:$F$89,B42,DATABASE!$I$3:$I$81) -> 2.5 | M42: 0 | N42: 2.5 | O42: 0 | Q42: RAINBOW ROLL | R42: 1 | S42: 0
A43: 31 | B43: DD06 1206:SPRING RL | C43: 5.9 | D43: =VLOOKUP(B43,Summary!$B$30:$AK$475,5,FALSE) -> 17 | E43: 100.3 | G43: =SUMIF('DAILY FOC'!$A$9:$A$62,'SIDE ORDER & FOC'!B43,'DAILY FOC'!$BN$9:$BN$63) -> 0 | H43: 0 | I43: 17 | J43: 100.3 | L43: =SUMIF(DATABASE!$F$3:$F$89,B43,DATABASE!$I$3:$I$81) -> 2.67 | M43: 45.39 | N43: 2.67 | O43: 0 | Q43: SPRING ROLL | R43: 8 | S43: 136
A44: 32 | B44: DD07 1207:SAUSAGE | C44: 5.9 | D44: =VLOOKUP(B44,Summary!$B$30:$AK$475,5,FALSE) -> 17 | E44: 100.3 | G44: =SUMIF('DAILY FOC'!$A$9:$A$62,'SIDE ORDER & FOC'!B44,'DAILY FOC'!$BN$9:$BN$63) -> 1 | H44: 5.9 | I44: 16 | J44: 94.4 | L44: =SUMIF(DATABASE!$F$3:$F$89,B44,DATABASE!$I$3:$I$81) -> 1.24 | M44: 19.84 | N44: 1.24 | O44: 1.24 | Q44: CHICKEN SAUSAGE | R44: 4 | S44: 68
A45: 33 | B45: DD10 1301:DUMPLING | C45: 5.9 | D45: =VLOOKUP(B45,Summary!$B$30:$AK$475,5,FALSE) -> 0 | E45: 0 | G45: =SUMIF('DAILY FOC'!$A$9:$A$62,'SIDE ORDER & FOC'!B45,'DAILY FOC'!$BN$9:$BN$63) -> 0 | H45: 0 | I45: 0 | J45: 0 | L45: =SUMIF(DATABASE!$F$3:$F$89,B45,DATABASE!$I$3:$I$81) -> 4.5 | M45: 0 | N45: 4.5 | O45: 0 | Q45: DUMPLING | R45: 6 | S45: 0
A46: 34 | B46: DD11 1302:NUGGET | C46: 7.9 | D46: =VLOOKUP(B46,Summary!$B$30:$AK$475,5,FALSE) -> 39 | E46: 308.1 | G46: =SUMIF('DAILY FOC'!$A$9:$A$62,'SIDE ORDER & FOC'!B46,'DAILY FOC'!$BN$9:$BN$63) -> 0 | H46: 0 | I46: 39 | J46: 308.1 | L46: =SUMIF(DATABASE!$F$3:$F$89,B46,DATABASE!$I$3:$I$81) -> 2.43 | M46: 94.77 | N46: 2.43 | O46: 0 | Q46: CHICKEN NUGGET | R46: 8 | S46: 312
A47: 35 | B47: DD12 1303:CHK WING | C47: 7.9 | D47: =VLOOKUP(B47,Summary!$B$30:$AK$475,5,FALSE) -> 31 | E47: 244.9 | G47: =SUMIF('DAILY FOC'!$A$9:$A$62,'SIDE ORDER & FOC'!B47,'DAILY FOC'!$BN$9:$BN$63) -> 0 | H47: 0 | I47: 31 | J47: 244.9 | L47: =SUMIF(DATABASE!$F$3:$F$89,B47,DATABASE!$I$3:$I$81) -> 3.97 | M47: 123.07 | N47: 3.97 | O47: 0 | Q47: CHICKEN WING (MARINATED) | R47: 3 | S47: 93 | T47: 105
A48: 36 | B48: DD13 1304:IKAN BILIS | C48: 7.9 | D48: =VLOOKUP(B48,Summary!$B$30:$AK$475,5,FALSE) -> 9 | E48: 71.1 | G48: =SUMIF('DAILY FOC'!$A$9:$A$62,'SIDE ORDER & FOC'!B48,'DAILY FOC'!$BN$9:$BN$63) -> 0 | H48: 0 | I48: 9 | J48: 71.1 | L48: =SUMIF(DATABASE!$F$3:$F$89,B48,DATABASE!$I$3:$I$81) -> 2.18 | M48: 19.62 | N48: 2.18 | O48: 0 | S48: 0
A49: 37 | B49: DD14 1305:THAI RL | C49: 7.9 | D49: =VLOOKUP(B49,Summary!$B$30:$AK$475,5,FALSE) -> 5 | E49: 39.5 | G49: =SUMIF('DAILY FOC'!$A$9:$A$62,'SIDE ORDER & FOC'!B49,'DAILY FOC'!$BN$9:$BN$63) -> 1 | H49: 7.9 | I49: 4 | J49: 31.6 | L49: =SUMIF(DATABASE!$F$3:$F$89,B49,DATABASE!$I$3:$I$81) -> 3.61 | M49: 14.44 | N49: 3.61 | O49: 3.61 | Q49: THAI ROLL | R49: 7 | S49: 35
A50: 38 | B50: DD15 1306:SLVR FISH | C50: 7.9 | D50: =VLOOKUP(B50,Summary!$B$30:$AK$475,5,FALSE) -> 0 | E50: 0 | G50: =SUMIF('DAILY FOC'!$A$9:$A$62,'SIDE ORDER & FOC'!B50,'DAILY FOC'!$BN$9:$BN$63) -> 0 | H50: 0 | I50: 0 | J50: 0 | L50: =SUMIF(DATABASE!$F$3:$F$89,B50,DATABASE!$I$3:$I$81) -> 0 | M50: 0 | N50: 0 | O50: 0 | S50: 0
A51: 39 | B51: DD16 1307:D.F C/WING | C51: 7.9 | D51: =VLOOKUP(B51,Summary!$B$30:$AK$475,5,FALSE) -> 13 | E51: 102.7 | G51: =SUMIF('DAILY FOC'!$A$9:$A$62,'SIDE ORDER & FOC'!B51,'DAILY FOC'!$BN$9:$BN$63) -> 1 | H51: 7.9 | I51: 12 | J51: 94.8 | L51: =SUMIF(DATABASE!$F$3:$F$89,B51,DATABASE!$I$3:$I$81) -> 4.31 | M51: 51.72 | N51: 4.31 | O51: 4.31 | Q51: CHICKEN WING (MARINATED) | R51: 3 | S51: 39 | T51: 48
A52: 40 | B52: DD17 1308 C/CALAMARI | C52: 7.9 | D52: =VLOOKUP(B52,Summary!$B$30:$AK$475,5,FALSE) -> 11 | E52: 86.9 | G52: =SUMIF('DAILY FOC'!$A$9:$A$62,'SIDE ORDER & FOC'!B52,'DAILY FOC'!$BN$9:$BN$63) -> 0 | H52: 0 | I52: 11 | J52: 86.9 | L52: =SUMIF(DATABASE!$F$3:$F$89,B52,DATABASE!$I$3:$I$81) -> 3.69 | M52: 40.59 | N52: 3.69 | O52: 0 | Q52: CALAMARI RING | R52: 7 | S52: 77
A53: 41 | B53: DD18 1309 Mc C/O.RING | C53: 7.9 | D53: =VLOOKUP(B53,Summary!$B$30:$AK$475,5,FALSE) -> 6 | E53: 47.4 | G53: =SUMIF('DAILY FOC'!$A$9:$A$62,'SIDE ORDER & FOC'!B53,'DAILY FOC'!$BN$9:$BN$63) -> 0 | H53: 0 | I53: 6 | J53: 47.4 | L53: =SUMIF(DATABASE!$F$3:$F$89,B53,DATABASE!$I$3:$I$81) -> 1.72 | M53: 10.32 | N53: 1.72 | O53: 0 | Q53: MCCAIN ONION RING | R53: 8 | S53: 48
A54: 42 | B54: DD19 1310:Mc SPIRAL/F | C54: 7.9 | D54: =VLOOKUP(B54,Summary!$B$30:$AK$475,5,FALSE) -> 7 | E54: 55.3 | G54: =SUMIF('DAILY FOC'!$A$9:$A$62,'SIDE ORDER & FOC'!B54,'DAILY FOC'!$BN$9:$BN$63) -> 0 | H54: 0 | I54: 7 | J54: 55.3 | L54: =SUMIF(DATABASE!$F$3:$F$89,B54,DATABASE!$I$3:$I$81) -> 1.72 | M54: 12.04 | N54: 1.72 | O54: 0 | Q54: MCCAIN SPIRAL FRIES | R54: 0.22 | S54: 1.54
A55: 43 | B55: DD20 1311:Mc H/SMILES | C55: 7.9 | D55: =VLOOKUP(B55,Summary!$B$30:$AK$475,5,FALSE) -> 0 | E55: 0 | G55: =SUMIF('DAILY FOC'!$A$9:$A$62,'SIDE ORDER & FOC'!B55,'DAILY FOC'!$BN$9:$BN$63) -> 0 | H55: 0 | I55: 0 | J55: 0 | L55: =SUMIF(DATABASE!$F$3:$F$89,B55,DATABASE!$I$3:$I$81) -> 1.34 | M55: 0 | N55: 1.34 | O55: 0 | Q55: MCCAIN SMILES | R55: 8 | S55: 0
A56: 44 | B56: DD21 1312:Mc HASH BRW | C56: 7.9 | D56: =VLOOKUP(B56,Summary!$B$30:$AK$475,5,FALSE) -> 8 | E56: 63.2 | G56: =SUMIF('DAILY FOC'!$A$9:$A$62,'SIDE ORDER & FOC'!B56,'DAILY FOC'!$BN$9:$BN$63) -> 0 | H56: 0 | I56: 8 | J56: 63.2 | L56: =SUMIF(DATABASE!$F$3:$F$89,B56,DATABASE!$I$3:$I$81) -> 0.59 | M56: 4.72 | N56: 0.59 | O56: 0 | Q56: MCCAIN VERSITOT | R56: 15 | S56: 120
B58: COMBO SET
A59: 1 | B59: ZAB01 1201:SFD STICK | C59: 4.95 | D59: =VLOOKUP(B59,Summary!$B$30:$AK$475,5,FALSE) -> 11 | E59: =D59*C59 -> 54.45 | I59: =+D59-G59 -> 11 | J59: =+I59*C59 -> 54.45 | L59: =SUMIF(DATABASE!$F$3:$F$89,B59,DATABASE!$I$3:$I$81) -> 2 | M59: =+L59*I59 -> 22 | N59: =+L59 -> 2 | O59: =+N59*G59 -> 0 | Q59: SOTONG BALL | R59: 2 | S59: =+R59*D59 -> 22
Q60: SALMON BALL | R60: 2 | S60: =+R60*$D$59 -> 22
Q61: SEAFOOD TOFU | R61: 2 | S61: =+R61*$D$59 -> 22
A62: =+A59+1 -> 2 | B62: ZAB02 1202:FRIES | C62: 4.95 | D62: =VLOOKUP(B62,Summary!$B$30:$AK$475,5,FALSE) -> 164 | E62: =D62*C62 -> 811.8 | I62: =+D62-G62 -> 164 | J62: =+I62*C62 -> 811.8 | L62: =SUMIF(DATABASE!$F$3:$F$89,B62,DATABASE!$I$3:$I$81) -> 1.76 | M62: =+L62*I62 -> 288.64 | N62: =+L62 -> 1.76 | O62: =+N62*G62 -> 0 | S62: =+R62*D62 -> 0
A63: =+A62+1 -> 3 | B63: ZAB03 1203:GOLD MROOM | C63: 4.95 | D63: =VLOOKUP(B63,Summary!$B$30:$AK$475,5,FALSE) -> 33 | E63: 163.35 | I63: 33 | J63: 163.35 | L63: =SUMIF(DATABASE!$F$3:$F$89,B63,DATABASE!$I$3:$I$81) -> 2.15 | M63: 70.95 | N63: 2.15 | O63: 0 | S63: 0
A64: 4 | B64: ZAB04 1204:F.BALL | C64: 4.95 | D64: =VLOOKUP(B64,Summary!$B$30:$AK$475,5,FALSE) -> 23 | E64: 113.85 | I64: 23 | J64: 113.85 | L64: =SUMIF(DATABASE!$F$3:$F$89,B64,DATABASE!$I$3:$I$81) -> 1.56 | M64: 35.88 | N64: 1.56 | O64: 0 | Q64: FISH BALL (BIG) | R64: 6 | S64: 138
A65: 5 | B65: ZAB06 1206:SPRING RL | C65: 4.95 | D65: =VLOOKUP(B65,Summary!$B$30:$AK$475,5,FALSE) -> 46 | E65: 227.7 | I65: 46 | J65: 227.7 | L65: =SUMIF(DATABASE!$F$3:$F$89,B65,DATABASE!$I$3:$I$81) -> 2.5 | M65: 115 | N65: 2.5 | O65: 0 | Q65: SPRING ROLL | R65: 8 | S65: 368
A66: 6 | B66: ZAB07 1207:SAUSAGE | C66: 4.95 | D66: =VLOOKUP(B66,Summary!$B$30:$AK$475,5,FALSE) -> 79 | E66: 391.05 | I66: 79 | J66: 391.05 | L66: =SUMIF(DATABASE!$F$3:$F$89,B66,DATABASE!$I$3:$I$81) -> 2.67 | M66: 210.93 | N66: 2.67 | O66: 0 | Q66: CHICKEN SAUSAGE | R66: 4 | S66: 316
A67: 7 | B67: ZAC02 1302:NUGGET | C67: 6.95 | D67: =VLOOKUP(B67,Summary!$B$30:$AK$475,5,FALSE) -> 68 | E67: 472.6 | I67: 68 | J67: 472.6 | L67: =SUMIF(DATABASE!$F$3:$F$89,B67,DATABASE!$I$3:$I$81) -> 1.24 | M67: 84.32 | N67: 1.24 | O67: 0 | Q67: CHICKEN NUGGET | R67: 8 | S67: 544
A68: 8 | B68: ZAC03 1303:CHK WING | C68: 6.95 | D68: =VLOOKUP(B68,Summary!$B$30:$AK$475,5,FALSE) -> 64 | E68: 444.8 | I68: 64 | J68: 444.8 | L68: =SUMIF(DATABASE!$F$3:$F$89,B68,DATABASE!$I$3:$I$81) -> 3.97 | M68: 254.08 | N68: 3.97 | O68: 0 | Q68: CHICKEN WING (MARINATED) | R68: 3 | S68: 192
A69: 9 | B69: ZAC04 1304:IKAN BILIS | C69: 6.95 | D69: =VLOOKUP(B69,Summary!$B$30:$AK$475,5,FALSE) -> 9 | E69: 62.55 | I69: 9 | J69: 62.55 | L69: =SUMIF(DATABASE!$F$3:$F$89,B69,DATABASE!$I$3:$I$81) -> 2.18 | M69: 19.62 | N69: 2.18 | O69: 0 | S69: 0
A70: 10 | B70: ZAC05 1305:THAI RL | C70: 6.95 | D70: =VLOOKUP(B70,Summary!$B$30:$AK$475,5,FALSE) -> 7 | E70: 48.65 | I70: 7 | J70: 48.65 | L70: =SUMIF(DATABASE!$F$3:$F$89,B70,DATABASE!$I$3:$I$81) -> 3.61 | M70: 25.27 | N70: 3.61 | O70: 0 | Q70: THAI ROLL | R70: 7 | S70: 49
A71: 11 | B71: ZAC07 1307:D/F C.WINGS | C71: 6.95 | D71: =VLOOKUP(B71,Summary!$B$30:$AK$475,5,FALSE) -> 42 | E71: 291.9 | I71: 42 | J71: 291.9 | L71: =SUMIF(DATABASE!$F$3:$F$89,B71,DATABASE!$I$3:$I$81) -> 4.31 | M71: 181.02 | N71: 4.31 | O71: 0 | Q71: CHICKEN WING (MARINATED) | R71: 3 | S71: 126
A72: 12 | B72: ZAC08 1308:C/CALAMARI | C72: 6.95 | D72: =VLOOKUP(B72,Summary!$B$30:$AK$475,5,FALSE) -> 22 | E72: 152.9 | I72: 22 | J72: 152.9 | L72: =SUMIF(DATABASE!$F$3:$F$89,B72,DATABASE!$I$3:$I$81) -> 3.69 | M72: 81.18 | N72: 3.69 | O72: 0 | Q72: CALAMARI RING | R72: 7 | S72: 154
A73: 13 | B73: ZAC09 1309:Mc /O.RINGS | C73: 6.95 | D73: =VLOOKUP(B73,Summary!$B$30:$AK$475,5,FALSE) -> 11 | E73: 76.45 | I73: 11 | J73: 76.45 | L73: =SUMIF(DATABASE!$F$3:$F$89,B73,DATABASE!$I$3:$I$81) -> 1.72 | M73: 18.92 | N73: 1.72 | O73: 0 | Q73: MCCAIN ONION RING | R73: 8 | S73: 88
A74: 14 | B74: ZAC10 1310:Mc SPIRAL/F | C74: 6.95 | D74: =VLOOKUP(B74,Summary!$B$30:$AK$475,5,FALSE) -> 18 | E74: 125.1 | I74: 18 | J74: 125.1 | L74: =SUMIF(DATABASE!$F$3:$F$89,B74,DATABASE!$I$3:$I$81) -> 1.72 | M74: 30.96 | N74: 1.72 | O74: 0 | Q74: MCCAIN SPIRAL FRIES | R74: 0.22 | S74: 3.96
A75: 15 | B75: ZAC11 1311:Mc H/SMILES | C75: 6.95 | D75: =VLOOKUP(B75,Summary!$B$30:$AK$475,5,FALSE) -> 5 | E75: 34.75 | I75: 5 | J75: 34.75 | L75: =SUMIF(DATABASE!$F$3:$F$89,B75,DATABASE!$I$3:$I$81) -> 1.34 | M75: 6.7 | N75: 1.34 | O75: 0 | Q75: MCCAIN SMILES | R75: 8 | S75: 40
A76: 16 | B76: ZAC12 1312:Mc HASH/B | C76: 6.95 | D76: =VLOOKUP(B76,Summary!$B$30:$AK$475,5,FALSE) -> 22 | E76: 152.9 | I76: 22 | J76: 152.9 | L76: =SUMIF(DATABASE!$F$3:$F$89,B76,DATABASE!$I$3:$I$81) -> 0.59 | M76: 12.98 | N76: 0.59 | O76: 0 | Q76: MCCAIN VERSITOT | R76: 15 | S76: 330
B78: HOMEMADE PIZZA
A79: 1 | B79: DL01 3001:6'HAWAIIAN | C79: 12.9 | D79: =VLOOKUP(B79,Summary!$B$30:$AK$475,5,FALSE) -> 0 | E79: =D79*C79 -> 0 | G79: =SUMIF('DAILY FOC'!$A$9:$A$62,'SIDE ORDER & FOC'!B79,'DAILY FOC'!$BN$9:$BN$63) -> 0 | H79: =G79*C79 -> 0 | I79: =+D79-G79 -> 0 | J79: =+I79*C79 -> 0 | L79: =SUMIF(DATABASE!$F$3:$F$89,B79,DATABASE!$I$3:$I$81) -> 3.25 | M79: =+L79*I79 -> 0 | N79: =+L79 -> 3.25 | O79: =+N79*G79 -> 0 | Q79: 6" PIZZA BASE | R79: 1 | S79: =+R79*D79 -> 0
A80: =+A79+1 -> 2 | B80: DL02 3002:6'SMOKE BBQ | C80: 12.9 | D80: =VLOOKUP(B80,Summary!$B$30:$AK$475,5,FALSE) -> 0 | E80: =D80*C80 -> 0 | G80: =SUMIF('DAILY FOC'!$A$9:$A$62,'SIDE ORDER & FOC'!B80,'DAILY FOC'!$BN$9:$BN$63) -> 0 | H80: =G80*C80 -> 0 | I80: =+D80-G80 -> 0 | J80: =+I80*C80 -> 0 | L80: =SUMIF(DATABASE!$F$3:$F$89,B80,DATABASE!$I$3:$I$81) -> 4.59 | M80: =+L80*I80 -> 0 | N80: =+L80 -> 4.59 | O80: =+N80*G80 -> 0 | Q80: CHICKEN CHOP (MARINATED) | R80: 0.5 | S80: =+R80*$D$80 -> 0
Q81: 6" PIZZA BASE | R81: 1 | S81: =+R81*$D$80 -> 0
A82: =+A80+1 -> 3 | B82: DL03 3003:6'SEAFOOD | C82: 12.9 | D82: =VLOOKUP(B82,Summary!$B$30:$AK$475,5,FALSE) -> 0 | E82: =D82*C82 -> 0 | G82: =SUMIF('DAILY FOC'!$A$9:$A$62,'SIDE ORDER & FOC'!B82,'DAILY FOC'!$BN$9:$BN$63) -> 0 | H82: =G82*C82 -> 0 | I82: =+D82-G82 -> 0 | J82: =+I82*C82 -> 0 | L82: =SUMIF(DATABASE!$F$3:$F$89,B82,DATABASE!$I$3:$I$81) -> 5.13 | M82: =+L82*I82 -> 0 | N82: =+L82 -> 5.13 | O82: =+N82*G82 -> 0 | Q82: 6" PIZZA BASE | R82: 1 | S82: =+R82*D82 -> 0
A83: =+A82+1 -> 4 | B83: DL04 3004:6'SPICY BUF | C83: 12.9 | D83: =VLOOKUP(B83,Summary!$B$30:$AK$475,5,FALSE) -> 0 | E83: =D83*C83 -> 0 | G83: =SUMIF('DAILY FOC'!$A$9:$A$62,'SIDE ORDER & FOC'!B83,'DAILY FOC'!$BN$9:$BN$63) -> 0 | H83: =G83*C83 -> 0 | I83: =+D83-G83 -> 0 | J83: =+I83*C83 -> 0 | L83: =SUMIF(DATABASE!$F$3:$F$89,B83,DATABASE!$I$3:$I$81) -> 2.99 | M83: =+L83*I83 -> 0 | N83: =+L83 -> 2.99 | O83: =+N83*G83 -> 0 | Q83: CHICKEN SAUSAGE | R83: 1 | S83: =+R83*$D$83 -> 0
Q84: 6" PIZZA BASE | R84: 1 | S84: =+R84*D84 -> 0
A85: =+A83+1 -> 5 | B85: DL05 3005:6'VEGGIE | C85: 12.9 | D85: =VLOOKUP(B85,Summary!$B$30:$AK$475,5,FALSE) -> 0 | E85: =D85*C85 -> 0 | G85: =SUMIF('DAILY FOC'!$A$9:$A$62,'SIDE ORDER & FOC'!B85,'DAILY FOC'!$BN$9:$BN$63) -> 0 | H85: =G85*C85 -> 0 | I85: =+D85-G85 -> 0 | J85: =+I85*C85 -> 0 | L85: =SUMIF(DATABASE!$F$3:$F$89,B85,DATABASE!$I$3:$I$81) -> 3.62 | M85: =+L85*I85 -> 0 | N85: =+L85 -> 3.62 | O85: =+N85*G85 -> 0 | Q85: 6" PIZZA BASE | R85: 1 | S85: 0
A86: =+A85+1 -> 6 | B86: DL06 3001:9'HAWAIIAN | C86: 16.9 | D86: =VLOOKUP(B86,Summary!$B$30:$AK$475,5,FALSE) -> 0 | E86: =D86*C86 -> 0 | G86: =SUMIF('DAILY FOC'!$A$9:$A$62,'SIDE ORDER & FOC'!B86,'DAILY FOC'!$BN$9:$BN$63) -> 0 | H86: =G86*C86 -> 0 | I86: =+D86-G86 -> 0 | J86: =+I86*C86 -> 0 | L86: =SUMIF(DATABASE!$F$3:$F$89,B86,DATABASE!$I$3:$I$81) -> 5.79 | M86: =+L86*I86 -> 0 | N86: =+L86 -> 5.79 | O86: =+N86*G86 -> 0 | Q86: 9" PIZZA BASE | R86: 1 | S86: 0
Q87: CHICKEN HAM | R87: 2 | S87: 0
A88: =+A86+1 -> 7 | B88: DL07 3002:9'SMOKED | C88: 16.9 | D88: =VLOOKUP(B88,Summary!$B$30:$AK$475,5,FALSE) -> 0 | E88: =D88*C88 -> 0 | G88: =SUMIF('DAILY FOC'!$A$9:$A$62,'SIDE ORDER & FOC'!B88,'DAILY FOC'!$BN$9:$BN$63) -> 0 | H88: =G88*C88 -> 0 | I88: =+D88-G88 -> 0 | J88: =+I88*C88 -> 0 | L88: =SUMIF(DATABASE!$F$3:$F$89,B88,DATABASE!$I$3:$I$81) -> 8.21 | M88: =+L88*I88 -> 0 | N88: =+L88 -> 8.21 | O88: =+N88*G88 -> 0 | Q88: 9" PIZZA BASE | R88: 1 | S88: 0
Q89: CHICKEN WING (MARINATED) | R89: 1 | S89: 0
A90: =+A88+1 -> 8 | B90: DL08 3003:9'SEAFOOD | C90: 16.9 | D90: =VLOOKUP(B90,Summary!$B$30:$AK$475,5,FALSE) -> 0 | E90: =D90*C90 -> 0 | G90: =SUMIF('DAILY FOC'!$A$9:$A$62,'SIDE ORDER & FOC'!B90,'DAILY FOC'!$BN$9:$BN$63) -> 0 | H90: =G90*C90 -> 0 | I90: =+D90-G90 -> 0 | J90: =+I90*C90 -> 0 | L90: =SUMIF(DATABASE!$F$3:$F$89,B90,DATABASE!$I$3:$I$81) -> 9.48 | M90: =+L90*I90 -> 0 | N90: =+L90 -> 9.48 | O90: =+N90*G90 -> 0 | Q90: 9" PIZZA BASE | R90: 1 | S90: 0
A91: =+A90+1 -> 9 | B91: DL09 3004:9'SPICY B | C91: 16.9 | D91: =VLOOKUP(B91,Summary!$B$30:$AK$475,5,FALSE) -> 0 | E91: =D91*C91 -> 0 | G91: =SUMIF('DAILY FOC'!$A$9:$A$62,'SIDE ORDER & FOC'!B91,'DAILY FOC'!$BN$9:$BN$63) -> 0 | H91: =G91*C91 -> 0 | I91: =+D91-G91 -> 0 | J91: =+I91*C91 -> 0 | L91: =SUMIF(DATABASE!$F$3:$F$89,B91,DATABASE!$I$3:$I$81) -> 5.38 | M91: =+L91*I91 -> 0 | N91: =+L91 -> 5.38 | O91: =+N91*G91 -> 0 | Q91: CHICKEN SAUSAGE | R91: 1 | S91: =+R91*$D$91 -> 0
Q92: 9" PIZZA BASE | R92: 1 | S92: =+R92*$D$91 -> 0
A93: 10 | B93: DL10 3005:9'VEGGIE | C93: 16.9 | D93: =VLOOKUP(B93,Summary!$B$30:$AK$475,5,FALSE) -> 0 | E93: =D93*C93 -> 0 | G93: =SUMIF('DAILY FOC'!$A$9:$A$62,'SIDE ORDER & FOC'!B93,'DAILY FOC'!$BN$9:$BN$63) -> 0 | H93: =G93*C93 -> 0 | I93: =+D93-G93 -> 0 | J93: =+I93*C93 -> 0 | L93: =SUMIF(DATABASE!$F$3:$F$89,B93,DATABASE!$I$3:$I$81) -> 6.96 | M93: =+L93*I93 -> 0 | N93: =+L93 -> 6.96 | O93: =+N93*G93 -> 0 | Q93: 9" PIZZA BASE | R93: 1 | S93: =+R93*D93 -> 0
B95: PLATTER
A96: 1 | B96: DM01 SNACK PLATTER(A) | C96: 16.9 | D96: =VLOOKUP(B96,Summary!$B$30:$AK$475,5,FALSE) -> 7 | E96: =D96*C96 -> 118.3 | G96: =SUMIF('DAILY FOC'!$A$9:$A$62,'SIDE ORDER & FOC'!B96,'DAILY FOC'!$BN$9:$BN$63) -> 0 | I96: =+D96-G96 -> 7 | J96: =+I96*C96 -> 118.3 | L96: =SUMIF(DATABASE!$F$3:$F$89,B96,DATABASE!$I$3:$I$81) -> 4.6 | M96: =+L96*I96 -> 32.2 | N96: =+L96 -> 4.6 | O96: =+N96*G96 -> 0 | Q96: MCCAIN VERSITOT | R96: 8 | S96: =+R96*$D$96 -> 56
Q97: MCCAIN SMILES | R97: 6 | S97: =+R97*$D$96 -> 42
Q98: MCCAIN ONION RING | R98: 8 | S98: =+R98*$D$96 -> 56
Q99: MCCAIN SPIRAL FRIES | R99: 0.12 | S99: =+R99*$D$96 -> 0.84
A100: 2 | B100: DM02 SNACK PLATTER(B) | C100: 12.9 | D100: =VLOOKUP(B100,Summary!$B$30:$AK$475,5,FALSE) -> 6 | E100: =D100*C100 -> 77.4 | I100: =+D100-G100 -> 6 | J100: =+I100*C100 -> 77.4 | L100: =SUMIF(DATABASE!$F$3:$F$89,B100,DATABASE!$I$3:$I$81) -> 4.6 | M100: =+L100*I100 -> 27.6 | N100: =+L100 -> 4.6 | O100: =+N100*G100 -> 0 | Q100: MCCAIN VERSITOT | R100: 8 | S100: =+R100*$D$100 -> 48
Q101: MCCAIN SMILES | R101: 6 | S101: =+R101*$D$100 -> 36
Q102: MCCAIN ONION RING | R102: 8 | S102: =+R102*$D$100 -> 48
Q103: MCCAIN SPIRAL FRIES | R103: 0.12 | S103: =+R103*$D$96 -> 0.84
A104: 3 | B104: DM03 CNY platter(A) | C104: 19.9 | D104: =VLOOKUP(B104,Summary!$B$30:$AK$475,5,FALSE) -> 0 | E104: =D104*C104 -> 0 | I104: =+D104-G104 -> 0 | J104: =+I104*C104 -> 0 | L104: =SUMIF(DATABASE!$F$3:$F$89,B104,DATABASE!$I$3:$I$81) -> 9.81 | M104: =+L104*I104 -> 0 | N104: =+L104 -> 9.81 | O104: =+N104*G104 -> 0 | Q104: CHICKEN WINGS (NON -MARINATED) | R104: 4 | S104: =+R104*D104 -> 0
Q105: MCCAIN ONION RING | R105: 8 | S105: =+R105*$D$104 -> 0
A106: 4 | B106: DM04 CNY platter (B) | C106: 23.9 | D106: =VLOOKUP(B106,Summary!$B$30:$AK$475,5,FALSE) -> 0 | E106: =D106*C106 -> 0 | I106: =+D106-G106 -> 0 | J106: =+I106*C106 -> 0 | L106: =SUMIF(DATABASE!$F$3:$F$89,B106,DATABASE!$I$3:$I$81) -> 9.81 | M106: =+L106*I106 -> 0 | N106: =+L106 -> 9.81 | O106: =+N106*G106 -> 0 | Q106: CHICKEN WINGS (NON -MARINATED) | R106: 4 | S106: =+R106*$D$106 -> 0
Q107: MCCAIN ONION RING | R107: 8 | S107: =+R107*$D$106 -> 0
A110: Total Sales / COST | D110: =SUM(D11:D109) -> 1779 | E110: =SUM(E11:E109) -> 15168.2 | G110: =SUM(G11:G108) -> 7 | H110: =SUM(H11:H109) -> 70.3 | I110: =SUM(I11:I109) -> 1772 | J110: =SUM(J11:J109) -> 15097.9 | M110: =SUM(M11:M109) -> 5216.1 | O110: =SUM(O11:O109) -> 26.77
S201: =SUBTOTAL(9,S13:S89) -> 3989.96

Sheet DAILY FOC
A1: DAILY FOC RECORD
A3: Outlet : | B3: CCS OUTLET
A4: Month : | B4: =+'K-LUNCH & K DINNER'!B4 -> 2013-09-01
A7: Item | B7: S/P | C7: 1 | E7: =+C7+1 -> 2 | G7: =+E7+1 -> 3 | I7: =+G7+1 -> 4 | K7: =+I7+1 -> 5 | M7: =+K7+1 -> 6 | O7: =+M7+1 -> 7 | Q7: =+O7+1 -> 8 | S7: =+Q7+1 -> 9 | U7: =+S7+1 -> 10 | W7: =+U7+1 -> 11 | Y7: =+W7+1 -> 12 | AA7: =+Y7+1 -> 13 | AC7: =+AA7+1 -> 14 | AE7: =+AC7+1 -> 15 | AG7: =+AE7+1 -> 16 | AI7: =+AG7+1 -> 17 | AK7: =+AI7+1 -> 18 | AM7: =+AK7+1 -> 19 | AO7: =+AM7+1 -> 20 | AQ7: =+AO7+1 -> 21 | AS7: =+AQ7+1 -> 22 | AU7: =+AS7+1 -> 23 | AW7: =+AU7+1 -> 24 | AY7: =+AW7+1 -> 25 | BA7: =+AY7+1 -> 26 | BC7: =+BA7+1 -> 27 | BE7: =+BC7+1 -> 28 | BG7: =+BE7+1 -> 29 | BI7: =+BG7+1 -> 30 | BK7: =+BI7+1 -> 31 | BN7: TOTAL | BO7: TOTAL | BP7: %
B8: RM | C8: Q | D8: RM | E8: Q | F8: RM | G8: Q | H8: RM | I8: Q | J8: RM | K8: Q | L8: RM | M8: Q | N8: RM | O8: Q | P8: RM | Q8: Q | R8: RM | S8: Q | T8: RM | U8: Q | V8: RM | W8: Q | X8: RM | Y8: Q | Z8: RM | AA8: Q | AB8: RM | AC8: Q | AD8: RM | AE8: Q | AF8: RM | AG8: Q | AH8: RM | AI8: Q | AJ8: RM | AK8: Q | AL8: RM | AM8: Q | AN8: RM | AO8: Q | AP8: RM | AQ8: Q | AR8: RM | AS8: Q | AT8: RM | AU8: Q | AV8: RM | AW8: Q | AX8: RM | AY8: Q | AZ8: RM | BA8: Q | BB8: RM | BC8: Q | BD8: RM | BE8: Q | BF8: RM | BG8: Q | BH8: RM | BI8: Q | BJ8: RM | BK8: Q | BL8: RM | BN8: Q | BO8: RM
A9: DF01 ADD RICE | B9: 1 | C9: 0 | D9: =C9*B9 -> 0 | E9: 0 | F9: =E9*B9 -> 0 | G9: 0 | H9: =G9*B9 -> 0 | I9: 0 | J9: =I9*B9 -> 0 | K9: 0 | L9: =K9*B9 -> 0 | M9: 0 | N9: =M9*B9 -> 0 | O9: 0 | P9: =O9*B9 -> 0 | Q9: 0 | R9: =Q9*B9 -> 0 | S9: 0 | T9: =S9*B9 -> 0 | U9: 0 | V9: =U9*B9 -> 0 | W9: 0 | X9: =W9*B9 -> 0 | Y9: 0 | Z9: =Y9*B9 -> 0 | AA9: 0 | AB9: =AA9*B9 -> 0 | AC9: 0 | AD9: =AC9*B9 -> 0 | AE9: 0 | AF9: =AE9*B9 -> 0 | AG9: 0 | AH9: =AG9*B9 -> 0 | AI9: 0 | AJ9: =AI9*B9 -> 0 | AK9: 0 | AL9: =AK9*B9 -> 0 | AM9: 0 | AN9: =AM9*B9 -> 0 | AO9: 0 | AP9: =AO9*B9 -> 0 | AQ9: 0 | AR9: =AQ9*B9 -> 0 | AS9: 0 | AT9: =AS9*B9 -> 0 | AU9: 0 | AV9: =AU9*B9 -> 0 | AW9: 0 | AX9: =AW9*B9 -> 0 | AY9: 0 | AZ9: =AY9*B9 -> 0 | BA9: 0 | BB9: =BA9*B9 -> 0 | BC9: 0 | BD9: =BC9*B9 -> 0 | BE9: 0 | BF9: =BE9*B9 -> 0 | BG9: 0 | BH9: =BG9*B9 -> 0 | BI9: 0 | BJ9: =BI9*B9 -> 0 | BK9: 0 | BL9: =BK9*B9 -> 0 | BN9: =C9+E9+G9+I9+K9+M9+O9+Q9+S9+U9+W9+Y9+AA9+AC9+AE9+AG9+AI9+AK9+AM9+AO9+AQ9+AS9+AU9+AW9+AY9+BA9+BC9+BE9+BG9+BI9+BK9 -> 0 | BO9: =BN9*B9 -> 0
A10: DF02 ADD F.EGG | B10: 1.5 | C10: 0 | D10: 0 | E10: 0 | F10: 0 | G10: 0 | H10: 0 | I10: 0 | J10: 0 | K10: 0 | L10: 0 | M10: 0 | N10: 0 | O10: 0 | P10: 0 | Q10: 0 | R10: 0 | S10: 0 | T10: 0 | U10: 0 | V10: 0 | W10: 0 | X10: 0 | Y10: 0 | Z10: 0 | AA10: 0 | AB10: 0 | AC10: 0 | AD10: 0 | AE10: 0 | AF10: 0 | AG10: 0 | AH10: 0 | AI10: 0 | AJ10: 0 | AK10: 0 | AL10: 0 | AM10: 0 | AN10: 0 | AO10: 0 | AP10: 0 | AQ10: 0 | AR10: 0 | AS10: 0 | AT10: 0 | AU10: 0 | AV10: 0 | AW10: 0 | AX10: 0 | AY10: 0 | AZ10: 0 | BA10: 0 | BB10: 0 | BC10: 0 | BD10: 0 | BE10: 0 | BF10: 0 | BG10: 0 | BH10: 0 | BI10: 0 | BJ10: 0 | BK10: 0 | BL10: 0 | BN10: 0 | BO10: 0
A11: DC01 1101:THAI CHK | B11: 9.9 | C11: 0 | D11: =C11*B11 -> 0 | E11: 0 | F11: =E11*B11 -> 0 | G11: 0 | H11: =G11*B11 -> 0 | I11: 0 | J11: =I11*B11 -> 0 | K11: 0 | L11: =K11*B11 -> 0 | M11: 0 | N11: =M11*B11 -> 0 | O11: 0 | P11: =O11*B11 -> 0 | Q11: 0 | R11: =Q11*B11 -> 0 | S11: 0 | T11: =S11*B11 -> 0 | U11: 0 | V11: =U11*B11 -> 0 | W11: 0 | X11: =W11*B11 -> 0 | Y11: 0 | Z11: =Y11*B11 -> 0 | AA11: 0 | AB11: =AA11*B11 -> 0 | AC11: 0 | AD11: =AC11*B11 -> 0 | AE11: 0 | AF11: =AE11*B11 -> 0 | AG11: 0 | AH11: =AG11*B11 -> 0 | AI11: 0 | AJ11: =AI11*B11 -> 0 | AK11: 0 | AL11: =AK11*B11 -> 0 | AM11: 0 | AN11: =AM11*B11 -> 0 | AO11: 0 | AP11: =AO11*B11 -> 0 | AQ11: 0 | AR11: =AQ11*B11 -> 0 | AS11: 0 | AT11: =AS11*B11 -> 0 | AU11: 0 | AV11: =AU11*B11 -> 0 | AW11: 0 | AX11: =AW11*B11 -> 0 | AY11: 0 | AZ11: =AY11*B11 -> 0 | BA11: 0 | BB11: =BA11*B11 -> 0 | BC11: 0 | BD11: =BC11*B11 -> 0 | BE11: 0 | BF11: =BE11*B11 -> 0 | BG11: 0 | BH11: =BG11*B11 -> 0 | BI11: 0 | BJ11: =BI11*B11 -> 0 | BK11: 0 | BL11: =BK11*B11 -> 0 | BN11: =C11+E11+G11+I11+K11+M11+O11+Q11+S11+U11+W11+Y11+AA11+AC11+AE11+AG11+AI11+AK11+AM11+AO11+AQ11+AS11+AU11+AW11+AY11+BA11+BC11+BE11+BG11+BI11+BK11 -> 0 | BO11: =BN11*B11 -> 0
A12: DC02 1102:MAMITE CHK | B12: 9.9 | C12: 0 | D12: 0 | E12: 0 | F12: 0 | G12: 0 | H12: 0 | I12: 0 | J12: 0 | K12: 0 | L12: 0 | M12: 0 | N12: 0 | O12: 0 | P12: 0 | Q12: 0 | R12: 0 | S12: 0 | T12: 0 | U12: 0 | V12: 0 | W12: 0 | X12: 0 | Y12: 0 | Z12: 0 | AA12: 0 | AB12: 0 | AC12: 0 | AD12: 0 | AE12: 0 | AF12: 0 | AG12: 0 | AH12: 0 | AI12: 0 | AJ12: 0 | AK12: 0 | AL12: 0 | AM12: 0 | AN12: 0 | AO12: 0 | AP12: 0 | AQ12: 0 | AR12: 0 | AS12: 0 | AT12: 0 | AU12: 0 | AV12: 0 | AW12: 0 | AX12: 0 | AY12: 0 | AZ12: 0 | BA12: 0 | BB12: 0 | BC12: 0 | BD12: 0 | BE12: 0 | BF12: 0 | BG12: 0 | BH12: 0 | BI12: 0 | BJ12: 0 | BK12: 0 | BL12: 0 | BN12: 0 | BO12: 0
A13: DC03 1103:KO PO CHK | B13: 9.9 | C13: 0 | D13: 0 | E13: 0 | F13: 0 | G13: 0 | H13: 0 | I13: 0 | J13: 0 | K13: 0 | L13: 0 | M13: 0 | N13: 0 | O13: 0 | P13: 0 | Q13: 0 | R13: 0 | S13: 0 | T13: 0 | U13: 0 | V13: 0 | W13: 0 | X13: 0 | Y13: 0 | Z13: 0 | AA13: 0 | AB13: 0 | AC13: 0 | AD13: 0 | AE13: 0 | AF13: 0 | AG13: 0 | AH13: 0 | AI13: 0 | AJ13: 0 | AK13: 0 | AL13: 0 | AM13: 0 | AN13: 0 | AO13: 0 | AP13: 0 | AQ13: 0 | AR13: 0 | AS13: 0 | AT13: 0 | AU13: 0 | AV13: 0 | AW13: 0 | AX13: 0 | AY13: 0 | AZ13: 0 | BA13: 0 | BB13: 0 | BC13: 0 | BD13: 0 | BE13: 0 | BF13: 0 | BG13: 0 | BH13: 0 | BI13: 0 | BJ13: 0 | BK13: 0 | BL13: 0 | BN13: 0 | BO13: 0
A14: DC04 1104:S&S CHK | B14: 9.9 | C14: 0 | D14: 0 | E14: 0 | F14: 0 | G14: 0 | H14: 0 | I14: 0 | J14: 0 | K14: 0 | L14: 0 | M14: 0 | N14: 0 | O14: 0 | P14: 0 | Q14: 0 | R14: 0 | S14: 0 | T14: 0 | U14: 0 | V14: 0 | W14: 0 | X14: 0 | Y14: 0 | Z14: 0 | AA14: 0 | AB14: 0 | AC14: 0 | AD14: 0 | AE14: 0 | AF14: 0 | AG14: 0 | AH14: 0 | AI14: 0 | AJ14: 0 | AK14: 0 | AL14: 0 | AM14: 0 | AN14: 0 | AO14: 0 | AP14: 0 | AQ14: 0 | AR14: 0 | AS14: 0 | AT14: 0 | AU14: 0 | AV14: 0 | AW14: 0 | AX14: 0 | AY14: 0 | AZ14: 0 | BA14: 0 | BB14: 0 | BC14: 0 | BD14: 0 | BE14: 0 | BF14: 0 | BG14: 0 | BH14: 0 | BI14: 0 | BJ14: 0 | BK14: 0 | BL14: 0 | BN14: 0 | BO14: 0
A15: DC05 1105:BUTTER CHK | B15: 9.9 | C15: 0 | D15: 0 | E15: 0 | F15: 0 | G15: 0 | H15: 0 | I15: 0 | J15: 0 | K15: 0 | L15: 0 | M15: 0 | N15: 0 | O15: 0 | P15: 0 | Q15: 0 | R15: 0 | S15: 0 | T15: 0 | U15: 0 | V15: 0 | W15: 0 | X15: 0 | Y15: 0 | Z15: 0 | AA15: 0 | AB15: 0 | AC15: 0 | AD15: 0 | AE15: 0 | AF15: 0 | AG15: 0 | AH15: 0 | AI15: 0 | AJ15: 0 | AK15: 1 | AL15: 9.9 | AM15: 0 | AN15: 0 | AO15: 0 | AP15: 0 | AQ15: 0 | AR15: 0 | AS15: 0 | AT15: 0 | AU15: 0 | AV15: 0 | AW15: 0 | AX15: 0 | AY15: 0 | AZ15: 0 | BA15: 0 | BB15: 0 | BC15: 0 | BD15: 0 | BE15: 0 | BF15: 0 | BG15: 0 | BH15: 0 | BI15: 0 | BJ15: 0 | BK15: 0 | BL15: 0 | BN15: 1 | BO15: 9.9
A16: DC06 1106:HK F.RICE | B16: 9.9 | C16: 0 | D16: 0 | E16: 0 | F16: 0 | G16: 0 | H16: 0 | I16: 0 | J16: 0 | K16: 0 | L16: 0 | M16: 0 | N16: 0 | O16: 0 | P16: 0 | Q16: 0 | R16: 0 | S16: 0 | T16: 0 | U16: 0 | V16: 0 | W16: 0 | X16: 0 | Y16: 0 | Z16: 0 | AA16: 0 | AB16: 0 | AC16: 0 | AD16: 0 | AE16: 0 | AF16: 0 | AG16: 0 | AH16: 0 | AI16: 0 | AJ16: 0 | AK16: 0 | AL16: 0 | AM16: 0 | AN16: 0 | AO16: 0 | AP16: 0 | AQ16: 0 | AR16: 0 | AS16: 0 | AT16: 0 | AU16: 0 | AV16: 0 | AW16: 0 | AX16: 0 | AY16: 0 | AZ16: 0 | BA16: 0 | BB16: 0 | BC16: 0 | BD16: 0 | BE16: 0 | BF16: 0 | BG16: 0 | BH16: 0 | BI16: 0 | BJ16: 0 | BK16: 0 | BL16: 0 | BN16: 0 | BO16: 0
A17: DC07 1107:SBL F.RICE | B17: 9.9 | C17: 0 | D17: 0 | E17: 0 | F17: 0 | G17: 0 | H17: 0 | I17: 0 | J17: 0 | K17: 0 | L17: 0 | M17: 0 | N17: 0 | O17: 0 | P17: 0 | Q17: 0 | R17: 0 | S17: 0 | T17: 0 | U17: 0 | V17: 0 | W17: 0 | X17: 0 | Y17: 0 | Z17: 0 | AA17: 0 | AB17: 0 | AC17: 0 | AD17: 0 | AE17: 0 | AF17: 0 | AG17: 0 | AH17: 0 | AI17: 0 | AJ17: 0 | AK17: 0 | AL17: 0 | AM17: 0 | AN17: 0 | AO17: 0 | AP17: 0 | AQ17: 0 | AR17: 0 | AS17: 0 | AT17: 0 | AU17: 0 | AV17: 0 | AW17: 0 | AX17: 0 | AY17: 0 | AZ17: 0 | BA17: 0 | BB17: 0 | BC17: 0 | BD17: 0 | BE17: 0 | BF17: 0 | BG17: 0 | BH17: 0 | BI17: 0 | BJ17: 0 | BK17: 0 | BL17: 0 | BN17: 0 | BO17: 0
A18: DC08 1108:SBL F.MEE | B18: 9.9 | C18: 0 | D18: 0 | E18: 0 | F18: 0 | G18: 0 | H18: 0 | I18: 0 | J18: 0 | K18: 0 | L18: 0 | M18: 0 | N18: 0 | O18: 0 | P18: 0 | Q18: 0 | R18: 0 | S18: 0 | T18: 0 | U18: 0 | V18: 0 | W18: 0 | X18: 0 | Y18: 0 | Z18: 0 | AA18: 0 | AB18: 0 | AC18: 0 | AD18: 0 | AE18: 0 | AF18: 0 | AG18: 0 | AH18: 0 | AI18: 0 | AJ18: 0 | AK18: 0 | AL18: 0 | AM18: 0 | AN18: 0 | AO18: 0 | AP18: 0 | AQ18: 0 | AR18: 0 | AS18: 0 | AT18: 0 | AU18: 0 | AV18: 0 | AW18: 0 | AX18: 0 | AY18: 0 | AZ18: 0 | BA18: 0 | BB18: 0 | BC18: 0 | BD18: 0 | BE18: 0 | BF18: 0 | BG18: 0 | BH18: 0 | BI18: 0 | BJ18: 0 | BK18: 0 | BL18: 0 | BN18: 0 | BO18: 0
A19: DC09 1109:BP UDON | B19: 9.9 | C19: 0 | D19: 0 | E19: 0 | F19: 0 | G19: 0 | H19: 0 | I19: 0 | J19: 0 | K19: 0 | L19: 0 | M19: 0 | N19: 0 | O19: 0 | P19: 0 | Q19: 0 | R19: 0 | S19: 0 | T19: 0 | U19: 0 | V19: 0 | W19: 0 | X19: 0 | Y19: 0 | Z19: 0 | AA19: 0 | AB19: 0 | AC19: 0 | AD19: 0 | AE19: 0 | AF19: 0 | AG19: 0 | AH19: 0 | AI19: 0 | AJ19: 0 | AK19: 0 | AL19: 0 | AM19: 0 | AN19: 0 | AO19: 0 | AP19: 0 | AQ19: 0 | AR19: 0 | AS19: 0 | AT19: 0 | AU19: 0 | AV19: 0 | AW19: 0 | AX19: 0 | AY19: 0 | AZ19: 0 | BA19: 0 | BB19: 0 | BC19: 0 | BD19: 0 | BE19: 0 | BF19: 0 | BG19: 0 | BH19: 0 | BI19: 0 | BJ19: 0 | BK19: 0 | BL19: 0 | BN19: 0 | BO19: 0
A20: DC10 1110:NISSIN | B20: 9.9 | C20: 0 | D20: 0 | E20: 0 | F20: 0 | G20: 0 | H20: 0 | I20: 0 | J20: 0 | K20: 0 | L20: 0 | M20: 0 | N20: 0 | O20: 0 | P20: 0 | Q20: 0 | R20: 0 | S20: 0 | T20: 0 | U20: 0 | V20: 0 | W20: 0 | X20: 0 | Y20: 0 | Z20: 0 | AA20: 0 | AB20: 0 | AC20: 0 | AD20: 0 | AE20: 0 | AF20: 0 | AG20: 0 | AH20: 0 | AI20: 0 | AJ20: 0 | AK20: 0 | AL20: 0 | AM20: 0 | AN20: 0 | AO20: 0 | AP20: 0 | AQ20: 0 | AR20: 0 | AS20: 0 | AT20: 0 | AU20: 0 | AV20: 0 | AW20: 0 | AX20: 0 | AY20: 0 | AZ20: 0 | BA20: 0 | BB20: 0 | BC20: 0 | BD20: 0 | BE20: 0 | BF20: 0 | BG20: 0 | BH20: 0 | BI20: 0 | BJ20: 0 | BK20: 0 | BL20: 0 | BN20: 0 | BO20: 0
A21: DC11 1111:VEG RICE | B21: 9.9 | C21: 0 | D21: 0 | E21: 0 | F21: 0 | G21: 0 | H21: 0 | I21: 0 | J21: 0 | K21: 0 | L21: 0 | M21: 0 | N21: 0 | O21: 0 | P21: 0 | Q21: 0 | R21: 0 | S21: 0 | T21: 0 | U21: 0 | V21: 0 | W21: 0 | X21: 0 | Y21: 0 | Z21: 0 | AA21: 0 | AB21: 0 | AC21: 0 | AD21: 0 | AE21: 0 | AF21: 0 | AG21: 0 | AH21: 0 | AI21: 0 | AJ21: 0 | AK21: 0 | AL21: 0 | AM21: 0 | AN21: 0 | AO21: 0 | AP21: 0 | AQ21: 0 | AR21: 0 | AS21: 0 | AT21: 0 | AU21: 0 | AV21: 0 | AW21: 0 | AX21: 0 | AY21: 0 | AZ21: 0 | BA21: 0 | BB21: 0 | BC21: 0 | BD21: 0 | BE21: 0 | BF21: 0 | BG21: 0 | BH21: 0 | BI21: 0 | BJ21: 0 | BK21: 0 | BL21: 0 | BN21: 0 | BO21: 0
A22: DC12 1112:NASI LEMAK | B22: 9.9 | C22: 0 | D22: 0 | E22: 0 | F22: 0 | G22: 0 | H22: 0 | I22: 0 | J22: 0 | K22: 0 | L22: 0 | M22: 0 | N22: 0 | O22: 0 | P22: 0 | Q22: 0 | R22: 0 | S22: 0 | T22: 0 | U22: 0 | V22: 0 | W22: 0 | X22: 0 | Y22: 0 | Z22: 0 | AA22: 0 | AB22: 0 | AC22: 0 | AD22: 0 | AE22: 0 | AF22: 0 | AG22: 0 | AH22: 0 | AI22: 0 | AJ22: 0 | AK22: 0 | AL22: 0 | AM22: 0 | AN22: 0 | AO22: 0 | AP22: 0 | AQ22: 0 | AR22: 0 | AS22: 0 | AT22: 0 | AU22: 0 | AV22: 0 | AW22: 0 | AX22: 0 | AY22: 0 | AZ22: 0 | BA22: 0 | BB22: 0 | BC22: 0 | BD22: 0 | BE22: 0 | BF22: 0 | BG22: 0 | BH22: 0 | BI22: 0 | BJ22: 0 | BK22: 0 | BL22: 0 | BN22: 0 | BO22: 0
A23: DC13 1113:KUEY TEOW | B23: 9.9 | C23: 0 | D23: 0 | E23: 0 | F23: 0 | G23: 0 | H23: 0 | I23: 0 | J23: 0 | K23: 0 | L23: 0 | M23: 0 | N23: 0 | O23: 0 | P23: 0 | Q23: 0 | R23: 0 | S23: 0 | T23: 0 | U23: 0 | V23: 0 | W23: 0 | X23: 0 | Y23: 0 | Z23: 0 | AA23: 0 | AB23: 0 | AC23: 0 | AD23: 0 | AE23: 0 | AF23: 0 | AG23: 0 | AH23: 0 | AI23: 0 | AJ23: 0 | AK23: 0 | AL23: 0 | AM23: 0 | AN23: 0 | AO23: 0 | AP23: 0 | AQ23: 0 | AR23: 0 | AS23: 0 | AT23: 0 | AU23: 0 | AV23: 0 | AW23: 0 | AX23: 0 | AY23: 0 | AZ23: 0 | BA23: 0 | BB23: 0 | BC23: 0 | BD23: 0 | BE23: 0 | BF23: 0 | BG23: 0 | BH23: 0 | BI23: 0 | BJ23: 0 | BK23: 0 | BL23: 0 | BN23: 0 | BO23: 0
A24: DC14 1114:F.BALL MEE | B24: 9.9 | C24: 0 | D24: 0 | E24: 0 | F24: 0 | G24: 0 | H24: 0 | I24: 0 | J24: 0 | K24: 0 | L24: 0 | M24: 0 | N24: 0 | O24: 0 | P24: 0 | Q24: 0 | R24: 0 | S24: 0 | T24: 0 | U24: 0 | V24: 0 | W24: 0 | X24: 0 | Y24: 0 | Z24: 0 | AA24: 0 | AB24: 0 | AC24: 0 | AD24: 0 | AE24: 0 | AF24: 0 | AG24: 0 | AH24: 0 | AI24: 0 | AJ24: 0 | AK24: 0 | AL24: 0 | AM24: 0 | AN24: 0 | AO24: 0 | AP24: 0 | AQ24: 0 | AR24: 0 | AS24: 0 | AT24: 0 | AU24: 0 | AV24: 0 | AW24: 0 | AX24: 0 | AY24: 0 | AZ24: 0 | BA24: 0 | BB24: 0 | BC24: 0 | BD24: 0 | BE24: 0 | BF24: 0 | BG24: 0 | BH24: 0 | BI24: 0 | BJ24: 0 | BK24: 0 | BL24: 0 | BN24: 0 | BO24: 0
A25: DC15 1115:CHK NOODLE | B25: 9.9 | C25: 0 | D25: 0 | E25: 0 | F25: 0 | G25: 0 | H25: 0 | I25: 0 | J25: 0 | K25: 0 | L25: 0 | M25: 0 | N25: 0 | O25: 0 | P25: 0 | Q25: 0 | R25: 0 | S25: 0 | T25: 0 | U25: 0 | V25: 0 | W25: 0 | X25: 0 | Y25: 0 | Z25: 0 | AA25: 0 | AB25: 0 | AC25: 0 | AD25: 0 | AE25: 0 | AF25: 0 | AG25: 0 | AH25: 0 | AI25: 0 | AJ25: 0 | AK25: 0 | AL25: 0 | AM25: 0 | AN25: 0 | AO25: 0 | AP25: 0 | AQ25: 0 | AR25: 0 | AS25: 0 | AT25: 0 | AU25: 0 | AV25: 0 | AW25: 0 | AX25: 0 | AY25: 0 | AZ25: 0 | BA25: 0 | BB25: 0 | BC25: 0 | BD25: 0 | BE25: 0 | BF25: 0 | BG25: 0 | BH25: 0 | BI25: 0 | BJ25: 0 | BK25: 0 | BL25: 0 | BN25: 0 | BO25: 0
A26: DC16 1116:MGL CHICKEN | B26: 9.9 | C26: 0 | D26: 0 | E26: 0 | F26: 0 | G26: 0 | H26: 0 | I26: 0 | J26: 0 | K26: 0 | L26: 0 | M26: 0 | N26: 0 | O26: 0 | P26: 0 | Q26: 0 | R26: 0 | S26: 0 | T26: 0 | U26: 0 | V26: 0 | W26: 0 | X26: 0 | Y26: 0 | Z26: 0 | AA26: 0 | AB26: 0 | AC26: 0 | AD26: 0 | AE26: 0 | AF26: 0 | AG26: 0 | AH26: 0 | AI26: 0 | AJ26: 0 | AK26: 0 | AL26: 0 | AM26: 0 | AN26: 0 | AO26: 0 | AP26: 0 | AQ26: 0 | AR26: 0 | AS26: 0 | AT26: 0 | AU26: 0 | AV26: 0 | AW26: 0 | AX26: 0 | AY26: 0 | AZ26: 0 | BA26: 0 | BB26: 0 | BC26: 0 | BD26: 0 | BE26: 0 | BF26: 0 | BG26: 0 | BH26: 0 | BI26: 0 | BJ26: 0 | BK26: 0 | BL26: 0 | BN26: 0 | BO26: 0
A27: DB01 1001:BP CKN CP | B27: 12.9 | C27: 0 | D27: 0 | E27: 0 | F27: 0 | G27: 0 | H27: 0 | I27: 0 | J27: 0 | K27: 1 | L27: 12.9 | M27: 0 | N27: 0 | O27: 0 | P27: 0 | Q27: 0 | R27: 0 | S27: 0 | T27: 0 | U27: 0 | V27: 0 | W27: 0 | X27: 0 | Y27: 0 | Z27: 0 | AA27: 0 | AB27: 0 | AC27: 0 | AD27: 0 | AE27: 0 | AF27: 0 | AG27: 0 | AH27: 0 | AI27: 0 | AJ27: 0 | AK27: 0 | AL27: 0 | AM27: 0 | AN27: 0 | AO27: 0 | AP27: 0 | AQ27: 0 | AR27: 0 | AS27: 0 | AT27: 0 | AU27: 0 | AV27: 0 | AW27: 0 | AX27: 0 | AY27: 0 | AZ27: 0 | BA27: 0 | BB27: 0 | BC27: 0 | BD27: 0 | BE27: 0 | BF27: 0 | BG27: 0 | BH27: 0 | BI27: 0 | BJ27: 0 | BK27: 0 | BL27: 0 | BN27: 1 | BO27: 12.9
A28: DB02 1002:GVY CHK CP | B28: 12.9 | C28: 0 | D28: 0 | E28: 0 | F28: 0 | G28: 0 | H28: 0 | I28: 0 | J28: 0 | K28: 0 | L28: 0 | M28: 0 | N28: 0 | O28: 0 | P28: 0 | Q28: 0 | R28: 0 | S28: 0 | T28: 0 | U28: 0 | V28: 0 | W28: 0 | X28: 0 | Y28: 0 | Z28: 0 | AA28: 0 | AB28: 0 | AC28: 0 | AD28: 0 | AE28: 0 | AF28: 0 | AG28: 0 | AH28: 0 | AI28: 0 | AJ28: 0 | AK28: 0 | AL28: 0 | AM28: 0 | AN28: 0 | AO28: 0 | AP28: 0 | AQ28: 0 | AR28: 0 | AS28: 0 | AT28: 0 | AU28: 0 | AV28: 0 | AW28: 0 | AX28: 0 | AY28: 0 | AZ28: 0 | BA28: 0 | BB28: 0 | BC28: 0 | BD28: 0 | BE28: 0 | BF28: 0 | BG28: 0 | BH28: 0 | BI28: 0 | BJ28: 0 | BK28: 0 | BL28: 0 | BN28: 0 | BO28: 0
A29: DB03 1003:MSR CKN CP | B29: 12.9 | C29: 0 | D29: 0 | E29: 0 | F29: 0 | G29: 0 | H29: 0 | I29: 0 | J29: 0 | K29: 0 | L29: 0 | M29: 0 | N29: 0 | O29: 0 | P29: 0 | Q29: 0 | R29: 0 | S29: 0 | T29: 0 | U29: 0 | V29: 0 | W29: 0 | X29: 0 | Y29: 0 | Z29: 0 | AA29: 0 | AB29: 0 | AC29: 0 | AD29: 0 | AE29: 0 | AF29: 0 | AG29: 0 | AH29: 0 | AI29: 0 | AJ29: 0 | AK29: 0 | AL29: 0 | AM29: 0 | AN29: 0 | AO29: 0 | AP29: 0 | AQ29: 0 | AR29: 0 | AS29: 0 | AT29: 0 | AU29: 0 | AV29: 0 | AW29: 0 | AX29: 0 | AY29: 0 | AZ29: 0 | BA29: 0 | BB29: 0 | BC29: 0 | BD29: 0 | BE29: 0 | BF29: 0 | BG29: 0 | BH29: 0 | BI29: 0 | BJ29: 0 | BK29: 0 | BL29: 0 | BN29: 0 | BO29: 0
A30: DB04 1004:CKN MARY | B30: 12.9 | C30: 0 | D30: 0 | E30: 0 | F30: 0 | G30: 0 | H30: 0 | I30: 0 | J30: 0 | K30: 0 | L30: 0 | M30: 0 | N30: 0 | O30: 0 | P30: 0 | Q30: 0 | R30: 0 | S30: 0 | T30: 0 | U30: 0 | V30: 0 | W30: 0 | X30: 0 | Y30: 0 | Z30: 0 | AA30: 0 | AB30: 0 | AC30: 0 | AD30: 0 | AE30: 0 | AF30: 0 | AG30: 0 | AH30: 0 | AI30: 0 | AJ30: 0 | AK30: 0 | AL30: 0 | AM30: 0 | AN30: 0 | AO30: 0 | AP30: 0 | AQ30: 0 | AR30: 0 | AS30: 0 | AT30: 0 | AU30: 0 | AV30: 0 | AW30: 0 | AX30: 0 | AY30: 0 | AZ30: 0 | BA30: 0 | BB30: 0 | BC30: 0 | BD30: 0 | BE30: 0 | BF30: 0 | BG30: 0 | BH30: 0 | BI30: 0 | BJ30: 0 | BK30: 0 | BL30: 0 | BN30: 0 | BO30: 0
A31: DB05 1005:FISH&CHIP | B31: 12.9 | C31: 0 | D31: 0 | E31: 0 | F31: 0 | G31: 0 | H31: 0 | I31: 0 | J31: 0 | K31: 0 | L31: 0 | M31: 0 | N31: 0 | O31: 0 | P31: 0 | Q31: 0 | R31: 0 | S31: 0 | T31: 0 | U31: 0 | V31: 0 | W31: 0 | X31: 0 | Y31: 0 | Z31: 0 | AA31: 0 | AB31: 0 | AC31: 0 | AD31: 0 | AE31: 0 | AF31: 0 | AG31: 0 | AH31: 0 | AI31: 0 | AJ31: 0 | AK31: 0 | AL31: 0 | AM31: 0 | AN31: 0 | AO31: 0 | AP31: 0 | AQ31: 0 | AR31: 0 | AS31: 0 | AT31: 0 | AU31: 0 | AV31: 0 | AW31: 0 | AX31: 0 | AY31: 0 | AZ31: 0 | BA31: 0 | BB31: 0 | BC31: 0 | BD31: 0 | BE31: 0 | BF31: 0 | BG31: 0 | BH31: 0 | BI31: 0 | BJ31: 0 | BK31: 0 | BL31: 0 | BN31: 0 | BO31: 0
A32: DB06 1006:SPAGHETTI | B32: 12.9 | C32: 0 | D32: 0 | E32: 0 | F32: 0 | G32: 0 | H32: 0 | I32: 0 | J32: 0 | K32: 0 | L32: 0 | M32: 0 | N32: 0 | O32: 0 | P32: 0 | Q32: 0 | R32: 0 | S32: 0 | T32: 0 | U32: 0 | V32: 0 | W32: 0 | X32: 0 | Y32: 0 | Z32: 0 | AA32: 0 | AB32: 0 | AC32: 0 | AD32: 0 | AE32: 0 | AF32: 0 | AG32: 0 | AH32: 0 | AI32: 0 | AJ32: 0 | AK32: 0 | AL32: 0 | AM32: 0 | AN32: 0 | AO32: 0 | AP32: 0 | AQ32: 0 | AR32: 0 | AS32: 0 | AT32: 0 | AU32: 0 | AV32: 0 | AW32: 0 | AX32: 0 | AY32: 0 | AZ32: 0 | BA32: 0 | BB32: 0 | BC32: 0 | BD32: 0 | BE32: 0 | BF32: 0 | BG32: 0 | BH32: 0 | BI32: 0 | BJ32: 0 | BK32: 0 | BL32: 0 | BN32: 0 | BO32: 0
A33: DB07 1007:CHK SALAD | B33: 12.9 | C33: 1 | D33: 12.9 | E33: 0 | F33: 0 | G33: 0 | H33: 0 | I33: 0 | J33: 0 | K33: 0 | L33: 0 | M33: 0 | N33: 0 | O33: 0 | P33: 0 | Q33: 0 | R33: 0 | S33: 0 | T33: 0 | U33: 0 | V33: 0 | W33: 0 | X33: 0 | Y33: 0 | Z33: 0 | AA33: 0 | AB33: 0 | AC33: 0 | AD33: 0 | AE33: 0 | AF33: 0 | AG33: 0 | AH33: 0 | AI33: 0 | AJ33: 0 | AK33: 0 | AL33: 0 | AM33: 0 | AN33: 0 | AO33: 1 | AP33: 12.9 | AQ33: 0 | AR33: 0 | AS33: 0 | AT33: 0 | AU33: 0 | AV33: 0 | AW33: 0 | AX33: 0 | AY33: 0 | AZ33: 0 | BA33: 0 | BB33: 0 | BC33: 0 | BD33: 0 | BE33: 0 | BF33: 0 | BG33: 0 | BH33: 0 | BI33: 0 | BJ33: 0 | BK33: 0 | BL33: 0 | BN33: 2 | BO33: 25.8
A34: DD01 1201:SFD STICK | B34: 5.9 | C34: 0 | D34: 0 | E34: 0 | F34: 0 | G34: 0 | H34: 0 | I34: 0 | J34: 0 | K34: 0 | L34: 0 | M34: 0 | N34: 0 | O34: 0 | P34: 0 | Q34: 0 | R34: 0 | S34: 0 | T34: 0 | U34: 0 | V34: 0 | W34: 0 | X34: 0 | Y34: 0 | Z34: 0 | AA34: 0 | AB34: 0 | AC34: 0 | AD34: 0 | AE34: 0 | AF34: 0 | AG34: 0 | AH34: 0 | AI34: 0 | AJ34: 0 | AK34: 0 | AL34: 0 | AM34: 0 | AN34: 0 | AO34: 0 | AP34: 0 | AQ34: 0 | AR34: 0 | AS34: 0 | AT34: 0 | AU34: 0 | AV34: 0 | AW34: 0 | AX34: 0 | AY34: 0 | AZ34: 0 | BA34: 0 | BB34: 0 | BC34: 0 | BD34: 0 | BE34: 0 | BF34: 0 | BG34: 0 | BH34: 0 | BI34: 0 | BJ34: 0 | BK34: 0 | BL34: 0 | BN34: 0 | BO34: 0
A35: DD02 1202:FREN FRIES | B35: 5.9 | C35: 0 | D35: 0 | E35: 0 | F35: 0 | G35: 0 | H35: 0 | I35: 0 | J35: 0 | K35: 0 | L35: 0 | M35: 0 | N35: 0 | O35: 0 | P35: 0 | Q35: 0 | R35: 0 | S35: 0 | T35: 0 | U35: 0 | V35: 0 | W35: 0 | X35: 0 | Y35: 0 | Z35: 0 | AA35: 0 | AB35: 0 | AC35: 0 | AD35: 0 | AE35: 0 | AF35: 0 | AG35: 0 | AH35: 0 | AI35: 0 | AJ35: 0 | AK35: 0 | AL35: 0 | AM35: 0 | AN35: 0 | AO35: 0 | AP35: 0 | AQ35: 0 | AR35: 0 | AS35: 0 | AT35: 0 | AU35: 0 | AV35: 0 | AW35: 0 | AX35: 0 | AY35: 0 | AZ35: 0 | BA35: 0 | BB35: 0 | BC35: 0 | BD35: 0 | BE35: 0 | BF35: 0 | BG35: 0 | BH35: 0 | BI35: 0 | BJ35: 0 | BK35: 0 | BL35: 0 | BN35: 0 | BO35: 0
A36: DD03 1203:GOLD MROOM | B36: 5.9 | C36: 0 | D36: 0 | E36: 0 | F36: 0 | G36: 0 | H36: 0 | I36: 0 | J36: 0 | K36: 0 | L36: 0 | M36: 0 | N36: 0 | O36: 0 | P36: 0 | Q36: 0 | R36: 0 | S36: 0 | T36: 0 | U36: 0 | V36: 0 | W36: 0 | X36: 0 | Y36: 0 | Z36: 0 | AA36: 0 | AB36: 0 | AC36: 0 | AD36: 0 | AE36: 0 | AF36: 0 | AG36: 0 | AH36: 0 | AI36: 0 | AJ36: 0 | AK36: 0 | AL36: 0 | AM36: 0 | AN36: 0 | AO36: 0 | AP36: 0 | AQ36: 0 | AR36: 0 | AS36: 0 | AT36: 0 | AU36: 0 | AV36: 0 | AW36: 0 | AX36: 0 | AY36: 0 | AZ36: 0 | BA36: 0 | BB36: 0 | BC36: 0 | BD36: 0 | BE36: 0 | BF36: 0 | BG36: 0 | BH36: 0 | BI36: 0 | BJ36: 0 | BK36: 0 | BL36: 0 | BN36: 0 | BO36: 0
A37: DD04 1204:FISHBALL | B37: 5.9 | C37: 0 | D37: 0 | E37: 0 | F37: 0 | G37: 0 | H37: 0 | I37: 0 | J37: 0 | K37: 0 | L37: 0 | M37: 0 | N37: 0 | O37: 0 | P37: 0 | Q37: 0 | R37: 0 | S37: 0 | T37: 0 | U37: 0 | V37: 0 | W37: 0 | X37: 0 | Y37: 0 | Z37: 0 | AA37: 0 | AB37: 0 | AC37: 0 | AD37: 0 | AE37: 0 | AF37: 0 | AG37: 0 | AH37: 0 | AI37: 0 | AJ37: 0 | AK37: 0 | AL37: 0 | AM37: 0 | AN37: 0 | AO37: 0 | AP37: 0 | AQ37: 0 | AR37: 0 | AS37: 0 | AT37: 0 | AU37: 0 | AV37: 0 | AW37: 0 | AX37: 0 | AY37: 0 | AZ37: 0 | BA37: 0 | BB37: 0 | BC37: 0 | BD37: 0 | BE37: 0 | BF37: 0 | BG37: 0 | BH37: 0 | BI37: 0 | BJ37: 0 | BK37: 0 | BL37: 0 | BN37: 0 | BO37: 0
A38: DD05 1205:RAINBOW RL | B38: 5.9 | C38: 0 | D38: 0 | E38: 0 | F38: 0 | G38: 0 | H38: 0 | I38: 0 | J38: 0 | K38: 0 | L38: 0 | M38: 0 | N38: 0 | O38: 0 | P38: 0 | Q38: 0 | R38: 0 | S38: 0 | T38: 0 | U38: 0 | V38: 0 | W38: 0 | X38: 0 | Y38: 0 | Z38: 0 | AA38: 0 | AB38: 0 | AC38: 0 | AD38: 0 | AE38: 0 | AF38: 0 | AG38: 0 | AH38: 0 | AI38: 0 | AJ38: 0 | AK38: 0 | AL38: 0 | AM38: 0 | AN38: 0 | AO38: 0 | AP38: 0 | AQ38: 0 | AR38: 0 | AS38: 0 | AT38: 0 | AU38: 0 | AV38: 0 | AW38: 0 | AX38: 0 | AY38: 0 | AZ38: 0 | BA38: 0 | BB38: 0 | BC38: 0 | BD38: 0 | BE38: 0 | BF38: 0 | BG38: 0 | BH38: 0 | BI38: 0 | BJ38: 0 | BK38: 0 | BL38: 0 | BN38: 0 | BO38: 0
A39: DD06 1206:SPRING RL | B39: 5.9 | C39: 0 | D39: 0 | E39: 0 | F39: 0 | G39: 0 | H39: 0 | I39: 0 | J39: 0 | K39: 0 | L39: 0 | M39: 0 | N39: 0 | O39: 0 | P39: 0 | Q39: 0 | R39: 0 | S39: 0 | T39: 0 | U39: 0 | V39: 0 | W39: 0 | X39: 0 | Y39: 0 | Z39: 0 | AA39: 0 | AB39: 0 | AC39: 0 | AD39: 0 | AE39: 0 | AF39: 0 | AG39: 0 | AH39: 0 | AI39: 0 | AJ39: 0 | AK39: 0 | AL39: 0 | AM39: 0 | AN39: 0 | AO39: 0 | AP39: 0 | AQ39: 0 | AR39: 0 | AS39: 0 | AT39: 0 | AU39: 0 | AV39: 0 | AW39: 0 | AX39: 0 | AY39: 0 | AZ39: 0 | BA39: 0 | BB39: 0 | BC39: 0 | BD39: 0 | BE39: 0 | BF39: 0 | BG39: 0 | BH39: 0 | BI39: 0 | BJ39: 0 | BK39: 0 | BL39: 0 | BN39: 0 | BO39: 0
A40: DD07 1207:SAUSAGE | B40: 5.9 | C40: 0 | D40: 0 | E40: 0 | F40: 0 | G40: 0 | H40: 0 | I40: 0 | J40: 0 | K40: 0 | L40: 0 | M40: 0 | N40: 0 | O40: 0 | P40: 0 | Q40: 0 | R40: 0 | S40: 0 | T40: 0 | U40: 0 | V40: 0 | W40: 0 | X40: 0 | Y40: 0 | Z40: 0 | AA40: 0 | AB40: 0 | AC40: 0 | AD40: 0 | AE40: 0 | AF40: 0 | AG40: 0 | AH40: 0 | AI40: 0 | AJ40: 0 | AK40: 0 | AL40: 0 | AM40: 0 | AN40: 0 | AO40: 1 | AP40: 5.9 | AQ40: 0 | AR40: 0 | AS40: 0 | AT40: 0 | AU40: 0 | AV40: 0 | AW40: 0 | AX40: 0 | AY40: 0 | AZ40: 0 | BA40: 0 | BB40: 0 | BC40: 0 | BD40: 0 | BE40: 0 | BF40: 0 | BG40: 0 | BH40: 0 | BI40: 0 | BJ40: 0 | BK40: 0 | BL40: 0 | BN40: 1 | BO40: 5.9
A41: DD10 1301:DUMPLING | B41: 7.9 | C41: 0 | D41: 0 | E41: 0 | F41: 0 | G41: 0 | H41: 0 | I41: 0 | J41: 0 | K41: 0 | L41: 0 | M41: 0 | N41: 0 | O41: 0 | P41: 0 | Q41: 0 | R41: 0 | S41: 0 | T41: 0 | U41: 0 | V41: 0 | W41: 0 | X41: 0 | Y41: 0 | Z41: 0 | AA41: 0 | AB41: 0 | AC41: 0 | AD41: 0 | AE41: 0 | AF41: 0 | AG41: 0 | AH41: 0 | AI41: 0 | AJ41: 0 | AK41: 0 | AL41: 0 | AM41: 0 | AN41: 0 | AO41: 0 | AP41: 0 | AQ41: 0 | AR41: 0 | AS41: 0 | AT41: 0 | AU41: 0 | AV41: 0 | AW41: 0 | AX41: 0 | AY41: 0 | AZ41: 0 | BA41: 0 | BB41: 0 | BC41: 0 | BD41: 0 | BE41: 0 | BF41: 0 | BG41: 0 | BH41: 0 | BI41: 0 | BJ41: 0 | BK41: 0 | BL41: 0 | BN41: 0 | BO41: 0
A42: DD11 1302:NUGGET | B42: 7.9 | C42: 0 | D42: 0 | E42: 0 | F42: 0 | G42: 0 | H42: 0 | I42: 0 | J42: 0 | K42: 0 | L42: 0 | M42: 0 | N42: 0 | O42: 0 | P42: 0 | Q42: 0 | R42: 0 | S42: 0 | T42: 0 | U42: 0 | V42: 0 | W42: 0 | X42: 0 | Y42: 0 | Z42: 0 | AA42: 0 | AB42: 0 | AC42: 0 | AD42: 0 | AE42: 0 | AF42: 0 | AG42: 0 | AH42: 0 | AI42: 0 | AJ42: 0 | AK42: 0 | AL42: 0 | AM42: 0 | AN42: 0 | AO42: 0 | AP42: 0 | AQ42: 0 | AR42: 0 | AS42: 0 | AT42: 0 | AU42: 0 | AV42: 0 | AW42: 0 | AX42: 0 | AY42: 0 | AZ42: 0 | BA42: 0 | BB42: 0 | BC42: 0 | BD42: 0 | BE42: 0 | BF42: 0 | BG42: 0 | BH42: 0 | BI42: 0 | BJ42: 0 | BK42: 0 | BL42: 0 | BN42: 0 | BO42: 0
A43: DD12 1303:CHK WING | B43: 7.9 | C43: 0 | D43: 0 | E43: 0 | F43: 0 | G43: 0 | H43: 0 | I43: 0 | J43: 0 | K43: 0 | L43: 0 | M43: 0 | N43: 0 | O43: 0 | P43: 0 | Q43: 0 | R43: 0 | S43: 0 | T43: 0 | U43: 0 | V43: 0 | W43: 0 | X43: 0 | Y43: 0 | Z43: 0 | AA43: 0 | AB43: 0 | AC43: 0 | AD43: 0 | AE43: 0 | AF43: 0 | AG43: 0 | AH43: 0 | AI43: 0 | AJ43: 0 | AK43: 0 | AL43: 0 | AM43: 0 | AN43: 0 | AO43: 0 | AP43: 0 | AQ43: 0 | AR43: 0 | AS43: 0 | AT43: 0 | AU43: 0 | AV43: 0 | AW43: 0 | AX43: 0 | AY43: 0 | AZ43: 0 | BA43: 0 | BB43: 0 | BC43: 0 | BD43: 0 | BE43: 0 | BF43: 0 | BG43: 0 | BH43: 0 | BI43: 0 | BJ43: 0 | BK43: 0 | BL43: 0 | BN43: 0 | BO43: 0
A44: DD13 1304:IKAN BILIS | B44: 7.9 | C44: 0 | D44: 0 | E44: 0 | F44: 0 | G44: 0 | H44: 0 | I44: 0 | J44: 0 | K44: 0 | L44: 0 | M44: 0 | N44: 0 | O44: 0 | P44: 0 | Q44: 0 | R44: 0 | S44: 0 | T44: 0 | U44: 0 | V44: 0 | W44: 0 | X44: 0 | Y44: 0 | Z44: 0 | AA44: 0 | AB44: 0 | AC44: 0 | AD44: 0 | AE44: 0 | AF44: 0 | AG44: 0 | AH44: 0 | AI44: 0 | AJ44: 0 | AK44: 0 | AL44: 0 | AM44: 0 | AN44: 0 | AO44: 0 | AP44: 0 | AQ44: 0 | AR44: 0 | AS44: 0 | AT44: 0 | AU44: 0 | AV44: 0 | AW44: 0 | AX44: 0 | AY44: 0 | AZ44: 0 | BA44: 0 | BB44: 0 | BC44: 0 | BD44: 0 | BE44: 0 | BF44: 0 | BG44: 0 | BH44: 0 | BI44: 0 | BJ44: 0 | BK44: 0 | BL44: 0 | BN44: 0 | BO44: 0
A45: DD14 1305:THAI RL | B45: 7.9 | C45: 0 | D45: 0 | E45: 0 | F45: 0 | G45: 0 | H45: 0 | I45: 0 | J45: 0 | K45: 1 | L45: 7.9 | M45: 0 | N45: 0 | O45: 0 | P45: 0 | Q45: 0 | R45: 0 | S45: 0 | T45: 0 | U45: 0 | V45: 0 | W45: 0 | X45: 0 | Y45: 0 | Z45: 0 | AA45: 0 | AB45: 0 | AC45: 0 | AD45: 0 | AE45: 0 | AF45: 0 | AG45: 0 | AH45: 0 | AI45: 0 | AJ45: 0 | AK45: 0 | AL45: 0 | AM45: 0 | AN45: 0 | AO45: 0 | AP45: 0 | AQ45: 0 | AR45: 0 | AS45: 0 | AT45: 0 | AU45: 0 | AV45: 0 | AW45: 0 | AX45: 0 | AY45: 0 | AZ45: 0 | BA45: 0 | BB45: 0 | BC45: 0 | BD45: 0 | BE45: 0 | BF45: 0 | BG45: 0 | BH45: 0 | BI45: 0 | BJ45: 0 | BK45: 0 | BL45: 0 | BN45: 1 | BO45: 7.9
A46: DD15 1306:SLVR FISH | B46: 7.9 | C46: 0 | D46: 0 | E46: 0 | F46: 0 | G46: 0 | H46: 0 | I46: 0 | J46: 0 | K46: 0 | L46: 0 | M46: 0 | N46: 0 | O46: 0 | P46: 0 | Q46: 0 | R46: 0 | S46: 0 | T46: 0 | U46: 0 | V46: 0 | W46: 0 | X46: 0 | Y46: 0 | Z46: 0 | AA46: 0 | AB46: 0 | AC46: 0 | AD46: 0 | AE46: 0 | AF46: 0 | AG46: 0 | AH46: 0 | AI46: 0 | AJ46: 0 | AK46: 0 | AL46: 0 | AM46: 0 | AN46: 0 | AO46: 0 | AP46: 0 | AQ46: 0 | AR46: 0 | AS46: 0 | AT46: 0 | AU46: 0 | AV46: 0 | AW46: 0 | AX46: 0 | AY46: 0 | AZ46: 0 | BA46: 0 | BB46: 0 | BC46: 0 | BD46: 0 | BE46: 0 | BF46: 0 | BG46: 0 | BH46: 0 | BI46: 0 | BJ46: 0 | BK46: 0 | BL46: 0 | BN46: 0 | BO46: 0
A47: DD16 1307:D.F C/WING | B47: 7.9 | C47: 0 | D47: 0 | E47: 0 | F47: 0 | G47: 0 | H47: 0 | I47: 0 | J47: 0 | K47: 0 | L47: 0 | M47: 0 | N47: 0 | O47: 0 | P47: 0 | Q47: 0 | R47: 0 | S47: 0 | T47: =S47*B47 -> 0 | U47: 0 | V47: 0 | W47: 0 | X47: 0 | Y47: 0 | Z47: 0 | AA47: 0 | AB47: 0 | AC47: 0 | AD47: 0 | AE47: 0 | AF47: 0 | AG47: 0 | AH47: 0 | AI47: 0 | AJ47: 0 | AK47: 1 | AL47: 7.9 | AM47: 0 | AN47: 0 | AO47: 0 | AP47: 0 | AQ47: 0 | AR47: 0 | AS47: 0 | AT47: 0 | AU47: 0 | AV47: 0 | AW47: 0 | AX47: 0 | AY47: 0 | AZ47: 0 | BA47: 0 | BB47: 0 | BC47: 0 | BD47: 0 | BE47: 0 | BF47: 0 | BG47: 0 | BH47: 0 | BI47: 0 | BJ47: 0 | BK47: 0 | BL47: 0 | BN47: 1 | BO47: 7.9
A48: DD17 1308 C/CALAMARI | B48: 7.9 | C48: 0 | D48: 0 | E48: 0 | F48: 0 | G48: 0 | H48: 0 | I48: 0 | J48: 0 | K48: 0 | L48: 0 | M48: 0 | N48: 0 | O48: 0 | P48: 0 | Q48: 0 | R48: 0 | S48: 0 | T48: =S48*B48 -> 0 | U48: 0 | V48: 0 | W48: 0 | X48: 0 | Y48: 0 | Z48: 0 | AA48: 0 | AB48: 0 | AC48: 0 | AD48: 0 | AE48: 0 | AF48: 0 | AG48: 0 | AH48: 0 | AI48: 0 | AJ48: 0 | AK48: 0 | AL48: 0 | AM48: 0 | AN48: 0 | AO48: 0 | AP48: 0 | AQ48: 0 | AR48: 0 | AS48: 0 | AT48: 0 | AU48: 0 | AV48: 0 | AW48: 0 | AX48: 0 | AY48: 0 | AZ48: 0 | BA48: 0 | BB48: 0 | BC48: 0 | BD48: 0 | BE48: 0 | BF48: 0 | BG48: 0 | BH48: 0 | BI48: 0 | BJ48: 0 | BK48: 0 | BL48: 0 | BN48: 0 | BO48: 0
A49: DD18 1309 Mc C/O.RING | B49: 7.9 | C49: 0 | D49: 0 | E49: 0 | F49: 0 | G49: 0 | H49: 0 | I49: 0 | J49: 0 | K49: 0 | L49: 0 | M49: 0 | N49: 0 | O49: 0 | P49: 0 | Q49: 0 | R49: 0 | S49: 0 | T49: =S49*B49 -> 0 | U49: 0 | V49: 0 | W49: 0 | X49: 0 | Y49: 0 | Z49: 0 | AA49: 0 | AB49: 0 | AC49: 0 | AD49: 0 | AE49: 0 | AF49: 0 | AG49: 0 | AH49: 0 | AI49: 0 | AJ49: 0 | AK49: 0 | AL49: 0 | AM49: 0 | AN49: 0 | AO49: 0 | AP49: 0 | AQ49: 0 | AR49: 0 | AS49: 0 | AT49: 0 | AU49: 0 | AV49: 0 | AW49: 0 | AX49: 0 | AY49: 0 | AZ49: 0 | BA49: 0 | BB49: 0 | BC49: 0 | BD49: 0 | BE49: 0 | BF49: 0 | BG49: 0 | BH49: 0 | BI49: 0 | BJ49: 0 | BK49: 0 | BL49: 0 | BN49: 0 | BO49: 0
A50: DD19 1310:Mc SPIRAL/F | B50: 7.9 | C50: 0 | D50: 0 | E50: 0 | F50: 0 | G50: 0 | H50: 0 | I50: 0 | J50: 0 | K50: 0 | L50: 0 | M50: 0 | N50: 0 | O50: 0 | P50: 0 | Q50: 0 | R50: 0 | S50: 0 | T50: =S50*D50 -> 0 | U50: 0 | V50: 0 | W50: 0 | X50: 0 | Y50: 0 | Z50: 0 | AA50: 0 | AB50: 0 | AC50: 0 | AD50: 0 | AE50: 0 | AF50: 0 | AG50: 0 | AH50: 0 | AI50: 0 | AJ50: 0 | AK50: 0 | AL50: 0 | AM50: 0 | AN50: 0 | AO50: 0 | AP50: 0 | AQ50: 0 | AR50: 0 | AS50: 0 | AT50: 0 | AU50: 0 | AV50: 0 | AW50: 0 | AX50: 0 | AY50: 0 | AZ50: 0 | BA50: 0 | BB50: 0 | BC50: 0 | BD50: 0 | BE50: 0 | BF50: 0 | BG50: 0 | BH50: 0 | BI50: 0 | BJ50: 0 | BK50: 0 | BL50: 0 | BN50: 0 | BO50: 0
A51: DD20 1311:Mc H/SMILES | B51: 7.9 | C51: 0 | D51: 0 | E51: 0 | F51: 0 | G51: 0 | H51: 0 | I51: 0 | J51: 0 | K51: 0 | L51: 0 | M51: 0 | N51: 0 | O51: 0 | P51: 0 | Q51: 0 | R51: 0 | S51: 0 | T51: =S51*B51 -> 0 | U51: 0 | V51: 0 | W51: 0 | X51: 0 | Y51: 0 | Z51: 0 | AA51: 0 | AB51: 0 | AC51: 0 | AD51: 0 | AE51: 0 | AF51: 0 | AG51: 0 | AH51: 0 | AI51: 0 | AJ51: 0 | AK51: 0 | AL51: 0 | AM51: 0 | AN51: 0 | AO51: 0 | AP51: 0 | AQ51: 0 | AR51: 0 | AS51: 0 | AT51: 0 | AU51: 0 | AV51: 0 | AW51: 0 | AX51: 0 | AY51: 0 | AZ51: 0 | BA51: 0 | BB51: 0 | BC51: 0 | BD51: 0 | BE51: 0 | BF51: 0 | BG51: 0 | BH51: 0 | BI51: 0 | BJ51: 0 | BK51: 0 | BL51: 0 | BN51: 0 | BO51: 0
A52: DD21 1312:Mc HASH BRW | B52: 7.9 | C52: 0 | D52: 0 | E52: 0 | F52: 0 | G52: 0 | H52: 0 | I52: 0 | J52: 0 | K52: 0 | L52: 0 | M52: 0 | N52: 0 | O52: 0 | P52: 0 | Q52: 0 | R52: 0 | S52: 0 | T52: =S52*B52 -> 0 | U52: 0 | V52: 0 | W52: 0 | X52: 0 | Y52: 0 | Z52: 0 | AA52: 0 | AB52: 0 | AC52: 0 | AD52: 0 | AE52: 0 | AF52: 0 | AG52: 0 | AH52: 0 | AI52: 0 | AJ52: 0 | AK52: 0 | AL52: 0 | AM52: 0 | AN52: 0 | AO52: 0 | AP52: 0 | AQ52: 0 | AR52: 0 | AS52: 0 | AT52: 0 | AU52: 0 | AV52: 0 | AW52: 0 | AX52: 0 | AY52: 0 | AZ52: 0 | BA52: 0 | BB52: 0 | BC52: 0 | BD52: 0 | BE52: 0 | BF52: 0 | BG52: 0 | BH52: 0 | BI52: 0 | BJ52: 0 | BK52: 0 | BL52: 0 | BN52: 0 | BO52: 0
A53: DL01 3001:6'HAWAIIAN | B53: 12.9 | C53: 0 | D53: =C53*B53 -> 0 | E53: 0 | F53: =E53*B53 -> 0 | G53: 0 | H53: 0 | I53: 0 | J53: =I53*B53 -> 0 | K53: 0 | L53: 0 | M53: 0 | N53: 0 | O53: 0 | P53: 0 | Q53: 0 | R53: 0 | S53: 0 | T53: 0 | U53: 0 | V53: 0 | W53: 0 | X53: 0 | Y53: 0 | Z53: 0 | AA53: 0 | AB53: 0 | AC53: 0 | AD53: 0 | AE53: 0 | AF53: 0 | AG53: 0 | AH53: =AG53*AF53 -> 0 | AI53: 0 | AJ53: 0 | AK53: 0 | AL53: 0 | AM53: 0 | AN53: 0 | AO53: 0 | AP53: 0 | AQ53: 0 | AR53: 0 | AS53: 0 | AT53: 0 | AU53: 0 | AV53: 0 | AW53: 0 | AX53: 0 | AY53: 0 | AZ53: 0 | BA53: 0 | BB53: 0 | BC53: 0 | BD53: 0 | BE53: 0 | BF53: 0 | BG53: 0 | BH53: =BG53*B53 -> 0 | BI53: 0 | BJ53: 0 | BK53: 0 | BL53: 0 | BN53: 0 | BO53: 0
A54: DL02 3002:6'SMOKE BBQ | B54: 12.9 | C54: 0 | D54: =C54*B54 -> 0 | E54: 0 | F54: =E54*B54 -> 0 | G54: 0 | H54: 0 | I54: 0 | J54: =I54*B54 -> 0 | K54: 0 | L54: 0 | M54: 0 | N54: 0 | O54: 0 | P54: 0 | Q54: 0 | R54: 0 | S54: 0 | T54: 0 | U54: 0 | V54: 0 | W54: 0 | X54: 0 | Y54: 0 | Z54: 0 | AA54: 0 | AB54: 0 | AC54: 0 | AD54: 0 | AE54: 0 | AF54: 0 | AG54: 0 | AH54: 0 | AI54: 0 | AJ54: 0 | AK54: 0 | AL54: 0 | AM54: 0 | AN54: 0 | AO54: 0 | AP54: 0 | AQ54: 0 | AR54: 0 | AS54: 0 | AT54: 0 | AU54: 0 | AV54: 0 | AW54: 0 | AX54: 0 | AY54: 0 | AZ54: 0 | BA54: 0 | BB54: 0 | BC54: 0 | BD54: 0 | BE54: 0 | BF54: 0 | BG54: 0 | BH54: =BG54*B54 -> 0 | BI54: 0 | BJ54: 0 | BK54: 0 | BL54: 0 | BN54: 0 | BO54: 0
A55: DL03 3003:6'SEAFOOD | B55: 12.9 | C55: 0 | D55: 0 | E55: 0 | F55: 0 | G55: 0 | H55: 0 | I55: 0 | J55: 0 | K55: 0 | L55: 0 | M55: 0 | N55: =M55*B55 -> 0 | O55: 0 | P55: 0 | Q55: 0 | R55: 0 | S55: 0 | T55: 0 | U55: 0 | V55: 0 | W55: 0 | X55: 0 | Y55: 0 | Z55: 0 | AA55: 0 | AB55: 0 | AC55: 0 | AD55: 0 | AE55: 0 | AF55: 0 | AG55: 0 | AH55: 0 | AI55: 0 | AJ55: 0 | AK55: 0 | AL55: 0 | AM55: 0 | AN55: 0 | AO55: 0 | AP55: 0 | AQ55: 0 | AR55: 0 | AS55: 0 | AT55: 0 | AU55: 0 | AV55: 0 | AW55: 0 | AX55: 0 | AY55: 0 | AZ55: 0 | BA55: 0 | BB55: 0 | BC55: 0 | BD55: 0 | BE55: 0 | BF55: 0 | BG55: 0 | BH55: 0 | BI55: 0 | BJ55: 0 | BK55: 0 | BL55: 0 | BN55: 0 | BO55: 0
A56: DL04 3004:6'SPICY BUF | B56: 12.9 | C56: 0 | D56: 0 | E56: 0 | F56: 0 | G56: 0 | H56: 0 | I56: 0 | J56: 0 | K56: 0 | L56: 0 | M56: 0 | N56: 0 | O56: 0 | P56: 0 | Q56: 0 | R56: 0 | S56: 0 | T56: 0 | U56: 0 | V56: 0 | W56: 0 | X56: 0 | Y56: 0 | Z56: 0 | AA56: 0 | AB56: 0 | AC56: 0 | AD56: 0 | AE56: 0 | AF56: 0 | AG56: 0 | AH56: 0 | AI56: 0 | AJ56: 0 | AK56: 0 | AL56: 0 | AM56: 0 | AN56: 0 | AO56: 0 | AP56: 0 | AQ56: 0 | AR56: 0 | AS56: 0 | AT56: 0 | AU56: 0 | AV56: 0 | AW56: 0 | AX56: 0 | AY56: 0 | AZ56: 0 | BA56: 0 | BB56: 0 | BC56: 0 | BD56: 0 | BE56: 0 | BF56: 0 | BG56: 0 | BH56: 0 | BI56: 0 | BJ56: 0 | BK56: 0 | BL56: 0 | BN56: 0 | BO56: 0
A57: DL05 3005:6'VEGGIE | B57: 16.9 | C57: 0 | D57: 0 | E57: 0 | F57: 0 | G57: 0 | H57: 0 | I57: 0 | J57: 0 | K57: 0 | L57: 0 | M57: 0 | N57: 0 | O57: 0 | P57: 0 | Q57: 0 | R57: 0 | S57: 0 | T57: 0 | U57: 0 | V57: 0 | W57: 0 | X57: 0 | Y57: 0 | Z57: 0 | AA57: 0 | AB57: 0 | AC57: 0 | AD57: 0 | AE57: 0 | AF57: 0 | AG57: 0 | AH57: 0 | AI57: 0 | AJ57: 0 | AK57: 0 | AL57: 0 | AM57: 0 | AN57: 0 | AO57: 0 | AP57: 0 | AQ57: 0 | AR57: 0 | AS57: 0 | AT57: 0 | AU57: 0 | AV57: 0 | AW57: 0 | AX57: 0 | AY57: 0 | AZ57: 0 | BA57: 0 | BB57: 0 | BC57: 0 | BD57: 0 | BE57: 0 | BF57: 0 | BG57: 0 | BH57: 0 | BI57: 0 | BJ57: 0 | BK57: 0 | BL57: 0 | BN57: 0 | BO57: 0
A58: DL06 3001:9'HAWAIIAN | B58: 16.9 | C58: 0 | D58: 0 | E58: 0 | F58: 0 | G58: 0 | H58: 0 | I58: 0 | J58: 0 | K58: 0 | L58: 0 | M58: 0 | N58: 0 | O58: 0 | P58: 0 | Q58: 0 | R58: 0 | S58: 0 | T58: 0 | U58: 0 | V58: 0 | W58: 0 | X58: 0 | Y58: 0 | Z58: 0 | AA58: 0 | AB58: 0 | AC58: 0 | AD58: 0 | AE58: 0 | AF58: 0 | AG58: 0 | AH58: 0 | AI58: 0 | AJ58: 0 | AK58: 0 | AL58: 0 | AM58: 0 | AN58: 0 | AO58: 0 | AP58: 0 | AQ58: 0 | AR58: 0 | AS58: 0 | AT58: 0 | AU58: 0 | AV58: 0 | AW58: 0 | AX58: 0 | AY58: 0 | AZ58: 0 | BA58: 0 | BB58: 0 | BC58: 0 | BD58: 0 | BE58: 0 | BF58: 0 | BG58: 0 | BH58: 0 | BI58: 0 | BJ58: 0 | BK58: 0 | BL58: 0 | BN58: 0 | BO58: 0
A59: DL07 3002:9'SMOKED | B59: 16.9 | C59: 0 | D59: 0 | E59: 0 | F59: 0 | G59: 0 | H59: 0 | I59: 0 | J59: 0 | K59: 0 | L59: 0 | M59: 0 | N59: 0 | O59: 0 | P59: 0 | Q59: 0 | R59: 0 | S59: 0 | T59: 0 | U59: 0 | V59: 0 | W59: 0 | X59: 0 | Y59: 0 | Z59: 0 | AA59: 0 | AB59: 0 | AC59: 0 | AD59: 0 | AE59: 0 | AF59: 0 | AG59: 0 | AH59: 0 | AI59: 0 | AJ59: 0 | AK59: 0 | AL59: 0 | AM59: 0 | AN59: 0 | AO59: 0 | AP59: 0 | AQ59: 0 | AR59: 0 | AS59: 0 | AT59: 0 | AU59: 0 | AV59: 0 | AW59: 0 | AX59: 0 | AY59: 0 | AZ59: 0 | BA59: 0 | BB59: 0 | BC59: 0 | BD59: 0 | BE59: 0 | BF59: 0 | BG59: 0 | BH59: 0 | BI59: 0 | BJ59: 0 | BK59: 0 | BL59: 0 | BN59: 0 | BO59: 0
A60: DL08 3003:9'SEAFOOD | B60: 12.9 | C60: 0 | D60: 0 | E60: 0 | F60: 0 | G60: 0 | H60: 0 | I60: 0 | J60: 0 | K60: 0 | L60: 0 | M60: 0 | N60: 0 | O60: 0 | P60: 0 | Q60: 0 | R60: 0 | S60: 0 | T60: 0 | U60: 0 | V60: 0 | W60: 0 | X60: 0 | Y60: 0 | Z60: 0 | AA60: 0 | AB60: 0 | AC60: 0 | AD60: 0 | AE60: 0 | AF60: 0 | AG60: 0 | AH60: 0 | AI60: 0 | AJ60: 0 | AK60: 0 | AL60: 0 | AM60: 0 | AN60: 0 | AO60: 0 | AP60: 0 | AQ60: 0 | AR60: 0 | AS60: 0 | AT60: 0 | AU60: 0 | AV60: 0 | AW60: 0 | AX60: 0 | AY60: 0 | AZ60: 0 | BA60: 0 | BB60: 0 | BC60: 0 | BD60: 0 | BE60: 0 | BF60: 0 | BG60: 0 | BH60: 0 | BI60: 0 | BJ60: 0 | BK60: 0 | BL60: 0 | BN60: 0 | BO60: 0
A61: DL09 3004:9'SPICY B | C61: 0 | D61: =C61*B61 -> 0 | E61: 0 | F61: =E61*B61 -> 0 | G61: 0 | H61: =G61*B61 -> 0 | I61: 0 | J61: =I61*B61 -> 0 | K61: 0 | L61: =K61*B61 -> 0 | M61: 0 | N61: =M61*B61 -> 0 | O61: 0 | P61: =O61*B61 -> 0 | Q61: 0 | R61: =Q61*B61 -> 0 | S61: 0 | T61: =S61*B61 -> 0 | U61: 0 | V61: =U61*B61 -> 0 | W61: 0 | X61: =W61*B61 -> 0 | Y61: 0 | Z61: =Y61*B61 -> 0 | AA61: 0 | AB61: =AA61*B61 -> 0 | AC61: 0 | AD61: =AC61*B61 -> 0 | AE61: 0 | AF61: =AE61*B61 -> 0 | AG61: 0 | AH61: =AG61*B61 -> 0 | AI61: 0 | AJ61: =AI61*B61 -> 0 | AK61: 0 | AL61: =AK61*B61 -> 0 | AM61: 0 | AN61: =AM61*B61 -> 0 | AO61: 0 | AP61: =AO61*B61 -> 0 | AQ61: 0 | AR61: =AQ61*B61 -> 0 | AS61: 0 | AT61: =AS61*B61 -> 0 | AU61: 0 | AV61: =AU61*B61 -> 0 | AW61: 0 | AX61: =AW61*B61 -> 0 | AY61: 0 | AZ61: =AY61*B61 -> 0 | BA61: 0 | BB61: =BA61*B61 -> 0 | BC61: 0 | BD61: =BC61*B61 -> 0 | BE61: 0 | BF61: =BE61*B61 -> 0 | BG61: 0 | BH61: =BG61*B61 -> 0 | BI61: 0 | BJ61: =BI61*B61 -> 0 | BK61: 0 | BL61: =BK61*B61 -> 0 | BN61: =C61+E61+G61+I61+K61+M61+O61+Q61+S61+U61+W61+Y61+AA61+AC61+AE61+AG61+AI61+AK61+AM61+AO61+AQ61+AS61+AU61+AW61+AY61+BA61+BC61+BE61+BG61+BI61+BK61 -> 0 | BO61: =BN61*B61 -> 0
A62: DL10 3005:9'VEGGIE | C62: 0 | D62: 0 | E62: 0 | F62: 0 | G62: 0 | H62: 0 | I62: 0 | J62: 0 | K62: 0 | L62: 0 | M62: 0 | N62: 0 | O62: 0 | P62: 0 | Q62: 0 | R62: 0 | S62: 0 | T62: 0 | U62: 0 | V62: 0 | W62: 0 | X62: 0 | Y62: 0 | Z62: 0 | AA62: 0 | AB62: 0 | AC62: 0 | AD62: 0 | AE62: 0 | AF62: 0 | AG62: 0 | AH62: 0 | AI62: 0 | AJ62: 0 | AK62: 0 | AL62: 0 | AM62: 0 | AN62: 0 | AO62: 0 | AP62: 0 | AQ62: 0 | AR62: 0 | AS62: 0 | AT62: 0 | AU62: 0 | AV62: 0 | AW62: 0 | AX62: 0 | AY62: 0 | AZ62: 0 | BA62: 0 | BB62: 0 | BC62: 0 | BD62: 0 | BE62: 0 | BF62: 0 | BG62: 0 | BH62: 0 | BI62: 0 | BJ62: 0 | BK62: 0 | BL62: 0 | BN62: 0 | BO62: 0

Sheet SAUCE USAGE
A1: MONTHLY SERVINGS: SAUCE
A3: =+'[6]K-LUNCH & K DINNER'!A3 -> Outlet : | B3: =+'K-LUNCH & K DINNER'!B3 -> CCS OUTLET
A4: =+'[6]K-LUNCH & K DINNER'!A4 -> Month : | B4: =+'LOK LOK '!C4 -> 2013-09-01
D7: FROM SYSTEM | G7: FROM SYSTEM | J7: USAGE
A8: NO | B8: Item | C8: COST | D8: SERVINGS | F8: Item | G8: SERVINGS | H8: TOTAL | J8: MATERIAL | K8: RECIPE | L8: TOTAL | M8: TOTAL COST
C9: RM | D9: Q | G9: Q | H9: Q | J9: Q | K9: GRAM | L9: GRAM | M9: RM
B10: REQUEST BY CUSTOMERS | J10: ALL PORTION DECREASED BY 10 GRAM
A11: 1 | B11: DF03 ADD SAUCE 1000 | C11: 0.0108 | D11: =VLOOKUP(B11,Summary!$B$30:$AK$475,5,FALSE) -> 15 | H11: =+G11+D11 -> 15 | J11: DRESSING THOUSAND ISLAND | K11: 55 | L11: =+K11*H11 -> 825 | M11: =+L11*C11 -> 8.91
A12: =+A11+1 -> 2 | B12: DF04 ADD SAUCE BOLO | C12: 0.0114 | D12: =VLOOKUP(B12,Summary!$B$30:$AK$475,5,FALSE) -> 2 | H12: 2 | J12: BOLOGNESE SAUCE | K12: 140 | L12: =+K12*H12 -> 280 | M12: 3.192
A13: =+A12+1 -> 3 | B13: DF05 ADD SAUCE BP | C13: 0.003 | D13: =VLOOKUP(B13,Summary!$B$30:$AK$475,5,FALSE) -> 5 | H13: 5 | J13: BLACK PEPPER SAUCE | K13: 80 | L13: 400 | M13: 1.2
A14: 4 | B14: DF06 ADD SAUCE BUTTER | C14: 0.0059 | D14: =VLOOKUP(B14,Summary!$B$30:$AK$475,5,FALSE) -> 0 | H14: 0 | J14: BUTTER CREAM SAUCE | K14: 65 | L14: 0 | M14: 0
A15: 5 | B15: DF07 ADD SAUCE C.PADI | C15: =0.13/30 -> 0.004333333333 | D15: =VLOOKUP(B15,Summary!$B$30:$AK$475,5,FALSE) -> 39 | H15: 39 | J15: SAUCE CHILLI (KIMBALL) | K15: 20 | L15: 780 | M15: =+L15*C15 -> 3.38
A16: 6 | B16: DF08 ADD SAUCE GS | C16: 0.0033 | D16: =VLOOKUP(B16,Summary!$B$30:$AK$475,5,FALSE) -> 1 | H16: 1 | J16: GRAVY SAUCE | K16: 80 | L16: 80 | M16: 0.264
A17: 7 | B17: DF09 ADD SAUCE MAYO | C17: 0.0063 | D17: =VLOOKUP(B17,Summary!$B$30:$AK$475,5,FALSE) -> 87 | H17: 87 | J17: MAYONNAISE | K17: 70 | L17: 6090 | M17: 38.367
A18: 8 | B18: DF10 ADD SAUCE MMITE | C18: 0.002 | D18: =VLOOKUP(B18,Summary!$B$30:$AK$475,5,FALSE) -> 0 | H18: 0 | J18: MARMITE SAUCE | K18: 70 | L18: 0 | M18: 0
A19: 9 | B19: DF11 ADD SAUCE MR | C19: 0.0068 | D19: =VLOOKUP(B19,Summary!$B$30:$AK$475,5,FALSE) -> 5 | H19: 5 | J19: MUSHROOM SAUCE | K19: 80 | L19: 400 | M19: 2.72
A20: 10 | B20: DF12 ADD SAUCE SAMBAL | C20: 0.00825 | D20: =VLOOKUP(B20,Summary!$B$30:$AK$475,5,FALSE) -> 2 | H20: 2 | J20: SAMBAL SAUCE (NASI) | K20: 110 | L20: 220 | M20: 1.815
A21: 11 | B21: DF13 ADD SAUCE THAI | C21: =0.27/38 -> 0.007105263158 | D21: =VLOOKUP(B21,Summary!$B$30:$AK$475,5,FALSE) -> 3 | H21: 3 | J21: THAI SAUCE | K21: 65 | L21: 195 | M21: 1.385526316
A22: 12 | B22: DF14 ADD SAUCE TOMATO | C22: 0.0035 | D22: =VLOOKUP(B22,Summary!$B$30:$AK$475,5,FALSE) -> 95 | H22: 95 | J22: TOMATO SAUCE ( KIMBALL ) | K22: 20 | L22: 1900 | M22: 6.65
A23: 13 | B23: DF15 ADD TATA SAUCE | C23: 0.0124 | D23: =VLOOKUP(B23,Summary!$B$30:$AK$475,5,FALSE) -> 17 | H23: 17 | J23: TARTAR SAUCE | K23: 28 | L23: 476 | M23: 5.9024
A24: 14 | B24: DF16 ADD SAUCE CHEES | D24: =VLOOKUP(B24,Summary!$B$30:$AK$475,5,FALSE) -> 0 | H24: 0 | J24: NACHO CHEESE DIP | K24: 70 | L24: 0 | M24: 0
B25: KLKD
A26: 15 | B26: DH01 91101:THAI CHK | C26: =0.27/38 -> 0.007105263158 | D26: =VLOOKUP(B26,Summary!$B$30:$AK$475,5,FALSE) -> 64 | H26: =+G26+D26 -> 64 | J26: THAI SAUCE | K26: 75 | L26: =+K26*H26 -> 4800 | M26: =+L26*C26 -> 34.10526316
A27: =+A26+1 -> 16 | B27: DH02 91102:MAMITE CHK | C27: 0.002 | D27: =VLOOKUP(B27,Summary!$B$30:$AK$475,5,FALSE) -> 114 | H27: =+G27+D27 -> 114 | J27: MARMITE SAUCE | K27: 80 | L27: =+K27*H27 -> 9120 | M27: =+L27*C27 -> 18.24
A28: =+A27+1 -> 17 | B28: DH03 91103:KO PO CHK | C28: 0.0015 | D28: =VLOOKUP(B28,Summary!$B$30:$AK$475,5,FALSE) -> 0 | H28: 0 | J28: KONG PO SAUCE | K28: 180 | L28: 0 | M28: 0
A29: 18 | B29: DH04 91104:S&S CHK | C29: =0.38/200 -> 0.0019 | D29: =VLOOKUP(B29,Summary!$B$30:$AK$475,5,FALSE) -> 47 | H29: 47 | J29: SWEET & SOUR SAUCE | K29: 200 | L29: 9400 | M29: 17.86
A30: 19 | B30: DH05 91105:BUTTER CHK | C30: 0.0059 | D30: =VLOOKUP(B30,Summary!$B$30:$AK$475,5,FALSE) -> 140 | H30: 140 | J30: BUTTER CREAM SAUCE | K30: 75 | L30: =+K30*H30 -> 10500 | M30: 61.95
A31: 20 | B31: DH06 91106:HK F.RICE | C31: =0.28/30 -> 0.009333333333 | D31: =VLOOKUP(B31,Summary!$B$30:$AK$475,5,FALSE) -> 105 | H31: 105 | L31: =+K31*H31 -> 0 | M31: 0
A32: 21 | B32: DH07 91107:SBL F.RICE | C32: 0.0091 | D32: =VLOOKUP(B32,Summary!$B$30:$AK$475,5,FALSE) -> 52 | H32: 52 | J32: SAMBAL (FRIED)SAUCE | K32: 30 | L32: 1560 | M32: 14.196
A33: 22 | B33: DH08 91108:SBL F.MEE | C33: 0.0091 | D33: =VLOOKUP(B33,Summary!$B$30:$AK$475,5,FALSE) -> 11 | H33: 11 | J33: SAMBAL (FRIED)SAUCE | K33: 30 | L33: =+K33*H33 -> 330 | M33: 3.003
A34: 23 | B34: DH09 91109:BP UDON | C34: 0.0039 | D34: =VLOOKUP(B34,Summary!$B$30:$AK$475,5,FALSE) -> 49 | H34: 49 | J34: BLACK PEPPER SAUCE (UDON) | K34: 70 | L34: =+K34*H34 -> 3430 | M34: 13.377
A35: 24 | B35: DH10 91110:NISSIN | C35: =0.7/80 -> 0.00875 | D35: =VLOOKUP(B35,Summary!$B$30:$AK$475,5,FALSE) -> 34 | H35: 34 | L35: =+K35*H35 -> 0 | M35: 0
A36: =+A35+1 -> 25 | B36: DH11 91111:VEG RICE | C36: =0.28/90 -> 0.003111111111 | D36: =VLOOKUP(B36,Summary!$B$30:$AK$475,5,FALSE) -> 21 | H36: 21 | L36: 0 | M36: 0
A37: =+A36+1 -> 26 | B37: DH12 91112:NASI LEMAK | C37: 0.0074 | D37: =VLOOKUP(B37,Summary!$B$30:$AK$475,5,FALSE) -> 0 | H37: 0 | J37: SAMBAL SAUCE (NASI) | K37: 110 | L37: 0 | M37: 0
A38: 27 | B38: DH13 91113:KUEY TEOW | C38: 0.0091 | D38: =VLOOKUP(B38,Summary!$B$30:$AK$475,5,FALSE) -> 0 | H38: 0 | J38: SAMBAL (FRIED)SAUCE | K38: 30 | L38: 0 | M38: 0
A39: 28 | B39: DH14 91114:F.BALL MEE | C39: =0.75/130 -> 0.005769230769 | D39: =VLOOKUP(B39,Summary!$B$30:$AK$475,5,FALSE) -> 0 | H39: 0 | L39: 0 | M39: 0
A40: =+A39+1 -> 29 | B40: DH15 91115:CHK NOODLE | C40: 0.0015 | D40: =VLOOKUP(B40,Summary!$B$30:$AK$475,5,FALSE) -> 33 | H40: 33 | J40: DRY NOODLE SAUCE | K40: 25 | L40: 825 | M40: 1.2375
A41: 30 | B41: DG01 91001:BP CHK CP | C41: 0.003 | D41: =VLOOKUP(B41,Summary!$B$30:$AK$475,5,FALSE) -> 368 | H41: =+G41+D41 -> 368 | J41: BLACK PEPPER SAUCE | K41: 90 | L41: =+K41*H41 -> 33120 | M41: 99.36
A42: 31 | B42: DH16 91116:MGL CHK | C42: =0.7/80 -> 0.00875 | D42: =VLOOKUP(B42,Summary!$B$30:$AK$475,5,FALSE) -> 50 | H42: =+G42+D42 -> 50 | J42: MONGOLIAN SAUCE | K42: 80 | L42: =+K42*H42 -> 4000
A43: 32 | B43: DG02 91002:GVY CHK CP | C43: 0.0068 | D43: =VLOOKUP(B43,Summary!$B$30:$AK$475,5,FALSE) -> 117 | H43: 117 | J43: GRAVY SAUCE | K43: 90 | L43: =+K43*H43 -> 10530 | M43: 71.604
A44: 33 | B44: DG03 91003:MSR CHK CP | C44: =0.27/38 -> 0.007105263158 | D44: =VLOOKUP(B44,Summary!$B$30:$AK$475,5,FALSE) -> 436 | H44: 436 | J44: MUSHROOM SAUCE | K44: 90 | L44: =+K44*H44 -> 39240 | M44: 278.8105263
A45: 34 | B45: DG04 91004:CKN MARY | C45: 0.007105263158 | D45: =VLOOKUP(B45,Summary!$B$30:$AK$475,5,FALSE) -> 203 | H45: 203 | J45: DRESSING THOUSAND ISLAND | K45: 30 | L45: =+K45*H45 -> 6090 | M45: 43.27105263
A46: 35 | B46: DG05 91005:FISH&CHIP | C46: 0.0124 | D46: =VLOOKUP(B46,Summary!$B$30:$AK$475,5,FALSE) -> 246 | H46: 246 | J46: TARTAR SAUCE | K46: 30 | L46: 7380 | M46: 91.512
A47: 36 | B47: DG06 91006:SPAGHETTI | C47: 0.0114 | D47: =VLOOKUP(B47,Summary!$B$30:$AK$475,5,FALSE) -> 160 | H47: 160 | J47: BOLOGNESE SAUCE | K47: 150 | L47: 24000 | M47: 273.6
A48: 37 | B48: DG07 91007:CHK SALAD | C48: =0.7/65 -> 0.01076923077 | D48: =VLOOKUP(B48,Summary!$B$30:$AK$475,5,FALSE) -> 71 | H48: 71 | J48: DRESSING THOUSAND ISLAND | K48: 65 | L48: 4615 | M48: 49.7
A49: 38 | B49: DI01 91201:SFD STICK | C49: =0.27/38 -> 0.007105263158 | D49: =VLOOKUP(B49,Summary!$B$30:$AK$475,5,FALSE) -> 3 | H49: 3 | J49: THAI SAUCE | K49: 38 | L49: 114 | M49: 0.81
A50: 39 | B50: DI02 91202:FREN FRIES | C50: =0.13/30 -> 0.004333333333 | D50: =VLOOKUP(B50,Summary!$B$30:$AK$475,5,FALSE) -> 28 | H50: 28 | J50: SAUCE CHILLI (KIMBALL) | K50: 30 | L50: 840 | M50: 3.64
A51: 40 | B51: DI03 91203:GOLD MROOM | C51: =0.28/30 -> 0.009333333333 | D51: =VLOOKUP(B51,Summary!$B$30:$AK$475,5,FALSE) -> 5 | H51: 5 | L51: 0 | M51: 0
A52: 41 | B52: DI04 91204:FISHBALL | C52: 0.0043 | D52: =VLOOKUP(B52,Summary!$B$30:$AK$475,5,FALSE) -> 6 | H52: 6 | J52: SAUCE CHILLI (KIMBALL) | K52: 30 | L52: 180 | M52: 0.774
A53: 42 | B53: DI05 91205:RAINBOW RL | C53: 0.0124 | D53: =VLOOKUP(B53,Summary!$B$30:$AK$475,5,FALSE) -> 0 | H53: 0 | J53: TARTAR SAUCE | K53: 38 | L53: 0 | M53: 0
A54: 43 | B54: DI06 91206:SPRING RL | C54: 0.0124 | D54: =VLOOKUP(B54,Summary!$B$30:$AK$475,5,FALSE) -> 3 | H54: 3 | J54: TARTAR SAUCE | K54: 30 | L54: 90 | M54: 1.116
A55: 44 | B55: DI07 91207:SAUSAGE | C55: =0.32/30 -> 0.01066666667 | D55: =VLOOKUP(B55,Summary!$B$30:$AK$475,5,FALSE) -> 15 | H55: 15 | J55: SAUCE CHILLI (KIMBALL) | K55: 30 | L55: 450 | M55: 4.8
A56: 45 | B56: DI10 91301:DUMPLING | C56: =0.2/30 -> 0.006666666667 | D56: =VLOOKUP(B56,Summary!$B$30:$AK$475,5,FALSE) -> 0 | H56: 0 | L56: 0 | M56: 0
A57: 46 | B57: DI11 91302:NUGGET | C57: =0.2/30 -> 0.006666666667 | D57: =VLOOKUP(B57,Summary!$B$30:$AK$475,5,FALSE) -> 31 | H57: 31 | J57: SAUCE CHILLI (KIMBALL) | K57: 30 | L57: 930 | M57: 6.2
A58: 47 | B58: DI12 91303:CHK WING | C58: =0.2/30 -> 0.006666666667 | D58: =VLOOKUP(B58,Summary!$B$30:$AK$475,5,FALSE) -> 54 | H58: 54 | J58: THAI SAUCE | K58: 38 | L58: 2052 | M58: 13.68
A59: 48 | B59: DI13 91304:IKAN BILIS | C59: 0.0091 | D59: =VLOOKUP(B59,Summary!$B$30:$AK$475,5,FALSE) -> 2 | H59: 2 | J59: SAMBAL (FRIED)SAUCE | K59: 30 | L59: 1770 | M59: 16.107
A60: 49 | B60: DI14 91305:THAI RL | C60: =0.2/30 -> 0.006666666667 | D60: =VLOOKUP(B60,Summary!$B$30:$AK$475,5,FALSE) -> 3 | H60: 3 | J60: THAI SAUCE | K60: 38 | L60: =+K60*H60 -> 114 | M60: =+L60*C60 -> 0.76
A61: 50 | B61: DI16 91307:D/F C.WING | C61: =0.32/30 -> 0.01066666667 | D61: =VLOOKUP(B61,Summary!$B$30:$AK$475,5,FALSE) -> 30 | H61: 30 | J61: SAUCE CHILLI (KIMBALL) | K61: 30 | L61: 900 | M61: 9.6
A62: 51 | B62: DI17 91308:C/CALAMARI | C62: 0.0124 | D62: =VLOOKUP(B62,Summary!$B$30:$AK$475,5,FALSE) -> 12 | H62: 12 | J62: TARTAR SAUCE | K62: 30 | L62: 360 | M62: 4.464
A63: 52 | B63: DI18 91309:Mc O.RINGS | C63: 0.0124 | D63: =VLOOKUP(B63,Summary!$B$30:$AK$475,5,FALSE) -> 10 | H63: 10 | J63: TARTAR SAUCE | K63: 30 | L63: =+K63*H63 -> 300 | M63: 3.72
A64: 53 | B64: DI19 91310:McSPIRAL.F | C64: 0.0063 | D64: =VLOOKUP(B64,Summary!$B$30:$AK$475,5,FALSE) -> 5 | H64: 5 | J64: MAYONNAISE | K64: 30 | L64: 150 | M64: 0.945
A65: 54 | B65: DI20 91311Mc H/SMILES | C65: 0.0063 | D65: =VLOOKUP(B65,Summary!$B$30:$AK$475,5,FALSE) -> 3 | H65: 3 | J65: MAYONNAISE | K65: 30 | L65: =+K65*H65 -> 90 | M65: =+L65*C65 -> 0.567
A66: 55 | B66: DI21 91312:Mc HASH.B | C66: 0.0063 | D66: =VLOOKUP(B66,Summary!$B$30:$AK$475,5,FALSE) -> 10 | H66: 10 | J66: MAYONNAISE | K66: 30 | L66: =+K66*H66 -> 300 | M66: =+L66*C66 -> 1.89
H67: 0 | L67: 0 | M67: 0
B68: SIDE ORDER | H68: 0
A69: =+A66+1 -> 56 | B69: DC01 1101:THAI CHK | C69: =0.27/38 -> 0.007105263158 | D69: =VLOOKUP(B69,Summary!$B$30:$AK$475,5,FALSE) -> 60 | H69: 60 | J69: THAI SAUCE | K69: 75 | L69: =+K69*H69 -> 4500 | M69: =+L69*C69 -> 31.97368421
A70: =+A69+1 -> 57 | B70: DC02 1102:MAMITE CHK | C70: 0.002 | D70: =VLOOKUP(B70,Summary!$B$30:$AK$475,5,FALSE) -> 63 | H70: 63 | J70: MARMITE SAUCE | K70: 80 | L70: =+K70*H70 -> 5040 | M70: =+L70*C70 -> 10.08
A71: =+A70+1 -> 58 | B71: DC03 1103:KO PO CHK | C71: 0.0015 | D71: =VLOOKUP(B71,Summary!$B$30:$AK$475,5,FALSE) -> 0 | H71: 0 | J71: KONG PO SAUCE | K71: 180 | L71: 0 | M71: 0
A72: 59 | B72: DC04 1104:S&S CHK | C72: =0.38/200 -> 0.0019 | D72: =VLOOKUP(B72,Summary!$B$30:$AK$475,5,FALSE) -> 31 | H72: 31 | J72: SWEET & SOUR SAUCE | K72: 200 | L72: 6200 | M72: 11.78
A73: 60 | B73: DC05 1105:BUTTER CHK | C73: 0.0059 | D73: =VLOOKUP(B73,Summary!$B$30:$AK$475,5,FALSE) -> 130 | H73: 130 | J73: BUTTER CREAM SAUCE | K73: 75 | L73: =+K73*H73 -> 9750 | M73: 57.525
A74: 61 | B74: DC06 1106:HK F.RICE | C74: =0.28/30 -> 0.009333333333 | D74: =VLOOKUP(B74,Summary!$B$30:$AK$475,5,FALSE) -> 56 | H74: 56 | L74: =+K74*H74 -> 0 | M74: 0
A75: 62 | B75: DC07 1107:SBL F.RICE | C75: 0.0091 | D75: =VLOOKUP(B75,Summary!$B$30:$AK$475,5,FALSE) -> 51 | H75: 51 | J75: SAMBAL (FRIED)SAUCE | K75: 30 | L75: =+K75*H75 -> 1530 | M75: 13.923
A76: 63 | B76: DC08 1108:SBL F.MEE | C76: 0.0091 | D76: =VLOOKUP(B76,Summary!$B$30:$AK$475,5,FALSE) -> 7 | H76: 7 | J76: SAMBAL (FRIED)SAUCE | K76: 30 | L76: =+K76*H76 -> 210 | M76: 1.911
A77: 64 | B77: DC09 1109:BP UDON | C77: 0.0039 | D77: =VLOOKUP(B77,Summary!$B$30:$AK$475,5,FALSE) -> 27 | H77: 27 | J77: BLACK PEPPER SAUCE (UDON) | K77: 70 | L77: =+K77*H77 -> 1890 | M77: 7.371
A78: 65 | B78: DC10 1110:NISSIN | C78: =0.7/80 -> 0.00875 | D78: =VLOOKUP(B78,Summary!$B$30:$AK$475,5,FALSE) -> 19 | H78: 19 | L78: =+K78*H78 -> 0 | M78: 0
A79: 66 | B79: DC11 1111:VEG RICE | C79: =0.28/90 -> 0.003111111111 | D79: =VLOOKUP(B79,Summary!$B$30:$AK$475,5,FALSE) -> 7 | H79: 7 | L79: 0 | M79: 0
A80: 67 | B80: DC12 1112:NASI LEMAK | C80: 0.0074 | D80: =VLOOKUP(B80,Summary!$B$30:$AK$475,5,FALSE) -> 0 | H80: 0 | J80: SAMBAL SAUCE (NASI) | K80: 110 | L80: 0 | M80: 0
A81: 68 | B81: DC13 1113:KUEY TEOW | C81: 0.0091 | D81: =VLOOKUP(B81,Summary!$B$30:$AK$475,5,FALSE) -> 0 | H81: 0 | J81: SAMBAL (FRIED)SAUCE | K81: 30 | L81: 0 | M81: 0
A82: 69 | B82: DC14 1114:F.BALL MEE | C82: =0.75/130 -> 0.005769230769 | D82: =VLOOKUP(B82,Summary!$B$30:$AK$475,5,FALSE) -> 0 | H82: 0 | L82: 0 | M82: 0
A83: 70 | B83: DC15 1115:CHK NOODLE | C83: 0.0015 | D83: =VLOOKUP(B83,Summary!$B$30:$AK$475,5,FALSE) -> 22 | H83: 22 | J83: DRY NOODLE SAUCE | K83: 25 | L83: 550 | M83: 0.825
A84: 71 | B84: DB01 1001:BP CKN CP | C84: 0.003 | D84: =VLOOKUP(B84,Summary!$B$30:$AK$475,5,FALSE) -> 93 | H84: 93 | J84: BLACK PEPPER SAUCE | K84: 90 | L84: =+K84*H84 -> 8370 | M84: 25.11
A85: 72 | B85: DC16 1116:MGL CHICKEN | C85: =0.7/80 -> 0.00875 | D85: =VLOOKUP(B85,Summary!$B$30:$AK$475,5,FALSE) -> 22 | H85: 22 | J85: MONGOLIAN SAUCE | K85: 80 | L85: =+K85*H85 -> 1760 | M85: 15.4
A86: 73 | B86: DB02 1002:GVY CHK CP | C86: 0.0068 | D86: =VLOOKUP(B86,Summary!$B$30:$AK$475,5,FALSE) -> 23 | H86: 23 | J86: GRAVY SAUCE | K86: 90 | L86: =+K86*H86 -> 2070 | M86: =+L86*C86 -> 14.076
A87: 74 | B87: DB03 1003:MSR CKN CP | C87: =0.27/38 -> 0.007105263158 | D87: =VLOOKUP(B87,Summary!$B$30:$AK$475,5,FALSE) -> 115 | H87: 115 | J87: MUSHROOM SAUCE | K87: 90 | L87: =+K87*H87 -> 10350 | M87: 73.53947368
A88: 75 | B88: DB04 1004:CKN MARY | C88: 0.007105263158 | D88: =VLOOKUP(B88,Summary!$B$30:$AK$475,5,FALSE) -> 27 | H88: 27 | J88: DRESSING THOUSAND ISLAND | K88: 30 | L88: 810 | M88: 5.755263158
A89: 76 | B89: DB05 1005:FISH&CHIP | C89: 0.0124 | D89: =VLOOKUP(B89,Summary!$B$30:$AK$475,5,FALSE) -> 40 | H89: 40 | J89: TARTAR SAUCE | K89: 30 | L89: 1200 | M89: 14.88
A90: 77 | B90: DB06 1006:SPAGHETTI | C90: 0.0114 | D90: =VLOOKUP(B90,Summary!$B$30:$AK$475,5,FALSE) -> 46 | H90: 46 | J90: BOLOGNESE SAUCE | K90: 150 | L90: 6900 | M90: 78.66
A91: 78 | B91: DB07 1007:CHK SALAD | C91: =0.7/65 -> 0.01076923077 | D91: =VLOOKUP(B91,Summary!$B$30:$AK$475,5,FALSE) -> 11 | H91: 11 | J91: DRESSING THOUSAND ISLAND | K91: 65 | L91: 715 | M91: 7.7
A92: 79 | B92: DD01 1201:SFD STICK | C92: =0.27/38 -> 0.007105263158 | D92: =VLOOKUP(B92,Summary!$B$30:$AK$475,5,FALSE) -> 0 | H92: 0 | J92: THAI SAUCE | K92: 38 | L92: 0 | M92: 0
A93: 80 | B93: DD02 1202:FREN FRIES | C93: =0.13/30 -> 0.004333333333 | D93: =VLOOKUP(B93,Summary!$B$30:$AK$475,5,FALSE) -> 80 | H93: 80 | J93: SAUCE CHILLI (KIMBALL) | K93: 30 | L93: 2400 | M93: 10.4
A94: 81 | B94: DD03 1203:GOLD MROOM | C94: =0.28/30 -> 0.009333333333 | D94: =VLOOKUP(B94,Summary!$B$30:$AK$475,5,FALSE) -> 11 | H94: 11 | L94: 0 | M94: 0
A95: 82 | B95: DD04 1204:FISHBALL | C95: 0.0043 | D95: =VLOOKUP(B95,Summary!$B$30:$AK$475,5,FALSE) -> 14 | H95: 14 | J95: SAUCE CHILLI (KIMBALL) | K95: 30 | L95: 420 | M95: 1.806
A96: 83 | B96: DD05 1205:RAINBOW RL | C96: 0.0124 | D96: =VLOOKUP(B96,Summary!$B$30:$AK$475,5,FALSE) -> 0 | H96: 0 | J96: TARTAR SAUCE | K96: 38 | L96: 0 | M96: 0
A97: 84 | B97: DD06 1206:SPRING RL | C97: 0.0124 | D97: =VLOOKUP(B97,Summary!$B$30:$AK$475,5,FALSE) -> 17 | H97: 17 | J97: TARTAR SAUCE | K97: 30 | L97: 510 | M97: 6.324
A98: 85 | B98: DD07 1207:SAUSAGE | C98: =0.32/30 -> 0.01066666667 | D98: =VLOOKUP(B98,Summary!$B$30:$AK$475,5,FALSE) -> 17 | H98: 17 | J98: SAUCE CHILLI (KIMBALL) | K98: 30 | L98: 510 | M98: 5.44
A99: 86 | B99: DD10 1301:DUMPLING | C99: =0.2/30 -> 0.006666666667 | D99: =VLOOKUP(B99,Summary!$B$30:$AK$475,5,FALSE) -> 0 | H99: 0 | L99: 0 | M99: 0
A100: 87 | B100: DD11 1302:NUGGET | C100: =0.2/30 -> 0.006666666667 | D100: =VLOOKUP(B100,Summary!$B$30:$AK$475,5,FALSE) -> 39 | H100: 39 | J100: SAUCE CHILLI (KIMBALL) | K100: 30 | L100: 1170 | M100: 7.8
A101: 88 | B101: DD12 1303:CHK WING | C101: =0.2/30 -> 0.006666666667 | D101: =VLOOKUP(B101,Summary!$B$30:$AK$475,5,FALSE) -> 31 | H101: 31 | J101: THAI SAUCE | K101: 38 | L101: 1178 | M101: 7.853333333
A102: 89 | B102: DD13 1304:IKAN BILIS | C102: 0.0091 | D102: =VLOOKUP(B102,Summary!$B$30:$AK$475,5,FALSE) -> 9 | H102: 9 | J102: SAMBAL (FRIED)SAUCE | K102: 30 | L102: 1770 | M102: 16.107
A103: 90 | B103: DD14 1305:THAI RL | C103: =0.2/30 -> 0.006666666667 | D103: =VLOOKUP(B103,Summary!$B$30:$AK$475,5,FALSE) -> 5 | H103: 5 | J103: THAI SAUCE | K103: 38 | L103: =+K103*H103 -> 190 | M103: =+L103*C103 -> 1.266666667
A104: 91 | B104: DD16 1307:D.F C/WING | C104: =0.32/30 -> 0.01066666667 | D104: =VLOOKUP(B104,Summary!$B$30:$AK$475,5,FALSE) -> 13 | H104: 13 | J104: SAUCE CHILLI (KIMBALL) | K104: 30 | L104: 390 | M104: 4.16
A105: 92 | B105: DD17 1308 C/CALAMARI | C105: 0.0124 | D105: =VLOOKUP(B105,Summary!$B$30:$AK$475,5,FALSE) -> 11 | H105: 11 | J105: TARTAR SAUCE | K105: 30 | L105: 330 | M105: 4.092
A106: 93 | B106: DD18 1309 Mc C/O.RING | C106: 0.0124 | D106: =VLOOKUP(B106,Summary!$B$30:$AK$475,5,FALSE) -> 6 | H106: =+G106+D106 -> 6 | J106: TARTAR SAUCE | K106: 30 | L106: 180 | M106: 2.232
A107: 94 | B107: DD19 1310:Mc SPIRAL/F | C107: 0.0063 | D107: =VLOOKUP(B107,Summary!$B$30:$AK$475,5,FALSE) -> 7 | H107: 7 | J107: MAYONNAISE | K107: 30 | L107: 210 | M107: 1.323
A108: 95 | B108: DD20 1311:Mc H/SMILES | C108: 0.0063 | D108: =VLOOKUP(B108,Summary!$B$30:$AK$475,5,FALSE) -> 0 | H108: 0 | J108: MAYONNAISE | K108: 30 | L108: 0 | M108: 0
A109: 96 | B109: DD21 1312:Mc HASH BRW | C109: 0.0063 | D109: =VLOOKUP(B109,Summary!$B$30:$AK$475,5,FALSE) -> 8 | H109: 8 | J109: MAYONNAISE | K109: 30 | L109: 240 | M109: 1.512
A110: =+A109+1 -> 97 | B110: JK001 LLB BP CHK CHOP | C110: 0.003 | D110: =SUMIF('LOK LOK '!$C$12:$C$30,'SAUCE USAGE'!B110,'LOK LOK '!$E$12:$E$30) -> 11 | H110: =+G110+D110 -> 11 | J110: BLACK PEPPER SAUCE | K110: 90 | L110: =+K110*H110 -> 990 | M110: =+L110*C110 -> 2.97
A111: =+A110+1 -> 98 | B111: JK002 LLB G.S C. CHOP | C111: =0.7/80 -> 0.00875 | D111: =SUMIF('LOK LOK '!$C$12:$C$30,'SAUCE USAGE'!B111,'LOK LOK '!$E$12:$E$30) -> 2 | H111: =+G111+D111 -> 2 | J111: MONGOLIAN SAUCE | K111: 80 | L111: =+K111*H111 -> 160 | M111: 1.4
A112: 99 | B112: JK003 LLB MSR CHK CHOP | C112: 0.0068 | D112: =SUMIF('LOK LOK '!$C$12:$C$30,'SAUCE USAGE'!B112,'LOK LOK '!$E$12:$E$30) -> 11 | H112: 11 | J112: GRAVY SAUCE | K112: 90 | L112: =+K112*H112 -> 990 | M112: 6.732
A113: 100 | B113: JK004 LLB CHK MARRYLAN | C113: 0.007105263158 | D113: =SUMIF('LOK LOK '!$C$12:$C$30,'SAUCE USAGE'!B113,'LOK LOK '!$E$12:$E$30) -> 3 | H113: 3 | J113: MUSHROOM SAUCE | K113: 90 | L113: =+K113*H113 -> 270 | M113: 1.918421053
A114: 101 | B114: JK005 LLB Fish & Chip | C114: 0.0124 | D114: =SUMIF('LOK LOK '!$C$12:$C$30,'SAUCE USAGE'!B114,'LOK LOK '!$E$12:$E$30) -> 2 | H114: =+G114+D114 -> 2 | J114: DRESSING THOUSAND ISLAND | K114: 30 | L114: 60 | M114: 0.744
A115: 102 | B115: JK006 LLB Spaghetti | C115: 0.0114 | D115: =SUMIF('LOK LOK '!$C$12:$C$30,'SAUCE USAGE'!B115,'LOK LOK '!$E$12:$E$30) -> 4 | H115: 4 | J115: BOLOGNESE SAUCE | K115: 150 | L115: 600 | M115: 6.84
A116: 103 | B116: JK007 LLB CHK .C.SALAD | C116: =0.7/65 -> 0.01076923077 | D116: =SUMIF('LOK LOK '!$C$12:$C$30,'SAUCE USAGE'!B116,'LOK LOK '!$E$12:$E$30) -> 2 | H116: 2 | J116: DRESSING THOUSAND ISLAND | K116: 65 | L116: 130 | M116: 1.4
A117: 104 | B117: JK101 LLB Thai Chk Ric | C117: 0.007105263158 | D117: =SUMIF('LOK LOK '!$C$12:$C$30,'SAUCE USAGE'!B117,'LOK LOK '!$E$12:$E$30) -> 8 | H117: =+G117+D117 -> 8 | J117: THAI SAUCE | K117: 75 | L117: =+K117*H117 -> 600 | M117: 4.263157895
A118: 105 | B118: JK102 Marmite Chk Rice | C118: 0.002 | D118: =SUMIF('LOK LOK '!$C$12:$C$30,'SAUCE USAGE'!B118,'LOK LOK '!$E$12:$E$30) -> 4 | H118: 4 | J118: MARMITE SAUCE | K118: 80 | L118: =+K118*H118 -> 320 | M118: 0.64
A119: 106 | B119: JK104 S&S Chk Rice | C119: 0.0015 | D119: =SUMIF('LOK LOK '!$C$12:$C$30,'SAUCE USAGE'!B119,'LOK LOK '!$E$12:$E$30) -> 3 | H119: 3 | J119: SWEET & SOUR SAUCE | K119: 200 | L119: =+K119*H120 -> 2600 | M119: 3.9
A120: 107 | B120: JK105 B.Cream.Chk Rice | C120: 0.0019 | D120: =SUMIF('LOK LOK '!$C$12:$C$30,'SAUCE USAGE'!B120,'LOK LOK '!$E$12:$E$30) -> 13 | H120: 13 | J120: BUTTER CREAM SAUCE | K120: 75 | L120: =+K120*H121 -> 450 | M120: 0.855
A121: 108 | B121: JK106 H.K Fried Rice | C121: 0.0059 | D121: =SUMIF('LOK LOK '!$C$12:$C$30,'SAUCE USAGE'!B121,'LOK LOK '!$E$12:$E$30) -> 6 | H121: 6 | M121: 0
A122: 109 | B122: JK107 LLBSambal F.Rice | D122: =SUMIF('LOK LOK '!$C$12:$C$30,'SAUCE USAGE'!B122,'LOK LOK '!$E$12:$E$30) -> 6 | H122: 6 | M122: 0
A123: 110 | B123: JK108 LLB S.Fried MEE | D123: =SUMIF('LOK LOK '!$C$12:$C$30,'SAUCE USAGE'!B123,'LOK LOK '!$E$12:$E$30) -> 1 | H123: 1 | M123: 0
A124: 111 | B124: JK109 LLB BP Udon Mee | D124: =SUMIF('LOK LOK '!$C$12:$C$30,'SAUCE USAGE'!B124,'LOK LOK '!$E$12:$E$30) -> 5 | H124: 5 | J124: BLACK PEPPER SAUCE (UDON) | K124: 70 | L124: =+K124*H124 -> 350 | M124: 0
A125: 112 | B125: JK110 LLB Nisin Noodle | D125: =SUMIF('LOK LOK '!$C$12:$C$30,'SAUCE USAGE'!B125,'LOK LOK '!$E$12:$E$30) -> 1 | H125: 1 | M125: 0
A126: 113 | B126: JK111 LLB S.M.Ver Rice | D126: =SUMIF('LOK LOK '!$C$12:$C$30,'SAUCE USAGE'!B126,'LOK LOK '!$E$12:$E$30) -> 1 | H126: =+G126+D126 -> 1 | M126: 0
A127: 114 | B127: JK115 LLB B.Noodle.Chk | D127: =SUMIF('LOK LOK '!$C$12:$C$30,'SAUCE USAGE'!B127,'LOK LOK '!$E$12:$E$30) -> 4 | H127: 4 | M127: 0
A128: 115 | B128: JK116 LLB Mon.Chk Rice | D128: =SUMIF('LOK LOK '!$C$12:$C$30,'SAUCE USAGE'!B128,'LOK LOK '!$E$12:$E$30) -> 8 | H128: 8 | J128: MONGOLIAN SAUCE | K128: 80 | L128: =+K128*H128 -> 640 | M128: 0
